Workbook

Sheet Settings (hidden)
A1: FinYears | B1: Year | C1: PriorYear | D1: Month | E1: Month long | F1: Day | H1: Heading
A2: 2019/20 | B2: =VLOOKUP(A2,$A$8:$B$24,2,FALSE) -> 2019 | C2: =VLOOKUP(A2,$A$8:$C$24,3,FALSE) -> 2018/19 | D2: May | E2: =VLOOKUP(D2,$D$8:$F$19,2,FALSE) -> May | F2: =VLOOKUP(D2,$D$8:$F$19,3,FALSE) -> 31 | H2: =VLOOKUP(D2,$D$8:$H$19,5,FALSE) -> 31 May 2019
A7: FinYears | B7: Year | C7: PriorYear | D7: Month | E7: Month long | F7: Day
A8: 2017/18 | B8: =LEFT(A8,4) -> 2017 | D8: Apr | E8: April | F8: 30 | G8: =$B$2 -> 2019 | H8: =F8&" "&E8&" "&G8 -> 30 April 2019 | P8: 2017 | Q8: 18 | R8: =P8&"/"&Q8 -> 2017/18 | T8: 2017/18
A9: 2018/19 | B9: 2018 | C9: =A8 -> 2017/18 | D9: May | E9: May | F9: 31 | G9: =$B$2 -> 2019 | H9: =F9&" "&E9&" "&G9 -> 31 May 2019 | P9: 2018 | Q9: 19 | R9: =P9&"/"&Q9 -> 2018/19 | T9: 2018/19
A10: 2019/20 | B10: 2019 | C10: 2018/19 | D10: Jun | E10: June | F10: 30 | G10: 2019 | H10: 30 June 2019 | P10: 2019 | Q10: 20 | R10: =P10&"/"&Q10 -> 2019/20 | T10: 2019/20
A11: 2020/21 | B11: 2020 | C11: 2019/20 | D11: Jul | E11: July | F11: 31 | G11: 2019 | H11: 31 July 2019 | P11: 2020 | Q11: 21 | R11: 2020/21 | T11: 2020/21
A12: 2021/22 | B12: 2021 | C12: 2020/21 | D12: Aug | E12: August | F12: 31 | G12: 2019 | H12: 31 August 2019 | P12: 2021 | Q12: 22 | R12: 2021/22 | T12: 2021/22
A13: 2022/23 | B13: 2022 | C13: 2021/22 | D13: Sep | E13: September | F13: 30 | G13: 2019 | H13: 30 September 2019 | P13: 2022 | Q13: 23 | R13: 2022/23 | T13: 2022/23
A14: 2023/24 | B14: 2023 | C14: 2022/23 | D14: Oct | E14: October | F14: 31 | G14: 2019 | H14: 31 October 2019 | P14: 2023 | Q14: 24 | R14: 2023/24 | T14: 2023/24
A15: 2024/25 | B15: 2024 | C15: 2023/24 | D15: Nov | E15: November | F15: 30 | G15: 2019 | H15: 30 November 2019 | P15: 2024 | Q15: 25 | R15: 2024/25 | T15: 2024/25
A16: 2025/26 | B16: 2025 | C16: 2024/25 | D16: Dec | E16: December | F16: 31 | G16: 2019 | H16: 31 December 2019 | P16: 2025 | Q16: 26 | R16: 2025/26 | T16: 2025/26
A17: 2026/27 | B17: 2026 | C17: 2025/26 | D17: Jan | E17: January | F17: 31 | G17: =$B$2+1 -> 2020 | H17: 31 January 2020 | P17: 2026 | Q17: 27 | R17: 2026/27 | T17: 2026/27
A18: 2027/28 | B18: 2027 | C18: 2026/27 | D18: Feb | E18: February | F18: 28 | G18: =$B$2+1 -> 2020 | H18: 28 February 2020 | P18: 2027 | Q18: 28 | R18: 2027/28 | T18: 2027/28
A19: 2028/29 | B19: 2028 | C19: 2027/28 | D19: Mar | E19: March | F19: 31 | G19: =$B$2+1 -> 2020 | H19: 31 March 2020 | P19: 2028 | Q19: 29 | R19: 2028/29 | T19: 2028/29
A20: 2029/30 | B20: 2029 | C20: 2028/29 | P20: 2029 | Q20: 30 | R20: 2029/30 | T20: 2029/30
A21: 2030/31 | B21: 2030 | C21: 2029/30 | P21: 2030 | Q21: 31 | R21: 2030/31 | T21: 2030/31
A22: 2031/32 | B22: 2031 | C22: 2030/31 | P22: 2031 | Q22: 32 | R22: 2031/32 | T22: 2031/32
A23: 2032/33 | B23: 2032 | C23: 2031/32 | P23: 2032 | Q23: 33 | R23: 2032/33 | T23: 2032/33
A24: 2033/34 | B24: 2033 | C24: 2032/33 | P24: 2033 | Q24: 34 | R24: 2033/34 | T24: 2033/34
P25: 2034 | Q25: 35 | R25: 2034/35 | T25: 2034/35

Sheet Summary
B1: The statement of actual revenue, expenditure and borrowings with regard to the National Revenue Fund as at the end of June 2021/2022 fiscal year is hereby published in terms of section 32 (1) of the Public Finance Management Act, 1999.
B2: Detailed information is available on the website of the National Treasury at www.treasury.gov.za click the Communications & Media link - Press Releases - Monthly Press Releases
B4: Summary table of national revenue, expenditure and borrowing for the month ended 30 June 2021
G5: 2021/22 | U5: 2020/21
G6: Budget | H6: April | I6: May | J6: June | K6: July | L6: August | M6: September | N6: October | O6: November | P6: December | Q6: January | R6: February | S6: March | T6: Year to date | U6: Preliminary | V6: April | W6: May | X6: June | Y6: July | Z6: August | AA6: September | AB6: October | AC6: November | AD6: December | AE6: January | AF6: February | AG6: March | AH6: Year to date
B7: R thousand | F7: Table | G7: estimate | U7: outcome
B9: Revenue | F9: 1 | G9: 1351672125 | H9: 85521313 | I9: 95746535 | J9: 204272506 | K9: 0 | L9: 0 | M9: 0 | N9: 0 | O9: 0 | P9: 0 | Q9: 0 | R9: 0 | S9: 0 | T9: 385540354 | U9: 1236135079 | V9: 63095740 | W9: 68106446 | X9: 108554101 | Y9: 0 | Z9: 0 | AA9: 0 | AB9: 0 | AC9: 0 | AD9: 0 | AE9: 0 | AF9: 0 | AG9: 0 | AH9: 239756287
B11: Expenditure | F11: 2 | G11: 1834252150 | H11: 165884419 | I11: 101190249 | J11: 141124693 | K11: 0 | L11: 0 | M11: 0 | N11: 0 | O11: 0 | P11: 0 | Q11: 0 | R11: 0 | S11: 0 | T11: 408199361 | U11: 1787992788 | V11: 114252197 | W11: 120475526 | X11: 130850284 | Y11: 0 | Z11: 0 | AA11: 0 | AB11: 0 | AC11: 0 | AD11: 0 | AE11: 0 | AF11: 0 | AG11: 0 | AH11: 365578007
C13: Appropriation by vote | F13: 2 | G13: 980583908 | H13: 116698071 | I13: 53776623 | J13: 67735900 | K13: 0 | L13: 0 | M13: 0 | N13: 0 | O13: 0 | P13: 0 | Q13: 0 | R13: 0 | S13: 0 | T13: 238210594 | U13: 1003374091 | V13: 63165298 | W13: 71995377 | X13: 61212482 | Y13: 0 | Z13: 0 | AA13: 0 | AB13: 0 | AC13: 0 | AD13: 0 | AE13: 0 | AF13: 0 | AG13: 0 | AH13: 196373157
C15: Direct charges against the NRF | F15: 2 | G15: 830023039 | H15: 49186348 | I15: 47413626 | J15: 73388793 | K15: 0 | L15: 0 | M15: 0 | N15: 0 | O15: 0 | P15: 0 | Q15: 0 | R15: 0 | S15: 0 | T15: 169988767 | U15: 784618697 | V15: 51086899 | W15: 48480149 | X15: 69637802 | Y15: 0 | Z15: 0 | AA15: 0 | AB15: 0 | AC15: 0 | AD15: 0 | AE15: 0 | AF15: 0 | AG15: 0 | AH15: 169204850 | AI15: 0
D16: Debt-service costs | G16: 269741139 | H16: 3056138 | I16: 1776922 | J16: 27683786 | K16: 0 | L16: 0 | M16: 0 | N16: 0 | O16: 0 | P16: 0 | Q16: 0 | R16: 0 | S16: 0 | T16: 32516846 | U16: 232595658 | V16: 4156462 | W16: 1746959 | X16: 23287136 | Y16: 0 | Z16: 0 | AA16: 0 | AB16: 0 | AC16: 0 | AD16: 0 | AE16: 0 | AF16: 0 | AG16: 0 | AH16: 29190557
D17: Provincial equitable share | G17: 523686351 | H17: 43640529 | I17: 43640529 | J17: 43640529 | K17: 0 | L17: 0 | M17: 0 | N17: 0 | O17: 0 | P17: 0 | Q17: 0 | R17: 0 | S17: 0 | T17: 130921587 | U17: 520717021 | V17: 44872627 | W17: 44872627 | X17: 44872627 | Y17: 0 | Z17: 0 | AA17: 0 | AB17: 0 | AC17: 0 | AD17: 0 | AE17: 0 | AF17: 0 | AG17: 0 | AH17: 134617881
D18: General fuel levy sharing with metropolitan municipalities | G18: 14617279 | H18: 0 | I18: 0 | J18: 0 | K18: 0 | L18: 0 | M18: 0 | N18: 0 | O18: 0 | P18: 0 | Q18: 0 | R18: 0 | S18: 0 | T18: 0 | U18: 14026878 | V18: 0 | W18: 0 | X18: 0 | Y18: 0 | Z18: 0 | AA18: 0 | AB18: 0 | AC18: 0 | AD18: 0 | AE18: 0 | AF18: 0 | AG18: 0 | AH18: 0
D19: Other payments
D20: Eskom - payment in terms of Section 16(1) of the PFMA | V20: 0 | W20: 0 | X20: 0 | Y20: 0 | Z20: 0 | AA20: 0 | AB20: 0 | AC20: 0 | AD20: 0 | AE20: 0 | AF20: 0 | AG20: 0 | AH20: 0
D21: Payments in terms of Section 70 of the PFMA | G21: 0 | H21: 0 | I21: 0 | J21: 0 | K21: 0 | L21: 0 | M21: 0 | N21: 0 | O21: 0 | P21: 0 | Q21: 0 | R21: 0 | S21: 0 | T21: 0 | U21: 484665 | V21: 0 | W21: 0 | X21: 0 | Y21: 0 | Z21: 0 | AA21: 0 | AB21: 0 | AC21: 0 | AD21: 0 | AE21: 0 | AF21: 0 | AG21: 0 | AH21: 0
D22: South African Express Airways | G22: 0 | H22: 0 | I22: 0 | J22: 0 | K22: 0 | L22: 0 | M22: 0 | N22: 0 | O22: 0 | P22: 0 | Q22: 0 | R22: 0 | S22: 0 | T22: 0 | U22: 143395 | V22: 0 | W22: 0 | X22: 0 | Y22: 0 | Z22: 0 | AA22: 0 | AB22: 0 | AC22: 0 | AD22: 0 | AE22: 0 | AF22: 0 | AG22: 0 | AH22: 0
D23: South African Airways | G23: 0 | J23: 0 | T23: 0 | U23: 266904 | X23: 0 | AH23: 0
D24: Land and Agricultural Development Bank of SA | G24: 0 | H24: 0 | I24: 0 | J24: 0 | K24: 0 | L24: 0 | M24: 0 | N24: 0 | O24: 0 | P24: 0 | Q24: 0 | R24: 0 | S24: 0 | T24: 0 | U24: 74366 | V24: 0 | W24: 0 | X24: 0 | Y24: 0 | Z24: 0 | AA24: 0 | AB24: 0 | AC24: 0 | AD24: 0 | AE24: 0 | AF24: 0 | AG24: 0 | AH24: 0
D25: South African Airways | G25: 0 | H25: 0 | I25: 0 | J25: 0 | K25: 0 | L25: 0 | M25: 0 | N25: 0 | O25: 0 | P25: 0 | Q25: 0 | R25: 0 | S25: 0 | T25: 0 | U25: 0 | V25: 0 | W25: 0 | X25: 0 | Y25: 0 | Z25: 0 | AA25: 0 | AB25: 0 | AC25: 0 | AD25: 0 | AE25: 0 | AF25: 0 | AG25: 0 | AH25: 0
D26: Payments in terms of Special Appropriation Act no. 11 of 2021 | G26: 0 | H26: 0 | I26: 0 | J26: 45000 | K26: 0 | L26: 0 | M26: 0 | N26: 0 | O26: 0 | P26: 0 | Q26: 0 | R26: 0 | S26: 0 | T26: 45000 | U26: 0 | V26: 0 | W26: 0 | X26: 0 | Y26: 0 | Z26: 0 | AA26: 0 | AB26: 0 | AC26: 0 | AD26: 0 | AE26: 0 | AF26: 0 | AG26: 0 | AH26: 0
D27: South African Airways | G27: 0 | H27: 0 | I27: 0 | J27: 45000 | K27: 0 | L27: 0 | M27: 0 | N27: 0 | O27: 0 | P27: 0 | Q27: 0 | R27: 0 | S27: 0 | T27: 45000 | U27: 0 | V27: 0 | W27: 0 | X27: 0 | Y27: 0 | Z27: 0 | AA27: 0 | AB27: 0 | AC27: 0 | AD27: 0 | AE27: 0 | AF27: 0 | AG27: 0 | AH27: 0
D28: South African Express Airways | G28: 0 | H28: 0 | I28: 0 | J28: 0 | K28: 0 | L28: 0 | M28: 0 | N28: 0 | O28: 0 | P28: 0 | Q28: 0 | R28: 0 | S28: 0 | T28: 0 | U28: 0 | V28: 0 | W28: 0 | X28: 0 | Y28: 0 | Z28: 0 | AA28: 0 | AB28: 0 | AC28: 0 | AD28: 0 | AE28: 0 | AF28: 0 | AG28: 0 | AH28: 0
D29: Denel | G29: 0 | H29: 0 | I29: 0 | J29: 0 | K29: 0 | L29: 0 | M29: 0 | N29: 0 | O29: 0 | P29: 0 | Q29: 0 | R29: 0 | S29: 0 | T29: 0 | U29: 0 | V29: 0 | W29: 0 | X29: 0 | Y29: 0 | Z29: 0 | AA29: 0 | AB29: 0 | AC29: 0 | AD29: 0 | AE29: 0 | AF29: 0 | AG29: 0 | AH29: 0
D30: SABC | G30: 0 | T30: 0 | U30: 0 | AH30: 0
D31: Skill Levy and SETAs | G31: 17812863 | H31: 1616206 | I31: 1478092 | J31: 1397748 | K31: 0 | L31: 0 | M31: 0 | N31: 0 | O31: 0 | P31: 0 | Q31: 0 | R31: 0 | S31: 0 | T31: 4492046 | U31: 12412974 | V31: 1745798 | W31: 1447692 | X31: 1118322 | Y31: 0 | Z31: 0 | AA31: 0 | AB31: 0 | AC31: 0 | AD31: 0 | AE31: 0 | AF31: 0 | AG31: 0 | AH31: 4311812
D32: Other costs | G32: 4165407 | H32: 873475 | I32: 518083 | J32: 621730 | K32: 0 | L32: 0 | M32: 0 | N32: 0 | O32: 0 | P32: 0 | Q32: 0 | R32: 0 | S32: 0 | T32: 2013288 | U32: 4381501 | V32: 312012 | W32: 412871 | X32: 359717 | Y32: 0 | Z32: 0 | AA32: 0 | AB32: 0 | AC32: 0 | AD32: 0 | AE32: 0 | AF32: 0 | AG32: 0 | AH32: 1084600
C34: Provisional reduction to fund Land Bank allocation | G34: -5000000 | H34: 0 | I34: 0 | J34: 0 | T34: 0 | U34: 0 | V34: 0 | W34: 0 | AH34: 0
C35: Provisional allocation not assisgned to votes | G35: 12645203 | H35: 0 | I35: 0 | J35: 0 | T35: 0 | U35: 0 | V35: 0 | W35: 0 | AH35: 0
C36: Infrastructure Fund not assigned to votes | G36: 4000000 | H36: 0 | I36: 0 | J36: 0 | T36: 0 | U36: 0 | V36: 0 | W36: 0 | AH36: 0
C38: Contingency reserve | G38: 12000000 | H38: 0 | I38: 0 | J38: 0 | K38: 0 | L38: 0 | M38: 0 | N38: 0 | O38: 0 | P38: 0 | Q38: 0 | R38: 0 | S38: 0 | T38: 0 | U38: 0 | V38: 0 | W38: 0 | X38: 0 | Y38: 0 | Z38: 0 | AA38: 0 | AB38: 0 | AC38: 0 | AD38: 0 | AE38: 0 | AF38: 0 | AG38: 0 | AH38: 0
B40: Main budget balance | G40: -482580025 | H40: -80363106 | I40: -5443714 | J40: 63147813 | K40: 0 | L40: 0 | M40: 0 | N40: 0 | O40: 0 | P40: 0 | Q40: 0 | R40: 0 | S40: 0 | T40: -22659007 | U40: -551857709 | V40: -51156457 | W40: -52369080 | X40: -22296183 | Y40: 0 | Z40: 0 | AA40: 0 | AB40: 0 | AC40: 0 | AD40: 0 | AE40: 0 | AF40: 0 | AG40: 0 | AH40: -125821720
B43: Financing of the net borrowing requirement
B45: Domestic short-term loans (net) | F45: 3 | G45: 9000000 | H45: 9415800 | I45: -6660753 | J45: 5151867 | K45: 0 | L45: 0 | M45: 0 | N45: 0 | O45: 0 | P45: 0 | Q45: 0 | R45: 0 | S45: 0 | T45: 7906914 | U45: 95325424 | V45: 37582688 | W45: 16125619 | X45: 11567828 | Y45: 0 | Z45: 0 | AA45: 0 | AB45: 0 | AC45: 0 | AD45: 0 | AE45: 0 | AF45: 0 | AG45: 0 | AH45: 65276135
B47: Domestic long-term loans (net) | F47: 3 | G47: 319185000 | H47: 26656371 | I47: 26132793 | J47: 23736909 | K47: 0 | L47: 0 | M47: 0 | N47: 0 | O47: 0 | P47: 0 | Q47: 0 | R47: 0 | S47: 0 | T47: 76526073 | U47: 470195263 | V47: 32850713 | W47: 40638037 | X47: 43402900 | Y47: 0 | Z47: 0 | AA47: 0 | AB47: 0 | AC47: 0 | AD47: 0 | AE47: 0 | AF47: 0 | AG47: 0 | AH47: 116891650
B49: Foreign loans (net) | F49: 3 | G49: 41795000 | H49: 0 | I49: -6054 | J49: 14088400 | K49: 0 | L49: 0 | M49: 0 | N49: 0 | O49: 0 | P49: 0 | Q49: 0 | R49: 0 | S49: 0 | T49: 14082346 | U49: 77503430 | V49: -777665 | W49: -4931986 | X49: -8699700 | Y49: 0 | Z49: 0 | AA49: 0 | AB49: 0 | AC49: 0 | AD49: 0 | AE49: 0 | AF49: 0 | AG49: 0 | AH49: -14409351
B51: Change in cash and other balances1 | F51: 3 | G51: 112600025 | H51: 44290935 | I51: -14022272 | J51: -106124989 | K51: 0 | L51: 0 | M51: 0 | N51: 0 | O51: 0 | P51: 0 | Q51: 0 | R51: 0 | S51: 0 | T51: -75856326 | U51: -91166408 | V51: -18499279 | W51: 537410 | X51: -23974845 | Y51: 0 | Z51: 0 | AA51: 0 | AB51: 0 | AC51: 0 | AD51: 0 | AE51: 0 | AF51: 0 | AG51: 0 | AH51: -41936714
B53: Total financing (net) | G53: 482580025 | H53: 80363106 | I53: 5443714 | J53: -63147813 | K53: 0 | L53: 0 | M53: 0 | N53: 0 | O53: 0 | P53: 0 | Q53: 0 | R53: 0 | S53: 0 | T53: 22659007 | U53: 551857709 | V53: 51156457 | W53: 52369080 | X53: 22296183 | Y53: 0 | Z53: 0 | AA53: 0 | AB53: 0 | AC53: 0 | AD53: 0 | AE53: 0 | AF53: 0 | AG53: 0 | AH53: 125821720
B55: 1) A negative value indicates an increase in cash and other balances. A positive value indicates that cash is used to finance part of the borrowing requirement.
G57: 0 | H57: 0 | I57: 0 | J57: 0 | K57: 0 | L57: 0 | M57: 0 | N57: 0 | O57: 0 | P57: 0 | Q57: 0 | R57: 0 | S57: 0 | T57: 0 | U57: 0 | V57: 0 | W57: 0 | X57: 0 | Y57: 0 | Z57: 0 | AA57: 0 | AB57: 0 | AC57: 0 | AD57: 0 | AE57: 0 | AF57: 0 | AG57: 0 | AH57: 0
C59: COMPILED BY: Millicent Bereda | F59: REVIEWED: Suzan Molokwane | U59: APPROVED: Lizette Labuschagne
C62: DATE: | F62: DATE: | U62: DATE:

Sheet Table 1
A2: Table 1 Revenue*
H3: 2021/22 | V3: 2020/21
H4: Budget | I4: April | J4: May | K4: June | L4: July | M4: August | N4: September | O4: October | P4: November | Q4: December | R4: January | S4: February | T4: March | U4: Year to date | V4: Preliminary | W4: April | X4: May | Y4: June | Z4: July | AA4: August | AB4: September | AC4: October | AD4: November | AE4: December | AF4: January | AG4: February | AH4: March | AI4: Year to date
A5: R thousand | H5: estimate | V5: outcome
B6: Taxes on income and profits | H6: =+H7+H14+H15+H16+H17+H19+H20 -> 761977629 | I6: =+I7+I14+I15+I16+I17+I19+I20 -> 50217090 | J6: 45605325 | K6: 139818583 | L6: 0 | M6: 0 | N6: 0 | O6: 0 | P6: 0 | Q6: 0 | R6: 0 | S6: 0 | T6: 0 | U6: =+U7+U14+U15+U16+U17+U19+U20 -> 235640998 | V6: =+V7+V14+V15+V16+V17+V19+V20 -> 718180500 | W6: =+W7+W14+W15+W16+W17+W19+W20 -> 44502248 | X6: =+X7+X14+X15+X16+X17+X19+X20 -> 40267542 | Y6: 75893155 | Z6: 38199167 | AA6: 54625197 | AB6: 54199271 | AC6: 41509113 | AD6: 42477964 | AE6: =+AE7+AE14+AE15+AE16+AE17+AE19+AE20 -> 113137906 | AF6: 48426034 | AG6: 90564483 | AH6: 74378422 | AI6: =+AI7+AI14+AI15+AI16+AI17+AI19+AI20 -> 160662945 | AM6: =H6-AI6 -> 601314684
C7: Personal income tax | H7: =(+H8+H9+H10+H11+H12) -> 515957332 | I7: =(+I8+I9+I10+I11+I12) -> 44724379 | J7: 41449184 | K7: =(+K8+K9+K10+K11+K12)-1 -> 41843728 | L7: 0 | M7: 0 | N7: 0 | O7: 0 | P7: 0 | Q7: 0 | R7: 0 | S7: 0 | T7: 0 | U7: =(+U8+U9+U10+U11+U12)-1 -> 128017291 | V7: 487011072 | W7: =(+W8+W9+W10+W11+W12) -> 41615903 | X7: =(+X8+X9+X10+X11+X12) -> 36192556 | Y7: 33797794 | Z7: 34826343 | AA7: 36297896 | AB7: 35952833 | AC7: 37860118 | AD7: 38487474 | AE7: 45457888 | AF7: 44037920 | AG7: 55833861 | AH7: 46650488 | AI7: =(+AI8+AI9+AI10+AI11+AI12) -> 111606253 | AM7: 404351079 | AN7: =+#REF!-#REF! -> 
E8: Provisional tax, assessment payments and penalties | H8: 44517883 | I8: 894069 | J8: =935416.87613-894069+896221 -> 937569 | K8: =985338.53715-1831638+1836980 -> 990681 | L8: 0 | M8: 0 | N8: 0 | O8: 0 | P8: 0 | Q8: 0 | R8: 0 | S8: 0 | T8: 0 | U8: =SUM(I8:T8) -> 2822319 | V8: 39205286 | W8: 532956 | X8: =629316.68601-532956+534747 -> 631108 | Y8: =720104.87132-1164063+1166249 -> 722291 | Z8: =764881.78328-1886354+1890214 -> 768742 | AA8: =8709341.33208-2655096+2658352 -> 8712597 | AB8: =2109667.74589-11367693+11366540 -> 2108515 | AC8: =1459243.92581-13476208+13488175 -> 1471211 | AD8: =1761936.68629-14947419+14953936 -> 1768454 | AE8: =1442146.83107-16715873+16720004 -> 1446278 | AF8: =1541675.40638-18162151+18171172 -> 1550696 | AG8: =17450967.15106-19712847+19720282 -> 17458402 | AH8: =2029243.39599-37171249+37176042 -> 2034036 | AI8: =SUM(W8:Y8) -> 1886355 | AM8: 42631528 | AN8: =+#REF!-#REF! -> 
E9: Employees tax | H9: 506853834 | I9: 45019192 | J9: =41542477.86654-45019192+45019192 -> 41542478 | K9: =42000206.93183-86561670+86561670 -> 42000207 | L9: 0 | M9: 0 | N9: 0 | O9: 0 | P9: 0 | Q9: 0 | R9: 0 | S9: 0 | T9: 0 | U9: =SUM(I9:T9) -> 128561877 | V9: 489785922 | W9: 41692107 | X9: =37255109.59198-41692107+41692107 -> 37255110 | Y9: =34481178.62707-78947217+78947217 -> 34481179 | Z9: =36096742.5331-113428395+113428395 -> 36096743 | AA9: =37366127.87103-149525138+149525138 -> 37366128 | AB9: =39332802.73587-186891266+186891266 -> 39332803 | AC9: =40894525.01229-226224068+226224068 -> 40894525 | AD9: =40881736.10405-267118593+267118593 -> 40881736 | AE9: =47007550.11528-308000330+308000330 -> 47007550 | AF9: =44996207.89853-355007880+355007880 -> 44996208 | AG9: =42294852.44758-400004088+400004090 -> 42294854 | AH9: =47486979.38439-442298942+442298943 -> 47486980 | AI9: =SUM(W9:Y9) -> 113428396 | AM9: 393425438 | AN9: =+#REF!-#REF! -> 
E10: ETI credit - refunds granted against PAYE payment | H10: -4366437 | I10: -265443 | J10: =265443-265443-260352.89185 -> -260353 | K10: =-285284.18307+525796-525796 -> -285284 | L10: 0 | M10: 0 | N10: 0 | O10: 0 | P10: 0 | Q10: 0 | R10: 0 | S10: 0 | T10: 0 | U10: =SUM(I10:T10) -> -811080 | V10: -5391972 | W10: -50673 | X10: =-835644.90192-50673 +50673 -> -835645 | Y10: =-542577.35311-886318+886318 -> -542577 | Z10: =-630563.10416-1428896+1428895+1 -> -630563 | AA10: =-721237.6477-2059459+2059457 -> -721240 | AB10: =-528888.24427+2780698-2780696 -> -528886 | AC10: =-376226.14927-3309585+3309585 -> -376226 | AD10: =-333392.25274-3685811+3685811 -> -333392 | AE10: =-340695.72862-4019203+4019203 -> -340696 | AF10: =-322886.75233-4359899+4359899 -> -322887 | AG10: =-339870.86841-4682785+4682785 -> -339871 | AH10: =-369316.15598-5022656+5022656 -> -369316 | AI10: -1428895 | AM10: -2937542 | AN10: =+#REF!-#REF! -> 
E11: ETI credit - refunds | H11: -704230 | I11: -23921 | J11: =-65446.07962+23921-23921 -> -65446 | K11: =-32588.16403+89367-89367 -> -32588 | L11: 0 | M11: 0 | N11: 0 | O11: 0 | P11: 0 | Q11: 0 | R11: 0 | S11: 0 | T11: 0 | U11: =SUM(I11:T11) -> -121955 | V11: -1772746 | W11: -28023 | X11: =-172007.06936-28023+28023 -> -172007 | Y11: =-287062.47683-200030+200030 -> -287062 | Z11: =-325112.87945-487092+487092 -> -325113 | AA11: =-492219.62296-812205+812205 -> -492220 | AB11: =-81601.19394-1304425+1304425 -> -81601 | AC11: =-78021.36335-1386026+1386026 -> -78021 | AD11: =-28738.37287-1464047+1464047 -> -28738 | AE11: =-20169.09295-1492786+1492786 -> -20169 | AF11: =-55124.57698-1512955+1512955 -> -55125 | AG11: =-151856.35319-1568079+1568079 -> -151856 | AH11: =-52810.38845-1719936+1719936 -> -52810 | AI11: -487092 | AM11: -217138 | AN11: =+#REF!-#REF! -> 
E12: PIT refunds | H12: -30343718 | I12: -899518 | J12: =-705064.3916+899518-899518 -> -705064 | K12: =-829287.09362+1604582-1604582 -> -829287 | L12: 0 | M12: 0 | N12: 0 | O12: 0 | P12: 0 | Q12: 0 | R12: 0 | S12: 0 | T12: 0 | U12: =SUM(I12:T12) -> -2433869 | V12: -34815418 | W12: -530464 | X12: =-686010.05605-530464+530464 -> -686010 | Y12: =-576037.36856-1216474+1216474 -> -576037 | Z12: =-1083465.70439-1792511+1792511 -> -1083466 | AA12: =-8567368.51468-2875977+2875977 -> -8567369 | AB12: =-4877998.3482-11443346+11443346 -> -4877998 | AC12: =-4051370.97252-16321344+16321344 -> -4051371 | AD12: =-3800585.72167-20372715+20372715 -> -3800586 | AE12: =-2635074.80797-24173301+24173301 -> -2635075 | AF12: =-2130972.42416-26808375+26808375 -> -2130972 | AG12: =-3427668.03498-28939348+28939348 -> -3427668 | AH12: =-2448402.04697-32367016+32367016 -> -2448402 | AI12: -1792511 | AM12: -28551207 | AN12: =+#REF!-#REF! -> 
C13: Tax on corporate income | AM13: 0 | AN13: =+#REF!-#REF! -> 
E14: Corporate income tax | H14: 213114219 | I14: 1294045 | J14: =1352177.50582-1294045+1300601 -> 1358734 | K14: =95184183.17512-2652779+2662753 -> 95194157 | L14: 0 | M14: 0 | N14: 0 | O14: 0 | P14: 0 | Q14: 0 | R14: 0 | S14: 0 | T14: 0 | U14: =SUM(I14:T14) -> 97846936 | V14: 202123447 | W14: 384843 | X14: =437017.20909-384843+393075 -> 445249 | Y14: =39922511.53065-830092+821513 -> 39913933 | Z14: =1548234.13954-40744025+40762136+1 -> 1566346 | AA14: =16566010.45242-42310371+42327765 -> 16583404 | AB14: =16693780.42493-58893775+58936820 -> 16736825 | AC14: =1024152.44984-75630601+75675043 -> 1068594 | AD14: =2098721.05977-76699195+76742992 -> 2142518 | AE14: =65830652.06303-78841713+78876874 -> 65865813 | AF14: =1368911.09104-144707526+144819121 -> 1480506 | AG14: =31887764.54716-146188032+146237893 -> 31937626 | AH14: =23973667.94828-178125658+178149779 -> 23997789 | AI14: 40744025 | AM14: 172370194 | AN14: =+#REF!-#REF! -> 
E15: Secondary tax on companies | H15: 82942 | I15: 10407 | J15: 323 | K15: 20702 | L15: 0 | M15: 0 | N15: 0 | O15: 0 | P15: 0 | Q15: 0 | R15: 0 | S15: 0 | T15: 0 | U15: =SUM(I15:T15) -> 31432 | V15: 63750 | W15: 592 | X15: 359 | Y15: -544 | Z15: 1415 | AA15: 14900 | AB15: 1546 | AC15: 1453 | AD15: 788 | AE15: 11588 | AF15: 10153 | AG15: 578 | AH15: 20923 | AI15: 407 | AM15: 82535 | AN15: =+#REF!-#REF! -> 
E16: Withholding tax on dividends | H16: 26089189 | I16: 3847925 | J16: 2554459 | K16: 1986005 | L16: 0 | M16: 0 | N16: 0 | O16: 0 | P16: 0 | Q16: 0 | R16: 0 | S16: 0 | T16: 0 | U16: =SUM(I16:T16) -> 8388389 | V16: 24781612 | W16: 2209080 | X16: 3349193 | Y16: 1867408 | Z16: 1470065 | AA16: 1308870 | AB16: 1067479 | AC16: 2239556 | AD16: 1525228 | AE16: 1430045 | AF16: 2718754 | AG16: 2500498 | AH16: 3095437 | AI16: 7425681 | AM16: 18663508 | AN16: =+#REF!-#REF! -> 
E17: Withholding tax on Interest | H17: 542524 | I17: 53780 | J17: 32642 | K17: 45673 | L17: 0 | M17: 0 | N17: 0 | O17: 0 | P17: 0 | Q17: 0 | R17: 0 | S17: 0 | T17: 0 | U17: =SUM(I17:T17) -> 132095 | V17: 490305 | W17: 59183 | X17: 31029 | Y17: 32443 | Z17: 43083 | AA17: 23768 | AB17: 40210 | AC17: 57329 | AD17: 38020 | AE17: 30231 | AF17: 28941 | AG17: 34950 | AH17: 71117 | AI17: 122655 | AM17: 419869 | AN17: =+#REF!-#REF! -> 
C18: Other | AM18: =H1-AI18 -> 0 | AN18: =+#REF!-#REF! -> 
E19: Interest on overdue income tax | H19: 6191383 | I19: 286554 | J19: =218690.6868-286554+277846 -> 209983 | K19: =743633.80513-496537+481221 -> 728318 | L19: 0 | M19: 0 | N19: 0 | O19: 0 | P19: 0 | Q19: 0 | R19: 0 | S19: 0 | T19: 0 | U19: =SUM(I19:T19) -> 1224855 | V19: 3710242 | W19: 232647 | X19: =259107.23964-232647+222624 -> 249084 | Y19: =275728.14204-481731+488124 -> 282121 | Z19: =313886.88512-763853+741881 -> 291915 | AA19: =417007.69599-1055767+1035118 -> 396359 | AB19: =442271.86283-1452126+1410232 -> 400378 | AC19: =338472.35938-1852504+1796095 -> 282063 | AD19: =334250.08218-2134567+2084253 -> 283936 | AE19: =381631.89427-2418503+2379212 -> 342341 | AF19: =270376.17194-2760844+2640228 -> 149760 | AG19: =314264.16552-2910604+2853310 -> 256970 | AH19: =571582.76639-3167575+3138660 -> 542668 | AI19: 763852 | AM19: =H19-AI19 -> 5427531 | AN19: =+#REF!-#REF! -> 
E20: Small business tax amnesty | H20: 40 | I20: 0 | J20: 0 | K20: 0 | L20: 0 | M20: 0 | N20: 0 | O20: 0 | P20: 0 | Q20: 0 | R20: 0 | S20: 0 | T20: 0 | U20: =SUM(I20:T20) -> 0 | V20: 72 | W20: 0 | X20: 72 | Y20: 0 | Z20: 0 | AA20: 0 | AB20: 0 | AC20: 0 | AD20: 0 | AE20: 0 | AF20: 0 | AG20: 0 | AH20: 0 | AI20: 72 | AM20: =H20-AI20 -> -32 | AN20: =+#REF!-#REF! -> 
B21: Taxes on payroll and workforce | H21: =H22 -> 17812864 | I21: =I22 -> 1480689 | J21: 1400397 | K21: 1585598 | L21: 0 | M21: 0 | N21: 0 | O21: 0 | P21: 0 | Q21: 0 | R21: 0 | S21: 0 | T21: 0 | U21: 4466684 | V21: 12250229 | W21: 1448896 | X21: 1119037 | Y21: 8684 | Z21: 88986 | AA21: 75881 | AB21: 169906 | AC21: 1462514 | AD21: 1488220 | AE21: 1667700 | AF21: 1637905 | AG21: 1463554 | AH21: 1618947 | AI21: 2576617 | AM21: =H21-AI21 -> 15236247 | AN21: =+#REF!-#REF! -> 
C22: Skills development levy | H22: 17812864 | I22: 1480689 | J22: 1400397 | K22: 1585598 | L22: 0 | M22: 0 | N22: 0 | O22: 0 | P22: 0 | Q22: 0 | R22: 0 | S22: 0 | T22: 0 | U22: =SUM(I22:T22) -> 4466684 | V22: 12250229 | W22: 1448896 | X22: 1119037 | Y22: 8684 | Z22: 88986 | AA22: 75881 | AB22: 169906 | AC22: 1462514 | AD22: 1488220 | AE22: 1667700 | AF22: 1637905 | AG22: 1463554 | AH22: 1618947 | AI22: 2576617 | AM22: =H22-AI22 -> 15236247 | AN22: =+#REF!-#REF! -> 
B23: Taxes on property | H23: =SUM(H24:H29) -> 16837116 | I23: =SUM(I24:I29) -> 1550997 | J23: 1729142 | K23: 1636145 | L23: 0 | M23: 0 | N23: 0 | O23: 0 | P23: 0 | Q23: 0 | R23: 0 | S23: 0 | T23: 0 | U23: 4916284 | V23: =SUM(V24:V29) -> 15946618 | W23: =SUM(W24:W29) -> 930000 | X23: =SUM(X24:X29) -> 964345 | Y23: 1222431 | Z23: 1300104 | AA23: 1253114 | AB23: 1425464 | AC23: 1457954 | AD23: 1638130 | AE23: 1246894 | AF23: 1262648 | AG23: 1471052 | AH23: 1774480 | AI23: 3116776 | AM23: =H23-AI23 -> 13720340 | AN23: =+#REF!-#REF! -> 
C24: Estate, inheritance and gift taxes | AN24: =+#REF!-#REF! -> 
E25: Donations tax | H25: 645722 | I25: 42752 | J25: 44120 | K25: 22873 | L25: 0 | M25: 0 | N25: 0 | O25: 0 | P25: 0 | Q25: 0 | R25: 0 | S25: 0 | T25: 0 | U25: =SUM(I25:T25) -> 109745 | V25: 602003 | W25: 31560 | X25: 10892 | Y25: 46561 | Z25: 34777 | AA25: 55123 | AB25: 68695 | AC25: 25459 | AD25: 64813 | AE25: 55056 | AF25: 32973 | AG25: 44204 | AH25: 131889 | AI25: =SUM(W25:Y25) -> 89013 | AM25: =H25-AI25 -> 556709 | AN25: =+#REF!-#REF! -> 
E26: Estate duty | H26: 2559252 | I26: 186538 | J26: 361618 | K26: 194068 | L26: 0 | M26: 0 | N26: 0 | O26: 0 | P26: 0 | Q26: 0 | R26: 0 | S26: 0 | T26: 0 | U26: =SUM(I26:T26) -> 742224 | V26: 2316293 | W26: 96256 | X26: 129073 | Y26: 226719 | Z26: 264484 | AA26: 157561 | AB26: 279992 | AC26: 214142 | AD26: 216394 | AE26: 199917 | AF26: 103877 | AG26: 158665 | AH26: 269212 | AI26: 452048 | AM26: =H26-AI26 -> 2107204 | AN26: =+#REF!-#REF! -> 
C27: Taxes on financial and capital transactions | AN27: =+#REF!-#REF! -> 
E28: Securities transfer tax | H28: 6095252 | I28: 532296 | J28: 406420 | K28: 474976 | L28: 0 | M28: 0 | N28: 0 | O28: 0 | P28: 0 | Q28: 0 | R28: 0 | S28: 0 | T28: 0 | U28: =SUM(I28:T28) -> 1413692 | V28: 5422275 | W28: 724379 | X28: 440553 | Y28: 479630 | Z28: 467319 | AA28: 440190 | AB28: 337034 | AC28: 355661 | AD28: 414653 | AE28: 479061 | AF28: 415607 | AG28: 444579 | AH28: 423609 | AI28: =SUM(W28:Y28) -> 1644562 | AM28: =H28-AI28 -> 4450690 | AN28: =+#REF!-#REF! -> 
E29: Transfer duties | H29: 7536890 | I29: 789411 | J29: 916984 | K29: 944228 | L29: 0 | M29: 0 | N29: 0 | O29: 0 | P29: 0 | Q29: 0 | R29: 0 | S29: 0 | T29: 0 | U29: =SUM(I29:T29) -> 2650623 | V29: 7606047 | W29: 77805 | X29: 383827 | Y29: 469521 | Z29: 533524 | AA29: 600240 | AB29: 739743 | AC29: 862692 | AD29: 942270 | AE29: 512860 | AF29: 710191 | AG29: 823604 | AH29: 949770 | AI29: 931153 | AM29: 6605737 | AN29: =+#REF!-#REF! -> 
B30: Taxes on goods and services | H30: =H31+H35+H37+H46+H47+H48+H54+H55+H56+H57+H58+H59+H60+H63+H61 -> 514529587 | I30: 40074539 | J30: 42227208 | K30: 41216335 | L30: 0 | M30: 0 | N30: 0 | O30: 0 | P30: 0 | Q30: 0 | R30: 0 | S30: 0 | T30: 0 | U30: 123518082 | V30: 455820013 | W30: 28356906 | X30: 20250969 | Y30: 20828642 | Z30: 32016684 | AA30: 38058942 | AB30: 42513458 | AC30: =AC31+AC35+AC37+AC46+AC47+AC48+AC54+AC55+AC56+AC57+AC58+AC59+AC60+AC63+AC61 -> 47983959 | AD30: =AD31+AD35+AD37+AD46+AD47+AD48+AD54+AD55+AD56+AD57+AD58+AD59+AD60+AD63+AD61 -> 47171698 | AE30: 42848329 | AF30: 46036679 | AG30: 32940482 | AH30: 56813271 | AI30: 69436517 | AM30: 445093070 | AN30: =+#REF!-#REF! -> 
C31: Value-added tax | H31: =+H32+H33+H34 -> 370177371 | I31: =+I32+I33+I34 -> 24681001 | J31: 29801361 | K31: 29405889 | L31: 0 | M31: 0 | N31: 0 | O31: 0 | P31: 0 | Q31: 0 | R31: 0 | S31: 0 | T31: 0 | U31: =+U32+U33+U34 -> 83888251 | V31: 331183558 | W31: =+W32+W33+W34 -> 18776740 | X31: =+X32+X33+X34 -> 16236147 | Y31: 17497399 | Z31: 24156556 | AA31: 28925327 | AB31: 30839147 | AC31: 31852786 | AD31: 34287157 | AE31: =+AE32+AE33+AE34 -> 30755912 | AF31: =+AF32+AF33+AF34 -> 33003864 | AG31: =+AG32+AG33+AG34 -> 22894050 | AH31: 41958473 | AI31: =+AI32+AI33+AI34 -> 52510286 | AM31: 317667085 | AN31: =+#REF!-#REF! -> 
E32: Domestic VAT | H32: 430061872 | I32: 36233992 | J32: 36639889 | K32: 34766588 | L32: 0 | M32: 0 | N32: 0 | O32: 0 | P32: 0 | Q32: 0 | R32: 0 | S32: 0 | T32: 0 | U32: =SUM(I32:T32) -> 107640469 | V32: 392935790 | W32: 30729928 | X32: 23628214 | Y32: 26987148 | Z32: 33184656 | AA32: 32688283 | AB32: 34824458 | AC32: 34283805 | AD32: 35701045 | AE32: 35625228 | AF32: 38701467 | AG32: 31059621 | AH32: 35521938 | AI32: =SUM(W32:Y32) -> 81345290 | AM32: 348716582 | AN32: =+#REF!-#REF! -> 
E33: Import VAT | H33: 181332787 | I33: 5280990 | J33: 14941615 | K33: 15553951 | L33: 0 | M33: 0 | N33: 0 | O33: 0 | P33: 0 | Q33: 0 | R33: 0 | S33: 0 | T33: 0 | U33: =SUM(I33:T33) -> 35776556 | V33: 166441182 | W33: 3529370 | X33: 11130424 | Y33: 11682970 | Z33: 11388901 | AA33: 12281817 | AB33: 14412081 | AC33: 15675191 | AD33: 16503014 | AE33: 15860667 | AF33: 12542005 | AG33: 14870118 | AH33: 26564624 | AI33: 26342764 | AM33: 154990023 | AN33: =+#REF!-#REF! -> 
E34: Refunds | H34: -241217288 | I34: -16833981 | J34: -21780143 | K34: -20914650 | L34: 0 | M34: 0 | N34: 0 | O34: 0 | P34: 0 | Q34: 0 | R34: 0 | S34: 0 | T34: 0 | U34: =SUM(I34:T34) -> -59528774 | V34: -228193414 | W34: -15482558 | X34: -18522491 | Y34: -21172719 | Z34: -20417001 | AA34: -16044773 | AB34: -18397392 | AC34: -18106210 | AD34: -17916902 | AE34: -20729983 | AF34: -18239608 | AG34: -23035689 | AH34: -20128089 | AI34: -55177768 | AM34: -186039520 | AN34: =+#REF!-#REF! -> 
C35: Turnover tax for small businesses | H35: 2387 | I35: 89 | J35: 20 | K35: 106 | L35: 0 | M35: 0 | N35: 0 | O35: 0 | P35: 0 | Q35: 0 | R35: 0 | S35: 0 | T35: 0 | U35: =SUM(I35:T35) -> 215 | V35: 8513 | W35: 92 | X35: 357 | Y35: 177 | Z35: 69 | AA35: 1661 | AB35: 794 | AC35: 362 | AD35: 214 | AE35: 49 | AF35: 343 | AG35: 4135 | AH35: 259 | AI35: 626 | AM35: 1761 | AN35: =+#REF!-#REF! -> 
AN36: =+#REF!-#REF! -> 
C37: Specific excise duties | H37: =SUM(H38:H45) -> 43733904 | I37: =SUM(I38:I45) -> 5662791 | J37: 3347713 | K37: 3109301 | L37: 0 | M37: 0 | N37: 0 | O37: 0 | P37: 0 | Q37: 0 | R37: 0 | S37: 0 | T37: 0 | U37: =SUM(I37:T37) -> 12119805 | V37: 32565582 | W37: =SUM(W38:W45) -> 1991407 | X37: =SUM(X38:X45) -> -332202 | Y37: 563079 | Z37: 1709728 | AA37: 1373222 | AB37: 1001958 | AC37: 4188025 | AD37: 4932372 | AE37: 4034579 | AF37: 3180588 | AG37: 2288214 | AH37: 7634614 | AI37: =SUM(W37:Y37) -> 2222284 | AM37: =H37-AI37 -> 41511620 | AN37: =+#REF!-#REF! -> 
E38: Beer | H38: 14764311 | I38: 2054344 | J38: 1648650 | K38: 1624228 | L38: 0 | M38: 0 | N38: 0 | O38: 0 | P38: 0 | Q38: 0 | R38: 0 | S38: 0 | T38: 0 | U38: 5327222 | V38: 11019261 | W38: 78054 | X38: 392 | Y38: 1986 | Z38: 483524 | AA38: 732722 | AB38: 156914 | AC38: 1116955 | AD38: 2683154 | AE38: 2254547 | AF38: 213222 | AG38: 37993 | AH38: 3259798 | AI38: 80432 | AM38: 14683879 | AN38: =+#REF!-#REF! -> 
E39: Sorghum beer and sorghum flour | H39: 4241 | I39: 210 | J39: 304 | K39: 680 | L39: 0 | M39: 0 | N39: 0 | O39: 0 | P39: 0 | Q39: 0 | R39: 0 | S39: 0 | T39: 0 | U39: 1194 | V39: 3496 | W39: 425 | X39: 225 | Y39: 0 | Z39: 509 | AA39: 129 | AB39: 368 | AC39: 414 | AD39: 374 | AE39: 362 | AF39: 326 | AG39: 146 | AH39: 219 | AI39: 650 | AM39: 3591 | AN39: =+#REF!-#REF! -> 
E40: Wine and other fermented beverages | H40: 4718649 | I40: 699480 | J40: 406584 | K40: 395828 | L40: 0 | M40: 0 | N40: 0 | O40: 0 | P40: 0 | Q40: 0 | R40: 0 | S40: 0 | T40: 0 | U40: 1501892 | V40: 3442345 | W40: 59462 | X40: 2032 | Y40: 10311 | Z40: 139842 | AA40: 10884 | AB40: 60401 | AC40: 504205 | AD40: 463717 | AE40: 605845 | AF40: 515557 | AG40: 606534 | AH40: 463556 | AI40: 71805 | AM40: 4646844 | AN40: =+#REF!-#REF! -> 
E41: Spirits | H41: 8314388 | I41: 1327527 | J41: 1124798 | K41: 769139 | L41: 0 | M41: 0 | N41: 0 | O41: 0 | P41: 0 | Q41: 0 | R41: 0 | S41: 0 | T41: 0 | U41: 3221464 | V41: 7641483 | W41: 452189 | X41: 22998 | Y41: 530527 | Z41: 507927 | AA41: 299222 | AB41: 329871 | AC41: 742831 | AD41: 1143657 | AE41: 633891 | AF41: 861472 | AG41: 303057 | AH41: 1813840 | AI41: 1005714 | AM41: 7308674 | AN41: =+#REF!-#REF! -> 
E42: Cigarettes and cigarette tobacco | H42: 13089833 | I42: 1363269 | J42: 119008 | K42: 244478 | L42: 0 | M42: 0 | N42: 0 | O42: 0 | P42: 0 | Q42: 0 | R42: 0 | S42: 0 | T42: 0 | U42: 1726755 | V42: 7536755 | W42: 813649 | X42: 4202 | Y42: 2016 | Z42: 67154 | AA42: 54640 | AB42: 70573 | AC42: 1962986 | AD42: 526604 | AE42: 454370 | AF42: 1159570 | AG42: 1238211 | AH42: 1182779 | AI42: 819867 | AM42: 12269966 | AN42: =+#REF!-#REF! -> 
E43: Pipe tobacco and cigars | H43: 451997 | I43: 111293 | J43: 27150 | K43: 11904 | L43: 0 | M43: 0 | N43: 0 | O43: 0 | P43: 0 | Q43: 0 | R43: 0 | S43: 0 | T43: 0 | U43: 150347 | V43: 438049 | W43: 122053 | X43: 1676 | Y43: 1834 | Z43: 9588 | AA43: 11040 | AB43: 12030 | AC43: 88440 | AD43: 54735 | AE43: 29324 | AF43: 41080 | AG43: 34892 | AH43: 31358 | AI43: 125563 | AM43: 326434 | AN43: =+#REF!-#REF! -> 
E44: Petroleum products | G44: 1) | H44: 861035 | I44: 106668 | J44: 21219 | K44: 63044 | L44: 0 | M44: 0 | N44: 0 | O44: 0 | P44: 0 | Q44: 0 | R44: 0 | S44: 0 | T44: 0 | U44: 190931 | V44: 980641 | W44: 463725 | X44: -363727 | Y44: 16405 | Z44: 38382 | AA44: 264585 | AB44: 354139 | AC44: -387300 | AD44: 60131 | AE44: 56240 | AF44: 60722 | AG44: 67381 | AH44: 349960 | AI44: 116403 | AM44: 744632 | AN44: =+#REF!-#REF! -> 
E45: Revenue from neighbouring countries | G45: 2) | H45: 1529450 | I45: 0 | J45: 0 | K45: 0 | L45: 0 | M45: 0 | N45: 0 | O45: 0 | P45: 0 | Q45: 0 | R45: 0 | S45: 0 | T45: 0 | U45: 0 | V45: 1503551 | W45: 1850 | X45: 0 | Y45: 0 | Z45: 462802 | AA45: 0 | AB45: 17662 | AC45: 159494 | AD45: 0 | AE45: 0 | AF45: 328639 | AG45: 0 | AH45: 533104 | AI45: 1850 | AM45: 1527600 | AN45: =+#REF!-#REF! -> 
C46: Ad valorem excise duties | H46: 3536499 | I46: 1124208 | J46: 3715 | K46: -6 | L46: 0 | M46: 0 | N46: 0 | O46: 0 | P46: 0 | Q46: 0 | R46: 0 | S46: 0 | T46: 0 | U46: 1127917 | V46: 3385569 | W46: 822373 | X46: 5066 | Y46: 9728 | Z46: 414008 | AA46: 166 | AB46: 1551 | AC46: 895233 | AD46: 6644 | AE46: -256 | AF46: 1173281 | AG46: 28504 | AH46: 29273 | AI46: 837167 | AM46: 2699332 | AN46: =+#REF!-#REF! -> 
C47: Health promotion levy | H47: 2149910 | I47: 217617 | J47: 184318 | K47: 152891 | L47: 0 | M47: 0 | N47: 0 | O47: 0 | P47: 0 | Q47: 0 | R47: 0 | S47: 0 | T47: 0 | U47: 554826 | V47: 2046177 | W47: 185136 | X47: 113349 | Y47: 109092 | Z47: 124980 | AA47: 134742 | AB47: 156125 | AC47: 188449 | AD47: 217916 | AE47: 210652 | AF47: 234444 | AG47: 188848 | AH47: 182444 | AI47: 407577 | AM47: 1742333 | AN47: =+#REF!-#REF! -> 
C48: General fuel levy | H48: 83147932 | I48: 7490910 | J48: 8042913 | K48: 7475851 | L48: 0 | M48: 0 | N48: 0 | O48: 0 | P48: 0 | Q48: 0 | R48: 0 | S48: 0 | T48: 0 | U48: 23009674 | V48: 75178511 | W48: 5701916 | X48: 3646380 | Y48: 1833330 | Z48: 4773114 | AA48: 6807651 | AB48: 9500650 | AC48: 9339581 | AD48: 6652097 | AE48: 6796289 | AF48: 7428418 | AG48: 6735731 | AH48: 5963354 | AI48: 11181626 | AM48: 71966306 | AN48: =+#REF!-#REF! -> 
E49: Of which: | AN49: =+#REF!-#REF! -> 
E50: Carbon fuel levy | H50: =SUM(H51:H52) -> 1768596 | I50: 161341 | J50: 173458 | K50: 170535 | L50: 0 | M50: 0 | N50: 0 | O50: 0 | P50: 0 | Q50: 0 | R50: 0 | S50: 0 | T50: 0 | U50: =SUM(U51:U52) -> 505334 | V50: 1590873 | W50: 121509 | X50: 84551 | Y50: 46962 | Z50: 104873 | AA50: 151952 | AB50: 168070 | AC50: 189100 | AD50: 141508 | AE50: 140258 | AF50: 152620 | AG50: 150298 | AH50: 139172 | AI50: =SUM(AI51) -> 222058 | AM50: =H50-AI50 -> 1546538 | AN50: =+#REF!-#REF! -> 
E51: CFL Domestic | H51: 1562972 | I51: 129769 | J51: 136364 | K51: 128012 | L51: 0 | M51: 0 | N51: 0 | O51: 0 | P51: 0 | Q51: 0 | R51: 0 | S51: 0 | T51: 0 | U51: =SUM(I51:T51) -> 394145 | V51: 1324115 | W51: 111706 | X51: 75853 | Y51: 34499 | Z51: 81015 | AA51: 119220 | AB51: 137394 | AC51: 164836 | AD51: 123043 | AE51: 117832 | AF51: 123670 | AG51: 125540 | AH51: 109508 | AI51: =SUM(W51:Y51) -> 222058 | AN51: =+#REF!-#REF! -> 
E52: CFL Imported | H52: 205624 | I52: 31572 | J52: 37094 | K52: 42523 | L52: 0 | M52: 0 | N52: 0 | O52: 0 | P52: 0 | Q52: 0 | R52: 0 | S52: 0 | T52: 0 | U52: =SUM(I52:T52) -> 111189 | V52: 266758 | W52: 9803 | X52: 8698 | Y52: 12463 | Z52: 23858 | AA52: 32732 | AB52: 30676 | AC52: 24264 | AD52: 18465 | AE52: 22426 | AF52: 28950 | AG52: 24758 | AH52: 29664 | AI52: 30964 | AM52: =H52-AI52 -> 174660 | AN52: =+#REF!-#REF! -> 
C53: Taxes on use of goods and on permission to use goods or perform activities | AM53: 0 | AN53: =+#REF!-#REF! -> 
E54: Air departure tax | H54: 140017 | I54: 12970 | J54: 15290 | K54: 16196 | L54: 0 | M54: 0 | N54: 0 | O54: 0 | P54: 0 | Q54: 0 | R54: 0 | S54: 0 | T54: 0 | U54: =SUM(I54:T54) -> 44456 | V54: 138465 | W54: 44499 | X54: 7340 | Y54: 9839 | Z54: 2593 | AA54: 2419 | AB54: 2911 | AC54: 2405 | AD54: 8589 | AE54: 11950 | AF54: 19353 | AG54: 16910 | AH54: 9658 | AI54: =SUM(W54:Y54) -> 61678 | AM54: 78339 | AN54: =+#REF!-#REF! -> 
E55: Plastic bag levy | H55: 559907 | I55: 732 | J55: 386 | K55: 146631 | L55: 0 | M55: 0 | N55: 0 | O55: 0 | P55: 0 | Q55: 0 | R55: 0 | S55: 0 | T55: 0 | U55: 147749 | V55: 579754 | W55: 2102 | X55: 4280 | Y55: 105062 | Z55: 1331 | AA55: 1374 | AB55: 140826 | AC55: 1434 | AD55: 1393 | AE55: 178558 | AF55: 5179 | AG55: 857 | AH55: 137360 | AI55: 111444 | AM55: 448463 | AN55: =+#REF!-#REF! -> 
E56: Electricity levy | H56: 8140779 | I56: 665293 | J56: 659509 | K56: 705019 | L56: 0 | M56: 0 | N56: 0 | O56: 0 | P56: 0 | Q56: 0 | R56: 0 | S56: 0 | T56: 0 | U56: 2029821 | V56: 7739340 | W56: 663678 | X56: 516013 | Y56: 630236 | Z56: 680669 | AA56: 707817 | AB56: 681946 | AC56: 658416 | AD56: 684665 | AE56: 651101 | AF56: 638034 | AG56: 635522 | AH56: 591243 | AI56: 1809927 | AM56: 6330852 | AN56: =+#REF!-#REF! -> 
E57: Incandescent light bulb levy | H57: 24735 | I57: 353 | J57: 2790 | K57: 1930 | L57: 0 | M57: 0 | N57: 0 | O57: 0 | P57: 0 | Q57: 0 | R57: 0 | S57: 0 | T57: 0 | U57: 5073 | V57: 24879 | W57: 4415 | X57: 4473 | Y57: 904 | Z57: 1248 | AA57: 854 | AB57: 1322 | AC57: 1703 | AD57: 1841 | AE57: 1315 | AF57: 1370 | AG57: 1593 | AH57: 3840 | AI57: 9792 | AM57: 14943 | AN57: =+#REF!-#REF! -> 
E58: CO₂ tax - motor vehicle emissions | H58: 1443726 | I58: 142961 | J58: 116488 | K58: 142899 | L58: 0 | M58: 0 | N58: 0 | O58: 0 | P58: 0 | Q58: 0 | R58: 0 | S58: 0 | T58: 0 | U58: 402348 | V58: 1469259 | W58: 102172 | X58: 25403 | Y58: 44642 | Z58: 110784 | AA58: 67306 | AB58: 89156 | AC58: 218225 | AD58: 120661 | AE58: 121272 | AF58: 254940 | AG58: 104746 | AH58: 209953 | AI58: 172217 | AM58: 1271509 | AN58: =+#REF!-#REF! -> 
E59: Tyre levy | H59: 537571 | I59: 69270 | J59: 42303 | K59: 42435 | L59: 0 | M59: 0 | N59: 0 | O59: 0 | P59: 0 | Q59: 0 | R59: 0 | S59: 0 | T59: 0 | U59: 154008 | V59: 601524 | W59: 62376 | X59: 22795 | Y59: 25147 | Z59: 41292 | AA59: 33732 | AB59: 32719 | AC59: 96671 | AD59: 39371 | AE59: 43156 | AF59: 87442 | AG59: 40405 | AH59: 76418 | AI59: 110318 | AM59: 427253 | AN59: =+#REF!-#REF! -> 
E60: International Oil Pollution Compensation Fund | H60: 3027 | I60: 0 | J60: 0 | K60: 0 | L60: 0 | M60: 0 | N60: 0 | O60: 0 | P60: 0 | Q60: 0 | R60: 0 | S60: 0 | T60: 0 | U60: 0 | V60: 2671 | W60: 0 | X60: 0 | Y60: 0 | Z60: 0 | AA60: 2671 | AB60: 0 | AC60: 0 | AD60: 0 | AE60: 0 | AF60: 0 | AG60: 0 | AH60: 0 | AI60: 0 | AM60: 3027 | AN60: =+#REF!-#REF! -> 
E61: Carbon tax | H61: 656206 | I61: 6344 | J61: 9490 | K61: 17189 | L61: 0 | M61: 0 | N61: 0 | O61: 0 | P61: 0 | Q61: 0 | R61: 0 | S61: 0 | T61: 0 | U61: 33023 | V61: 650374 | W61: 0 | X61: 0 | Y61: 0 | Z61: 0 | AA61: 0 | AB61: 0 | AC61: 538036 | AD61: 44248 | AE61: 43752 | AF61: 8231 | AG61: 592 | AH61: 15516 | AI61: 0 | AN61: =+#REF!-#REF! -> 
C62: Other | AM62: =H62-AI62 -> 0 | AN62: =+#REF!-#REF! -> 
E63: Universal Service Fund | H63: 275616 | I63: 0 | J63: 912 | K63: 4 | L63: 0 | M63: 0 | N63: 0 | O63: 0 | P63: 0 | Q63: 0 | R63: 0 | S63: 0 | T63: 0 | U63: =SUM(I63:T63) -> 916 | V63: 245837 | W63: 0 | X63: 1568 | Y63: 7 | Z63: 312 | AA63: 0 | AB63: 64353 | AC63: 2633 | AD63: 174530 | AE63: 0 | AF63: 1192 | AG63: 375 | AH63: 866 | AI63: =SUM(W63:Y63) -> 1575 | AM63: =H63-AI63 -> 274041 | AN63: =+#REF!-#REF! -> 
B64: Taxes on international trade and transactions | H64: =SUM(H66:H72) -> 53967107 | I64: =SUM(I66:I72) -> 2123466 | J64: 3809712 | K64: 3989700 | L64: 0 | M64: 0 | N64: 0 | O64: 0 | P64: 0 | Q64: 0 | R64: 0 | S64: 0 | T64: 0 | U64: 9922878 | V64: 47687238 | W64: 1871615 | X64: 2320662 | Y64: 2271075 | Z64: 4144629 | AA64: 3545310 | AB64: 4679105 | AC64: 3673055 | AD64: 4599758 | AE64: 4782526 | AF64: 4025183 | AG64: 4403836 | AH64: 7370483 | AI64: 6463352 | AN64: =+#REF!-#REF! -> 
C65: Import duties | AN65: =+#REF!-#REF! -> 
E66: Customs duties | H66: 45544899 | I66: 1646044 | J66: 3435728 | K66: 3376625 | L66: 0 | M66: 0 | N66: 0 | O66: 0 | P66: 0 | Q66: 0 | R66: 0 | S66: 0 | T66: 0 | U66: =SUM(I66:T66) -> 8458397 | V66: 41837483 | W66: 1665133 | X66: 2420102 | Y66: 2202306 | Z66: 3153901 | AA66: 3224112 | AB66: 3669788 | AC66: 4250000 | AD66: 4055185 | AE66: 3722149 | AF66: 3456626 | AG66: 3653536 | AH66: 6364646 | AI66: =SUM(W66:Y66) -> 6287541 | AN66: =+#REF!-#REF! -> 
E67: Specific excise duties on imports | H67: 7597477 | I67: 76443 | J67: 505720 | K67: 488912 | L67: 0 | M67: 0 | N67: 0 | O67: 0 | P67: 0 | Q67: 0 | R67: 0 | S67: 0 | T67: 0 | U67: =SUM(I67:T67) -> 1071075 | V67: 5457187 | W67: 45206 | X67: 17941 | Y67: 112788 | Z67: 389678 | AA67: 141351 | AB67: 670148 | AC67: 536426 | AD67: 532401 | AE67: 829523 | AF67: 470248 | AG67: 735461 | AH67: 976015 | AI67: 175935 | AN67: =+#REF!-#REF! -> 
C68: Health promotion levy on imports | H68: 65053 | I68: 4035 | J68: 7109 | K68: 7363 | L68: 0 | M68: 0 | N68: 0 | O68: 0 | P68: 0 | Q68: 0 | R68: 0 | S68: 0 | T68: 0 | U68: =SUM(I68:T68) -> 18507 | V68: 67429 | W68: 2732 | X68: 6057 | Y68: 6432 | Z68: 4136 | AA68: 3161 | AB68: 3012 | AC68: 4845 | AD68: 6471 | AE68: 7886 | AF68: 4738 | AG68: 6648 | AH68: 11310 | AI68: 15221 | AN68: =+#REF!-#REF! -> 
C69: Other | AN69: =+#REF!-#REF! -> 
E70: Miscellaneous customs and excise receipts | H70: 299984 | I70: 383669 | J70: -148880 | K70: 116800 | L70: 0 | M70: 0 | N70: 0 | O70: 0 | P70: 0 | Q70: 0 | R70: 0 | S70: 0 | T70: 0 | U70: =SUM(I70:T70) -> 351589 | V70: 274130 | W70: 154705 | X70: -123637 | Y70: -50451 | Z70: 596914 | AA70: 176686 | AB70: 315157 | AC70: -1119146 | AD70: 5701 | AE70: 222968 | AF70: 90976 | AG70: 8187 | AH70: -3930 | AI70: =SUM(W70:Y70) -> -19383 | AN70: =+#REF!-#REF! -> 
E71: Diamond export duties | H71: 59694 | I71: 13275 | J71: 10035 | K71: 0 | L71: 0 | M71: 0 | N71: 0 | O71: 0 | P71: 0 | Q71: 0 | R71: 0 | S71: 0 | T71: 0 | U71: =SUM(I71:T71) -> 23310 | V71: 51009 | W71: 3839 | X71: 199 | Y71: 0 | Z71: 0 | AA71: 0 | AB71: 21000 | AC71: 930 | AD71: 0 | AE71: 0 | AF71: 2595 | AG71: 4 | AH71: 22442 | AI71: 4038 | AN71: =+#REF!-#REF! -> 
C72: Export tax - Scrap metal | H72: 400000 | I72: 0 | J72: 0 | K72: 0 | U72: =SUM(I72:T72) -> 0 | V72: 0 | W72: 0 | X72: 0 | AI72: 0 | AN72: =+#REF!-#REF! -> 
B73: Other taxes | H73: =H74 -> 3 | I73: =I74 -> 0 | J73: 0 | K73: 0 | L73: 0 | M73: 0 | N73: 0 | O73: 0 | P73: 0 | Q73: 0 | R73: 0 | S73: 0 | T73: 0 | U73: =U74 -> 0 | V73: =V74 -> 0 | W73: =W74 -> 0 | X73: =X74 -> 6 | Y73: -6 | Z73: 6 | AA73: 0 | AB73: 0 | AC73: 0 | AD73: 0 | AE73: 0 | AF73: 0 | AG73: 0 | AH73: -6 | AI73: =AI74 -> 0 | AN73: =+#REF!-#REF! -> 
C74: Stamp duties and fees | H74: 3 | I74: 0 | J74: 0 | K74: 0 | L74: 0 | M74: 0 | N74: 0 | O74: 0 | P74: 0 | Q74: 0 | R74: 0 | S74: 0 | T74: 0 | U74: =SUM(I74:T74) -> 0 | V74: 0 | W74: 0 | X74: 6 | Y74: -6 | Z74: 6 | AA74: 0 | AB74: 0 | AC74: 0 | AD74: 0 | AE74: 0 | AF74: 0 | AG74: 0 | AH74: -6 | AI74: =SUM(W74:Y74) -> 0 | AN74: =+#REF!-#REF! -> 
B75: State miscellaneous revenue | G75: 3) | H75: 0 | I75: -8256 | J75: =-13.88015+8256-8256 -> -14 | K75: =276.89816-8270+8270 -> 277 | L75: 0 | M75: 0 | N75: 0 | O75: 0 | P75: 0 | Q75: 0 | R75: 0 | S75: 0 | T75: 0 | U75: =SUM(I75:T75) -> -7993 | V75: 11594 | W75: 1590 | X75: 1711 | Y75: -1543 | Z75: =433.43953-1757+1751 -> 427 | AA75: -405 | AB75: =-164.26857+1779-1779 -> -164 | AC75: -1558 | AD75: 1522 | AE75: -23 | AF75: 28 | AG75: -110 | AH75: 10121 | AI75: 1758 | AN75: =+#REF!-#REF! -> 
B76: Total tax revenue (gross) | H76: =H6+H21+H23+H30+H64+H73+H75 -> 1365124306 | I76: =I6+I21+I23+I30+I64+I73+I75 -> 95438525 | J76: 94771770 | K76: 188246638 | L76: 0 | M76: 0 | N76: 0 | O76: 0 | P76: 0 | Q76: 0 | R76: 0 | S76: 0 | T76: 0 | U76: 378456933 | V76: =V6+V21+V23+V30+V64+V73+V75 -> 1249896192 | W76: =W6+W21+W23+W30+W64+W73+W75 -> 77111255 | X76: =X6+X21+X23+X30+X64+X73+X75 -> 64924272 | Y76: 100222438 | Z76: 75750003 | AA76: 97558039 | AB76: 102987040 | AC76: 96085037 | AD76: =AD6+AD21+AD23+AD30+AD64+AD73+AD75 -> 97377292 | AE76: 163683332 | AF76: 101388477 | AG76: 130843297 | AH76: 141965718 | AI76: 242257965 | AN76: =+#REF!-#REF! -> 
B77: Less: SACU payments | G77: 4) | H77: -45966211 | I77: -11491553 | J77: 0 | K77: 0 | L77: 0 | M77: 0 | N77: 0 | O77: 0 | P77: 0 | Q77: 0 | R77: 0 | S77: 0 | T77: 0 | U77: =SUM(I77:T77) -> -11491553 | V77: -63395240 | W77: -15848810 | X77: 0 | Y77: 0 | Z77: -15848810 | AA77: 0 | AB77: 0 | AC77: -15848810 | AD77: 0 | AE77: 0 | AF77: -15848810 | AG77: 0 | AH77: 0 | AI77: =SUM(W77:Y77) -> -15848810 | AN77: =+#REF!-#REF! -> 
B78: Total tax revenue (net of SACU payments) | H78: =H76+H77 -> 1319158095 | I78: =I76+I77 -> 83946972 | J78: 94771770 | K78: 188246638 | L78: 0 | M78: 0 | N78: 0 | O78: 0 | P78: 0 | Q78: 0 | R78: 0 | S78: 0 | T78: 0 | U78: =U76+U77 -> 366965380 | V78: =V76+V77 -> 1186500952 | W78: =W76+W77 -> 61262445 | X78: =X76+X77 -> 64924272 | Y78: 100222438 | Z78: 59901193 | AA78: 97558039 | AB78: 102987040 | AC78: 80236227 | AD78: 97377292 | AE78: 163683332 | AF78: 85539667 | AG78: 130843297 | AH78: 141965718 | AI78: =AI76+AI77 -> 226409155 | AN78: =+#REF!-#REF! -> 
AN79: =+#REF!-#REF! -> 
AN80: =+#REF!-#REF! -> 
B81: Departmental revenue | H81: =SUM(H82:H97)-H95 -> 32514029 | I81: =SUM(I82:I97)-I95 -> 1574341 | J81: =SUM(J82:J97)-J95 -> 974770 | K81: =SUM(K82:K97)-K95 -> 16025871 | L81: =SUM(L82:L97)-L95 -> 0 | M81: 0 | N81: 0 | O81: 0 | P81: 0 | Q81: 0 | R81: 0 | S81: 0 | T81: =SUM(T82:T97)-T95 -> 0 | U81: =SUM(U82:U97)-U95 -> 18574982 | V81: =SUM(V82:V97)-V95 -> 49634128 | W81: =SUM(W82:W97)-W95 -> 1833292 | X81: =SUM(X82:X97)-X95 -> 3182174 | Y81: 8331667 | Z81: 2945120 | AA81: =SUM(AA82:AA97)-AA95 -> 4297106 | AB81: =SUM(AB82:AB97)-AB95 -> 2692221 | AC81: =SUM(AC82:AC97)-AC95 -> 2994487 | AD81: =SUM(AD82:AD97)-AD95 -> 1840904 | AE81: =SUM(AE82:AE97)-AE95 -> 12687365 | AF81: 1936878 | AG81: =SUM(AG82:AG97)-AG95 -> 1902060 | AH81: 4990852 | AI81: =SUM(AI82:AI97)-AI95 -> 13347133 | AN81: =+#REF!-#REF! -> 
C82: Sales of goods and services other than capital assets | AN82: =+#REF!-#REF! -> 
E83: Sales by market establishments | H83: 69003 | I83: 4025 | J83: 4341 | K83: =4054.67582+-29.04+-28.9200000000001 -> 3997 | L83: 0 | M83: 0 | N83: 0 | O83: 0 | P83: 0 | Q83: 0 | R83: 0 | S83: 0 | T83: 0 | U83: =SUM(I83:T83) -> 12363 | V83: 51382 | W83: 4158 | X83: =4130.86299+21.1859999999997 -> 4152 | Y83: 4395 | Z83: 4189 | AA83: 4202 | AB83: 4417 | AC83: 4270 | AD83: 4276 | AE83: 4337 | AF83: 4581 | AG83: 4264 | AH83: 4141 | AI83: =SUM(W83:Y83) -> 12705 | AN83: =+#REF!-#REF! -> 
E84: Non-tax receipts | H84: 5000 | I84: 335 | J84: 260 | K84: 203 | L84: 0 | M84: 0 | N84: 0 | O84: 0 | P84: 0 | Q84: 0 | R84: 0 | S84: 0 | T84: 0 | U84: 798 | V84: 3230 | W84: 0 | X84: 0 | Y84: 415 | Z84: 107 | AA84: 574 | AB84: 57 | AC84: -5 | AD84: 171 | AE84: 188 | AF84: 147 | AG84: 201 | AH84: 1376 | AI84: 415 | AN84: =+#REF!-#REF! -> 
E85: Administrative fees | H85: 1552495 | I85: 25175 | J85: 33491 | K85: =18602.39992+-0.069999999999709+0.382600000004459 -> 18603 | L85: 0 | M85: 0 | N85: 0 | O85: 0 | P85: 0 | Q85: 0 | R85: 0 | S85: 0 | T85: 0 | U85: 77269 | V85: 291808 | W85: 5135 | X85: 16395 | Y85: 18251 | Z85: 13622 | AA85: 31909 | AB85: 43736 | AC85: 29862 | AD85: 29039 | AE85: 29490 | AF85: 10190 | AG85: =28498.9058+9039.9002 -> 37539 | AH85: 26639 | AI85: 39781 | AN85: =+#REF!-#REF! -> 
E86: Other sales | H86: 911865 | I86: 82576 | J86: 45076 | K86: =130322.02953+-27.7919500000135+204891.44098 -> 335186 | L86: 0 | M86: 0 | N86: 0 | O86: 0 | P86: 0 | Q86: 0 | R86: 0 | S86: 0 | T86: 0 | U86: 462838 | V86: 847682 | W86: 53855 | X86: =60911.93396+50.1281600000148 -> 60962 | Y86: 73813 | Z86: 69584 | AA86: 97712 | AB86: 74635 | AC86: 76989 | AD86: 85563 | AE86: 80740 | AF86: 46455 | AG86: =75657.03554+26037.47253 -> 101695 | AH86: 25680 | AI86: 188630 | AN86: =+#REF!-#REF! -> 
E87: Selling of scrap or waste and other used current goods | H87: 11060 | I87: 409 | J87: 525 | K87: =1047.25897+18.9648000000001 -> 1066 | L87: 0 | M87: 0 | N87: 0 | O87: 0 | P87: 0 | Q87: 0 | R87: 0 | S87: 0 | T87: 0 | U87: 2000 | V87: 6589 | W87: 159 | X87: 318 | Y87: 377 | Z87: 614 | AA87: 490 | AB87: 306 | AC87: 398 | AD87: 314 | AE87: 1184 | AF87: 1587 | AG87: =435.40351+232.2976 -> 668 | AH87: 175 | AI87: 854 | AN87: =+#REF!-#REF! -> 
C88: Transfers received | H88: 634488 | I88: 88072 | J88: 0 | K88: 48326 | L88: 0 | M88: 0 | N88: 0 | O88: 0 | P88: 0 | Q88: 0 | R88: 0 | S88: 0 | T88: 0 | U88: 136398 | V88: 421166 | W88: 0 | X88: 43673 | Y88: 0 | Z88: 73684 | AA88: 0 | AB88: 0 | AC88: 177084 | AD88: 0 | AE88: 0 | AF88: 96854 | AG88: 29871 | AH88: 0 | AI88: 43673 | AN88: =+#REF!-#REF! -> 
C89: Fines penalties and forfeits | H89: 462306 | I89: 12979 | J89: 10279 | K89: =7701.94834+131.1 -> 7833 | L89: 0 | M89: 0 | N89: 0 | O89: 0 | P89: 0 | Q89: 0 | R89: 0 | S89: 0 | T89: 0 | U89: 31091 | V89: 288955 | W89: 3631 | X89: 15650 | Y89: 11308 | Z89: 19244 | AA89: 45165 | AB89: 22756 | AC89: 46387 | AD89: 17859 | AE89: 15678 | AF89: 8375 | AG89: =60512.4869+6059.85919 -> 66572 | AH89: 16330 | AI89: 30589 | AN89: =+#REF!-#REF! -> 
C90: Interest, dividends and rent on land | AI90: =SUM(W90:X90) -> 0 | AN90: =+#REF!-#REF! -> 
E91: Interest | H91: 5095042 | I91: 643855 | J91: 447789 | K91: =445627.26637+-1.55378999991808+208.923300000024 -> 445835 | L91: 0 | M91: 0 | N91: 0 | O91: 0 | P91: 0 | Q91: 0 | R91: 0 | S91: 0 | T91: 0 | U91: =SUM(I91:T91) -> 1537479 | V91: 6668615 | W91: 482155 | X91: =202472.47722+12.445689999964 -> 202485 | Y91: 199409 | Z91: 129831 | AA91: 317057 | AB91: 234315 | AC91: 2118 | AD91: 713323 | AE91: 543830 | AF91: 362697 | AG91: =823788.18805+80.1037599999905 -> 823868 | AH91: 2657526 | AI91: =SUM(W91:Y91) -> 884049 | AN91: =+#REF!-#REF! -> 
E92: Dividends | H92: 358194 | I92: 0 | J92: 0 | K92: 31 | L92: 0 | M92: 0 | N92: 0 | O92: 0 | P92: 0 | Q92: 0 | R92: 0 | S92: 0 | T92: 0 | U92: =SUM(I92:T92) -> 31 | V92: 319114 | W92: 0 | X92: 0 | Y92: 0 | Z92: 216758 | AA92: 0 | AB92: 0 | AC92: 0 | AD92: 0 | AE92: 102356 | AF92: 0 | AG92: 0 | AH92: 0 | AI92: 0 | AN92: =+#REF!-#REF! -> 
E93: Rent on land | H93: 15978344 | I93: -9039 | J93: -633 | K93: 14651730 | L93: 0 | M93: 0 | N93: 0 | O93: 0 | P93: 0 | Q93: 0 | R93: 0 | S93: 0 | T93: 0 | U93: =SUM(I93:T93) -> 14642058 | V93: 14132372 | W93: 1216 | X93: 6537 | Y93: 4667806 | Z93: -1176720 | AA93: 349787 | AB93: 257471 | AC93: 80879 | AD93: 31857 | AE93: 9145971 | AF93: 25595 | AG93: 216371 | AH93: 525602 | AI93: 4675559 | AN93: =+#REF!-#REF! -> 
E94: Of which: | AN94: =+#REF!-#REF! -> 
E95: Mineral and petroleum royalties | H95: 15937248 | I95: -9987 | J95: -774 | K95: 14651462 | L95: 0 | M95: 0 | N95: 0 | O95: 0 | P95: 0 | Q95: 0 | R95: 0 | S95: 0 | T95: 0 | U95: =SUM(I95:T95) -> 14640701 | V95: 14121858 | W95: 380 | X95: 6087 | Y95: 4667662 | Z95: -1177128 | AA95: 349173 | AB95: 256221 | AC95: 78002 | AD95: 30484 | AE95: 9144974 | AF95: 25125 | AG95: 215507 | AH95: 525372 | AI95: 4674129 | AN95: =+#REF!-#REF! -> 
C96: Sales of capital assets | H96: 132422 | I96: 16749 | J96: 2053 | K96: =25016.18468+-1.5 -> 25015 | L96: 0 | M96: 0 | N96: 0 | O96: 0 | P96: 0 | Q96: 0 | R96: 0 | S96: 0 | T96: 0 | U96: 43817 | V96: 102975 | W96: 2078 | X96: 46 | Y96: 917 | Z96: 23713 | AA96: 6222 | AB96: 20620 | AC96: 9263 | AD96: 5920 | AE96: 27393 | AF96: 92 | AG96: =1156.19183+4067.2766 -> 5223 | AH96: 1487 | AI96: 3041 | AN96: =+#REF!-#REF! -> 
C97: Financial transactions in assets and liabilities | H97: =SUM(H98:H101)+H114+1605898 -> 7303810 | I97: =SUM(I98:I101)+I114 -> 709205 | J97: =SUM(J98:J101)+J114 -> 431589 | K97: =SUM(K98:K101)+K114 -> 488046 | L97: 0 | M97: 0 | N97: 0 | O97: 0 | P97: 0 | Q97: 0 | R97: 0 | S97: 0 | T97: 0 | U97: 1628840 | V97: 26500240 | W97: =SUM(W98:W101)+W114 -> 1280905 | X97: 2831956 | Y97: 3354976 | Z97: 3570494 | AA97: 3443988 | AB97: 2033908 | AC97: =-14169.9938+AC114 -> 2567242 | AD97: =52024.22595+AD114 -> 952582 | AE97: =37245.01225+AE114 -> 2736198 | AF97: =SUM(AF98:AF101)+AF114 -> 1380305 | AG97: =SUM(AG98:AG101)+AG114 -> 615788 | AH97: =SUM(AH98:AH101)+AH114 -> 1731896 | AI97: 7467837 | AN97: =+#REF!-#REF! -> 
E98: Recoveries of accrued revenue | H98: 0 | I98: 0 | J98: 0 | K98: 0 | L98: 0 | M98: 0 | N98: 0 | O98: 0 | P98: 0 | Q98: 0 | R98: 0 | S98: 0 | T98: 0 | U98: 0 | V98: 0 | W98: 0 | X98: 0 | Y98: 0 | Z98: 0 | AA98: 0 | AB98: 0 | AC98: 0 | AD98: 0 | AE98: 0 | AF98: 0 | AG98: 0 | AH98: 0 | AI98: =SUM(W98:AH98) -> 0 | AN98: =+#REF!-#REF! -> 
E99: Recovery of loans | H99: 4030 | I99: 0 | J99: 0 | K99: 1533 | L99: 0 | M99: 0 | N99: 0 | O99: 0 | P99: 0 | Q99: 0 | R99: 0 | S99: 0 | T99: 0 | U99: 1533 | V99: 3130 | W99: 0 | X99: 0 | Y99: 0 | Z99: 0 | AA99: 0 | AB99: 0 | AC99: 0 | AD99: 1684 | AE99: 0 | AF99: 0 | AG99: 1446 | AH99: 0 | AI99: 3130 | AN99: =+#REF!-#REF! -> 
E100: Accounts receivable | H100: 308394 | I100: 21618 | J100: 27868 | K100: =16171.35552+-16.8928899999992+10342.84139 -> 26497 | L100: 0 | M100: 0 | N100: 0 | O100: 0 | P100: 0 | Q100: 0 | R100: 0 | S100: 0 | T100: 0 | U100: 75983 | V100: 251096 | W100: 18853 | X100: =19033.77909+8.19596999999339 -> 19042 | Y100: 21892 | Z100: 14593 | AA100: 15284 | AB100: 28339 | AC100: 15377 | AD100: 30534 | AE100: 22950 | AF100: 5687 | AG100: =29935.758+6461.86769 -> 36398 | AH100: 22146 | AI100: 251095 | AN100: =+#REF!-#REF! -> 
E101: Other receipts | H101: 529488 | I101: =SUM(I102:I112) -> 93357 | J101: 47324 | K101: =SUM(K102:K112) -> 8336 | L101: 0 | M101: 0 | N101: 0 | O101: 0 | P101: 0 | Q101: 0 | R101: 0 | S101: 0 | T101: 0 | U101: 149017 | V101: 476096 | W101: =SUM(W102:W112) -> 25563 | X101: =SUM(X102:X112) -> 5774 | Y101: =SUM(Y102:Y112) -> 13130 | Z101: =SUM(Z102:Z112) -> 5578 | AA101: 267197 | AB101: =SUM(AB102:AB112) -> 63992 | AC101: -29547 | AD101: 19806 | AE101: 14295 | AF101: =SUM(AF102:AF112) -> 13898 | AG101: =SUM(AG102:AG112) -> 3720 | AH101: 72689 | AI101: 476095 | AN101: =+#REF!-#REF! -> 
E102: Forex gains | I102: 0 | J102: 0 | K102: 41 | U102: 41 | V102: 0 | W102: 0 | X102: 0 | Y102: 0 | Z102: 0 | AA102: 0 | AB102: 0 | AC102: 0 | AD102: 0 | AE102: 0 | AF102: 0 | AG102: 0 | AH102: 0 | AI102: 0 | AN102: =+#REF!-#REF! -> 
E103: Arrear wages income | I103: 0 | J103: 0 | K103: 19 | U103: 19 | V103: 632 | W103: 0 | X103: 0 | Y103: 0 | Z103: 0 | AA103: 0 | AB103: 302 | AC103: 0 | AD103: 381 | AE103: 0 | AF103: 0 | AG103: 0 | AH103: -52 | AI103: 631 | AN103: =+#REF!-#REF! -> 
E104: Cash surpluses | I104: 43 | J104: 62 | K104: =79.73641+-0.353949999999998 -> 79 | U104: 184 | V104: 405 | W104: 8 | X104: 25 | Y104: 13 | Z104: 21 | AA104: 7 | AB104: 29 | AC104: 66 | AD104: 45 | AE104: 56 | AF104: 29 | AG104: =17.39346+0.1 -> 17 | AH104: 87 | AI104: 403 | AN104: =+#REF!-#REF! -> 
E105: Deposits on accommodation | I105: 3 | J105: 1 | K105: 4 | U105: 8 | V105: 29 | W105: 0 | X105: 1 | Y105: 1 | Z105: 0 | AA105: 0 | AB105: 7 | AC105: 4 | AD105: 2 | AE105: 8 | AF105: 5 | AG105: 0 | AH105: 2 | AI105: 30 | AN105: =+#REF!-#REF! -> 
E106: Deposits abroad | I106: 0 | J106: 0 | K106: 0 | U106: 0 | V106: 0 | W106: 0 | X106: 0 | Y106: 0 | Z106: 0 | AA106: 0 | AB106: 0 | AC106: 0 | AD106: 0 | AE106: 0 | AF106: 0 | AG106: 0 | AH106: 0 | AI106: 0 | AN106: =+#REF!-#REF! -> 
E107: Breach of contracts | I107: 0 | J107: 34 | K107: =24.86879+8.86284 -> 34 | U107: 68 | V107: 2271 | W107: 0 | X107: 5 | Y107: 64 | Z107: 760 | AA107: 689 | AB107: 78 | AC107: 1381 | AD107: -17 | AE107: -6 | AF107: -683 | AG107: 0 | AH107: 0 | AI107: 2271 | AN107: =+#REF!-#REF! -> 
E108: Recovery of payments made | I108: 0 | J108: 0 | K108: 0 | U108: 0 | V108: 0 | W108: 0 | X108: 0 | Y108: 0 | Z108: 0 | AA108: 0 | AB108: 0 | AC108: 0 | AD108: 0 | AE108: 0 | AF108: 0 | AG108: 0 | AH108: 0 | AI108: 0 | AN108: =+#REF!-#REF! -> 
E109: Recovery of previous years' expenditure | I109: 92672 | J109: 46414 | K109: =8791.26864+-50.8000000000029+-5.7569100000037 -> 8735 | U109: 147821 | V109: 437071 | W109: 21418 | X109: =5294.84706+15.4534200000016 -> 5310 | Y109: 12174 | Z109: 3937 | AA109: 257342 | AB109: 8838 | AC109: 12444 | AD109: 20865 | AE109: 6704 | AF109: 11041 | AG109: 4803 | AH109: 72195 | AI109: 437071 | AN109: =+#REF!-#REF! -> 
E110: Stale cheques | I110: 69 | J110: 203 | K110: =77.70368+0.5 -> 78 | U110: 350 | V110: 16308 | W110: 8 | X110: 46 | Y110: -32 | Z110: 51 | AA110: 8002 | AB110: 88 | AC110: 7757 | AD110: 66 | AE110: -29 | AF110: 716 | AG110: =-313.60491+8.29490999999992 -> -305 | AH110: -60 | AI110: 16308 | AN110: =+#REF!-#REF! -> 
E111: Unallocated credits | I111: 570 | J111: 609 | K111: -655 | U111: 524 | V111: 19381 | W111: 4129 | X111: =340.8452+46 -> 387 | Y111: 910 | Z111: 809 | AA111: 1157 | AB111: 54650 | AC111: -51199 | AD111: -1537 | AE111: 7562 | AF111: 2790 | AG111: =-1335.66644+541.0818 -> -795 | AH111: 517 | AI111: 19380 | AN111: =+#REF!-#REF! -> 
E112: Unclaimed security deposits | I112: 0 | J112: 0 | K112: 1 | U112: 1 | V112: 0 | W112: 0 | X112: 0 | Y112: 0 | Z112: 0 | AA112: 0 | AB112: 0 | AC112: 0 | AD112: 0 | AE112: 0 | AF112: 0 | AG112: 0 | AH112: 0 | AI112: 0 | AN112: =+#REF!-#REF! -> 
E113: Of which:
E114: NRF receipts | G114: 5) | H114: 4856000 | I114: =+[1]original!$G$6 -> 594230 | J114: =+[2]original!$H$6 -> 356397 | K114: =+[3]original!$I$6 -> 451680 | L114: 0 | M114: 0 | N114: 0 | O114: 0 | P114: 0 | Q114: 0 | R114: 0 | S114: 0 | T114: 0 | U114: =SUM(I114:T114) -> 1402307 | V114: 25769918 | W114: =+[4]original!$G$6 -> 1236489 | X114: =+[5]original!$H$6 -> 2807140 | Y114: =+[6]original!$I$6 -> 3319954 | Z114: =+[7]original!$J$6 -> 3550323 | AA114: =+[8]original!$K$6 -> 3161507 | AB114: =+[9]original!$L$6 -> 1941577 | AC114: =+[10]original!$M$6 -> 2581412 | AD114: =+[11]original!$N$6 -> 900558 | AE114: =+[12]original!$O$6 -> 2698953 | AF114: =+[13]original!$P$6 -> 1360720 | AG114: =+[14]original!$Q$6 -> 574224 | AH114: =+[15]original!$R$6 -> 1637061 | AI114: =SUM(W114:Y114) -> 7363583 | AN114: =+#REF!-#REF! -> 
A115: Total national government revenue | H115: =H81+H78 -> 1351672124 | I115: =I81+I78 -> 85521313 | J115: 95746540 | K115: 204272509 | L115: 0 | M115: 0 | N115: 0 | O115: 0 | P115: 0 | Q115: 0 | R115: 0 | S115: 0 | T115: 0 | U115: =U81+U78 -> 385540362 | V115: =V81+V78 -> 1236135080 | W115: =W81+W78 -> 63095737 | X115: =X81+X78 -> 68106446 | Y115: 108554105 | Z115: 62846313 | AA115: 101855145 | AB115: 105679261 | AC115: 83230714 | AD115: 99218196 | AE115: 176370697 | AF115: 87476545 | AG115: 132745357 | AH115: 146956570 | AI115: =AI81+AI78 -> 239756288 | AN115: =+#REF!-#REF! -> 
A116: Reconciliation to total net revenue and revenue collected on Table 4 | AN116: =+#REF!-#REF! -> 
A117: Total national government revenue | H117: =+H115 -> 1351672124 | I117: =+I115 -> 85521313 | J117: 95746540 | K117: 204272509 | L117: 0 | M117: 0 | N117: 0 | O117: 0 | P117: 0 | Q117: 0 | R117: 0 | S117: 0 | T117: 0 | U117: =+U115 -> 385540362 | V117: =+V115 -> 1236135080 | W117: =+W115 -> 63095737 | X117: =+X115 -> 68106446 | Y117: 108554105 | Z117: 62846313 | AA117: 101855145 | AB117: 105679261 | AC117: 83230714 | AD117: 99218196 | AE117: 176370697 | AF117: 87476545 | AG117: 132745357 | AH117: 146956570 | AI117: =+AI115 -> 239756288 | AN117: =+#REF!-#REF! -> 
A118: Departmental revenue received but not yet paid to NRF | I118: =SUM(I119:I120) -> 144278 | J118: -26485 | K118: 284142 | L118: 0 | M118: 0 | N118: 0 | O118: 0 | P118: 0 | Q118: 0 | R118: 0 | S118: 0 | T118: 0 | U118: 401935 | V118: =SUM(V119:V120) -> 1883492 | W118: =SUM(W119:W120) -> 484219 | X118: =SUM(X119:X120) -> 576903 | Y118: 3177 | Z118: -251746 | AA118: -340255 | AB118: 144233 | AC118: 692028 | AD118: -114855 | AE118: -9230 | AF118: 202415 | AG118: 357738 | AH118: 138868 | AI118: 1064299 | AN118: =+#REF!-#REF! -> 
A119: Departmental revenue collected | I119: =-I81+I95+I114 -> -990098 | J119: =-J81+J95+J114 -> -619147 | K119: =-K81+K95+K114 -> -922729 | L119: 0 | M119: 0 | N119: 0 | O119: 0 | P119: 0 | Q119: 0 | R119: 0 | S119: 0 | T119: 0 | U119: =-U81+U95+U114 -> -2531974 | V119: -9742352 | W119: =-W81+W95+W114 -> -596423 | X119: =-X81+X95+X114 -> -368947 | Y119: -344051 | Z119: -571925 | AA119: -786426 | AB119: -494423 | AC119: =-AC81+AC95+AC114 -> -335073 | AD119: -909862 | AE119: =-AE81+AE95+AE114 -> -843438 | AF119: -551033 | AG119: =-AG81+AG95+AG114 -> -1112329 | AH119: -2828419 | AI119: =-AI81+AI95+AI114 -> -1309421 | AN119: =+#REF!-#REF! -> 
A120: Departmental revenue received by the NRF | I120: =1140479-6082-21 -> 1134376 | J120: =594556-1894 -> 592662 | K120: =1208724-1853 -> 1206871 | L120: 0 | M120: 0 | N120: 0 | O120: 0 | P120: 0 | Q120: 0 | R120: 0 | S120: 0 | T120: 0 | U120: =SUM(I120:T120) -> 2933909 | V120: 11625844 | W120: 1080642 | X120: =946604-351-265-138 -> 945850 | Y120: =352203-4975 -> 347228 | Z120: =320743-204-360 -> 320179 | AA120: =658418-97-342-655-335-1193-209625 -> 446171 | AB120: =640054-1398 -> 638656 | AC120: =1029173-2070-2 -> 1027101 | AD120: =797466-2412-47 -> 795007 | AE120: =834366-1-157 -> 834208 | AF120: =755778-2330 -> 753448 | AG120: =1472208-2141 -> 1470067 | AH120: =3076885-102-24-109472 -> 2967287 | AI120: =SUM(W120:Y120) -> 2373720 | AN120: =+#REF!-#REF! -> 
A121: Other revenue received by the NRF | G121: 6) | I121: =SUM(I122:I133) -> 337565 | J121: =SUM(J122:J133) -> 280718 | K121: =SUM(K122:K133) -> 75070 | L121: 0 | M121: 0 | N121: 0 | O121: 0 | P121: 0 | Q121: 0 | R121: 0 | S121: 0 | T121: 0 | U121: 693353 | V121: =SUM(V122:V133) -> 1791459 | W121: 1280 | X121: 326479 | Y121: 9200 | Z121: 136714 | AA121: 209925 | AB121: 308531 | AC121: 713 | AD121: 558807 | AE121: 33192 | AF121: 51269 | AG121: 5627 | AH121: 149722 | AI121: 336959 | AN121: =+#REF!-#REF! -> 
E122: ICASA | I122: 336293 | J122: 279523 | K122: 62733 | L122: 0 | M122: 0 | N122: 0 | O122: 0 | P122: 0 | Q122: 0 | R122: 0 | S122: 0 | T122: 0 | U122: 678549 | V122: 1504974 | W122: 0 | X122: 326092 | Y122: 2563 | Z122: 135891 | AA122: 0 | AB122: 308320 | AC122: 0 | AD122: 558257 | AE122: 0 | AF122: 50163 | AG122: 4600 | AH122: 119088 | AI122: 328655 | AN122: =+#REF!-#REF! -> 
E123: Financial Intelligence Centre Act | I123: 1272 | J123: 1195 | K123: 12337 | L123: 0 | M123: 0 | N123: 0 | O123: 0 | P123: 0 | Q123: 0 | R123: 0 | S123: 0 | T123: 0 | U123: 14804 | V123: 44743 | W123: 1484 | X123: 387 | Y123: 6637 | Z123: 619 | AA123: 300 | AB123: 211 | AC123: 713 | AD123: 550 | AE123: 30575 | AF123: 1106 | AG123: 1027 | AH123: 1134 | AI123: 8508 | AN123: =+#REF!-#REF! -> 
E124: SARB Discovery | I124: 0 | J124: 0 | K124: 0 | L124: 0 | M124: 0 | N124: 0 | O124: 0 | P124: 0 | Q124: 0 | R124: 0 | S124: 0 | T124: 0 | U124: 0 | V124: 1500 | X124: 0 | Y124: 0 | AH124: 1500 | AI124: 0
E125: SARB Deutsche Bank | I125: 0 | J125: 0 | K125: 0 | L125: 0 | M125: 0 | N125: 0 | O125: 0 | P125: 0 | Q125: 0 | R125: 0 | S125: 0 | T125: 0 | U125: 0 | V125: 28000 | X125: 0 | Y125: 0 | AH125: 28000 | AI125: 0
E126: SARB Brightrock life penalty | I126: 0 | J126: 0 | K126: 0 | L126: 0 | M126: 0 | N126: 0 | O126: 0 | P126: 0 | Q126: 0 | R126: 0 | S126: 0 | T126: 0 | U126: 0 | V126: 0 | W126: 0 | X126: 0 | Y126: 0 | Z126: 0 | AA126: 0 | AB126: 0 | AC126: 0 | AD126: 0 | AE126: 0 | AF126: 0 | AG126: 0 | AH126: 0 | AI126: 0
E127: Proceeds of organised Crime Act | I127: 0 | J127: 0 | K127: 0 | L127: 0 | M127: 0 | N127: 0 | O127: 0 | P127: 0 | Q127: 0 | R127: 0 | S127: 0 | T127: 0 | U127: 0 | V127: 2617 | W127: 0 | X127: 0 | Y127: 0 | Z127: 0 | AA127: 0 | AB127: 0 | AC127: 0 | AD127: 0 | AE127: 2617 | AF127: 0 | AG127: 0 | AH127: 0 | AI127: 0 | AN127: =+#REF!-#REF! -> 
E128: Asset Forfeiture Unit | I128: 0 | J128: 0 | K128: 0 | L128: 0 | M128: 0 | N128: 0 | O128: 0 | P128: 0 | Q128: 0 | R128: 0 | S128: 0 | T128: 0 | U128: 0 | V128: 0 | W128: 0 | X128: 0 | Y128: 0 | Z128: 0 | AA128: 0 | AB128: 0 | AC128: 0 | AD128: 0 | AE128: 0 | AF128: 0 | AG128: 0 | AH128: 0 | AI128: 0 | AN128: =+#REF!-#REF! -> 
E129: National Library | I129: 0 | J129: 0 | K129: 0 | L129: 0 | M129: 0 | N129: 0 | O129: 0 | P129: 0 | Q129: 0 | R129: 0 | S129: 0 | T129: 0 | U129: 0 | V129: 0 | AH129: 0 | AI129: 0
E130: DTI Various entities | I130: 0 | J130: 0 | K130: 0 | L130: 0 | M130: 0 | N130: 0 | O130: 0 | P130: 0 | Q130: 0 | R130: 0 | S130: 0 | T130: 0 | U130: =SUM(I130:T130) -> 0 | V130: 0 | W130: 0 | X130: 0 | Y130: 0 | Z130: 0 | AA130: 0 | AB130: 0 | AC130: 0 | AD130: 0 | AE130: 0 | AF130: 0 | AG130: 0 | AH130: 0 | AI130: 0 | AN130: =+#REF!-#REF! -> 
E131: Competition Commission | I131: 0 | J131: 0 | K131: 0 | L131: 0 | M131: 0 | N131: 0 | O131: 0 | P131: 0 | Q131: 0 | R131: 0 | S131: 0 | T131: 0 | U131: 0 | V131: 209625 | W131: 0 | X131: 0 | Y131: 0 | Z131: 0 | AA131: 209625 | AB131: 0 | AC131: 0 | AD131: 0 | AE131: 0 | AF131: 0 | AG131: 0 | AH131: 0 | AI131: 0 | AN131: =+#REF!-#REF! -> 
E132: Refund Police | I132: 0 | J132: 0 | K132: 0 | L132: 0 | M132: 0 | N132: 0 | O132: 0 | P132: 0 | Q132: 0 | R132: 0 | S132: 0 | T132: 0 | U132: 0 | V132: 0 | W132: -204 | X132: 0 | Y132: 0 | Z132: 204 | AA132: 0 | AB132: 0 | AC132: 0 | AD132: 0 | AE132: 0 | AF132: 0 | AG132: 0 | AH132: 0 | AI132: -204 | AN132: =+#REF!-#REF! -> 
E133: Refund Correctional Services | I133: 0 | J133: 0 | K133: 0 | L133: 0 | M133: 0 | N133: 0 | O133: 0 | P133: 0 | Q133: 0 | R133: 0 | S133: 0 | T133: 0 | U133: 0 | V133: 0 | W133: 0 | X133: 0 | Y133: 0 | Z133: 0 | AA133: 0 | AB133: 0 | AC133: 0 | AD133: 0 | AE133: 0 | AF133: 0 | AG133: 0 | AH133: 0 | AI133: 0 | AN133: =+#REF!-#REF! -> 
A134: Revenue collected on behalf of the Provincial Authorities | H134: 0 | I134: 0 | J134: 0 | K134: 0 | L134: 0 | M134: 0 | N134: 0 | O134: 0 | P134: 0 | Q134: 0 | R134: 0 | S134: 0 | T134: 0 | U134: 0 | V134: 0 | W134: 0 | X134: 0 | Y134: 0 | Z134: 0 | AA134: 0 | AB134: 0 | AC134: 0 | AD134: 0 | AE134: 0 | AF134: 0 | AG134: 0 | AH134: 0 | AI134: 0 | AN134: =+#REF!-#REF! -> 
A135: Revenue collected on behalf of the RAF | H135: 38987918 | I135: 3525945 | J135: 3637559 | K135: 4247977 | L135: 0 | M135: 0 | N135: 0 | O135: 0 | P135: 0 | Q135: 0 | R135: 0 | S135: 0 | T135: 0 | U135: 11411481 | V135: 40442035 | W135: 2558273 | X135: 1599971 | Y135: 1260802 | Z135: 2357606 | AA135: 3646053 | AB135: 5159495 | AC135: 5216231 | AD135: 3621546 | AE135: 3541896 | AF135: 3837503 | AG135: 3989450 | AH135: 3653210 | AI135: 5419046 | AN135: =+#REF!-#REF! -> 
A136: Revenue collected on behalf of the UIF | H136: 17915790 | I136: 1555455 | J136: 1611460 | K136: 1679129 | L136: 0 | M136: 0 | N136: 0 | O136: 0 | P136: 0 | Q136: 0 | R136: 0 | S136: 0 | T136: 0 | U136: 4846044 | V136: 18395499 | W136: 1443405 | X136: 1326166 | Y136: 1291739 | Z136: 1457470 | AA136: 1549733 | AB136: 1578688 | AC136: 1531309 | AD136: 1589698 | AE136: 1721507 | AF136: 1629108 | AG136: 1595977 | AH136: 1680699 | AI136: 4061310 | AN136: =+#REF!-#REF! -> 
A137: Total net revenue | I137: =+I117+I118+I121+I134+I135+I136+1 -> 91084557 | J137: =+J117+J118+J121+J134+J135+J136-2 -> 101249790 | K137: =+K117+K118+K121+K134+K135+K136 -> 210558827 | L137: 0 | M137: 0 | N137: 0 | O137: 0 | P137: 0 | Q137: 0 | R137: 0 | S137: 0 | T137: 0 | U137: =+U117+U118+U121+U134+U135+U136-1 -> 402893174 | V137: =+V117+V118+V121+V134+V135+V136 -> 1298647565 | W137: 67582914 | X137: 71935965 | Y137: 111119023 | Z137: 66546357 | AA137: 106920601 | AB137: 112870208 | AC137: 90670995 | AD137: 104873392 | AE137: 181658062 | AF137: 93196840 | AG137: 138694149 | AH137: 152579069 | AI137: 250637902 | AN137: =+#REF!-#REF! -> 
A138: Cash balance NRF | I138: -764 | J138: 1997 | K138: 3994 | L138: 0 | M138: 0 | N138: 0 | O138: 0 | P138: 0 | Q138: 0 | R138: 0 | S138: 0 | T138: 0 | U138: =SUM(I138:T138) -> 5227 | V138: 42833 | W138: 16415 | X138: 3123 | Y138: -12025 | Z138: 13620 | AA138: -26756 | AB138: 15209 | AC138: 32487 | AD138: 1142 | AE138: 13195 | AF138: -29488 | AG138: -4053 | AH138: 19964 | AI138: =SUM(W138:Y138) -> 7513 | AN138: =+#REF!-#REF! -> 
A139: Provincial revenue collected by SARS and transferred by NRF | I139: 0 | J139: 0 | K139: 0 | L139: 0 | M139: 0 | N139: 0 | O139: 0 | P139: 0 | Q139: 0 | R139: 0 | S139: 0 | T139: 0 | U139: =SUM(I139:T139) -> 0 | V139: 0 | W139: 0 | X139: 0 | Y139: 0 | Z139: 0 | AA139: 0 | AB139: 0 | AC139: 0 | AD139: 0 | AE139: 0 | AF139: 0 | AG139: 0 | AH139: 0 | AI139: 0 | AN139: =+#REF!-#REF! -> 
A140: Direct transfer from NRF to the RAF | I140: -3653210 | J140: -3525945 | K140: -3637559 | L140: 0 | M140: 0 | N140: 0 | O140: 0 | P140: 0 | Q140: 0 | R140: 0 | S140: 0 | T140: 0 | U140: =SUM(I140:T140) -> -10816714 | V140: -40559570 | W140: -3770745 | X140: -2558273 | Y140: -1599971 | Z140: -1260802 | AA140: -2357606 | AB140: -3646053 | AC140: -5159495 | AD140: -5216231 | AE140: 0 | AF140: -7163442 | AG140: -3837503 | AH140: -3989449 | AI140: -7928989 | AN140: =+#REF!-#REF! -> 
A141: Direct transfer from NRF to the UIF | I141: -1680699 | J141: -1555455 | K141: -1611460 | L141: 0 | M141: 0 | N141: 0 | O141: 0 | P141: 0 | Q141: 0 | R141: 0 | S141: 0 | T141: 0 | U141: =SUM(I141:T141) -> -4847614 | V141: -18610588 | W141: -1895789 | X141: -1443405 | Y141: -1326166 | Z141: -1291739 | AA141: -1457470 | AB141: -1549733 | AC141: -1578687 | AD141: -1531309 | AE141: =-1589698 -> -1589698 | AF141: -1721508 | AG141: -1629108 | AH141: -1595976 | AI141: -4665360 | AN141: =+#REF!-#REF! -> 
A142: CARA added as part of cash revenue in Table 4 | I142: 3915 | J142: 3642 | K142: 813 | L142: 0 | M142: 0 | N142: 0 | O142: 0 | P142: 0 | Q142: 0 | R142: 0 | S142: 0 | T142: 0 | U142: =SUM(I142:T142) -> 8370 | V142: -64864 | W142: =350-50000 -> -49650 | X142: 32382 | Y142: =1320-1380-2300 -> -2360 | Z142: 18537 | AA142: 1744 | AB142: =1048-1802 -> -754 | AC142: =714-30000-3647-20000 -> -52933 | AD142: 2704 | AE142: 2519 | AF142: 2262 | AG142: 17776 | AH142: =4479-41570 -> -37091 | AI142: -19628 | AN142: =+#REF!-#REF! -> 
A143: Revenue collected according to Table 4 | I143: =SUM(I137:I142) -> 85753799 | J143: =SUM(J137:J142) -> 96174029 | K143: 205314615 | L143: 0 | M143: 0 | N143: 0 | O143: 0 | P143: 0 | Q143: 0 | R143: 0 | S143: 0 | T143: 0 | U143: =SUM(U137:U142) -> 387242443 | V143: =SUM(V137:V142) -> 1239455376 | W143: =SUM(W137:W142) -> 61883145 | X143: =SUM(X137:X142) -> 67969792 | Y143: 108178501 | Z143: 64025973 | AA143: 103080513 | AB143: 107688877 | AC143: =SUM(AC137:AC142)+1 -> 83912368 | AD143: 98129698 | AE143: =SUM(AE137:AE142) -> 180084078 | AF143: 84284664 | AG143: 133241261 | AH143: 146976517 | AI143: =SUM(AI137:AI142) -> 238031438 | AN143: =+#REF!-#REF! -> 
A144: 1) Specific excise duties on petrol, distillate fuel, residual fuel and base oil.
A145: 2) Excise duties collected by Botswana, Lesotho, Namibia and Eswatini.
A146: 3) Revenue received by SARS in respect of taxation that could not be allocated to specific revenue types.
A147: 4) Payments in terms of SACU agreements.
A148: 5) NRF receipts (previously classified as extra ordinary receipts), for more details see Table 5.
A149: 6) Other revenue received by the NRF that is not classified as Departmental Revenue.
A150: *) Any negative amounts reflect refunds and reclassification of previous recorded amounts. Reclassification will be reflected on the database.

Sheet Table 2 pg 1
A1: Table 2 Expenditure by national vote*
E2: 2021/22
E3: Budget Estimate | J3: April | O3: May | T3: June | Y3: July | AD3: August | AI3: September | AN3: October | AS3: November | AX3: December | BC3: January | BH3: February | BM3: March | BR3: Year to date
E4: Current | F4: Transfers and | G4: Payments for | H4: Payments for | I4: Total | J4: Current | K4: Transfers and | L4: Payments for | M4: Payments for | N4: Total | O4: Current | P4: Transfers and | Q4: Payments for | R4: Payments for | S4: Total | T4: Current | U4: Transfers and | V4: Payments for | W4: Payments for | X4: Total | Y4: Current | Z4: Transfers and | AA4: Payments for | AB4: Payments for | AC4: Total | AD4: Current | AE4: Transfers and | AF4: Payments for | AG4: Payments for | AH4: Total | AI4: Current | AJ4: Transfers and | AK4: Payments for | AL4: Payments for | AM4: Total | AN4: Current | AO4: Transfers and | AP4: Payments for | AQ4: Payments for | AR4: Total | AS4: Current | AT4: Transfers and | AU4: Payments for | AV4: Payments for | AW4: Total | AX4: Current | AY4: Transfers and | AZ4: Payments for | BA4: Payments for | BB4: Total | BC4: Current | BD4: Transfers and | BE4: Payments for | BF4: Payments for | BG4: Total | BH4: Current | BI4: Transfers and | BJ4: Payments for | BK4: Payments for | BL4: Total | BM4: Current | BN4: Transfers and | BO4: Payments for | BP4: Payments for | BQ4: Total | BR4: Current | BS4: Transfers and | BT4: Payments for | BU4: Payments for | BV4: Total
A5: R thousand | E5: payments | F5: subsidies | G5: capital assets | H5: financial assets | J5: payments | K5: subsidies | L5: capital assets | M5: financial assets | O5: payments | P5: subsidies | Q5: capital assets | R5: financial assets | T5: payments | U5: subsidies | V5: capital assets | W5: financial assets | Y5: payments | Z5: subsidies | AA5: capital assets | AB5: financial assets | AD5: payments | AE5: subsidies | AF5: capital assets | AG5: financial assets | AI5: payments | AJ5: subsidies | AK5: capital assets | AL5: financial assets | AN5: payments | AO5: subsidies | AP5: capital assets | AQ5: financial assets | AS5: payments | AT5: subsidies | AU5: capital assets | AV5: financial assets | AX5: payments | AY5: subsidies | AZ5: capital assets | BA5: financial assets | BC5: payments | BD5: subsidies | BE5: capital assets | BF5: financial assets | BH5: payments | BI5: subsidies | BJ5: capital assets | BK5: financial assets | BM5: payments | BN5: subsidies | BO5: capital assets | BP5: financial assets | BR5: payments | BS5: subsidies | BT5: capital assets | BU5: financial assets | BZ5: IYM | CF5: Difference
A7: 1 | B7: The Presidency | E7: 578270 | F7: 44 | G7: 14007 | H7: 0 | I7: 592321 | J7: 30897 | K7: 92 | L7: 1136 | M7: 0 | N7: 32125 | O7: 36666 | P7: 149 | Q7: 977 | R7: 0 | S7: 37792 | T7: 41896 | U7: 226 | V7: 2103 | W7: 0 | X7: 44225 | Y7: 0 | Z7: 0 | AA7: 0 | AB7: 0 | AC7: 0 | AD7: 0 | AE7: 0 | AF7: 0 | AG7: 0 | AH7: 0 | AI7: 0 | AJ7: 0 | AK7: 0 | AL7: 0 | AM7: 0 | AN7: 0 | AO7: 0 | AP7: 0 | AQ7: 0 | AR7: 0 | AS7: 0 | AT7: 0 | AU7: 0 | AV7: 0 | AW7: 0 | AX7: 0 | AY7: 0 | AZ7: 0 | BA7: 0 | BB7: 0 | BC7: 0 | BD7: 0 | BE7: 0 | BF7: 0 | BG7: 0 | BH7: 0 | BI7: 0 | BJ7: 0 | BK7: 0 | BL7: 0 | BM7: 0 | BN7: 0 | BO7: 0 | BP7: 0 | BQ7: 0 | BR7: 109459 | BS7: 467 | BT7: 4216 | BU7: 0 | BV7: 114142 | BY7: 30897 | BZ7: 92 | CA7: 1136 | CB7: 0 | CC7: 32125 | CD7: 0 | CE7: 0 | CF7: 0 | CG7: 0 | CH7: 0
A8: 2 | B8: Parliament | D8: 1) | E8: 1641637 | F8: 489959 | G8: 12552 | H8: 0 | I8: 2144148 | J8: 137668 | K8: 122489 | L8: 179 | M8: 0 | N8: 260336 | O8: 137668 | P8: 0 | Q8: 179 | R8: 0 | S8: 137847 | T8: 135111 | U8: 2736 | V8: 0 | W8: 0 | X8: 137847 | Y8: 0 | Z8: 0 | AA8: 0 | AB8: 0 | AC8: 0 | AD8: 0 | AE8: 0 | AF8: 0 | AG8: 0 | AH8: 0 | AI8: 0 | AJ8: 0 | AK8: 0 | AL8: 0 | AM8: 0 | AN8: 0 | AO8: 0 | AP8: 0 | AQ8: 0 | AR8: 0 | AS8: 0 | AT8: 0 | AU8: 0 | AV8: 0 | AW8: 0 | AX8: 0 | AY8: 0 | AZ8: 0 | BA8: 0 | BB8: 0 | BC8: 0 | BD8: 0 | BE8: 0 | BF8: 0 | BG8: 0 | BH8: 0 | BI8: 0 | BJ8: 0 | BK8: 0 | BL8: 0 | BM8: 0 | BN8: 0 | BO8: 0 | BP8: 0 | BQ8: 0 | BR8: 410447 | BS8: 125225 | BT8: 358 | BU8: 0 | BV8: 536030 | BY8: 137668 | BZ8: 122489 | CA8: 179 | CB8: 0 | CC8: 260336 | CD8: 0 | CE8: 0 | CF8: 0 | CG8: 0 | CH8: 0
A9: 3 | B9: Cooperative Governance | E9: 4951839 | F9: 95917365 | G9: 6666 | H9: 0 | I9: 100875870 | J9: 361638 | K9: 105 | M9: 5 | N9: 361748 | O9: 290380 | P9: 854 | Q9: 1018 | R9: 67 | S9: 292319 | T9: 332230 | U9: 150816 | V9: 4546 | W9: 0 | X9: 487592 | Y9: 0 | Z9: 0 | AA9: 0 | AB9: 0 | AC9: 0 | AD9: 0 | AE9: 0 | AF9: 0 | AG9: 0 | AH9: 0 | AI9: 0 | AJ9: 0 | AK9: 0 | AL9: 0 | AM9: 0 | AN9: 0 | AO9: 0 | AP9: 0 | AQ9: 0 | AR9: 0 | AS9: 0 | AT9: 0 | AU9: 0 | AV9: 0 | AW9: 0 | AX9: 0 | AY9: 0 | AZ9: 0 | BA9: 0 | BB9: 0 | BC9: 0 | BD9: 0 | BE9: 0 | BF9: 0 | BG9: 0 | BH9: 0 | BI9: 0 | BJ9: 0 | BK9: 0 | BL9: 0 | BM9: 0 | BN9: 0 | BO9: 0 | BP9: 0 | BQ9: 0 | BR9: 984248 | BS9: 151775 | BT9: 5564 | BU9: 72 | BV9: 1141659 | BY9: 356730 | BZ9: 106 | CA9: 0 | CB9: 5 | CC9: 356840 | CD9: -4908 | CE9: 1 | CF9: 0 | CG9: 0 | CH9: -4908
A10: 4 | B10: Government Communication and Information System | E10: 498218 | F10: 246447 | G10: 5019 | H10: 0 | I10: 749684 | J10: 32579 | K10: 34471 | L10: 18 | M10: 0 | N10: 67068 | O10: 33871 | P10: -345 | Q10: 337 | R10: 0 | S10: 33863 | T10: 36386 | U10: 0 | V10: 153 | W10: 0 | X10: 36539 | Y10: 0 | Z10: 0 | AA10: 0 | AB10: 0 | AC10: 0 | AD10: 0 | AE10: 0 | AF10: 0 | AG10: 0 | AH10: 0 | AI10: 0 | AJ10: 0 | AK10: 0 | AL10: 0 | AM10: 0 | AN10: 0 | AO10: 0 | AP10: 0 | AQ10: 0 | AR10: 0 | AS10: 0 | AT10: 0 | AU10: 0 | AV10: 0 | AW10: 0 | AX10: 0 | AY10: 0 | AZ10: 0 | BA10: 0 | BB10: 0 | BC10: 0 | BD10: 0 | BE10: 0 | BF10: 0 | BG10: 0 | BH10: 0 | BI10: 0 | BJ10: 0 | BK10: 0 | BL10: 0 | BM10: 0 | BN10: 0 | BO10: 0 | BP10: 0 | BQ10: 0 | BR10: 102836 | BS10: 34126 | BT10: 508 | BU10: 0 | BV10: 137470 | BY10: 32579 | BZ10: 34471 | CA10: 18 | CB10: 0 | CC10: 67068 | CD10: 0 | CE10: 0 | CF10: 0 | CG10: 0 | CH10: 0
A11: 5 | B11: Home Affairs | E11: 6293330 | F11: 2383393 | G11: 13727 | H11: 0 | I11: 8690450 | J11: 451258 | K11: 243984 | L11: 17718 | M11: 0 | N11: 712960 | O11: 608961 | P11: 203646 | Q11: 7627 | R11: 0 | S11: 820234 | T11: 493358 | U11: 251126 | V11: 9108 | W11: 0 | X11: 753592 | Y11: 0 | Z11: 0 | AA11: 0 | AB11: 0 | AC11: 0 | AD11: 0 | AE11: 0 | AF11: 0 | AG11: 0 | AH11: 0 | AI11: 0 | AJ11: 0 | AK11: 0 | AL11: 0 | AM11: 0 | AN11: 0 | AO11: 0 | AP11: 0 | AQ11: 0 | AR11: 0 | AS11: 0 | AT11: 0 | AU11: 0 | AV11: 0 | AW11: 0 | AX11: 0 | AY11: 0 | AZ11: 0 | BA11: 0 | BB11: 0 | BC11: 0 | BD11: 0 | BE11: 0 | BF11: 0 | BG11: 0 | BH11: 0 | BI11: 0 | BJ11: 0 | BK11: 0 | BL11: 0 | BM11: 0 | BN11: 0 | BO11: 0 | BP11: 0 | BQ11: 0 | BR11: 1553577 | BS11: 698756 | BT11: 34453 | BU11: 0 | BV11: 2286786 | BY11: 451258 | BZ11: 243984 | CA11: 17718 | CB11: 0 | CC11: 712960 | CD11: 0 | CE11: 0 | CF11: 0 | CG11: 0 | CH11: 0
A12: 6 | B12: International Relations and Cooperation | E12: 5331440 | F12: 796454 | G12: 324478 | H12: 0 | I12: 6452372 | J12: 403050 | K12: 7318 | L12: 3204 | M12: 0 | N12: 413572 | O12: 457364 | P12: 192724 | Q12: 535 | R12: 1024 | S12: 651647 | T12: 361493 | U12: 254730 | V12: 540 | W12: 0 | X12: 616763 | Y12: 0 | Z12: 0 | AA12: 0 | AB12: 0 | AC12: 0 | AD12: 0 | AE12: 0 | AF12: 0 | AG12: 0 | AH12: 0 | AI12: 0 | AJ12: 0 | AK12: 0 | AL12: 0 | AM12: 0 | AN12: 0 | AO12: 0 | AP12: 0 | AQ12: 0 | AR12: 0 | AS12: 0 | AT12: 0 | AU12: 0 | AV12: 0 | AW12: 0 | AX12: 0 | AY12: 0 | AZ12: 0 | BA12: 0 | BB12: 0 | BC12: 0 | BD12: 0 | BE12: 0 | BF12: 0 | BG12: 0 | BH12: 0 | BI12: 0 | BJ12: 0 | BK12: 0 | BL12: 0 | BM12: 0 | BN12: 0 | BO12: 0 | BP12: 0 | BQ12: 0 | BR12: 1221907 | BS12: 454772 | BT12: 4279 | BU12: 1024 | BV12: 1681982 | BY12: 403050 | BZ12: 7318 | CA12: 3204 | CB12: 0 | CC12: 413572 | CD12: 0 | CE12: 0 | CF12: 0 | CG12: 0 | CH12: 0
A13: 7 | B13: National School of Government | E13: 105549 | F13: 101019 | G13: 3621 | H13: 0 | I13: 210189 | J13: 5802 | K13: 7074 | L13: 316 | M13: 0 | N13: 13192 | O13: 7340 | P13: 8275 | Q13: 0 | R13: 0 | S13: 15615 | T13: 7454 | U13: 8586 | V13: 276 | W13: 0 | X13: 16316 | Y13: 0 | Z13: 0 | AA13: 0 | AB13: 0 | AC13: 0 | AD13: 0 | AE13: 0 | AF13: 0 | AG13: 0 | AH13: 0 | AI13: 0 | AJ13: 0 | AK13: 0 | AL13: 0 | AM13: 0 | AN13: 0 | AO13: 0 | AP13: 0 | AQ13: 0 | AR13: 0 | AS13: 0 | AT13: 0 | AU13: 0 | AV13: 0 | AW13: 0 | AX13: 0 | AY13: 0 | AZ13: 0 | BA13: 0 | BB13: 0 | BC13: 0 | BD13: 0 | BE13: 0 | BF13: 0 | BG13: 0 | BH13: 0 | BI13: 0 | BJ13: 0 | BK13: 0 | BL13: 0 | BM13: 0 | BN13: 0 | BO13: 0 | BP13: 0 | BQ13: 0 | BR13: 20596 | BS13: 23935 | BT13: 592 | BU13: 0 | BV13: 45123 | BY13: 5802 | BZ13: 7074 | CA13: 316 | CB13: 0 | CC13: 13192 | CD13: 0 | CE13: 0 | CF13: 0 | CG13: 0 | CH13: 0
A14: 8 | B14: National Treasury | E14: 2984905 | F14: 27284847 | G14: 36507 | H14: 10749448 | I14: 41055707 | J14: 154060 | K14: 2506865 | L14: 0 | M14: 193256 | N14: 2854181 | O14: 154582 | P14: 1801276 | Q14: 444 | R14: 0 | S14: 1956302 | T14: 180553 | U14: 2079762 | V14: 6538 | W14: 260347 | X14: 2527200 | Y14: 0 | Z14: 0 | AA14: 0 | AB14: 0 | AC14: 0 | AD14: 0 | AE14: 0 | AF14: 0 | AG14: 0 | AH14: 0 | AI14: 0 | AJ14: 0 | AK14: 0 | AL14: 0 | AM14: 0 | AN14: 0 | AO14: 0 | AP14: 0 | AQ14: 0 | AR14: 0 | AS14: 0 | AT14: 0 | AU14: 0 | AV14: 0 | AW14: 0 | AX14: 0 | AY14: 0 | AZ14: 0 | BA14: 0 | BB14: 0 | BC14: 0 | BD14: 0 | BE14: 0 | BF14: 0 | BG14: 0 | BH14: 0 | BI14: 0 | BJ14: 0 | BK14: 0 | BL14: 0 | BM14: 0 | BN14: 0 | BO14: 0 | BP14: 0 | BQ14: 0 | BR14: 489195 | BS14: 6387903 | BT14: 6982 | BU14: 453603 | BV14: 7337683 | BY14: 154060 | BZ14: 2506865 | CA14: 0 | CB14: 193256 | CC14: 2854181 | CD14: 0 | CE14: 0 | CF14: 0 | CG14: 0 | CH14: 0
A15: 9 | B15: Planning, Monitoring and Evaluation | E15: 443670 | F15: 0 | G15: 10280 | H15: 0 | I15: 453950 | J15: 27198 | K15: 0 | L15: 41 | M15: 0 | N15: 27239 | O15: 29174 | P15: 219 | Q15: 16 | R15: 0 | S15: 29409 | T15: 28511 | U15: 39 | V15: 87 | W15: 0 | X15: 28637 | Y15: 0 | Z15: 0 | AA15: 0 | AB15: 0 | AC15: 0 | AD15: 0 | AE15: 0 | AF15: 0 | AG15: 0 | AH15: 0 | AI15: 0 | AJ15: 0 | AK15: 0 | AL15: 0 | AM15: 0 | AN15: 0 | AO15: 0 | AP15: 0 | AQ15: 0 | AR15: 0 | AS15: 0 | AT15: 0 | AU15: 0 | AV15: 0 | AW15: 0 | AX15: 0 | AY15: 0 | AZ15: 0 | BA15: 0 | BB15: 0 | BC15: 0 | BD15: 0 | BE15: 0 | BF15: 0 | BG15: 0 | BH15: 0 | BI15: 0 | BJ15: 0 | BK15: 0 | BL15: 0 | BM15: 0 | BN15: 0 | BO15: 0 | BP15: 0 | BQ15: 0 | BR15: 84883 | BS15: 258 | BT15: 144 | BU15: 0 | BV15: 85285 | BY15: 27198 | BZ15: 0 | CA15: 41 | CB15: 0 | CC15: 27239 | CD15: 0 | CE15: 0 | CF15: 0 | CG15: 0 | CH15: 0
A16: 10 | B16: Public Enterprises | E16: 286159 | F16: 18 | G16: 3671 | H16: 36001971 | I16: 36291819 | J16: 16534 | K16: 18 | L16: 0 | M16: 17000000 | N16: 17016552 | O16: 16706 | P16: 72 | Q16: 141 | R16: 0 | S16: 16919 | T16: 16334 | U16: 84 | V16: -98 | W16: 3000000 | X16: 3016320 | Y16: 0 | Z16: 0 | AA16: 0 | AB16: 0 | AC16: 0 | AD16: 0 | AE16: 0 | AF16: 0 | AG16: 0 | AH16: 0 | AI16: 0 | AJ16: 0 | AK16: 0 | AL16: 0 | AM16: 0 | AN16: 0 | AO16: 0 | AP16: 0 | AQ16: 0 | AR16: 0 | AS16: 0 | AT16: 0 | AU16: 0 | AV16: 0 | AW16: 0 | AX16: 0 | AY16: 0 | AZ16: 0 | BA16: 0 | BB16: 0 | BC16: 0 | BD16: 0 | BE16: 0 | BF16: 0 | BG16: 0 | BH16: 0 | BI16: 0 | BJ16: 0 | BK16: 0 | BL16: 0 | BM16: 0 | BN16: 0 | BO16: 0 | BP16: 0 | BQ16: 0 | BR16: 49574 | BS16: 174 | BT16: 43 | BU16: 20000000 | BV16: 20049791 | BY16: 16534 | BZ16: 18 | CA16: 0 | CB16: 17000000 | CC16: 17016552 | CD16: 0 | CE16: 0 | CF16: 0 | CG16: 0 | CH16: 0
A17: 11 | B17: Public Service and Administration | E17: 475210 | F17: 44863 | G17: 6119 | H17: 0 | I17: 526192 | J17: 24867 | K17: 5744 | L17: 0 | M17: 0 | N17: 30611 | O17: 39036 | P17: 3857 | Q17: 490 | R17: 0 | S17: 43383 | T17: 26246 | U17: 5420 | V17: 333 | W17: 0 | X17: 31999 | Y17: 0 | Z17: 0 | AA17: 0 | AB17: 0 | AC17: 0 | AD17: 0 | AE17: 0 | AF17: 0 | AG17: 0 | AH17: 0 | AI17: 0 | AJ17: 0 | AK17: 0 | AL17: 0 | AM17: 0 | AN17: 0 | AO17: 0 | AP17: 0 | AQ17: 0 | AR17: 0 | AS17: 0 | AT17: 0 | AU17: 0 | AV17: 0 | AW17: 0 | AX17: 0 | AY17: 0 | AZ17: 0 | BA17: 0 | BB17: 0 | BC17: 0 | BD17: 0 | BE17: 0 | BF17: 0 | BG17: 0 | BH17: 0 | BI17: 0 | BJ17: 0 | BK17: 0 | BL17: 0 | BM17: 0 | BN17: 0 | BO17: 0 | BP17: 0 | BQ17: 0 | BR17: 90149 | BS17: 15021 | BT17: 823 | BU17: 0 | BV17: 105993 | BY17: 24867 | BZ17: 5744 | CA17: 0 | CB17: 0 | CC17: 30611 | CD17: 0 | CE17: 0 | CF17: 0 | CG17: 0 | CH17: 0
A18: 12 | B18: Public Service Commission | E18: 280428 | F18: 502 | G18: 1475 | H18: 0 | I18: 282405 | J18: 16472 | K18: 0 | L18: 32 | M18: 0 | N18: 16504 | O18: 20953 | P18: 0 | Q18: 17 | R18: 0 | S18: 20970 | T18: 20723 | U18: 117 | V18: 146 | W18: 0 | X18: 20986 | Y18: 0 | Z18: 0 | AA18: 0 | AB18: 0 | AC18: 0 | AD18: 0 | AE18: 0 | AF18: 0 | AG18: 0 | AH18: 0 | AI18: 0 | AJ18: 0 | AK18: 0 | AL18: 0 | AM18: 0 | AN18: 0 | AO18: 0 | AP18: 0 | AQ18: 0 | AR18: 0 | AS18: 0 | AT18: 0 | AU18: 0 | AV18: 0 | AW18: 0 | AX18: 0 | AY18: 0 | AZ18: 0 | BA18: 0 | BB18: 0 | BC18: 0 | BD18: 0 | BE18: 0 | BF18: 0 | BG18: 0 | BH18: 0 | BI18: 0 | BJ18: 0 | BK18: 0 | BL18: 0 | BM18: 0 | BN18: 0 | BO18: 0 | BP18: 0 | BQ18: 0 | BR18: 58148 | BS18: 117 | BT18: 195 | BU18: 0 | BV18: 58460 | BY18: 16501 | BZ18: 0 | CA18: 32 | CB18: 0 | CC18: 16533 | CD18: 29 | CE18: 0 | CF18: 0 | CG18: 0 | CH18: 29
A19: 13 | B19: Public Works and Infrastructure | E19: 1052109 | F19: 7266615 | G19: 24480 | H19: 0 | I19: 8343204 | J19: 48555 | K19: 1276370 | L19: 40 | M19: 0 | N19: 1324965 | O19: 54940 | P19: 135869 | Q19: 280 | R19: 0 | S19: 191089 | T19: 52284 | U19: 31075 | V19: 342 | W19: 0 | X19: 83701 | Y19: 0 | Z19: 0 | AA19: 0 | AB19: 0 | AC19: 0 | AD19: 0 | AE19: 0 | AF19: 0 | AG19: 0 | AH19: 0 | AI19: 0 | AJ19: 0 | AK19: 0 | AL19: 0 | AM19: 0 | AN19: 0 | AO19: 0 | AP19: 0 | AQ19: 0 | AR19: 0 | AS19: 0 | AT19: 0 | AU19: 0 | AV19: 0 | AW19: 0 | AX19: 0 | AY19: 0 | AZ19: 0 | BA19: 0 | BB19: 0 | BC19: 0 | BD19: 0 | BE19: 0 | BF19: 0 | BG19: 0 | BH19: 0 | BI19: 0 | BJ19: 0 | BK19: 0 | BL19: 0 | BM19: 0 | BN19: 0 | BO19: 0 | BP19: 0 | BQ19: 0 | BR19: 155779 | BS19: 1443314 | BT19: 662 | BU19: 0 | BV19: 1599755 | BY19: 48555 | BZ19: 1276370 | CA19: 40 | CB19: 0 | CC19: 1324965 | CD19: 0 | CE19: 0 | CF19: 0 | CG19: 0 | CH19: 0
A20: 14 | B20: Statistics South Africa | E20: 4154918 | F20: 4616 | G20: 315056 | H20: 0 | I20: 4474590 | J20: 132732 | K20: 1732 | L20: 22595 | M20: 0 | N20: 157059 | O20: 158476 | P20: 184 | Q20: 43478 | R20: 0 | S20: 202138 | T20: 150278 | U20: 1002 | V20: 22880 | W20: 0 | X20: 174160 | Y20: 0 | Z20: 0 | AA20: 0 | AB20: 0 | AC20: 0 | AD20: 0 | AE20: 0 | AF20: 0 | AG20: 0 | AH20: 0 | AI20: 0 | AJ20: 0 | AK20: 0 | AL20: 0 | AM20: 0 | AN20: 0 | AO20: 0 | AP20: 0 | AQ20: 0 | AR20: 0 | AS20: 0 | AT20: 0 | AU20: 0 | AV20: 0 | AW20: 0 | AX20: 0 | AY20: 0 | AZ20: 0 | BA20: 0 | BB20: 0 | BC20: 0 | BD20: 0 | BE20: 0 | BF20: 0 | BG20: 0 | BH20: 0 | BI20: 0 | BJ20: 0 | BK20: 0 | BL20: 0 | BM20: 0 | BN20: 0 | BO20: 0 | BP20: 0 | BQ20: 0 | BR20: 441486 | BS20: 2918 | BT20: 88953 | BU20: 0 | BV20: 533357 | BY20: 132732 | BZ20: 1732 | CA20: 22595 | CB20: 0 | CC20: 157059 | CD20: 0 | CE20: 0 | CF20: 0 | CG20: 0 | CH20: 0
A21: 15 | B21: Traditional Affairs | E21: 122336 | F21: 46044 | G21: 3012 | H21: 0 | I21: 171392 | J21: 7038 | K21: 0 | L21: 74 | M21: 0 | N21: 7112 | O21: 6933 | P21: 11518 | Q21: 87 | R21: 0 | S21: 18538 | T21: 7848 | U21: 0 | V21: 87 | W21: 0 | X21: 7935 | Y21: 0 | Z21: 0 | AA21: 0 | AB21: 0 | AC21: 0 | AD21: 0 | AE21: 0 | AF21: 0 | AG21: 0 | AH21: 0 | AI21: 0 | AJ21: 0 | AK21: 0 | AL21: 0 | AM21: 0 | AN21: 0 | AO21: 0 | AP21: 0 | AQ21: 0 | AR21: 0 | AS21: 0 | AT21: 0 | AU21: 0 | AV21: 0 | AW21: 0 | AX21: 0 | AY21: 0 | AZ21: 0 | BA21: 0 | BB21: 0 | BC21: 0 | BD21: 0 | BE21: 0 | BF21: 0 | BG21: 0 | BH21: 0 | BI21: 0 | BJ21: 0 | BK21: 0 | BL21: 0 | BM21: 0 | BN21: 0 | BO21: 0 | BP21: 0 | BQ21: 0 | BR21: 21819 | BS21: 11518 | BT21: 248 | BU21: 0 | BV21: 33585 | BY21: 7038 | BZ21: 0 | CA21: 74 | CB21: 0 | CC21: 7112 | CD21: 0 | CE21: 0 | CF21: 0 | CG21: 0 | CH21: 0
A22: 16 | B22: Basic Education | E22: 2657252 | F22: 22303917 | G22: 2056909 | H22: 0 | I22: 27018078 | J22: 126999 | K22: 4656071 | L22: 60232 | M22: 15 | N22: 4843317 | O22: 100815 | P22: 2435661 | Q22: 36456 | R22: 5 | S22: 2572937 | T22: 89399 | U22: 667782 | V22: 12874 | W22: 9 | X22: 770064 | Y22: 0 | Z22: 0 | AA22: 0 | AB22: 0 | AC22: 0 | AD22: 0 | AE22: 0 | AF22: 0 | AG22: 0 | AH22: 0 | AI22: 0 | AJ22: 0 | AK22: 0 | AL22: 0 | AM22: 0 | AN22: 0 | AO22: 0 | AP22: 0 | AQ22: 0 | AR22: 0 | AS22: 0 | AT22: 0 | AU22: 0 | AV22: 0 | AW22: 0 | AX22: 0 | AY22: 0 | AZ22: 0 | BA22: 0 | BB22: 0 | BC22: 0 | BD22: 0 | BE22: 0 | BF22: 0 | BG22: 0 | BH22: 0 | BI22: 0 | BJ22: 0 | BK22: 0 | BL22: 0 | BM22: 0 | BN22: 0 | BO22: 0 | BP22: 0 | BQ22: 0 | BR22: 317213 | BS22: 7759514 | BT22: 109562 | BU22: 29 | BV22: 8186318 | BY22: 126999 | BZ22: 4656071 | CA22: 60232 | CB22: 15 | CC22: 4843317 | CD22: 0 | CE22: 0 | CF22: 0 | CG22: 0 | CH22: 0
A23: 17 | B23: Higher Education and Training | E23: 10977686 | F23: 86788326 | G23: 17993 | H23: 0 | I23: 97784005 | J23: 684975 | K23: 29642900 | L23: 98 | M23: 0 | N23: 30327973 | O23: 747360 | P23: 336308 | Q23: 432 | R23: 0 | S23: 1084100 | T23: 736970 | U23: 12115056 | V23: 367 | W23: 0 | X23: 12852393 | Y23: 0 | Z23: 0 | AA23: 0 | AB23: 0 | AC23: 0 | AD23: 0 | AE23: 0 | AF23: 0 | AG23: 0 | AH23: 0 | AI23: 0 | AJ23: 0 | AK23: 0 | AL23: 0 | AM23: 0 | AN23: 0 | AO23: 0 | AP23: 0 | AQ23: 0 | AR23: 0 | AS23: 0 | AT23: 0 | AU23: 0 | AV23: 0 | AW23: 0 | AX23: 0 | AY23: 0 | AZ23: 0 | BA23: 0 | BB23: 0 | BC23: 0 | BD23: 0 | BE23: 0 | BF23: 0 | BG23: 0 | BH23: 0 | BI23: 0 | BJ23: 0 | BK23: 0 | BL23: 0 | BM23: 0 | BN23: 0 | BO23: 0 | BP23: 0 | BQ23: 0 | BR23: 2169305 | BS23: 42094264 | BT23: 897 | BU23: 0 | BV23: 44264466 | BY23: 684975 | BZ23: 29642900 | CA23: 98 | CB23: 0 | CC23: 30327974 | CD23: 0 | CE23: 0 | CF23: 0 | CG23: 0 | CH23: 1
A24: 18 | B24: Health | E24: 7290381 | F24: 54073575 | G24: 1179315 | H24: 0 | I24: 62543271 | J24: 1515216 | K24: 5848359 | L24: 34811 | M24: 0 | N24: 7398386 | O24: 147507 | P24: 3415461 | Q24: 28189 | R24: 0 | S24: 3591157 | T24: 2775743 | U24: 4188386 | V24: 59296 | W24: 0 | X24: 7023425 | Y24: 0 | Z24: 0 | AA24: 0 | AB24: 0 | AC24: 0 | AD24: 0 | AE24: 0 | AF24: 0 | AG24: 0 | AH24: 0 | AI24: 0 | AJ24: 0 | AK24: 0 | AL24: 0 | AM24: 0 | AN24: 0 | AO24: 0 | AP24: 0 | AQ24: 0 | AR24: 0 | AS24: 0 | AT24: 0 | AU24: 0 | AV24: 0 | AW24: 0 | AX24: 0 | AY24: 0 | AZ24: 0 | BA24: 0 | BB24: 0 | BC24: 0 | BD24: 0 | BE24: 0 | BF24: 0 | BG24: 0 | BH24: 0 | BI24: 0 | BJ24: 0 | BK24: 0 | BL24: 0 | BM24: 0 | BN24: 0 | BO24: 0 | BP24: 0 | BQ24: 0 | BR24: 4438466 | BS24: 13452206 | BT24: 122296 | BU24: 0 | BV24: 18012968 | BY24: 1515564 | BZ24: 5848359 | CA24: 34811 | CB24: 0 | CC24: 7398735 | CD24: 348 | CE24: 0 | CF24: 0 | CG24: 0 | CH24: 349
A25: 19 | B25: Social Development | E25: 916851 | F25: 204297486 | G25: 12583 | H25: 0 | I25: 205226920 | J25: 56835 | K25: 20190548 | L25: 756 | M25: 0 | N25: 20248139 | O25: 78986 | P25: 16911131 | Q25: 2479 | R25: 0 | S25: 16992596 | T25: 64138 | U25: 17238110 | V25: 63 | W25: 0 | X25: 17302311 | Y25: 0 | Z25: 0 | AA25: 0 | AB25: 0 | AC25: 0 | AD25: 0 | AE25: 0 | AF25: 0 | AG25: 0 | AH25: 0 | AI25: 0 | AJ25: 0 | AK25: 0 | AL25: 0 | AM25: 0 | AN25: 0 | AO25: 0 | AP25: 0 | AQ25: 0 | AR25: 0 | AS25: 0 | AT25: 0 | AU25: 0 | AV25: 0 | AW25: 0 | AX25: 0 | AY25: 0 | AZ25: 0 | BA25: 0 | BB25: 0 | BC25: 0 | BD25: 0 | BE25: 0 | BF25: 0 | BG25: 0 | BH25: 0 | BI25: 0 | BJ25: 0 | BK25: 0 | BL25: 0 | BM25: 0 | BN25: 0 | BO25: 0 | BP25: 0 | BQ25: 0 | BR25: 199959 | BS25: 54339789 | BT25: 3298 | BU25: 0 | BV25: 54543046 | BY25: 56818 | BZ25: 20216115 | CA25: 756 | CB25: 0 | CC25: 20273689 | CD25: -17 | CE25: 25567 | CF25: 0 | CG25: 0 | CH25: 25550
A26: 20 | B26: Women,Youth and persons with Disabilities | E26: 197091 | F26: 562561 | G26: 3887 | H26: 0 | I26: 763539 | J26: 9319 | K26: 7616 | L26: 17 | M26: 0 | N26: 16952 | O26: 12808 | P26: 185616 | Q26: 17 | R26: 0 | S26: 198441 | T26: 12491 | U26: 7644 | V26: 621 | W26: 0 | X26: 20756 | Y26: 0 | Z26: 0 | AA26: 0 | AB26: 0 | AC26: 0 | AD26: 0 | AE26: 0 | AF26: 0 | AG26: 0 | AH26: 0 | AI26: 0 | AJ26: 0 | AK26: 0 | AL26: 0 | AM26: 0 | AN26: 0 | AO26: 0 | AP26: 0 | AQ26: 0 | AR26: 0 | AS26: 0 | AT26: 0 | AU26: 0 | AV26: 0 | AW26: 0 | AX26: 0 | AY26: 0 | AZ26: 0 | BA26: 0 | BB26: 0 | BC26: 0 | BD26: 0 | BE26: 0 | BF26: 0 | BG26: 0 | BH26: 0 | BI26: 0 | BJ26: 0 | BK26: 0 | BL26: 0 | BM26: 0 | BN26: 0 | BO26: 0 | BP26: 0 | BQ26: 0 | BR26: 34618 | BS26: 200876 | BT26: 655 | BU26: 0 | BV26: 236149 | BY26: 0 | BZ26: 0 | CA26: 0 | CB26: 0 | CC26: 0 | CD26: -9319 | CE26: -7616 | CF26: -17 | CG26: 0 | CH26: -16952
A27: 21 | B27: Civilian secretariat for the Police Services | E27: 146830 | F27: 210 | G27: 1921 | H27: 0 | I27: 148961 | J27: 10311 | K27: 20 | L27: 14 | M27: 0 | N27: 10345 | O27: 9325 | P27: 12 | Q27: 32 | R27: 0 | S27: 9369 | T27: 9767 | U27: 0 | V27: 14 | W27: 0 | X27: 9781 | Y27: 0 | Z27: 0 | AA27: 0 | AB27: 0 | AC27: 0 | AD27: 0 | AE27: 0 | AF27: 0 | AG27: 0 | AH27: 0 | AI27: 0 | AJ27: 0 | AK27: 0 | AL27: 0 | AM27: 0 | AN27: 0 | AO27: 0 | AP27: 0 | AQ27: 0 | AR27: 0 | AS27: 0 | AT27: 0 | AU27: 0 | AV27: 0 | AW27: 0 | AX27: 0 | AY27: 0 | AZ27: 0 | BA27: 0 | BB27: 0 | BC27: 0 | BD27: 0 | BE27: 0 | BF27: 0 | BG27: 0 | BH27: 0 | BI27: 0 | BJ27: 0 | BK27: 0 | BL27: 0 | BM27: 0 | BN27: 0 | BO27: 0 | BP27: 0 | BQ27: 0 | BR27: 29403 | BS27: 32 | BT27: 60 | BU27: 0 | BV27: 29495 | BY27: 10311 | BZ27: 20 | CA27: 14 | CB27: 0 | CC27: 10345 | CD27: 0 | CE27: 0 | CF27: 0 | CG27: 0 | CH27: 0
A28: 22 | B28: Correctional Services | E28: 23948003 | F28: 685090 | G28: 585036 | H28: 0 | I28: 25218129 | J28: 1555783 | K28: 61009 | L28: 44923 | M28: 0 | N28: 1661715 | O28: 1869195 | P28: 49921 | Q28: 4878 | R28: 0 | S28: 1923994 | T28: 2099122 | U28: 141944 | V28: 11574 | W28: 0 | X28: 2252640 | Y28: 0 | Z28: 0 | AA28: 0 | AB28: 0 | AC28: 0 | AD28: 0 | AE28: 0 | AF28: 0 | AG28: 0 | AH28: 0 | AI28: 0 | AJ28: 0 | AK28: 0 | AL28: 0 | AM28: 0 | AN28: 0 | AO28: 0 | AP28: 0 | AQ28: 0 | AR28: 0 | AS28: 0 | AT28: 0 | AU28: 0 | AV28: 0 | AW28: 0 | AX28: 0 | AY28: 0 | AZ28: 0 | BA28: 0 | BB28: 0 | BC28: 0 | BD28: 0 | BE28: 0 | BF28: 0 | BG28: 0 | BH28: 0 | BI28: 0 | BJ28: 0 | BK28: 0 | BL28: 0 | BM28: 0 | BN28: 0 | BO28: 0 | BP28: 0 | BQ28: 0 | BR28: 5524100 | BS28: 252874 | BT28: 61375 | BU28: 0 | BV28: 5838349 | BY28: 1555783 | BZ28: 61009 | CA28: 44923 | CB28: 0 | CC28: 1661715 | CD28: 0 | CE28: 0 | CF28: 0 | CG28: 0 | CH28: 0
A29: 23 | B29: Defence | E29: 42965234 | F29: 2697697 | G29: 605749 | H29: 0 | I29: 46268680 | J29: 3065923 | K29: 472519 | L29: 4038 | M29: 0 | N29: 3542480 | O29: 3283624 | P29: 119473 | Q29: 87527 | R29: 0 | S29: 3490624 | T29: 3183092 | U29: 118233 | V29: 4615 | W29: 0 | X29: 3305940 | Y29: 0 | Z29: 0 | AA29: 0 | AB29: 0 | AC29: 0 | AD29: 0 | AE29: 0 | AF29: 0 | AG29: 0 | AH29: 0 | AI29: 0 | AJ29: 0 | AK29: 0 | AL29: 0 | AM29: 0 | AN29: 0 | AO29: 0 | AP29: 0 | AQ29: 0 | AR29: 0 | AS29: 0 | AT29: 0 | AU29: 0 | AV29: 0 | AW29: 0 | AX29: 0 | AY29: 0 | AZ29: 0 | BA29: 0 | BB29: 0 | BC29: 0 | BD29: 0 | BE29: 0 | BF29: 0 | BG29: 0 | BH29: 0 | BI29: 0 | BJ29: 0 | BK29: 0 | BL29: 0 | BM29: 0 | BN29: 0 | BO29: 0 | BP29: 0 | BQ29: 0 | BR29: 9532639 | BS29: 710225 | BT29: 96180 | BU29: 0 | BV29: 10339044 | BY29: 3065815 | BZ29: 472519 | CA29: 4038 | CB29: 109 | CC29: 3542481 | CD29: -108 | CE29: 0 | CF29: 0 | CG29: 109 | CH29: 1
A30: 24 | B30: Independent Police Investigative Directorate | E30: 342353 | F30: 806 | G30: 5190 | H30: 0 | I30: 348349 | J30: 17938 | K30: 24 | L30: 0 | M30: 0 | N30: 17962 | O30: 22805 | P30: 0 | Q30: 0 | R30: 0 | S30: 22805 | T30: 28046 | U30: 351 | V30: 81 | W30: 0 | X30: 28478 | Y30: 0 | Z30: 0 | AA30: 0 | AB30: 0 | AC30: 0 | AD30: 0 | AE30: 0 | AF30: 0 | AG30: 0 | AH30: 0 | AI30: 0 | AJ30: 0 | AK30: 0 | AL30: 0 | AM30: 0 | AN30: 0 | AO30: 0 | AP30: 0 | AQ30: 0 | AR30: 0 | AS30: 0 | AT30: 0 | AU30: 0 | AV30: 0 | AW30: 0 | AX30: 0 | AY30: 0 | AZ30: 0 | BA30: 0 | BB30: 0 | BC30: 0 | BD30: 0 | BE30: 0 | BF30: 0 | BG30: 0 | BH30: 0 | BI30: 0 | BJ30: 0 | BK30: 0 | BL30: 0 | BM30: 0 | BN30: 0 | BO30: 0 | BP30: 0 | BQ30: 0 | BR30: 68789 | BS30: 375 | BT30: 81 | BU30: 0 | BV30: 69245 | BY30: 17938 | BZ30: 23 | CA30: 0 | CB30: 0 | CC30: 17962 | CD30: 0 | CE30: -1 | CF30: 0 | CG30: 0 | CH30: 0
A31: 25 | B31: Justice and Constitutional Development | E31: 15129196 | F31: 3081758 | G31: 908842 | H31: 0 | I31: 19119796 | J31: 941606 | K31: 254681 | L31: 40479 | M31: 32 | N31: 1236798 | O31: 946746 | P31: 254053 | Q31: 19305 | R31: 43 | S31: 1220147 | T31: 1034211 | U31: 250116 | V31: 4069 | W31: 0 | X31: 1288396 | Y31: 0 | Z31: 0 | AA31: 0 | AB31: 0 | AC31: 0 | AD31: 0 | AE31: 0 | AF31: 0 | AG31: 0 | AH31: 0 | AI31: 0 | AJ31: 0 | AK31: 0 | AL31: 0 | AM31: 0 | AN31: 0 | AO31: 0 | AP31: 0 | AQ31: 0 | AR31: 0 | AS31: 0 | AT31: 0 | AU31: 0 | AV31: 0 | AW31: 0 | AX31: 0 | AY31: 0 | AZ31: 0 | BA31: 0 | BB31: 0 | BC31: 0 | BD31: 0 | BE31: 0 | BF31: 0 | BG31: 0 | BH31: 0 | BI31: 0 | BJ31: 0 | BK31: 0 | BL31: 0 | BM31: 0 | BN31: 0 | BO31: 0 | BP31: 0 | BQ31: 0 | BR31: 2922563 | BS31: 758850 | BT31: 63853 | BU31: 75 | BV31: 3745341 | BY31: 942045 | BZ31: 254680 | CA31: 40479 | CB31: 31 | CC31: 1237236 | CD31: 439 | CE31: -1 | CF31: 0 | CG31: -1 | CH31: 438
A32: 26 | B32: Military Veterans | E32: 391469 | F32: 252327 | G32: 10571 | H32: 0 | I32: 654367 | J32: 12695 | K32: 4369 | L32: 0 | M32: 0 | N32: 17064 | O32: 24239 | P32: 10727 | Q32: 0 | R32: 17 | S32: 34983 | T32: 17310 | U32: 3436 | V32: 0 | W32: 0 | X32: 20746 | Y32: 0 | Z32: 0 | AA32: 0 | AB32: 0 | AC32: 0 | AD32: 0 | AE32: 0 | AF32: 0 | AG32: 0 | AH32: 0 | AI32: 0 | AJ32: 0 | AK32: 0 | AL32: 0 | AM32: 0 | AN32: 0 | AO32: 0 | AP32: 0 | AQ32: 0 | AR32: 0 | AS32: 0 | AT32: 0 | AU32: 0 | AV32: 0 | AW32: 0 | AX32: 0 | AY32: 0 | AZ32: 0 | BA32: 0 | BB32: 0 | BC32: 0 | BD32: 0 | BE32: 0 | BF32: 0 | BG32: 0 | BH32: 0 | BI32: 0 | BJ32: 0 | BK32: 0 | BL32: 0 | BM32: 0 | BN32: 0 | BO32: 0 | BP32: 0 | BQ32: 0 | BR32: 54244 | BS32: 18532 | BT32: 0 | BU32: 17 | BV32: 72793 | BY32: 12695 | BZ32: 4369 | CA32: 0 | CB32: 0 | CC32: 17064 | CD32: 0 | CE32: 0 | CF32: 0 | CG32: 0 | CH32: 0
A33: 27 | B33: Office of the Chief Justice | E33: 1101488 | F33: 1413 | G33: 108935 | H33: 0 | I33: 1211836 | J33: 70757 | K33: 428 | L33: 13403 | M33: 0 | N33: 84588 | O33: 78341 | P33: 134 | Q33: 6666 | R33: 0 | S33: 85141 | T33: 84201 | U33: 65 | V33: 6045 | W33: 0 | X33: 90311 | Y33: 0 | Z33: 0 | AA33: 0 | AB33: 0 | AC33: 0 | AD33: 0 | AE33: 0 | AF33: 0 | AG33: 0 | AH33: 0 | AI33: 0 | AJ33: 0 | AK33: 0 | AL33: 0 | AM33: 0 | AN33: 0 | AO33: 0 | AP33: 0 | AQ33: 0 | AR33: 0 | AS33: 0 | AT33: 0 | AU33: 0 | AV33: 0 | AW33: 0 | AX33: 0 | AY33: 0 | AZ33: 0 | BA33: 0 | BB33: 0 | BC33: 0 | BD33: 0 | BE33: 0 | BF33: 0 | BG33: 0 | BH33: 0 | BI33: 0 | BJ33: 0 | BK33: 0 | BL33: 0 | BM33: 0 | BN33: 0 | BO33: 0 | BP33: 0 | BQ33: 0 | BR33: 233299 | BS33: 627 | BT33: 26114 | BU33: 0 | BV33: 260040 | BY33: 70757 | BZ33: 428 | CA33: 13403 | CB33: 0 | CC33: 84588 | CD33: 0 | CE33: 0 | CF33: 0 | CG33: 0 | CH33: 0
A34: 28 | B34: Police | E34: 91570745 | F34: 1333488 | G34: 3451298 | H34: 0 | I34: 96355531 | J34: 7006885 | K34: 279990 | L34: 29016 | M34: 180 | N34: 7316071 | O34: 7250118 | P34: 139509 | Q34: 37940 | R34: 7626 | S34: 7435193 | T34: 7423669 | U34: 74252 | V34: 44846 | W34: 1159 | X34: 7543926 | Y34: 0 | Z34: 0 | AA34: 0 | AB34: 0 | AC34: 0 | AD34: 0 | AE34: 0 | AF34: 0 | AG34: 0 | AH34: 0 | AI34: 0 | AJ34: 0 | AK34: 0 | AL34: 0 | AM34: 0 | AN34: 0 | AO34: 0 | AP34: 0 | AQ34: 0 | AR34: 0 | AS34: 0 | AT34: 0 | AU34: 0 | AV34: 0 | AW34: 0 | AX34: 0 | AY34: 0 | AZ34: 0 | BA34: 0 | BB34: 0 | BC34: 0 | BD34: 0 | BE34: 0 | BF34: 0 | BG34: 0 | BH34: 0 | BI34: 0 | BJ34: 0 | BK34: 0 | BL34: 0 | BM34: 0 | BN34: 0 | BO34: 0 | BP34: 0 | BQ34: 0 | BR34: 21680672 | BS34: 493751 | BT34: 111802 | BU34: 8965 | BV34: 22295190 | BY34: 7006885 | BZ34: 279990 | CA34: 29016 | CB34: 180 | CC34: 7316071 | CD34: 0 | CE34: 0 | CF34: 0 | CG34: 0 | CH34: 0
A35: 29 | B35: Agriculture, Land Reform and Rural Development | E35: 7756085 | F35: 8776795 | G35: 387519 | H35: 0 | I35: 16920399 | J35: 436794 | K35: 587509 | L35: 13256 | M35: 0 | N35: 1037559 | O35: 470738 | P35: 196166 | Q35: 43878 | R35: 0 | S35: 710782 | T35: 396518 | U35: 242697 | V35: 23211 | W35: 0 | X35: 662426 | Y35: 0 | Z35: 0 | AA35: 0 | AB35: 0 | AC35: 0 | AD35: 0 | AE35: 0 | AF35: 0 | AG35: 0 | AH35: 0 | AI35: 0 | AJ35: 0 | AK35: 0 | AL35: 0 | AM35: 0 | AN35: 0 | AO35: 0 | AP35: 0 | AQ35: 0 | AR35: 0 | AS35: 0 | AT35: 0 | AU35: 0 | AV35: 0 | AW35: 0 | AX35: 0 | AY35: 0 | AZ35: 0 | BA35: 0 | BB35: 0 | BC35: 0 | BD35: 0 | BE35: 0 | BF35: 0 | BG35: 0 | BH35: 0 | BI35: 0 | BJ35: 0 | BK35: 0 | BL35: 0 | BM35: 0 | BN35: 0 | BO35: 0 | BP35: 0 | BQ35: 0 | BR35: 1304050 | BS35: 1026372 | BT35: 80345 | BU35: 0 | BV35: 2410767 | BY35: 436761 | BZ35: 587509 | CA35: 20002 | CB35: 0 | CC35: 1044272 | CD35: -33 | CE35: 0 | CF35: 6746 | CG35: 0 | CH35: 6713
A36: 30 | B36: Communications and Digital Technologies | E36: 724916 | F36: 2945159 | G36: 22806 | H36: 0 | I36: 3692881 | J36: 25539 | K36: 313255 | L36: 0 | M36: 0 | N36: 338794 | O36: 28908 | P36: 448803 | Q36: 528 | R36: 0 | S36: 478239 | T36: 30702 | U36: 214 | V36: 420 | W36: 0 | X36: 31336 | Y36: 0 | Z36: 0 | AA36: 0 | AB36: 0 | AC36: 0 | AD36: 0 | AE36: 0 | AF36: 0 | AG36: 0 | AH36: 0 | AI36: 0 | AJ36: 0 | AK36: 0 | AL36: 0 | AM36: 0 | AN36: 0 | AO36: 0 | AP36: 0 | AQ36: 0 | AR36: 0 | AS36: 0 | AT36: 0 | AU36: 0 | AV36: 0 | AW36: 0 | AX36: 0 | AY36: 0 | AZ36: 0 | BA36: 0 | BB36: 0 | BC36: 0 | BD36: 0 | BE36: 0 | BF36: 0 | BG36: 0 | BH36: 0 | BI36: 0 | BJ36: 0 | BK36: 0 | BL36: 0 | BM36: 0 | BN36: 0 | BO36: 0 | BP36: 0 | BQ36: 0 | BR36: 85149 | BS36: 762272 | BT36: 948 | BU36: 0 | BV36: 848369 | BY36: 25539 | BZ36: 313255 | CA36: 0 | CB36: 0 | CC36: 338795 | CD36: 0 | CE36: 0 | CF36: 0 | CG36: 0 | CH36: 1
A37: 31 | B37: Employment and Labour | E37: 2076461 | F37: 1362061 | G37: 67191 | H37: 0 | I37: 3505713 | J37: 116245 | K37: 300930 | L37: 505 | M37: 0 | N37: 417680 | O37: 133570 | P37: 11112 | Q37: 3196 | R37: 0 | S37: 147878 | T37: 156253 | U37: 35724 | V37: 2181 | W37: 0 | X37: 194158 | Y37: 0 | Z37: 0 | AA37: 0 | AB37: 0 | AC37: 0 | AD37: 0 | AE37: 0 | AF37: 0 | AG37: 0 | AH37: 0 | AI37: 0 | AJ37: 0 | AK37: 0 | AL37: 0 | AM37: 0 | AN37: 0 | AO37: 0 | AP37: 0 | AQ37: 0 | AR37: 0 | AS37: 0 | AT37: 0 | AU37: 0 | AV37: 0 | AW37: 0 | AX37: 0 | AY37: 0 | AZ37: 0 | BA37: 0 | BB37: 0 | BC37: 0 | BD37: 0 | BE37: 0 | BF37: 0 | BG37: 0 | BH37: 0 | BI37: 0 | BJ37: 0 | BK37: 0 | BL37: 0 | BM37: 0 | BN37: 0 | BO37: 0 | BP37: 0 | BQ37: 0 | BR37: 406068 | BS37: 347766 | BT37: 5882 | BU37: 0 | BV37: 759716 | BY37: 116245 | BZ37: 300930 | CA37: 504 | CB37: 0 | CC37: 417680 | CD37: 0 | CE37: 0 | CF37: -1 | CG37: 0 | CH37: 0
A38: 32 | B38: Environment, Forestry and Fisheries | E38: 6640207 | F38: 1765018 | G38: 311623 | H38: 0 | I38: 8716848 | J38: 267664 | K38: 217989 | L38: 14002 | M38: 0 | N38: 499655 | O38: 338302 | P38: 87175 | Q38: 18131 | R38: 21 | S38: 443629 | T38: 383694 | U38: 161490 | V38: 18991 | W38: 45 | X38: 564220 | Y38: 0 | Z38: 0 | AA38: 0 | AB38: 0 | AC38: 0 | AD38: 0 | AE38: 0 | AF38: 0 | AG38: 0 | AH38: 0 | AI38: 0 | AJ38: 0 | AK38: 0 | AL38: 0 | AM38: 0 | AN38: 0 | AO38: 0 | AP38: 0 | AQ38: 0 | AR38: 0 | AS38: 0 | AT38: 0 | AU38: 0 | AV38: 0 | AW38: 0 | AX38: 0 | AY38: 0 | AZ38: 0 | BA38: 0 | BB38: 0 | BC38: 0 | BD38: 0 | BE38: 0 | BF38: 0 | BG38: 0 | BH38: 0 | BI38: 0 | BJ38: 0 | BK38: 0 | BL38: 0 | BM38: 0 | BN38: 0 | BO38: 0 | BP38: 0 | BQ38: 0 | BR38: 989660 | BS38: 466654 | BT38: 51124 | BU38: 66 | BV38: 1507504 | BY38: 267664 | BZ38: 217989 | CA38: 14002 | CB38: 0 | CC38: 499656 | CD38: 0 | CE38: 0 | CF38: 0 | CG38: 0 | CH38: 1
A39: 33 | B39: Human Settlements | E39: 923848 | F39: 30730303 | G39: 3807 | H39: 0 | I39: 31657958 | J39: 45996 | K39: 1458922 | L39: 233 | M39: 0 | N39: 1505151 | O39: 47133 | P39: 1098463 | Q39: 378 | R39: 15 | S39: 1145989 | T39: 50451 | U39: 1134057 | V39: 216 | W39: 0 | X39: 1184724 | Y39: 0 | Z39: 0 | AA39: 0 | AB39: 0 | AC39: 0 | AD39: 0 | AE39: 0 | AF39: 0 | AG39: 0 | AH39: 0 | AI39: 0 | AJ39: 0 | AK39: 0 | AL39: 0 | AM39: 0 | AN39: 0 | AO39: 0 | AP39: 0 | AQ39: 0 | AR39: 0 | AS39: 0 | AT39: 0 | AU39: 0 | AV39: 0 | AW39: 0 | AX39: 0 | AY39: 0 | AZ39: 0 | BA39: 0 | BB39: 0 | BC39: 0 | BD39: 0 | BE39: 0 | BF39: 0 | BG39: 0 | BH39: 0 | BI39: 0 | BJ39: 0 | BK39: 0 | BL39: 0 | BM39: 0 | BN39: 0 | BO39: 0 | BP39: 0 | BQ39: 0 | BR39: 143580 | BS39: 3691442 | BT39: 827 | BU39: 15 | BV39: 3835864 | BY39: 45996 | BZ39: 1458922 | CA39: 233 | CB39: 0 | CC39: 1505151 | CD39: 0 | CE39: 0 | CF39: 0 | CG39: 0 | CH39: 0
A40: 34 | B40: Mineral Resources and Energy | E40: 1668548 | F40: 7492752 | G40: 19464 | H40: 0 | I40: 9180764 | J40: 87744 | K40: 658456 | L40: 187 | M40: 0 | N40: 746387 | O40: 106181 | P40: 657186 | Q40: 0 | R40: 0 | S40: 763367 | T40: 103454 | U40: 240391 | V40: 380 | W40: 0 | X40: 344225 | Y40: 0 | Z40: 0 | AA40: 0 | AB40: 0 | AC40: 0 | AD40: 0 | AE40: 0 | AF40: 0 | AG40: 0 | AH40: 0 | AI40: 0 | AJ40: 0 | AK40: 0 | AL40: 0 | AM40: 0 | AN40: 0 | AO40: 0 | AP40: 0 | AQ40: 0 | AR40: 0 | AS40: 0 | AT40: 0 | AU40: 0 | AV40: 0 | AW40: 0 | AX40: 0 | AY40: 0 | AZ40: 0 | BA40: 0 | BB40: 0 | BC40: 0 | BD40: 0 | BE40: 0 | BF40: 0 | BG40: 0 | BH40: 0 | BI40: 0 | BJ40: 0 | BK40: 0 | BL40: 0 | BM40: 0 | BN40: 0 | BO40: 0 | BP40: 0 | BQ40: 0 | BR40: 297379 | BS40: 1556033 | BT40: 567 | BU40: 0 | BV40: 1853979 | BY40: 87744 | BZ40: 658456 | CA40: 187 | CB40: 0 | CC40: 746387 | CD40: 0 | CE40: 0 | CF40: 0 | CG40: 0 | CH40: 0
A41: 35 | B41: Science and Innovation | E41: 566468 | F41: 8363994 | G41: 2853 | H41: 0 | I41: 8933315 | J41: 29357 | K41: 929065 | L41: 156 | M41: 35 | N41: 958613 | O41: 33981 | P41: 11418 | Q41: 565 | R41: 0 | S41: 45964 | T41: 36341 | U41: 80953 | V41: 424 | W41: 46 | X41: 117764 | Y41: 0 | Z41: 0 | AA41: 0 | AB41: 0 | AC41: 0 | AD41: 0 | AE41: 0 | AF41: 0 | AG41: 0 | AH41: 0 | AI41: 0 | AJ41: 0 | AK41: 0 | AL41: 0 | AM41: 0 | AN41: 0 | AO41: 0 | AP41: 0 | AQ41: 0 | AR41: 0 | AS41: 0 | AT41: 0 | AU41: 0 | AV41: 0 | AW41: 0 | AX41: 0 | AY41: 0 | AZ41: 0 | BA41: 0 | BB41: 0 | BC41: 0 | BD41: 0 | BE41: 0 | BF41: 0 | BG41: 0 | BH41: 0 | BI41: 0 | BJ41: 0 | BK41: 0 | BL41: 0 | BM41: 0 | BN41: 0 | BO41: 0 | BP41: 0 | BQ41: 0 | BR41: 99679 | BS41: 1021436 | BT41: 1145 | BU41: 81 | BV41: 1122341 | BY41: 29357 | BZ41: 929065 | CA41: 156 | CB41: 35 | CC41: 958612 | CD41: 0 | CE41: 0 | CF41: 0 | CG41: 0 | CH41: -1
A42: 36 | B42: Small Business Development | E42: 234032 | F42: 2299780 | G42: 4476 | H42: 0 | I42: 2538288 | J42: 15382 | K42: 97893 | L42: 113 | M42: 0 | N42: 113388 | O42: 14670 | P42: 1537 | Q42: 162 | R42: 0 | S42: 16369 | T42: 14188 | U42: 653390 | V42: 126 | W42: 0 | X42: 667704 | Y42: 0 | Z42: 0 | AA42: 0 | AB42: 0 | AC42: 0 | AD42: 0 | AE42: 0 | AF42: 0 | AG42: 0 | AH42: 0 | AI42: 0 | AJ42: 0 | AK42: 0 | AL42: 0 | AM42: 0 | AN42: 0 | AO42: 0 | AP42: 0 | AQ42: 0 | AR42: 0 | AS42: 0 | AT42: 0 | AU42: 0 | AV42: 0 | AW42: 0 | AX42: 0 | AY42: 0 | AZ42: 0 | BA42: 0 | BB42: 0 | BC42: 0 | BD42: 0 | BE42: 0 | BF42: 0 | BG42: 0 | BH42: 0 | BI42: 0 | BJ42: 0 | BK42: 0 | BL42: 0 | BM42: 0 | BN42: 0 | BO42: 0 | BP42: 0 | BQ42: 0 | BR42: 44240 | BS42: 752820 | BT42: 401 | BU42: 0 | BV42: 797461 | BY42: 14832 | BZ42: 96850 | CA42: 113 | CB42: 0 | CC42: 111795 | CD42: -550 | CE42: -1043 | CF42: 0 | CG42: 0 | CH42: -1593
A43: 37 | B43: Sports, Arts and Culture | E43: 965991 | F43: 4517937 | G43: 210013 | H43: 0 | I43: 5693941 | J43: 43551 | K43: 684690 | L43: 267 | M43: 0 | N43: 728508 | O43: 62546 | P43: 17211 | Q43: 54 | R43: 5 | S43: 79816 | T43: 52111 | U43: 170703 | V43: 1677 | W43: 0 | X43: 224491 | Y43: 0 | Z43: 0 | AA43: 0 | AB43: 0 | AC43: 0 | AD43: 0 | AE43: 0 | AF43: 0 | AG43: 0 | AH43: 0 | AI43: 0 | AJ43: 0 | AK43: 0 | AL43: 0 | AM43: 0 | AN43: 0 | AO43: 0 | AP43: 0 | AQ43: 0 | AR43: 0 | AS43: 0 | AT43: 0 | AU43: 0 | AV43: 0 | AW43: 0 | AX43: 0 | AY43: 0 | AZ43: 0 | BA43: 0 | BB43: 0 | BC43: 0 | BD43: 0 | BE43: 0 | BF43: 0 | BG43: 0 | BH43: 0 | BI43: 0 | BJ43: 0 | BK43: 0 | BL43: 0 | BM43: 0 | BN43: 0 | BO43: 0 | BP43: 0 | BQ43: 0 | BR43: 158208 | BS43: 872604 | BT43: 1998 | BU43: 5 | BV43: 1032815 | BY43: 43551 | BZ43: 684690 | CA43: 267 | CB43: 0 | CC43: 728508 | CD43: 0 | CE43: 0 | CF43: 0 | CG43: 0 | CH43: 0
A44: 38 | B44: Tourism | E44: 804807 | F44: 1620834 | G44: 3986 | H44: 0 | I44: 2429627 | J44: 32635 | K44: 518974 | L44: 71 | M44: 0 | N44: 551680 | O44: 44246 | P44: 2616 | Q44: 1940 | R44: 24 | S44: 48826 | T44: 37210 | U44: 53 | V44: 107 | W44: 0 | X44: 37370 | Y44: 0 | Z44: 0 | AA44: 0 | AB44: 0 | AC44: 0 | AD44: 0 | AE44: 0 | AF44: 0 | AG44: 0 | AH44: 0 | AI44: 0 | AJ44: 0 | AK44: 0 | AL44: 0 | AM44: 0 | AN44: 0 | AO44: 0 | AP44: 0 | AQ44: 0 | AR44: 0 | AS44: 0 | AT44: 0 | AU44: 0 | AV44: 0 | AW44: 0 | AX44: 0 | AY44: 0 | AZ44: 0 | BA44: 0 | BB44: 0 | BC44: 0 | BD44: 0 | BE44: 0 | BF44: 0 | BG44: 0 | BH44: 0 | BI44: 0 | BJ44: 0 | BK44: 0 | BL44: 0 | BM44: 0 | BN44: 0 | BO44: 0 | BP44: 0 | BQ44: 0 | BR44: 114091 | BS44: 521643 | BT44: 2118 | BU44: 24 | BV44: 637876 | BY44: 32635 | BZ44: 518974 | CA44: 71 | CB44: 0 | CC44: 551680 | CD44: 0 | CE44: 0 | CF44: 0 | CG44: 0 | CH44: 0
A45: 39 | B45: Trade, Industry and Competition | E45: 1875388 | F45: 7824831 | G45: 36354 | H45: 0 | I45: 9736573 | J45: 111379 | K45: 1485795 | L45: 302 | M45: 0 | N45: 1597476 | O45: 128328 | P45: 403674 | Q45: 12 | R45: 0 | S45: 532014 | T45: 95288 | U45: 682891 | V45: 0 | W45: 7 | X45: 778186 | Y45: 0 | Z45: 0 | AA45: 0 | AB45: 0 | AC45: 0 | AD45: 0 | AE45: 0 | AF45: 0 | AG45: 0 | AH45: 0 | AI45: 0 | AJ45: 0 | AK45: 0 | AL45: 0 | AM45: 0 | AN45: 0 | AO45: 0 | AP45: 0 | AQ45: 0 | AR45: 0 | AS45: 0 | AT45: 0 | AU45: 0 | AV45: 0 | AW45: 0 | AX45: 0 | AY45: 0 | AZ45: 0 | BA45: 0 | BB45: 0 | BC45: 0 | BD45: 0 | BE45: 0 | BF45: 0 | BG45: 0 | BH45: 0 | BI45: 0 | BJ45: 0 | BK45: 0 | BL45: 0 | BM45: 0 | BN45: 0 | BO45: 0 | BP45: 0 | BQ45: 0 | BR45: 334995 | BS45: 2572360 | BT45: 314 | BU45: 7 | BV45: 2907676 | BY45: 111060 | BZ45: 1485795 | CA45: 302 | CB45: 0 | CC45: 1597158 | CD45: -319 | CE45: 0 | CF45: 0 | CG45: 0 | CH45: -318
A46: 40 | B46: Transport | E46: 1416619 | F46: 65269580 | G46: 5567 | H46: 0 | I46: 66691766 | J46: 146828 | K46: 7814040 | L46: 143 | M46: 0 | N46: 7961011 | O46: 88531 | P46: 4950271 | Q46: 518 | R46: 45 | S46: 5039365 | T46: -4854 | U46: 1606090 | V46: 266 | W46: 72 | X46: 1601574 | Y46: 0 | Z46: 0 | AA46: 0 | AB46: 0 | AC46: 0 | AD46: 0 | AE46: 0 | AF46: 0 | AG46: 0 | AH46: 0 | AI46: 0 | AJ46: 0 | AK46: 0 | AL46: 0 | AM46: 0 | AN46: 0 | AO46: 0 | AP46: 0 | AQ46: 0 | AR46: 0 | AS46: 0 | AT46: 0 | AU46: 0 | AV46: 0 | AW46: 0 | AX46: 0 | AY46: 0 | AZ46: 0 | BA46: 0 | BB46: 0 | BC46: 0 | BD46: 0 | BE46: 0 | BF46: 0 | BG46: 0 | BH46: 0 | BI46: 0 | BJ46: 0 | BK46: 0 | BL46: 0 | BM46: 0 | BN46: 0 | BO46: 0 | BP46: 0 | BQ46: 0 | BR46: 230505 | BS46: 14370401 | BT46: 927 | BU46: 117 | BV46: 14601950 | BY46: 146828 | BZ46: 7814040 | CA46: 143 | CB46: 0 | CC46: 7961012 | CD46: 0 | CE46: 0 | CF46: 0 | CG46: 0 | CH46: 1
A47: 41 | B47: Water and Sanitation | E47: 3496415 | F47: 9214139 | G47: 4199526 | H47: 0 | I47: 16910080 | J47: 165548 | K47: 1345 | L47: 58262 | M47: 0 | N47: 225155 | O47: 218363 | P47: 889567 | Q47: 86903 | R47: 0 | S47: 1194833 | T47: 198439 | U47: 436056 | V47: 200248 | W47: 0 | X47: 834743 | Y47: 0 | Z47: 0 | AA47: 0 | AB47: 0 | AC47: 0 | AD47: 0 | AE47: 0 | AF47: 0 | AG47: 0 | AH47: 0 | AI47: 0 | AJ47: 0 | AK47: 0 | AL47: 0 | AM47: 0 | AN47: 0 | AO47: 0 | AP47: 0 | AQ47: 0 | AR47: 0 | AS47: 0 | AT47: 0 | AU47: 0 | AV47: 0 | AW47: 0 | AX47: 0 | AY47: 0 | AZ47: 0 | BA47: 0 | BB47: 0 | BC47: 0 | BD47: 0 | BE47: 0 | BF47: 0 | BG47: 0 | BH47: 0 | BI47: 0 | BJ47: 0 | BK47: 0 | BL47: 0 | BM47: 0 | BN47: 0 | BO47: 0 | BP47: 0 | BQ47: 0 | BR47: 582350 | BS47: 1326968 | BT47: 345413 | BU47: 0 | BV47: 2254731 | BY47: 164437 | BZ47: 1345 | CA47: 38147 | CB47: 0 | CC47: 203929 | CD47: -1111 | CE47: 0 | CF47: -20115 | CG47: 0 | CH47: -21226
A48: Total appropriation by vote | E48: 255984382 | F48: 662844023 | G48: 15004084 | H48: 46751419 | I48: 980583908 | J48: 18450252 | K48: 80693659 | L48: 360637 | M48: 17193523 | N48: 116698071 | O48: 18340416 | P48: 34991503 | Q48: 435812 | R48: 8892 | S48: 53776623 | T48: 20998659 | U48: 43035803 | V48: 439753 | W48: 3261685 | X48: 67735900 | Y48: 0 | Z48: 0 | AA48: 0 | AB48: 0 | AC48: 0 | AD48: 0 | AE48: 0 | AF48: 0 | AG48: 0 | AH48: 0 | AI48: 0 | AJ48: 0 | AK48: 0 | AL48: 0 | AM48: 0 | AN48: 0 | AO48: 0 | AP48: 0 | AQ48: 0 | AR48: 0 | AS48: 0 | AT48: 0 | AU48: 0 | AV48: 0 | AW48: 0 | AX48: 0 | AY48: 0 | AZ48: 0 | BA48: 0 | BB48: 0 | BC48: 0 | BD48: 0 | BE48: 0 | BF48: 0 | BG48: 0 | BH48: 0 | BI48: 0 | BJ48: 0 | BK48: 0 | BL48: 0 | BM48: 0 | BN48: 0 | BO48: 0 | BP48: 0 | BQ48: 0 | BR48: 57789327 | BS48: 158720965 | BT48: 1236202 | BU48: 20464100 | BV48: 238210594 | BY48: 18434703 | BZ48: 80710566 | CA48: 347250 | CB48: 17193631 | CC48: 116686157 | CD48: -15549 | CE48: 16907 | CF48: -13387 | CG48: 108 | CH48: -11914
A49: Plus:
A50: Direct charges against the NRF
A51: President and Deputy President salaries (The Presidency) | E51: 7542 | F51: 0 | G51: 0 | H51: 0 | I51: 7542 | J51: 475 | K51: 0 | L51: 0 | M51: 0 | N51: 475 | O51: 475 | P51: 0 | Q51: 0 | R51: 0 | S51: 475 | T51: 475 | U51: 0 | V51: 0 | W51: 0 | X51: 475 | Y51: 0 | Z51: 0 | AA51: 0 | AB51: 0 | AC51: 0 | AD51: 0 | AE51: 0 | AF51: 0 | AG51: 0 | AH51: 0 | AI51: 0 | AJ51: 0 | AK51: 0 | AL51: 0 | AM51: 0 | AN51: 0 | AO51: 0 | AP51: 0 | AQ51: 0 | AR51: 0 | AS51: 0 | AT51: 0 | AU51: 0 | AV51: 0 | AW51: 0 | AX51: 0 | AY51: 0 | AZ51: 0 | BA51: 0 | BB51: 0 | BC51: 0 | BD51: 0 | BE51: 0 | BF51: 0 | BG51: 0 | BH51: 0 | BI51: 0 | BJ51: 0 | BK51: 0 | BL51: 0 | BM51: 0 | BN51: 0 | BO51: 0 | BP51: 0 | BQ51: 0 | BR51: 1425 | BS51: 0 | BT51: 0 | BU51: 0 | BV51: 1425 | BY51: 475 | BZ51: 0 | CA51: 0 | CB51: 0 | CC51: 475 | CD51: 0 | CE51: 0 | CF51: 0 | CG51: 0 | CH51: 0
A52: Members' remuneration (Parliament) | D52: 1) | E52: 471710 | F52: 0 | G52: 0 | H52: 0 | I52: 471710 | J52: 39309 | K52: 0 | L52: 0 | M52: 0 | N52: 39309 | O52: 39309 | P52: 0 | Q52: 0 | R52: 0 | S52: 39309 | T52: 39309 | U52: 0 | V52: 0 | W52: 0 | X52: 39309 | Y52: 0 | Z52: 0 | AA52: 0 | AB52: 0 | AC52: 0 | AD52: 0 | AE52: 0 | AF52: 0 | AG52: 0 | AH52: 0 | AI52: 0 | AJ52: 0 | AK52: 0 | AL52: 0 | AM52: 0 | AN52: 0 | AO52: 0 | AP52: 0 | AQ52: 0 | AR52: 0 | AS52: 0 | AT52: 0 | AU52: 0 | AV52: 0 | AW52: 0 | AX52: 0 | AY52: 0 | AZ52: 0 | BA52: 0 | BB52: 0 | BC52: 0 | BD52: 0 | BE52: 0 | BF52: 0 | BG52: 0 | BH52: 0 | BI52: 0 | BJ52: 0 | BK52: 0 | BL52: 0 | BM52: 0 | BN52: 0 | BO52: 0 | BP52: 0 | BQ52: 0 | BR52: 117927 | BS52: 0 | BT52: 0 | BU52: 0 | BV52: 117927 | BY52: 39309 | BZ52: 0 | CA52: 0 | CB52: 0 | CC52: 39309 | CD52: 0 | CE52: 0 | CF52: 0 | CG52: 0 | CH52: 0
A53: Debt-service costs (National Treasury) | E53: 269741139 | F53: 0 | G53: 0 | H53: 0 | I53: 269741139 | J53: 3056138 | K53: 0 | L53: 0 | M53: 0 | N53: 3056138 | O53: 1776922 | P53: 0 | Q53: 0 | R53: 0 | S53: 1776922 | T53: 27683786 | U53: 0 | V53: 0 | W53: 0 | X53: 27683786 | Y53: 0 | Z53: 0 | AA53: 0 | AB53: 0 | AC53: 0 | AD53: 0 | AE53: 0 | AF53: 0 | AG53: 0 | AH53: 0 | AI53: 0 | AJ53: 0 | AK53: 0 | AL53: 0 | AM53: 0 | AN53: 0 | AO53: 0 | AP53: 0 | AQ53: 0 | AR53: 0 | AS53: 0 | AT53: 0 | AU53: 0 | AV53: 0 | AW53: 0 | AX53: 0 | AY53: 0 | AZ53: 0 | BA53: 0 | BB53: 0 | BC53: 0 | BD53: 0 | BE53: 0 | BF53: 0 | BG53: 0 | BH53: 0 | BI53: 0 | BJ53: 0 | BK53: 0 | BL53: 0 | BM53: 0 | BN53: 0 | BO53: 0 | BP53: 0 | BQ53: 0 | BR53: 32516846 | BS53: 0 | BT53: 0 | BU53: 0 | BV53: 32516846 | BY53: 3056138 | BZ53: 0 | CA53: 0 | CB53: 0 | CC53: 3056138 | CD53: 0 | CE53: 0 | CF53: 0 | CG53: 0 | CH53: 0
A54: Interest | E54: 269631139 | F54: 0 | G54: 0 | H54: 0 | I54: 269631139 | J54: 3055684 | K54: 0 | L54: 0 | M54: 0 | N54: 3055684 | O54: 1776497 | P54: 0 | Q54: 0 | R54: 0 | S54: 1776497 | T54: 27649749 | U54: 0 | V54: 0 | W54: 0 | X54: 27649749 | Y54: 0 | Z54: 0 | AA54: 0 | AB54: 0 | AC54: 0 | AD54: 0 | AE54: 0 | AF54: 0 | AG54: 0 | AH54: 0 | AI54: 0 | AJ54: 0 | AK54: 0 | AL54: 0 | AM54: 0 | AN54: 0 | AO54: 0 | AP54: 0 | AQ54: 0 | AR54: 0 | AS54: 0 | AT54: 0 | AU54: 0 | AV54: 0 | AW54: 0 | AX54: 0 | AY54: 0 | AZ54: 0 | BA54: 0 | BB54: 0 | BC54: 0 | BD54: 0 | BE54: 0 | BF54: 0 | BG54: 0 | BH54: 0 | BI54: 0 | BJ54: 0 | BK54: 0 | BL54: 0 | BM54: 0 | BN54: 0 | BO54: 0 | BP54: 0 | BQ54: 0 | BR54: 32481930 | BS54: 0 | BT54: 0 | BU54: 0 | BV54: 32481930 | BY54: 0 | BZ54: 0 | CA54: 0 | CB54: 0 | CC54: 0 | CD54: 0 | CE54: 0 | CF54: 0 | CG54: 0 | CH54: 0
A55: Other cost | E55: 110000 | F55: 0 | G55: 0 | H55: 0 | I55: 110000 | J55: 454 | K55: 0 | L55: 0 | M55: 0 | N55: 454 | O55: 425 | P55: 0 | Q55: 0 | R55: 0 | S55: 425 | T55: 34037 | U55: 0 | V55: 0 | W55: 0 | X55: 34037 | Y55: 0 | Z55: 0 | AA55: 0 | AB55: 0 | AC55: 0 | AD55: 0 | AE55: 0 | AF55: 0 | AG55: 0 | AH55: 0 | AI55: 0 | AJ55: 0 | AK55: 0 | AL55: 0 | AM55: 0 | AN55: 0 | AO55: 0 | AP55: 0 | AQ55: 0 | AR55: 0 | AS55: 0 | AT55: 0 | AU55: 0 | AV55: 0 | AW55: 0 | AX55: 0 | AY55: 0 | AZ55: 0 | BA55: 0 | BB55: 0 | BC55: 0 | BD55: 0 | BE55: 0 | BF55: 0 | BG55: 0 | BH55: 0 | BI55: 0 | BJ55: 0 | BK55: 0 | BL55: 0 | BM55: 0 | BN55: 0 | BO55: 0 | BP55: 0 | BQ55: 0 | BR55: 34916 | BS55: 0 | BT55: 0 | BU55: 0 | BV55: 34916 | BY55: 0 | BZ55: 0 | CA55: 0 | CB55: 0 | CC55: 0 | CD55: 0 | CE55: 0 | CF55: 0 | CG55: 0 | CH55: 0
A56: Provincial equitable share (National Treasury) | E56: 0 | F56: 523686351 | G56: 0 | H56: 0 | I56: 523686351 | J56: 0 | K56: 43640529 | L56: 0 | M56: 0 | N56: 43640529 | O56: 0 | P56: 43640529 | Q56: 0 | R56: 0 | S56: 43640529 | T56: 0 | U56: 43640529 | V56: 0 | W56: 0 | X56: 43640529 | Y56: 0 | Z56: 0 | AA56: 0 | AB56: 0 | AC56: 0 | AD56: 0 | AE56: 0 | AF56: 0 | AG56: 0 | AH56: 0 | AI56: 0 | AJ56: 0 | AK56: 0 | AL56: 0 | AM56: 0 | AN56: 0 | AO56: 0 | AP56: 0 | AQ56: 0 | AR56: 0 | AS56: 0 | AT56: 0 | AU56: 0 | AV56: 0 | AW56: 0 | AX56: 0 | AY56: 0 | AZ56: 0 | BA56: 0 | BB56: 0 | BC56: 0 | BD56: 0 | BE56: 0 | BF56: 0 | BG56: 0 | BH56: 0 | BI56: 0 | BJ56: 0 | BK56: 0 | BL56: 0 | BM56: 0 | BN56: 0 | BO56: 0 | BP56: 0 | BQ56: 0 | BR56: 0 | BS56: 130921587 | BT56: 0 | BU56: 0 | BV56: 130921587 | BY56: 0 | BZ56: 43640529 | CA56: 0 | CB56: 0 | CC56: 43640529 | CD56: 0 | CE56: 0 | CF56: 0 | CG56: 0 | CH56: 0
A57: General fuel levy sharing with metropolitan municipalities (National Treasury) | E57: 0 | F57: 14617279 | G57: 0 | H57: 0 | I57: 14617279 | J57: 0 | K57: 0 | L57: 0 | M57: 0 | N57: 0 | O57: 0 | P57: 0 | Q57: 0 | R57: 0 | S57: 0 | T57: 0 | U57: 0 | V57: 0 | W57: 0 | X57: 0 | Y57: 0 | Z57: 0 | AA57: 0 | AB57: 0 | AC57: 0 | AD57: 0 | AE57: 0 | AF57: 0 | AG57: 0 | AH57: 0 | AI57: 0 | AJ57: 0 | AK57: 0 | AL57: 0 | AM57: 0 | AN57: 0 | AO57: 0 | AP57: 0 | AQ57: 0 | AR57: 0 | AS57: 0 | AT57: 0 | AU57: 0 | AV57: 0 | AW57: 0 | AX57: 0 | AY57: 0 | AZ57: 0 | BA57: 0 | BB57: 0 | BC57: 0 | BD57: 0 | BE57: 0 | BF57: 0 | BG57: 0 | BH57: 0 | BI57: 0 | BJ57: 0 | BK57: 0 | BL57: 0 | BM57: 0 | BN57: 0 | BO57: 0 | BP57: 0 | BQ57: 0 | BR57: 0 | BS57: 0 | BT57: 0 | BU57: 0 | BV57: 0 | BY57: 0 | BZ57: 0 | CA57: 0 | CB57: 0 | CC57: 0 | CD57: 0 | CE57: 0 | CF57: 0 | CG57: 0 | CH57: 0
A58: NRF payments (National Treasury) | D58: 2) | E58: 0 | F58: 0 | G58: 0 | H58: 59594 | I58: 59594 | J58: 0 | K58: 0 | L58: 0 | M58: 568183 | N58: 568183 | O58: 0 | P58: 0 | Q58: 0 | R58: 167688 | S58: 167688 | T58: 0 | U58: 0 | V58: 0 | W58: 321726 | X58: 321726 | Y58: 0 | Z58: 0 | AA58: 0 | AB58: 0 | AC58: 0 | AD58: 0 | AE58: 0 | AF58: 0 | AG58: 0 | AH58: 0 | AI58: 0 | AJ58: 0 | AK58: 0 | AL58: 0 | AM58: 0 | AN58: 0 | AO58: 0 | AP58: 0 | AQ58: 0 | AR58: 0 | AS58: 0 | AT58: 0 | AU58: 0 | AV58: 0 | AW58: 0 | AX58: 0 | AY58: 0 | AZ58: 0 | BA58: 0 | BB58: 0 | BC58: 0 | BD58: 0 | BE58: 0 | BF58: 0 | BG58: 0 | BH58: 0 | BI58: 0 | BJ58: 0 | BK58: 0 | BL58: 0 | BM58: 0 | BN58: 0 | BO58: 0 | BP58: 0 | BQ58: 0 | BR58: 0 | BS58: 0 | BT58: 0 | BU58: 1057597 | BV58: 1057597 | BY58: 0 | BZ58: 568182 | CA58: 0 | CB58: 0 | CC58: 568182 | CD58: 0 | CE58: 568182 | CF58: 0 | CG58: -568183 | CH58: -1
A59: Auditor-General of South Africa (National Treasury) | E59: 0 | F59: 70049 | G59: 0 | H59: 0 | I59: 70049 | J59: 0 | K59: 0 | L59: 0 | M59: 0 | N59: 0 | O59: 0 | P59: 40000 | Q59: 0 | R59: 0 | S59: 40000 | T59: 0 | U59: 0 | V59: 0 | W59: 0 | X59: 0 | Y59: 0 | Z59: 0 | AA59: 0 | AB59: 0 | AC59: 0 | AD59: 0 | AE59: 0 | AF59: 0 | AG59: 0 | AH59: 0 | AI59: 0 | AJ59: 0 | AK59: 0 | AL59: 0 | AM59: 0 | AN59: 0 | AO59: 0 | AP59: 0 | AQ59: 0 | AR59: 0 | AS59: 0 | AT59: 0 | AU59: 0 | AV59: 0 | AW59: 0 | AX59: 0 | AY59: 0 | AZ59: 0 | BA59: 0 | BB59: 0 | BC59: 0 | BD59: 0 | BE59: 0 | BF59: 0 | BG59: 0 | BH59: 0 | BI59: 0 | BJ59: 0 | BK59: 0 | BL59: 0 | BM59: 0 | BN59: 0 | BO59: 0 | BP59: 0 | BQ59: 0 | BR59: 0 | BS59: 40000 | BT59: 0 | BU59: 0 | BV59: 40000 | BY59: 0 | BZ59: 0 | CA59: 0 | CB59: 0 | CC59: 0 | CD59: 0 | CE59: 0 | CF59: 0 | CG59: 0 | CH59: 0
A60: Other payments | E60: 0 | F60: 0 | H60: 0 | CD60: 0 | CE60: 0 | CF60: 0 | CG60: 0 | CH60: 0
A61: Payments in terms of section 70 of the PFMA | E61: 0 | F61: 0 | G61: 0 | H61: 0 | I61: 0 | J61: 0 | K61: 0 | L61: 0 | M61: 0 | N61: 0 | O61: 0 | P61: 0 | Q61: 0 | R61: 0 | S61: 0 | T61: 0 | U61: 0 | V61: 0 | W61: 0 | X61: 0 | Y61: 0 | Z61: 0 | AA61: 0 | AB61: 0 | AC61: 0 | AD61: 0 | AE61: 0 | AF61: 0 | AG61: 0 | AH61: 0 | AI61: 0 | AJ61: 0 | AK61: 0 | AL61: 0 | AM61: 0 | AN61: 0 | AO61: 0 | AP61: 0 | AQ61: 0 | AR61: 0 | AS61: 0 | AT61: 0 | AU61: 0 | AV61: 0 | AW61: 0 | AX61: 0 | AY61: 0 | AZ61: 0 | BA61: 0 | BB61: 0 | BC61: 0 | BD61: 0 | BE61: 0 | BF61: 0 | BG61: 0 | BH61: 0 | BI61: 0 | BJ61: 0 | BK61: 0 | BL61: 0 | BM61: 0 | BN61: 0 | BO61: 0 | BP61: 0 | BQ61: 0 | BR61: 0 | BS61: 0 | BT61: 0 | BU61: 0 | BV61: 0 | CD61: 0 | CE61: 0 | CF61: 0 | CG61: 0 | CH61: 0
B62: South African Express Airways | E62: 0 | F62: 0 | G62: 0 | H62: 0 | I62: 0 | J62: 0 | K62: 0 | L62: 0 | M62: 0 | N62: 0 | O62: 0 | P62: 0 | Q62: 0 | R62: 0 | S62: 0 | T62: 0 | U62: 0 | V62: 0 | W62: 0 | X62: 0 | Y62: 0 | Z62: 0 | AA62: 0 | AB62: 0 | AC62: 0 | AD62: 0 | AE62: 0 | AF62: 0 | AG62: 0 | AH62: 0 | AI62: 0 | AJ62: 0 | AK62: 0 | AL62: 0 | AM62: 0 | AN62: 0 | AO62: 0 | AP62: 0 | AQ62: 0 | AR62: 0 | AS62: 0 | AT62: 0 | AU62: 0 | AV62: 0 | AW62: 0 | AX62: 0 | AY62: 0 | AZ62: 0 | BA62: 0 | BB62: 0 | BC62: 0 | BD62: 0 | BE62: 0 | BF62: 0 | BG62: 0 | BH62: 0 | BI62: 0 | BJ62: 0 | BK62: 0 | BL62: 0 | BM62: 0 | BN62: 0 | BO62: 0 | BP62: 0 | BQ62: 0 | BR62: 0 | BS62: 0 | BT62: 0 | BU62: 0 | BV62: 0 | CD62: 0 | CE62: 0 | CF62: 0 | CG62: 0 | CH62: 0
B63: Land and Agricultural Development Bank of SA | E63: 0 | F63: 0 | G63: 0 | H63: 0 | I63: 0 | J63: 0 | K63: 0 | L63: 0 | M63: 0 | N63: 0 | O63: 0 | P63: 0 | Q63: 0 | R63: 0 | S63: 0 | T63: 0 | U63: 0 | V63: 0 | W63: 0 | X63: 0 | Y63: 0 | Z63: 0 | AA63: 0 | AB63: 0 | AC63: 0 | AD63: 0 | AE63: 0 | AF63: 0 | AG63: 0 | AH63: 0 | AI63: 0 | AJ63: 0 | AK63: 0 | AL63: 0 | AM63: 0 | AN63: 0 | AO63: 0 | AP63: 0 | AQ63: 0 | AR63: 0 | AS63: 0 | AT63: 0 | AU63: 0 | AV63: 0 | AW63: 0 | AX63: 0 | AY63: 0 | AZ63: 0 | BA63: 0 | BB63: 0 | BC63: 0 | BD63: 0 | BE63: 0 | BF63: 0 | BG63: 0 | BH63: 0 | BI63: 0 | BJ63: 0 | BK63: 0 | BL63: 0 | BM63: 0 | BN63: 0 | BO63: 0 | BP63: 0 | BQ63: 0 | BR63: 0 | BS63: 0 | BT63: 0 | BU63: 0 | BV63: 0 | CD63: 0 | CE63: 0 | CF63: 0 | CG63: 0 | CH63: 0
A64: Payments in terms of Special Appropriation Act no. 11 of 2021 | E64: 0 | F64: 0 | G64: 0 | H64: 0 | I64: 0 | J64: 0 | K64: 0 | L64: 0 | M64: 0 | N64: 0 | O64: 0 | P64: 0 | Q64: 0 | R64: 0 | S64: 0 | T64: 0 | U64: 0 | V64: 0 | W64: 45000 | X64: 45000 | Y64: 0 | Z64: 0 | AA64: 0 | AB64: 0 | AC64: 0 | AD64: 0 | AE64: 0 | AF64: 0 | AG64: 0 | AH64: 0 | AI64: 0 | AJ64: 0 | AK64: 0 | AL64: 0 | AM64: 0 | AN64: 0 | AO64: 0 | AP64: 0 | AQ64: 0 | AR64: 0 | AS64: 0 | AT64: 0 | AU64: 0 | AV64: 0 | AW64: 0 | AX64: 0 | AY64: 0 | AZ64: 0 | BA64: 0 | BB64: 0 | BC64: 0 | BD64: 0 | BE64: 0 | BF64: 0 | BG64: 0 | BH64: 0 | BI64: 0 | BJ64: 0 | BK64: 0 | BL64: 0 | BM64: 0 | BN64: 0 | BO64: 0 | BP64: 0 | BQ64: 0 | BR64: 0 | BS64: 0 | BT64: 0 | BU64: 45000 | BV64: 45000 | CD64: 0 | CE64: 0 | CF64: 0 | CG64: 0 | CH64: 0
B65: South African Airways (Public Enterprises) | E65: 0 | F65: 0 | G65: 0 | H65: 0 | I65: 0 | J65: 0 | K65: 0 | L65: 0 | M65: 0 | N65: 0 | O65: 0 | P65: 0 | Q65: 0 | R65: 0 | S65: 0 | T65: 0 | U65: 0 | V65: 0 | W65: 45000 | X65: 45000 | Y65: 0 | Z65: 0 | AA65: 0 | AB65: 0 | AC65: 0 | AD65: 0 | AE65: 0 | AF65: 0 | AG65: 0 | AH65: 0 | AI65: 0 | AJ65: 0 | AK65: 0 | AL65: 0 | AM65: 0 | AN65: 0 | AO65: 0 | AP65: 0 | AQ65: 0 | AR65: 0 | AS65: 0 | AT65: 0 | AU65: 0 | AV65: 0 | AW65: 0 | AX65: 0 | AY65: 0 | AZ65: 0 | BA65: 0 | BB65: 0 | BC65: 0 | BD65: 0 | BE65: 0 | BF65: 0 | BG65: 0 | BH65: 0 | BI65: 0 | BJ65: 0 | BK65: 0 | BL65: 0 | BM65: 0 | BN65: 0 | BO65: 0 | BP65: 0 | BQ65: 0 | BR65: 0 | BS65: 0 | BT65: 0 | BU65: 45000 | BV65: 45000 | CD65: 0 | CE65: 0 | CF65: 0 | CG65: 0 | CH65: 0
A66: Skills levy and sector education and training authorities (Higher Education and Training) | E66: 0 | F66: 17812863 | G66: 0 | H66: 0 | I66: 17812863 | J66: 0 | K66: 1616206 | L66: 0 | M66: 0 | N66: 1616206 | O66: 0 | P66: 1478092 | Q66: 0 | R66: 0 | S66: 1478092 | T66: 0 | U66: 1397748 | V66: 0 | W66: 0 | X66: 1397748 | Y66: 0 | Z66: 0 | AA66: 0 | AB66: 0 | AC66: 0 | AD66: 0 | AE66: 0 | AF66: 0 | AG66: 0 | AH66: 0 | AI66: 0 | AJ66: 0 | AK66: 0 | AL66: 0 | AM66: 0 | AN66: 0 | AO66: 0 | AP66: 0 | AQ66: 0 | AR66: 0 | AS66: 0 | AT66: 0 | AU66: 0 | AV66: 0 | AW66: 0 | AX66: 0 | AY66: 0 | AZ66: 0 | BA66: 0 | BB66: 0 | BC66: 0 | BD66: 0 | BE66: 0 | BF66: 0 | BG66: 0 | BH66: 0 | BI66: 0 | BJ66: 0 | BK66: 0 | BL66: 0 | BM66: 0 | BN66: 0 | BO66: 0 | BP66: 0 | BQ66: 0 | BR66: 0 | BS66: 4492046 | BT66: 0 | BU66: 0 | BV66: 4492046 | BY66: 0 | BZ66: 1616206 | CA66: 0 | CB66: 0 | CC66: 1616206 | CD66: 0 | CE66: 0 | CF66: 0 | CG66: 0 | CH66: 0
A67: Magistrates' salaries (Justice and Constitutional Development) | E67: 2343972 | F67: 82517 | G67: 0 | H67: 0 | I67: 2426489 | J67: 176905 | K67: 4906 | L67: 0 | M67: 0 | N67: 181811 | O67: 182574 | P67: 2843 | Q67: 0 | R67: 0 | S67: 185417 | T67: 177726 | U67: 1544 | V67: 0 | W67: 0 | X67: 179270 | Y67: 0 | Z67: 0 | AA67: 0 | AB67: 0 | AC67: 0 | AD67: 0 | AE67: 0 | AF67: 0 | AG67: 0 | AH67: 0 | AI67: 0 | AJ67: 0 | AK67: 0 | AL67: 0 | AM67: 0 | AN67: 0 | AO67: 0 | AP67: 0 | AQ67: 0 | AR67: 0 | AS67: 0 | AT67: 0 | AU67: 0 | AV67: 0 | AW67: 0 | AX67: 0 | AY67: 0 | AZ67: 0 | BA67: 0 | BB67: 0 | BC67: 0 | BD67: 0 | BE67: 0 | BF67: 0 | BG67: 0 | BH67: 0 | BI67: 0 | BJ67: 0 | BK67: 0 | BL67: 0 | BM67: 0 | BN67: 0 | BO67: 0 | BP67: 0 | BQ67: 0 | BR67: 537205 | BS67: 9293 | BT67: 0 | BU67: 0 | BV67: 546498 | BY67: 176905 | BZ67: 4906 | CA67: 0 | CB67: 0 | CC67: 181811 | CD67: 0 | CE67: 0 | CF67: 0 | CG67: 0 | CH67: 0
A68: Judges' salaries (Office of the Chief Justice) | E68: 988810 | F68: 129611 | G68: 0 | H68: 0 | I68: 1118421 | J68: 78408 | K68: 5289 | L68: 0 | M68: 0 | N68: 83697 | O68: 84914 | P68: 280 | Q68: 0 | R68: 0 | S68: 85194 | T68: 80677 | U68: 273 | V68: 0 | W68: 0 | X68: 80950 | Y68: 0 | Z68: 0 | AA68: 0 | AB68: 0 | AC68: 0 | AD68: 0 | AE68: 0 | AF68: 0 | AG68: 0 | AH68: 0 | AI68: 0 | AJ68: 0 | AK68: 0 | AL68: 0 | AM68: 0 | AN68: 0 | AO68: 0 | AP68: 0 | AQ68: 0 | AR68: 0 | AS68: 0 | AT68: 0 | AU68: 0 | AV68: 0 | AW68: 0 | AX68: 0 | AY68: 0 | AZ68: 0 | BA68: 0 | BB68: 0 | BC68: 0 | BD68: 0 | BE68: 0 | BF68: 0 | BG68: 0 | BH68: 0 | BI68: 0 | BJ68: 0 | BK68: 0 | BL68: 0 | BM68: 0 | BN68: 0 | BO68: 0 | BP68: 0 | BQ68: 0 | BR68: 243999 | BS68: 5842 | BT68: 0 | BU68: 0 | BV68: 249841 | BY68: 78408 | BZ68: 5289 | CA68: 0 | CB68: 0 | CC68: 83697 | CD68: 0 | CE68: 0 | CF68: 0 | CG68: 0 | CH68: 0
A69: International Oil Pollution Compensation Fund (Transport) | E69: 0 | F69: 11602 | G69: 0 | H69: 0 | I69: 11602 | J69: 0 | K69: 0 | L69: 0 | M69: 0 | N69: 0 | O69: 0 | P69: 0 | Q69: 0 | R69: 0 | S69: 0 | T69: 0 | U69: 0 | V69: 0 | W69: 0 | X69: 0 | Y69: 0 | Z69: 0 | AA69: 0 | AB69: 0 | AC69: 0 | AD69: 0 | AE69: 0 | AF69: 0 | AG69: 0 | AH69: 0 | AI69: 0 | AJ69: 0 | AK69: 0 | AL69: 0 | AM69: 0 | AN69: 0 | AO69: 0 | AP69: 0 | AQ69: 0 | AR69: 0 | AS69: 0 | AT69: 0 | AU69: 0 | AV69: 0 | AW69: 0 | AX69: 0 | AY69: 0 | AZ69: 0 | BA69: 0 | BB69: 0 | BC69: 0 | BD69: 0 | BE69: 0 | BF69: 0 | BG69: 0 | BH69: 0 | BI69: 0 | BJ69: 0 | BK69: 0 | BL69: 0 | BM69: 0 | BN69: 0 | BO69: 0 | BP69: 0 | BQ69: 0 | BR69: 0 | BS69: 0 | BT69: 0 | BU69: 0 | BV69: 0 | BY69: 0 | BZ69: 0 | CA69: 0 | CB69: 0 | CC69: 0 | CD69: 0 | CE69: 0 | CF69: 0 | CG69: 0 | CH69: 0
A70: Total direct charges against the NRF | E70: 273553173 | F70: 556410272 | G70: 0 | H70: 59594 | I70: 830023039 | J70: 3351235 | K70: 45266930 | L70: 0 | M70: 568183 | N70: 49186348 | O70: 2084194 | P70: 45161744 | Q70: 0 | R70: 167688 | S70: 47413626 | T70: 27981973 | U70: 45040094 | V70: 0 | W70: 366726 | X70: 73388793 | Y70: 0 | Z70: 0 | AA70: 0 | AB70: 0 | AC70: 0 | AD70: 0 | AE70: 0 | AF70: 0 | AG70: 0 | AH70: 0 | AI70: 0 | AJ70: 0 | AK70: 0 | AL70: 0 | AM70: 0 | AN70: 0 | AO70: 0 | AP70: 0 | AQ70: 0 | AR70: 0 | AS70: 0 | AT70: 0 | AU70: 0 | AV70: 0 | AW70: 0 | AX70: 0 | AY70: 0 | AZ70: 0 | BA70: 0 | BB70: 0 | BC70: 0 | BD70: 0 | BE70: 0 | BF70: 0 | BG70: 0 | BH70: 0 | BI70: 0 | BJ70: 0 | BK70: 0 | BL70: 0 | BM70: 0 | BN70: 0 | BO70: 0 | BP70: 0 | BQ70: 0 | BR70: 33417402 | BS70: 135468768 | BT70: 0 | BU70: 1102597 | BV70: 169988767 | BY70: 3351235 | BZ70: 45835112 | CA70: 0 | CB70: 0 | CC70: 49186347 | CD70: 0 | CE70: 568182 | CF70: 0 | CG70: -568183 | CH70: -1
A71: Total | E71: 529537555 | F71: 1219254295 | G71: 15004084 | H71: 46811013 | I71: 1810606947 | J71: 21801487 | K71: 125960589 | L71: 360637 | M71: 17761706 | N71: 165884419 | O71: 20424610 | P71: 80153247 | Q71: 435812 | R71: 176580 | S71: 101190249 | T71: 48980632 | U71: 88075897 | V71: 439753 | W71: 3628411 | X71: 141124693 | Y71: 0 | Z71: 0 | AA71: 0 | AB71: 0 | AC71: 0 | AD71: 0 | AE71: 0 | AF71: 0 | AG71: 0 | AH71: 0 | AI71: 0 | AJ71: 0 | AK71: 0 | AL71: 0 | AM71: 0 | AN71: 0 | AO71: 0 | AP71: 0 | AQ71: 0 | AR71: 0 | AS71: 0 | AT71: 0 | AU71: 0 | AV71: 0 | AW71: 0 | AX71: 0 | AY71: 0 | AZ71: 0 | BA71: 0 | BB71: 0 | BC71: 0 | BD71: 0 | BE71: 0 | BF71: 0 | BG71: 0 | BH71: 0 | BI71: 0 | BJ71: 0 | BK71: 0 | BL71: 0 | BM71: 0 | BN71: 0 | BO71: 0 | BP71: 0 | BQ71: 0 | BR71: 91206729 | BS71: 294189733 | BT71: 1236202 | BU71: 21566697 | BV71: 408199361
A72: Provisional reduction to fund Land Bank allocation | E72: -5000000 | F72: 0 | G72: 0 | H72: 0 | I72: -5000000 | J72: 0 | K72: 0 | L72: 0 | M72: 0 | N72: 0 | O72: 0 | P72: 0 | Q72: 0 | R72: 0 | S72: 0 | T72: 0 | U72: 0 | V72: 0 | W72: 0 | X72: 0 | Y72: 0 | Z72: 0 | AA72: 0 | AB72: 0 | AC72: 0 | AD72: 0 | AE72: 0 | AF72: 0 | AG72: 0 | AH72: 0 | AI72: 0 | AJ72: 0 | AK72: 0 | AL72: 0 | AM72: 0 | AN72: 0 | AO72: 0 | AP72: 0 | AQ72: 0 | AR72: 0 | AS72: 0 | AT72: 0 | AU72: 0 | AV72: 0 | AW72: 0 | AX72: 0 | AY72: 0 | AZ72: 0 | BA72: 0 | BB72: 0 | BC72: 0 | BD72: 0 | BE72: 0 | BF72: 0 | BG72: 0 | BH72: 0 | BI72: 0 | BJ72: 0 | BK72: 0 | BL72: 0 | BM72: 0 | BN72: 0 | BO72: 0 | BP72: 0 | BQ72: 0 | BR72: 0 | BS72: 0 | BT72: 0 | BU72: 0 | BV72: 0
A73: Provisional allocation not assisgned to votes | E73: 12645203 | F73: 0 | G73: 0 | H73: 0 | I73: 12645203 | J73: 0 | K73: 0 | L73: 0 | M73: 0 | N73: 0 | O73: 0 | P73: 0 | Q73: 0 | R73: 0 | S73: 0 | T73: 0 | U73: 0 | V73: 0 | W73: 0 | X73: 0 | Y73: 0 | Z73: 0 | AA73: 0 | AB73: 0 | AC73: 0 | AD73: 0 | AE73: 0 | AF73: 0 | AG73: 0 | AH73: 0 | AI73: 0 | AJ73: 0 | AK73: 0 | AL73: 0 | AM73: 0 | AN73: 0 | AO73: 0 | AP73: 0 | AQ73: 0 | AR73: 0 | AS73: 0 | AT73: 0 | AU73: 0 | AV73: 0 | AW73: 0 | AX73: 0 | AY73: 0 | AZ73: 0 | BA73: 0 | BB73: 0 | BC73: 0 | BD73: 0 | BE73: 0 | BF73: 0 | BG73: 0 | BH73: 0 | BI73: 0 | BJ73: 0 | BK73: 0 | BL73: 0 | BM73: 0 | BN73: 0 | BO73: 0 | BP73: 0 | BQ73: 0 | BR73: 0 | BS73: 0 | BT73: 0 | BU73: 0 | BV73: 0
A74: Infrastructure Fund not assigned to votes | E74: 4000000 | F74: 0 | G74: 0 | H74: 0 | I74: 4000000 | J74: 0 | K74: 0 | L74: 0 | M74: 0 | N74: 0 | O74: 0 | P74: 0 | Q74: 0 | R74: 0 | S74: 0 | T74: 0 | U74: 0 | V74: 0 | W74: 0 | X74: 0 | Y74: 0 | Z74: 0 | AA74: 0 | AB74: 0 | AC74: 0 | AD74: 0 | AE74: 0 | AF74: 0 | AG74: 0 | AH74: 0 | AI74: 0 | AJ74: 0 | AK74: 0 | AL74: 0 | AM74: 0 | AN74: 0 | AO74: 0 | AP74: 0 | AQ74: 0 | AR74: 0 | AS74: 0 | AT74: 0 | AU74: 0 | AV74: 0 | AW74: 0 | AX74: 0 | AY74: 0 | AZ74: 0 | BA74: 0 | BB74: 0 | BC74: 0 | BD74: 0 | BE74: 0 | BF74: 0 | BG74: 0 | BH74: 0 | BI74: 0 | BJ74: 0 | BK74: 0 | BL74: 0 | BM74: 0 | BN74: 0 | BO74: 0 | BP74: 0 | BQ74: 0 | BR74: 0 | BS74: 0 | BT74: 0 | BU74: 0 | BV74: 0
A75: Total | E75: 541182758 | F75: 1219254295 | G75: 15004084 | H75: 46811013 | I75: 1822252150 | J75: 21801487 | K75: 125960589 | L75: 360637 | M75: 17761706 | N75: 165884419 | O75: 20424610 | P75: 80153247 | Q75: 435812 | R75: 176580 | S75: 101190249 | T75: 48980632 | U75: 88075897 | V75: 439753 | W75: 3628411 | X75: 141124693 | Y75: 0 | Z75: 0 | AA75: 0 | AB75: 0 | AC75: 0 | AD75: 0 | AE75: 0 | AF75: 0 | AG75: 0 | AH75: 0 | AI75: 0 | AJ75: 0 | AK75: 0 | AL75: 0 | AM75: 0 | AN75: 0 | AO75: 0 | AP75: 0 | AQ75: 0 | AR75: 0 | AS75: 0 | AT75: 0 | AU75: 0 | AV75: 0 | AW75: 0 | AX75: 0 | AY75: 0 | AZ75: 0 | BA75: 0 | BB75: 0 | BC75: 0 | BD75: 0 | BE75: 0 | BF75: 0 | BG75: 0 | BH75: 0 | BI75: 0 | BJ75: 0 | BK75: 0 | BL75: 0 | BM75: 0 | BN75: 0 | BO75: 0 | BP75: 0 | BQ75: 0 | BR75: 91206729 | BS75: 294189733 | BT75: 1236202 | BU75: 21566697 | BV75: 408199361
A76: Contingency reserve | E76: 12000000 | F76: 0 | G76: 0 | H76: 0 | I76: 12000000 | J76: 0 | K76: 0 | L76: 0 | M76: 0 | N76: 0 | O76: 0 | P76: 0 | Q76: 0 | R76: 0 | S76: 0 | T76: 0 | U76: 0 | V76: 0 | W76: 0 | X76: 0 | Y76: 0 | Z76: 0 | AA76: 0 | AB76: 0 | AC76: 0 | AD76: 0 | AE76: 0 | AF76: 0 | AG76: 0 | AH76: 0 | AI76: 0 | AJ76: 0 | AK76: 0 | AL76: 0 | AM76: 0 | AN76: 0 | AO76: 0 | AP76: 0 | AQ76: 0 | AR76: 0 | AS76: 0 | AT76: 0 | AU76: 0 | AV76: 0 | AW76: 0 | AX76: 0 | AY76: 0 | AZ76: 0 | BA76: 0 | BB76: 0 | BC76: 0 | BD76: 0 | BE76: 0 | BF76: 0 | BG76: 0 | BH76: 0 | BI76: 0 | BJ76: 0 | BK76: 0 | BL76: 0 | BM76: 0 | BN76: 0 | BO76: 0 | BP76: 0 | BQ76: 0 | BR76: 0 | BS76: 0 | BT76: 0 | BU76: 0 | BV76: 0
A77: Main budget expenditure | E77: 553182758 | F77: 1219254295 | G77: 15004084 | H77: 46811013 | I77: 1834252150 | J77: 21801487 | K77: 125960589 | L77: 360637 | M77: 17761706 | N77: 165884419 | O77: 20424610 | P77: 80153247 | Q77: 435812 | R77: 176580 | S77: 101190249 | T77: 48980632 | U77: 88075897 | V77: 439753 | W77: 3628411 | X77: 141124693 | Y77: 0 | Z77: 0 | AA77: 0 | AB77: 0 | AC77: 0 | AD77: 0 | AE77: 0 | AF77: 0 | AG77: 0 | AH77: 0 | AI77: 0 | AJ77: 0 | AK77: 0 | AL77: 0 | AM77: 0 | AN77: 0 | AO77: 0 | AP77: 0 | AQ77: 0 | AR77: 0 | AS77: 0 | AT77: 0 | AU77: 0 | AV77: 0 | AW77: 0 | AX77: 0 | AY77: 0 | AZ77: 0 | BA77: 0 | BB77: 0 | BC77: 0 | BD77: 0 | BE77: 0 | BF77: 0 | BG77: 0 | BH77: 0 | BI77: 0 | BJ77: 0 | BK77: 0 | BL77: 0 | BM77: 0 | BN77: 0 | BO77: 0 | BP77: 0 | BQ77: 0 | BR77: 91206729 | BS77: 294189733 | BT77: 1236202 | BU77: 21566697 | BV77: 408199361
A78: 1) Reflects monthly requested funds.
A79: 2) NRF payments (previously classified as extra ordinary payments), for more details see Table 5.
A80: 4) The Minister of Finance approved these payments in terms of Section 70 of the PFMA. For SA Express Airways the payment was made by the Department of Public Enterprise and for Land Bank by the National Treasury.
A81: 5) The payment has been allocated to the Department of Public Enterprise as per the the Second Adjustment Appropriation Act..
A82: *) Any negative amounts reflected against the votes indicate the reallocation of spending to the correct economic classification.

Sheet Table 2 pg 2
A1: Table 2 Expenditure by national vote*
E2: 2020/21 | BY2: 1000
E3: Preliminary Outcome | J3: April | O3: May | T3: June | Y3: July | AD3: August | AI3: September | AN3: October | AS3: November | AX3: December | BC3: January | BH3: February | BM3: March | BR3: Year to date
E4: Current | F4: Transfers and | G4: Payments for | H4: Payments for | I4: Total | J4: Current | K4: Transfers and | L4: Payments for | M4: Payments for | N4: Total | O4: Current | P4: Transfers and | Q4: Payments for | R4: Payments for | S4: Total | T4: Current | U4: Transfers and | V4: Payments for | W4: Payments for | X4: Total | Y4: Current | Z4: Transfers and | AA4: Payments for | AB4: Payments for | AC4: Total | AD4: Current | AE4: Transfers and | AF4: Payments for | AG4: Payments for | AH4: Total | AI4: Current | AJ4: Transfers and | AK4: Payments for | AL4: Payments for | AM4: Total | AN4: Current | AO4: Transfers and | AP4: Payments for | AQ4: Payments for | AR4: Total | AS4: Current | AT4: Transfers and | AU4: Payments for | AV4: Payments for | AW4: Total | AX4: Current | AY4: Transfers and | AZ4: Payments for | BA4: Payments for | BB4: Total | BC4: Current | BD4: Transfers and | BE4: Payments for | BF4: Payments for | BG4: Total | BH4: Current | BI4: Transfers and | BJ4: Payments for | BK4: Payments for | BL4: Total | BM4: Current | BN4: Transfers and | BO4: Payments for | BP4: Payments for | BQ4: Total | BR4: Current | BS4: Transfers and | BT4: Payments for | BU4: Payments for | BV4: Total
A5: R thousand | E5: payments | F5: subsidies | G5: capital assets | H5: financial assets | J5: payments | K5: subsidies | L5: capital assets | M5: financial assets | O5: payments | P5: subsidies | Q5: capital assets | R5: financial assets | T5: payments | U5: subsidies | V5: capital assets | W5: financial assets | Y5: payments | Z5: subsidies | AA5: capital assets | AB5: financial assets | AD5: payments | AE5: subsidies | AF5: capital assets | AG5: financial assets | AI5: payments | AJ5: subsidies | AK5: capital assets | AL5: financial assets | AN5: payments | AO5: subsidies | AP5: capital assets | AQ5: financial assets | AS5: payments | AT5: subsidies | AU5: capital assets | AV5: financial assets | AX5: payments | AY5: subsidies | AZ5: capital assets | BA5: financial assets | BC5: payments | BD5: subsidies | BE5: capital assets | BF5: financial assets | BH5: payments | BI5: subsidies | BJ5: capital assets | BK5: financial assets | BM5: payments | BN5: subsidies | BO5: capital assets | BP5: financial assets | BR5: payments | BS5: subsidies | BT5: capital assets | BU5: financial assets | BX5: 100 | BY5: Vulindlela | BZ5: difference
A7: 1 | B7: The Presidency | E7: 494389 | F7: 3550 | G7: 19886 | H7: 0 | I7: 517825 | J7: 28919 | K7: 0 | L7: 956 | M7: 0 | N7: 29875 | O7: 29267 | P7: 0 | Q7: 1524 | R7: 0 | S7: 30791 | T7: 31665 | U7: 22 | V7: 1020 | W7: 0 | X7: 32707 | Y7: 0 | Z7: 0 | AA7: 0 | AB7: 0 | AC7: 0 | AD7: 0 | AE7: 0 | AF7: 0 | AG7: 0 | AH7: 0 | AI7: 0 | AJ7: 0 | AK7: 0 | AL7: 0 | AM7: 0 | AN7: 0 | AO7: 0 | AP7: 0 | AQ7: 0 | AR7: 0 | AS7: 0 | AT7: 0 | AU7: 0 | AV7: 0 | AW7: 0 | AX7: 0 | AY7: 0 | AZ7: 0 | BA7: 0 | BB7: 0 | BC7: 0 | BD7: 0 | BE7: 0 | BF7: 0 | BG7: 0 | BH7: 0 | BI7: 0 | BJ7: 0 | BK7: 0 | BL7: 0 | BM7: 0 | BN7: 0 | BO7: 0 | BP7: 0 | BQ7: 0 | BR7: 89851 | BS7: 22 | BT7: 3500 | BU7: 0 | BV7: 93373 | BX7: 18.03 | BY7: 517825 | BZ7: -424452
A8: 2 | B8: Parliament | D8: 1) | E8: 1547841 | F8: 454186 | G8: 13816 | H8: 0 | I8: 2015843 | J8: 140445 | K8: 120322 | L8: 1150 | M8: 0 | N8: 261917 | O8: 140443 | P8: 0 | Q8: 1152 | R8: 0 | S8: 141595 | T8: 140444 | U8: 0 | V8: 1151 | W8: 0 | X8: 141595 | Y8: 0 | Z8: 0 | AA8: 0 | AB8: 0 | AC8: 0 | AD8: 0 | AE8: 0 | AF8: 0 | AG8: 0 | AH8: 0 | AI8: 0 | AJ8: 0 | AK8: 0 | AL8: 0 | AM8: 0 | AN8: 0 | AO8: 0 | AP8: 0 | AQ8: 0 | AR8: 0 | AS8: 0 | AT8: 0 | AU8: 0 | AV8: 0 | AW8: 0 | AX8: 0 | AY8: 0 | AZ8: 0 | BA8: 0 | BB8: 0 | BC8: 0 | BD8: 0 | BE8: 0 | BF8: 0 | BG8: 0 | BH8: 0 | BI8: 0 | BJ8: 0 | BK8: 0 | BL8: 0 | BM8: 0 | BN8: 0 | BO8: 0 | BP8: 0 | BQ8: 0 | BR8: 421332 | BS8: 120322 | BT8: 3453 | BU8: 0 | BV8: 545107 | BX8: 27.04 | BZ8: 0
A9: 3 | B9: Cooperative Governance | E9: 3889985 | F9: 99313877 | G9: 42815 | H9: 24 | I9: 103246701 | J9: 267863 | K9: 73 | L9: 13 | M9: 5 | N9: 267954 | O9: 58517 | P9: 260946 | Q9: 14 | R9: 0 | S9: 319477 | T9: 267666 | U9: 8799 | V9: 0 | W9: 0 | X9: 276465 | Y9: 0 | Z9: 0 | AA9: 0 | AB9: 0 | AC9: 0 | AD9: 0 | AE9: 0 | AF9: 0 | AG9: 0 | AH9: 0 | AI9: 0 | AJ9: 0 | AK9: 0 | AL9: 0 | AM9: 0 | AN9: 0 | AO9: 0 | AP9: 0 | AQ9: 0 | AR9: 0 | AS9: 0 | AT9: 0 | AU9: 0 | AV9: 0 | AW9: 0 | AX9: 0 | AY9: 0 | AZ9: 0 | BA9: 0 | BB9: 0 | BC9: 0 | BD9: 0 | BE9: 0 | BF9: 0 | BG9: 0 | BH9: 0 | BI9: 0 | BJ9: 0 | BK9: 0 | BL9: 0 | BM9: 0 | BN9: 0 | BO9: 0 | BP9: 0 | BQ9: 0 | BR9: 594046 | BS9: 269818 | BT9: 27 | BU9: 5 | BV9: 863896 | BX9: 0.84 | BY9: 103246701 | BZ9: -102382805
A10: 4 | B10: Government Communication and Information System | E10: 490195 | F10: 213752 | G10: 8129 | H10: 32 | I10: 712108 | J10: 42202 | K10: 8262 | L10: 13 | M10: 0 | N10: 50477 | O10: 37029 | P10: 64819 | Q10: 130 | S10: 101978 | T10: 52054 | U10: 0 | V10: 525 | W10: 0 | X10: 52579 | Y10: 0 | Z10: 0 | AA10: 0 | AB10: 0 | AC10: 0 | AD10: 0 | AE10: 0 | AF10: 0 | AG10: 0 | AH10: 0 | AI10: 0 | AJ10: 0 | AK10: 0 | AL10: 0 | AM10: 0 | AN10: 0 | AO10: 0 | AP10: 0 | AQ10: 0 | AR10: 0 | AS10: 0 | AT10: 0 | AU10: 0 | AV10: 0 | AW10: 0 | AX10: 0 | AY10: 0 | AZ10: 0 | BA10: 0 | BB10: 0 | BC10: 0 | BD10: 0 | BE10: 0 | BF10: 0 | BG10: 0 | BH10: 0 | BI10: 0 | BJ10: 0 | BK10: 0 | BL10: 0 | BM10: 0 | BN10: 0 | BO10: 0 | BP10: 0 | BQ10: 0 | BR10: 131285 | BS10: 73081 | BT10: 668 | BU10: 0 | BV10: 205034 | BX10: 28.79 | BY10: 712108 | BZ10: -507074
A11: 5 | B11: Home Affairs | E11: 5854274 | F11: 2291353 | G11: 318872 | H11: 1003 | I11: 8465502 | J11: 394381 | K11: 459844 | L11: 75903 | M11: 0 | N11: 930128 | O11: 538070 | P11: 166364 | Q11: 14930 | R11: 0 | S11: 719364 | T11: 422472 | U11: 164893 | V11: 5038 | W11: 0 | X11: 592403 | Y11: 0 | Z11: 0 | AA11: 0 | AB11: 0 | AC11: 0 | AD11: 0 | AE11: 0 | AF11: 0 | AG11: 0 | AH11: 0 | AI11: 0 | AJ11: 0 | AK11: 0 | AL11: 0 | AM11: 0 | AN11: 0 | AO11: 0 | AP11: 0 | AQ11: 0 | AR11: 0 | AS11: 0 | AT11: 0 | AU11: 0 | AV11: 0 | AW11: 0 | AX11: 0 | AY11: 0 | AZ11: 0 | BA11: 0 | BB11: 0 | BC11: 0 | BD11: 0 | BE11: 0 | BF11: 0 | BG11: 0 | BH11: 0 | BI11: 0 | BJ11: 0 | BK11: 0 | BL11: 0 | BM11: 0 | BN11: 0 | BO11: 0 | BP11: 0 | BQ11: 0 | BR11: 1354923 | BS11: 791101 | BT11: 95871 | BU11: 0 | BV11: 2241895 | BX11: 26.48 | BY11: 8465502 | BZ11: -6223607
A12: 6 | B12: International Relations and Cooperation | E12: 5178414 | F12: 839326 | G12: 43521 | H12: 34295 | I12: 6095556 | J12: 507360 | K12: 1819 | L12: 2339 | M12: 0 | N12: 511518 | O12: 410400 | P12: 531 | Q12: 9289 | R12: 0 | S12: 420220 | T12: 460311 | U12: 484367 | V12: 3611 | W12: 0 | X12: 948289 | Y12: 0 | Z12: 0 | AA12: 0 | AB12: 0 | AC12: 0 | AD12: 0 | AE12: 0 | AF12: 0 | AG12: 0 | AH12: 0 | AI12: 0 | AJ12: 0 | AK12: 0 | AL12: 0 | AM12: 0 | AN12: 0 | AO12: 0 | AP12: 0 | AQ12: 0 | AR12: 0 | AS12: 0 | AT12: 0 | AU12: 0 | AV12: 0 | AW12: 0 | AX12: 0 | AY12: 0 | AZ12: 0 | BA12: 0 | BB12: 0 | BC12: 0 | BD12: 0 | BE12: 0 | BF12: 0 | BG12: 0 | BH12: 0 | BI12: 0 | BJ12: 0 | BK12: 0 | BL12: 0 | BM12: 0 | BN12: 0 | BO12: 0 | BP12: 0 | BQ12: 0 | BR12: 1378071 | BS12: 486717 | BT12: 15239 | BU12: 0 | BV12: 1880027 | BX12: 30.84 | BY12: 6095556 | BZ12: -4215529
A13: 7 | B13: National School of Government | E13: 93840 | F13: 125884 | G13: 1789 | H13: 0 | I13: 221513 | J13: 6216 | K13: 6559 | L13: 0 | M13: 0 | N13: 12775 | O13: 6631 | P13: 7496 | Q13: 25 | S13: 14152 | T13: 7658 | U13: 8478 | V13: 0 | W13: 0 | X13: 16136 | Y13: 0 | Z13: 0 | AA13: 0 | AB13: 0 | AC13: 0 | AD13: 0 | AE13: 0 | AF13: 0 | AG13: 0 | AH13: 0 | AI13: 0 | AJ13: 0 | AK13: 0 | AL13: 0 | AM13: 0 | AN13: 0 | AO13: 0 | AP13: 0 | AQ13: 0 | AR13: 0 | AS13: 0 | AT13: 0 | AU13: 0 | AV13: 0 | AW13: 0 | AX13: 0 | AY13: 0 | AZ13: 0 | BA13: 0 | BB13: 0 | BC13: 0 | BD13: 0 | BE13: 0 | BF13: 0 | BG13: 0 | BH13: 0 | BI13: 0 | BJ13: 0 | BK13: 0 | BL13: 0 | BM13: 0 | BN13: 0 | BO13: 0 | BP13: 0 | BQ13: 0 | BR13: 20505 | BS13: 22533 | BT13: 25 | BU13: 0 | BV13: 43063 | BX13: 19.44 | BY13: 221513 | BZ13: -178450
A14: 8 | B14: National Treasury | E14: 1880794 | F14: 23656162 | G14: 45625 | H14: 8613292 | I14: 34195873 | J14: 97620 | K14: 1328011 | L14: 0 | M14: 0 | N14: 1425631 | O14: 142170 | P14: 2198989 | Q14: 0 | R14: 0 | S14: 2341159 | T14: 187894 | U14: 1714217 | V14: 20517 | W14: 403307 | X14: 2325935 | Y14: 0 | Z14: 0 | AA14: 0 | AB14: 0 | AC14: 0 | AD14: 0 | AE14: 0 | AF14: 0 | AG14: 0 | AH14: 0 | AI14: 0 | AJ14: 0 | AK14: 0 | AL14: 0 | AM14: 0 | AN14: 0 | AO14: 0 | AP14: 0 | AQ14: 0 | AR14: 0 | AS14: 0 | AT14: 0 | AU14: 0 | AV14: 0 | AW14: 0 | AX14: 0 | AY14: 0 | AZ14: 0 | BA14: 0 | BB14: 0 | BC14: 0 | BD14: 0 | BE14: 0 | BF14: 0 | BG14: 0 | BH14: 0 | BI14: 0 | BJ14: 0 | BK14: 0 | BL14: 0 | BM14: 0 | BN14: 0 | BO14: 0 | BP14: 0 | BQ14: 0 | BR14: 427684 | BS14: 5241217 | BT14: 20517 | BU14: 403307 | BV14: 6092725 | BX14: 17.82 | BY14: 34225875 | BZ14: -28133150
A15: 9 | B15: Planning, Monitoring and Evaluation | E15: 382732 | F15: 700 | G15: 3692 | H15: 4 | I15: 387128 | J15: 25273 | K15: 0 | L15: 0 | M15: 0 | N15: 25273 | O15: 26963 | P15: 65 | Q15: 145 | R15: 0 | S15: 27173 | T15: 27187 | U15: 74 | V15: 1852 | W15: 4 | X15: 29117 | Y15: 0 | Z15: 0 | AA15: 0 | AB15: 0 | AC15: 0 | AD15: 0 | AE15: 0 | AF15: 0 | AG15: 0 | AH15: 0 | AI15: 0 | AJ15: 0 | AK15: 0 | AL15: 0 | AM15: 0 | AN15: 0 | AO15: 0 | AP15: 0 | AQ15: 0 | AR15: 0 | AS15: 0 | AT15: 0 | AU15: 0 | AV15: 0 | AW15: 0 | AX15: 0 | AY15: 0 | AZ15: 0 | BA15: 0 | BB15: 0 | BC15: 0 | BD15: 0 | BE15: 0 | BF15: 0 | BG15: 0 | BH15: 0 | BI15: 0 | BJ15: 0 | BK15: 0 | BL15: 0 | BM15: 0 | BN15: 0 | BO15: 0 | BP15: 0 | BQ15: 0 | BR15: 79423 | BS15: 139 | BT15: 1997 | BU15: 4 | BV15: 81563 | BX15: 21.07 | BY15: 387128 | BZ15: -305565
A16: 10 | B16: Public Enterprises | E16: 212932 | F16: 1179 | G16: 5234 | H16: 74584054 | I16: 74803399 | J16: 13997 | K16: 2 | L16: 14 | M16: 0 | N16: 14013 | O16: 15331 | P16: 149 | Q16: 308 | R16: 1000000 | S16: 1015788 | T16: 24169 | U16: 0 | V16: 339 | W16: 72000 | X16: 96508 | Y16: 0 | Z16: 0 | AA16: 0 | AB16: 0 | AC16: 0 | AD16: 0 | AE16: 0 | AF16: 0 | AG16: 0 | AH16: 0 | AI16: 0 | AJ16: 0 | AK16: 0 | AL16: 0 | AM16: 0 | AN16: 0 | AO16: 0 | AP16: 0 | AQ16: 0 | AR16: 0 | AS16: 0 | AT16: 0 | AU16: 0 | AV16: 0 | AW16: 0 | AX16: 0 | AY16: 0 | AZ16: 0 | BA16: 0 | BB16: 0 | BC16: 0 | BD16: 0 | BE16: 0 | BF16: 0 | BG16: 0 | BH16: 0 | BI16: 0 | BJ16: 0 | BK16: 0 | BL16: 0 | BM16: 0 | BN16: 0 | BO16: 0 | BP16: 0 | BQ16: 0 | BR16: 53497 | BS16: 151 | BT16: 661 | BU16: 1072000 | BV16: 1126309 | BX16: 1.51 | BY16: 74803399 | BZ16: -73677090
A17: 11 | B17: Public Service and Administration | E17: 385212 | F17: 41134 | G17: 3644 | H17: 776 | I17: 430766 | J17: 23789 | K17: 2431 | L17: 0 | M17: 0 | N17: 26220 | O17: 37006 | P17: 2880 | Q17: 79 | R17: 0 | S17: 39965 | T17: 27759 | U17: 2885 | V17: 29 | W17: 0 | X17: 30673 | Y17: 0 | Z17: 0 | AA17: 0 | AB17: 0 | AC17: 0 | AD17: 0 | AE17: 0 | AF17: 0 | AG17: 0 | AH17: 0 | AI17: 0 | AJ17: 0 | AK17: 0 | AL17: 0 | AM17: 0 | AN17: 0 | AO17: 0 | AP17: 0 | AQ17: 0 | AR17: 0 | AS17: 0 | AT17: 0 | AU17: 0 | AV17: 0 | AW17: 0 | AX17: 0 | AY17: 0 | AZ17: 0 | BA17: 0 | BB17: 0 | BC17: 0 | BD17: 0 | BE17: 0 | BF17: 0 | BG17: 0 | BH17: 0 | BI17: 0 | BJ17: 0 | BK17: 0 | BL17: 0 | BM17: 0 | BN17: 0 | BO17: 0 | BP17: 0 | BQ17: 0 | BR17: 88554 | BS17: 8196 | BT17: 108 | BU17: 0 | BV17: 96858 | BX17: 22.49 | BY17: 430766 | BZ17: -333908
A18: 12 | B18: Public Service Commission | E18: 254624 | F18: 1977 | G18: 4296 | H18: 0 | I18: 260897 | J18: 17330 | K18: 0 | L18: 8 | M18: 0 | N18: 17338 | O18: 21158 | P18: 127 | Q18: 22 | R18: 0 | S18: 21307 | T18: 19149 | U18: 0 | V18: 244 | W18: 0 | X18: 19393 | Y18: 0 | Z18: 0 | AA18: 0 | AB18: 0 | AC18: 0 | AD18: 0 | AE18: 0 | AF18: 0 | AG18: 0 | AH18: 0 | AI18: 0 | AJ18: 0 | AK18: 0 | AL18: 0 | AM18: 0 | AN18: 0 | AO18: 0 | AP18: 0 | AQ18: 0 | AR18: 0 | AS18: 0 | AT18: 0 | AU18: 0 | AV18: 0 | AW18: 0 | AX18: 0 | AY18: 0 | AZ18: 0 | BA18: 0 | BB18: 0 | BC18: 0 | BD18: 0 | BE18: 0 | BF18: 0 | BG18: 0 | BH18: 0 | BI18: 0 | BJ18: 0 | BK18: 0 | BL18: 0 | BM18: 0 | BN18: 0 | BO18: 0 | BP18: 0 | BQ18: 0 | BR18: 57637 | BS18: 127 | BT18: 274 | BU18: 0 | BV18: 58038 | BX18: 22.25 | BY18: 260897 | BZ18: -202859
A19: 13 | B19: Public Works and Infrastructure | E19: 716992 | F19: 6807040 | G19: 2425 | H19: 170 | I19: 7526627 | J19: 53437 | K19: 1418670 | L19: 2 | M19: 0 | N19: 1472109 | O19: 44492 | P19: 138060 | Q19: 16 | S19: 182568 | T19: 49357 | U19: 143523 | V19: 66 | X19: 192946 | Y19: 0 | Z19: 0 | AA19: 0 | AB19: 0 | AC19: 0 | AD19: 0 | AE19: 0 | AF19: 0 | AG19: 0 | AH19: 0 | AI19: 0 | AJ19: 0 | AK19: 0 | AL19: 0 | AM19: 0 | AN19: 0 | AO19: 0 | AP19: 0 | AQ19: 0 | AR19: 0 | AS19: 0 | AT19: 0 | AU19: 0 | AV19: 0 | AW19: 0 | AX19: 0 | AY19: 0 | AZ19: 0 | BA19: 0 | BB19: 0 | BC19: 0 | BD19: 0 | BE19: 0 | BF19: 0 | BG19: 0 | BH19: 0 | BI19: 0 | BJ19: 0 | BK19: 0 | BL19: 0 | BM19: 0 | BN19: 0 | BO19: 0 | BP19: 0 | BQ19: 0 | BR19: 147286 | BS19: 1700253 | BT19: 84 | BU19: 0 | BV19: 1847623 | BX19: 24.55 | BY19: 7526627 | BZ19: -5679004
A20: 14 | B20: Statistics South Africa | E20: 2368364 | F20: 9372 | G20: 308473 | H20: 3767 | I20: 2689976 | J20: 135367 | K20: 0 | L20: 21881 | M20: 0 | N20: 157248 | O20: 140643 | P20: 5487 | Q20: 21894 | R20: 0 | S20: 168024 | T20: 137614 | U20: 53 | V20: 24192 | W20: 0 | X20: 161859 | Y20: 0 | Z20: 0 | AA20: 0 | AB20: 0 | AC20: 0 | AD20: 0 | AE20: 0 | AF20: 0 | AG20: 0 | AH20: 0 | AI20: 0 | AJ20: 0 | AK20: 0 | AL20: 0 | AM20: 0 | AN20: 0 | AO20: 0 | AP20: 0 | AQ20: 0 | AR20: 0 | AS20: 0 | AT20: 0 | AU20: 0 | AV20: 0 | AW20: 0 | AX20: 0 | AY20: 0 | AZ20: 0 | BA20: 0 | BB20: 0 | BC20: 0 | BD20: 0 | BE20: 0 | BF20: 0 | BG20: 0 | BH20: 0 | BI20: 0 | BJ20: 0 | BK20: 0 | BL20: 0 | BM20: 0 | BN20: 0 | BO20: 0 | BP20: 0 | BQ20: 0 | BR20: 413624 | BS20: 5540 | BT20: 67967 | BU20: 0 | BV20: 487131 | BX20: 18.11 | BY20: 2689976 | BZ20: -2202845
A21: 15 | B21: Traditional Affairs | E21: 88432 | F21: 47654 | G21: 1426 | H21: 0 | I21: 137512 | J21: 7125 | K21: 11929 | L21: 63 | M21: 0 | N21: 19117 | O21: 6020 | P21: 9 | Q21: 51 | S21: 6080 | T21: 5988 | U21: 0 | V21: 50 | W21: 0 | X21: 6038 | Y21: 0 | Z21: 0 | AA21: 0 | AB21: 0 | AC21: 0 | AD21: 0 | AE21: 0 | AF21: 0 | AG21: 0 | AH21: 0 | AI21: 0 | AJ21: 0 | AK21: 0 | AL21: 0 | AM21: 0 | AN21: 0 | AO21: 0 | AP21: 0 | AQ21: 0 | AR21: 0 | AS21: 0 | AT21: 0 | AU21: 0 | AV21: 0 | AW21: 0 | AX21: 0 | AY21: 0 | AZ21: 0 | BA21: 0 | BB21: 0 | BC21: 0 | BD21: 0 | BE21: 0 | BF21: 0 | BG21: 0 | BH21: 0 | BI21: 0 | BJ21: 0 | BK21: 0 | BL21: 0 | BM21: 0 | BN21: 0 | BO21: 0 | BP21: 0 | BQ21: 0 | BR21: 19133 | BS21: 11938 | BT21: 164 | BU21: 0 | BV21: 31235 | BX21: 22.71 | BY21: 137512 | BZ21: -106277
A22: 16 | B22: Basic Education | E22: 2361746 | F22: 19417580 | G22: 1002373 | H22: 824 | I22: 22782523 | J22: 57684 | K22: 3109719 | L22: 8522 | M22: 0 | N22: 3175925 | O22: 65633 | P22: 3568074 | Q22: 4480 | R22: 0 | S22: 3638187 | T22: 68020 | U22: 722524 | V22: 16584 | W22: 0 | X22: 807128 | Y22: 0 | Z22: 0 | AA22: 0 | AB22: 0 | AC22: 0 | AD22: 0 | AE22: 0 | AF22: 0 | AG22: 0 | AH22: 0 | AI22: 0 | AJ22: 0 | AK22: 0 | AL22: 0 | AM22: 0 | AN22: 0 | AO22: 0 | AP22: 0 | AQ22: 0 | AR22: 0 | AS22: 0 | AT22: 0 | AU22: 0 | AV22: 0 | AW22: 0 | AX22: 0 | AY22: 0 | AZ22: 0 | BA22: 0 | BB22: 0 | BC22: 0 | BD22: 0 | BE22: 0 | BF22: 0 | BG22: 0 | BH22: 0 | BI22: 0 | BJ22: 0 | BK22: 0 | BL22: 0 | BM22: 0 | BN22: 0 | BO22: 0 | BP22: 0 | BQ22: 0 | BR22: 191337 | BS22: 7400317 | BT22: 29586 | BU22: 0 | BV22: 7621240 | BX22: 33.45 | BY22: 22782523 | BZ22: -15161283
A23: 17 | B23: Higher Education and Training | E23: 9619766 | F23: 84065387 | G23: 6145 | H23: 6181 | I23: 93697479 | J23: 700086 | K23: 18750650 | L23: 12 | M23: 0 | N23: 19450748 | O23: 714467 | P23: 10026372 | Q23: 5494 | R23: 0 | S23: 10746333 | T23: 713268 | U23: 7889601 | V23: 685 | W23: 0 | X23: 8603554 | Y23: 0 | Z23: 0 | AA23: 0 | AB23: 0 | AC23: 0 | AD23: 0 | AE23: 0 | AF23: 0 | AG23: 0 | AH23: 0 | AI23: 0 | AJ23: 0 | AK23: 0 | AL23: 0 | AM23: 0 | AN23: 0 | AO23: 0 | AP23: 0 | AQ23: 0 | AR23: 0 | AS23: 0 | AT23: 0 | AU23: 0 | AV23: 0 | AW23: 0 | AX23: 0 | AY23: 0 | AZ23: 0 | BA23: 0 | BB23: 0 | BC23: 0 | BD23: 0 | BE23: 0 | BF23: 0 | BG23: 0 | BH23: 0 | BI23: 0 | BJ23: 0 | BK23: 0 | BL23: 0 | BM23: 0 | BN23: 0 | BO23: 0 | BP23: 0 | BQ23: 0 | BR23: 2127821 | BS23: 36666623 | BT23: 6191 | BU23: 0 | BV23: 38800635 | BX23: 41.41 | BY23: 93697479 | BZ23: -54896844
A24: 18 | B24: Health | E24: 3004531 | F24: 54404508 | G24: 794455 | H24: 0 | I24: 58203494 | J24: 160993 | K24: 5064136 | L24: 41738 | M24: 0 | N24: 5266867 | O24: 214485 | P24: 3604496 | Q24: 406945 | R24: 0 | S24: 4225926 | T24: 151588 | U24: 3760201 | V24: -330458 | W24: 0 | X24: 3581331 | Y24: 0 | Z24: 0 | AA24: 0 | AB24: 0 | AC24: 0 | AD24: 0 | AE24: 0 | AF24: 0 | AG24: 0 | AH24: 0 | AI24: 0 | AJ24: 0 | AK24: 0 | AL24: 0 | AM24: 0 | AN24: 0 | AO24: 0 | AP24: 0 | AQ24: 0 | AR24: 0 | AS24: 0 | AT24: 0 | AU24: 0 | AV24: 0 | AW24: 0 | AX24: 0 | AY24: 0 | AZ24: 0 | BA24: 0 | BB24: 0 | BC24: 0 | BD24: 0 | BE24: 0 | BF24: 0 | BG24: 0 | BH24: 0 | BI24: 0 | BJ24: 0 | BK24: 0 | BL24: 0 | BM24: 0 | BN24: 0 | BO24: 0 | BP24: 0 | BQ24: 0 | BR24: 527066 | BS24: 12428833 | BT24: 118225 | BU24: 0 | BV24: 13074124 | BX24: 22.46 | BY24: 58203494 | BZ24: -45129370
A25: 19 | B25: Social Development | D25: 2) | E25: 782408 | F25: 230567039 | G25: 8965 | H25: 0 | I25: 231358412 | J25: 43998 | K25: 855041 | L25: 0 | M25: 0 | N25: 899039 | O25: 60471 | P25: 21334558 | Q25: 85 | R25: 0 | S25: 21395114 | T25: 56813 | U25: 21174112 | V25: 627 | W25: 0 | X25: 21231552 | Y25: 0 | Z25: 0 | AA25: 0 | AB25: 0 | AC25: 0 | AD25: 0 | AE25: 0 | AF25: 0 | AG25: 0 | AH25: 0 | AI25: 0 | AJ25: 0 | AK25: 0 | AL25: 0 | AM25: 0 | AN25: 0 | AO25: 0 | AP25: 0 | AQ25: 0 | AR25: 0 | AS25: 0 | AT25: 0 | AU25: 0 | AV25: 0 | AW25: 0 | AX25: 0 | AY25: 0 | AZ25: 0 | BA25: 0 | BB25: 0 | BC25: 0 | BD25: 0 | BE25: 0 | BF25: 0 | BG25: 0 | BH25: 0 | BI25: 0 | BJ25: 0 | BK25: 0 | BL25: 0 | BM25: 0 | BN25: 0 | BO25: 0 | BP25: 0 | BQ25: 0 | BR25: 161282 | BS25: 43363711 | BT25: 712 | BU25: 0 | BV25: 43525705 | BX25: 18.81 | BY25: 211743087 | BZ25: -168217382
A26: 20 | B26: Women,Youth and persons with Disabilities | E26: 153834 | F26: 446818 | G26: 2040 | H26: 0 | I26: 602692 | J26: 11804 | K26: 7489 | L26: 2 | M26: 0 | N26: 19295 | O26: 10986 | P26: 127530 | Q26: 11 | S26: 138527 | T26: 10312 | U26: 7489 | V26: 154 | W26: 0 | X26: 17955 | Y26: 0 | Z26: 0 | AA26: 0 | AB26: 0 | AC26: 0 | AD26: 0 | AE26: 0 | AF26: 0 | AG26: 0 | AH26: 0 | AI26: 0 | AJ26: 0 | AK26: 0 | AL26: 0 | AM26: 0 | AN26: 0 | AO26: 0 | AP26: 0 | AQ26: 0 | AR26: 0 | AS26: 0 | AT26: 0 | AU26: 0 | AV26: 0 | AW26: 0 | AX26: 0 | AY26: 0 | AZ26: 0 | BA26: 0 | BB26: 0 | BC26: 0 | BD26: 0 | BE26: 0 | BF26: 0 | BG26: 0 | BH26: 0 | BI26: 0 | BJ26: 0 | BK26: 0 | BL26: 0 | BM26: 0 | BN26: 0 | BO26: 0 | BP26: 0 | BQ26: 0 | BR26: 33102 | BS26: 142508 | BT26: 167 | BU26: 0 | BV26: 175777 | BX26: 29.17 | BY26: 602692 | BZ26: -426915
A27: 21 | B27: Civilian secretariat for the Police Services | E27: 125185 | F27: 673 | G27: 5618 | H27: 66 | I27: 131542 | J27: 8666 | K27: 14 | L27: 0 | M27: 0 | N27: 8680 | O27: 9183 | P27: 292 | Q27: 14 | R27: 0 | S27: 9489 | T27: 8188 | U27: 171 | V27: 14 | W27: 0 | X27: 8373 | Y27: 0 | Z27: 0 | AA27: 0 | AB27: 0 | AC27: 0 | AD27: 0 | AE27: 0 | AF27: 0 | AG27: 0 | AH27: 0 | AI27: 0 | AJ27: 0 | AK27: 0 | AL27: 0 | AM27: 0 | AN27: 0 | AO27: 0 | AP27: 0 | AQ27: 0 | AR27: 0 | AS27: 0 | AT27: 0 | AU27: 0 | AV27: 0 | AW27: 0 | AX27: 0 | AY27: 0 | AZ27: 0 | BA27: 0 | BB27: 0 | BC27: 0 | BD27: 0 | BE27: 0 | BF27: 0 | BG27: 0 | BH27: 0 | BI27: 0 | BJ27: 0 | BK27: 0 | BL27: 0 | BM27: 0 | BN27: 0 | BO27: 0 | BP27: 0 | BQ27: 0 | BR27: 26037 | BS27: 477 | BT27: 28 | BU27: 0 | BV27: 26542 | BX27: 20.18 | BY27: 131542 | BZ27: -105000
A28: 22 | B28: Correctional Services | E28: 23847325 | F28: 833863 | G28: 340528 | H28: 5504 | I28: 25027220 | J28: 1623163 | K28: 12933 | L28: 778 | M28: 0 | N28: 1636874 | O28: 1869662 | P28: 53298 | Q28: 2364 | R28: 0 | S28: 1925324 | T28: 1900184 | U28: 67576 | V28: 53474 | W28: 0 | X28: 2021234 | Y28: 0 | Z28: 0 | AA28: 0 | AB28: 0 | AC28: 0 | AD28: 0 | AE28: 0 | AF28: 0 | AG28: 0 | AH28: 0 | AI28: 0 | AJ28: 0 | AK28: 0 | AL28: 0 | AM28: 0 | AN28: 0 | AO28: 0 | AP28: 0 | AQ28: 0 | AR28: 0 | AS28: 0 | AT28: 0 | AU28: 0 | AV28: 0 | AW28: 0 | AX28: 0 | AY28: 0 | AZ28: 0 | BA28: 0 | BB28: 0 | BC28: 0 | BD28: 0 | BE28: 0 | BF28: 0 | BG28: 0 | BH28: 0 | BI28: 0 | BJ28: 0 | BK28: 0 | BL28: 0 | BM28: 0 | BN28: 0 | BO28: 0 | BP28: 0 | BQ28: 0 | BR28: 5393009 | BS28: 133807 | BT28: 56616 | BU28: 0 | BV28: 5583432 | BX28: 22.31 | BY28: 25027220 | BZ28: -19443788
A29: 23 | B29: Defence | E29: 44448225 | F29: 7708741 | G29: 1470891 | H29: 0 | I29: 53627857 | J29: 2933087 | K29: 678492 | L29: 10249 | M29: 0 | N29: 3621828 | O29: 4068881 | P29: 495981 | Q29: 138137 | R29: 0 | S29: 4702999 | T29: 3355923 | U29: 426125 | V29: 74664 | W29: 0 | X29: 3856712 | Y29: 0 | Z29: 0 | AA29: 0 | AB29: 0 | AC29: 0 | AD29: 0 | AE29: 0 | AF29: 0 | AG29: 0 | AH29: 0 | AI29: 0 | AJ29: 0 | AK29: 0 | AL29: 0 | AM29: 0 | AN29: 0 | AO29: 0 | AP29: 0 | AQ29: 0 | AR29: 0 | AS29: 0 | AT29: 0 | AU29: 0 | AV29: 0 | AW29: 0 | AX29: 0 | AY29: 0 | AZ29: 0 | BA29: 0 | BB29: 0 | BC29: 0 | BD29: 0 | BE29: 0 | BF29: 0 | BG29: 0 | BH29: 0 | BI29: 0 | BJ29: 0 | BK29: 0 | BL29: 0 | BM29: 0 | BN29: 0 | BO29: 0 | BP29: 0 | BQ29: 0 | BR29: 10357891 | BS29: 1600598 | BT29: 223050 | BU29: 0 | BV29: 12181539 | BX29: 22.71 | BY29: 53627857 | BZ29: -41446318
A30: 24 | B30: Independent Police Investigative Directorate | E30: 333833 | F30: 1518 | G30: 5587 | H30: 1 | I30: 340939 | J30: 58387 | K30: 0 | L30: 2856 | M30: 0 | N30: 61243 | O30: 23209 | P30: 54 | Q30: 0 | R30: 0 | S30: 23263 | T30: 22095 | U30: 36 | V30: 0 | W30: 0 | X30: 22131 | Y30: 0 | Z30: 0 | AA30: 0 | AB30: 0 | AC30: 0 | AD30: 0 | AE30: 0 | AF30: 0 | AG30: 0 | AH30: 0 | AI30: 0 | AJ30: 0 | AK30: 0 | AL30: 0 | AM30: 0 | AN30: 0 | AO30: 0 | AP30: 0 | AQ30: 0 | AR30: 0 | AS30: 0 | AT30: 0 | AU30: 0 | AV30: 0 | AW30: 0 | AX30: 0 | AY30: 0 | AZ30: 0 | BA30: 0 | BB30: 0 | BC30: 0 | BD30: 0 | BE30: 0 | BF30: 0 | BG30: 0 | BH30: 0 | BI30: 0 | BJ30: 0 | BK30: 0 | BL30: 0 | BM30: 0 | BN30: 0 | BO30: 0 | BP30: 0 | BQ30: 0 | BR30: 103691 | BS30: 90 | BT30: 2856 | BU30: 0 | BV30: 106637 | BX30: 31.28 | BY30: 340939 | BZ30: -234302
A31: 25 | B31: Justice and Constitutional Development | E31: 14045233 | F31: 3034286 | G31: 635717 | H31: 13571 | I31: 17728807 | J31: 897125 | K31: 255458 | L31: 3066 | M31: 0 | N31: 1155649 | O31: 904840 | P31: 258171 | Q31: 162238 | R31: 294 | S31: 1325543 | T31: 898753 | U31: 258449 | V31: 11048 | W31: 0 | X31: 1168250 | Y31: 0 | Z31: 0 | AA31: 0 | AB31: 0 | AC31: 0 | AD31: 0 | AE31: 0 | AF31: 0 | AG31: 0 | AH31: 0 | AI31: 0 | AJ31: 0 | AK31: 0 | AL31: 0 | AM31: 0 | AN31: 0 | AO31: 0 | AP31: 0 | AQ31: 0 | AR31: 0 | AS31: 0 | AT31: 0 | AU31: 0 | AV31: 0 | AW31: 0 | AX31: 0 | AY31: 0 | AZ31: 0 | BA31: 0 | BB31: 0 | BC31: 0 | BD31: 0 | BE31: 0 | BF31: 0 | BG31: 0 | BH31: 0 | BI31: 0 | BJ31: 0 | BK31: 0 | BL31: 0 | BM31: 0 | BN31: 0 | BO31: 0 | BP31: 0 | BQ31: 0 | BR31: 2700718 | BS31: 772078 | BT31: 176352 | BU31: 294 | BV31: 3649442 | BX31: 20.58 | BY31: 17728807 | BZ31: -14079365
A32: 26 | B32: Military Veterans | E32: 312107 | F32: 111338 | G32: 1361 | H32: 0 | I32: 424806 | J32: 11573 | K32: 1526 | L32: 39 | M32: 0 | N32: 13138 | O32: 11588 | P32: 1414 | Q32: 0 | R32: 0 | S32: 13002 | T32: 14811 | U32: 3519 | V32: 87 | W32: 0 | X32: 18417 | Y32: 0 | Z32: 0 | AA32: 0 | AB32: 0 | AC32: 0 | AD32: 0 | AE32: 0 | AF32: 0 | AG32: 0 | AH32: 0 | AI32: 0 | AJ32: 0 | AK32: 0 | AL32: 0 | AM32: 0 | AN32: 0 | AO32: 0 | AP32: 0 | AQ32: 0 | AR32: 0 | AS32: 0 | AT32: 0 | AU32: 0 | AV32: 0 | AW32: 0 | AX32: 0 | AY32: 0 | AZ32: 0 | BA32: 0 | BB32: 0 | BC32: 0 | BD32: 0 | BE32: 0 | BF32: 0 | BG32: 0 | BH32: 0 | BI32: 0 | BJ32: 0 | BK32: 0 | BL32: 0 | BM32: 0 | BN32: 0 | BO32: 0 | BP32: 0 | BQ32: 0 | BR32: 37972 | BS32: 6459 | BT32: 126 | BU32: 0 | BV32: 44557 | BX32: 10.49 | BY32: 424806 | BZ32: -380249
A33: 27 | B33: Office of the Chief Justice | E33: 970696 | F33: 3535 | G33: 97697 | H33: 97 | I33: 1072025 | J33: 68062 | K33: 2 | L33: 1098 | M33: 0 | N33: 69162 | O33: 66302 | P33: 86 | Q33: 4854 | R33: 0 | S33: 71242 | T33: 72926 | U33: 34 | V33: 4497 | W33: 0 | X33: 77457 | Y33: 0 | Z33: 0 | AA33: 0 | AB33: 0 | AC33: 0 | AD33: 0 | AE33: 0 | AF33: 0 | AG33: 0 | AH33: 0 | AI33: 0 | AJ33: 0 | AK33: 0 | AL33: 0 | AM33: 0 | AN33: 0 | AO33: 0 | AP33: 0 | AQ33: 0 | AR33: 0 | AS33: 0 | AT33: 0 | AU33: 0 | AV33: 0 | AW33: 0 | AX33: 0 | AY33: 0 | AZ33: 0 | BA33: 0 | BB33: 0 | BC33: 0 | BD33: 0 | BE33: 0 | BF33: 0 | BG33: 0 | BH33: 0 | BI33: 0 | BJ33: 0 | BK33: 0 | BL33: 0 | BM33: 0 | BN33: 0 | BO33: 0 | BP33: 0 | BQ33: 0 | BR33: 207290 | BS33: 122 | BT33: 10449 | BU33: 0 | BV33: 217861 | BX33: 20.32 | BY33: 1072025 | BZ33: -854164
A34: 28 | B34: Police | E34: 91182719 | F34: 1595948 | G34: 2657759 | H34: 46717 | I34: 95483143 | J34: 8006135 | K34: 105447 | L34: 68895 | M34: 4803 | N34: 8185280 | O34: 7807331 | P34: 276535 | Q34: 32605 | R34: 3575 | S34: 8120046 | T34: 7592601 | U34: 30673 | V34: 24695 | W34: 530 | X34: 7648499 | Y34: 0 | Z34: 0 | AA34: 0 | AB34: 0 | AC34: 0 | AD34: 0 | AE34: 0 | AF34: 0 | AG34: 0 | AH34: 0 | AI34: 0 | AJ34: 0 | AK34: 0 | AL34: 0 | AM34: 0 | AN34: 0 | AO34: 0 | AP34: 0 | AQ34: 0 | AR34: 0 | AS34: 0 | AT34: 0 | AU34: 0 | AV34: 0 | AW34: 0 | AX34: 0 | AY34: 0 | AZ34: 0 | BA34: 0 | BB34: 0 | BC34: 0 | BD34: 0 | BE34: 0 | BF34: 0 | BG34: 0 | BH34: 0 | BI34: 0 | BJ34: 0 | BK34: 0 | BL34: 0 | BM34: 0 | BN34: 0 | BO34: 0 | BP34: 0 | BQ34: 0 | BR34: 23406067 | BS34: 412655 | BT34: 126195 | BU34: 8908 | BV34: 23953825 | BX34: 25.09 | BY34: 96009602 | BZ34: -72055777
A35: 29 | B35: Agriculture, Land Reform and Rural Development | E35: 6586186 | F35: 6729439 | G35: 817849 | H35: 4441 | I35: 14137915 | J35: 337160 | K35: 323418 | L35: 1444 | M35: 0 | N35: 662022 | O35: 410703 | P35: 151301 | Q35: 9596 | R35: 0 | S35: 571600 | T35: 487250 | U35: 503816 | V35: 33663 | W35: 0 | X35: 1024729 | Y35: 0 | Z35: 0 | AA35: 0 | AB35: 0 | AC35: 0 | AD35: 0 | AE35: 0 | AF35: 0 | AG35: 0 | AH35: 0 | AI35: 0 | AJ35: 0 | AK35: 0 | AL35: 0 | AM35: 0 | AN35: 0 | AO35: 0 | AP35: 0 | AQ35: 0 | AR35: 0 | AS35: 0 | AT35: 0 | AU35: 0 | AV35: 0 | AW35: 0 | AX35: 0 | AY35: 0 | AZ35: 0 | BA35: 0 | BB35: 0 | BC35: 0 | BD35: 0 | BE35: 0 | BF35: 0 | BG35: 0 | BH35: 0 | BI35: 0 | BJ35: 0 | BK35: 0 | BL35: 0 | BM35: 0 | BN35: 0 | BO35: 0 | BP35: 0 | BQ35: 0 | BR35: 1235113 | BS35: 978535 | BT35: 44703 | BU35: 0 | BV35: 2258351 | BX35: 15.97 | BY35: 14137915 | BZ35: -11879564
A36: 30 | B36: Communications and Digital Technologies | E36: 611658 | F36: 2574031 | G36: 14742 | H36: 67 | I36: 3200498 | J36: 25268 | K36: 0 | L36: 0 | M36: 27 | N36: 25295 | O36: 24248 | P36: 594685 | Q36: 0 | R36: 0 | S36: 618933 | T36: 31221 | U36: 118 | V36: 5293 | W36: 0 | X36: 36632 | Y36: 0 | Z36: 0 | AA36: 0 | AB36: 0 | AC36: 0 | AD36: 0 | AE36: 0 | AF36: 0 | AG36: 0 | AH36: 0 | AI36: 0 | AJ36: 0 | AK36: 0 | AL36: 0 | AM36: 0 | AN36: 0 | AO36: 0 | AP36: 0 | AQ36: 0 | AR36: 0 | AS36: 0 | AT36: 0 | AU36: 0 | AV36: 0 | AW36: 0 | AX36: 0 | AY36: 0 | AZ36: 0 | BA36: 0 | BB36: 0 | BC36: 0 | BD36: 0 | BE36: 0 | BF36: 0 | BG36: 0 | BH36: 0 | BI36: 0 | BJ36: 0 | BK36: 0 | BL36: 0 | BM36: 0 | BN36: 0 | BO36: 0 | BP36: 0 | BQ36: 0 | BR36: 80737 | BS36: 594803 | BT36: 5293 | BU36: 27 | BV36: 680860 | BX36: 21.27 | BY36: 3200498 | BZ36: -2519638
A37: 31 | B37: Employment and Labour | E37: 1745743 | F37: 1305069 | G37: 48727 | H37: 69 | I37: 3099608 | J37: 115225 | K37: 306678 | L37: 352 | M37: 0 | N37: 422255 | O37: 149897 | P37: 35228 | Q37: 0 | R37: 0 | S37: 185125 | T37: 130913 | U37: 8001 | V37: 30 | W37: 20 | X37: 138964 | Y37: 0 | Z37: 0 | AA37: 0 | AB37: 0 | AC37: 0 | AD37: 0 | AE37: 0 | AF37: 0 | AG37: 0 | AH37: 0 | AI37: 0 | AJ37: 0 | AK37: 0 | AL37: 0 | AM37: 0 | AN37: 0 | AO37: 0 | AP37: 0 | AQ37: 0 | AR37: 0 | AS37: 0 | AT37: 0 | AU37: 0 | AV37: 0 | AW37: 0 | AX37: 0 | AY37: 0 | AZ37: 0 | BA37: 0 | BB37: 0 | BC37: 0 | BD37: 0 | BE37: 0 | BF37: 0 | BG37: 0 | BH37: 0 | BI37: 0 | BJ37: 0 | BK37: 0 | BL37: 0 | BM37: 0 | BN37: 0 | BO37: 0 | BP37: 0 | BQ37: 0 | BR37: 396035 | BS37: 349907 | BT37: 382 | BU37: 20 | BV37: 746344 | BX37: 24.08 | BY37: 3099608 | BZ37: -2353264
A38: 32 | B38: Environment, Forestry and Fisheries | E38: 5178358 | F38: 2896328 | G38: 218161 | H38: 34 | I38: 8292881 | J38: 225803 | K38: 153434 | L38: 152 | M38: 0 | N38: 379389 | O38: 473175 | P38: 109375 | Q38: 13208 | R38: 0 | S38: 595758 | T38: 370810 | U38: 58648 | V38: 30231 | W38: 0 | X38: 459689 | Y38: 0 | Z38: 0 | AA38: 0 | AB38: 0 | AC38: 0 | AD38: 0 | AE38: 0 | AF38: 0 | AG38: 0 | AH38: 0 | AI38: 0 | AJ38: 0 | AK38: 0 | AL38: 0 | AM38: 0 | AN38: 0 | AO38: 0 | AP38: 0 | AQ38: 0 | AR38: 0 | AS38: 0 | AT38: 0 | AU38: 0 | AV38: 0 | AW38: 0 | AX38: 0 | AY38: 0 | AZ38: 0 | BA38: 0 | BB38: 0 | BC38: 0 | BD38: 0 | BE38: 0 | BF38: 0 | BG38: 0 | BH38: 0 | BI38: 0 | BJ38: 0 | BK38: 0 | BL38: 0 | BM38: 0 | BN38: 0 | BO38: 0 | BP38: 0 | BQ38: 0 | BR38: 1069788 | BS38: 321457 | BT38: 43591 | BU38: 0 | BV38: 1434836 | BX38: 17.3 | BY38: 8292881 | BZ38: -6858045
A39: 33 | B39: Human Settlements | E39: 626326 | F39: 28141494 | G39: 7651 | H39: 62 | I39: 28775533 | J39: 32666 | K39: 992442 | L39: 0 | M39: 0 | N39: 1025108 | O39: 33435 | P39: 1618754 | Q39: 86 | R39: 0 | S39: 1652275 | T39: 46418 | U39: 1572036 | V39: 620 | W39: 0 | X39: 1619074 | Y39: 0 | Z39: 0 | AA39: 0 | AB39: 0 | AC39: 0 | AD39: 0 | AE39: 0 | AF39: 0 | AG39: 0 | AH39: 0 | AI39: 0 | AJ39: 0 | AK39: 0 | AL39: 0 | AM39: 0 | AN39: 0 | AO39: 0 | AP39: 0 | AQ39: 0 | AR39: 0 | AS39: 0 | AT39: 0 | AU39: 0 | AV39: 0 | AW39: 0 | AX39: 0 | AY39: 0 | AZ39: 0 | BA39: 0 | BB39: 0 | BC39: 0 | BD39: 0 | BE39: 0 | BF39: 0 | BG39: 0 | BH39: 0 | BI39: 0 | BJ39: 0 | BK39: 0 | BL39: 0 | BM39: 0 | BN39: 0 | BO39: 0 | BP39: 0 | BQ39: 0 | BR39: 112519 | BS39: 4183232 | BT39: 706 | BU39: 0 | BV39: 4296457 | BX39: 14.93 | BY39: 28775533 | BZ39: -24479076
A40: 34 | B40: Mineral Resources and Energy | E40: 1313029 | F40: 5862005 | G40: 4240 | H40: 4623 | I40: 7183897 | J40: 95974 | K40: 644148 | L40: 89 | M40: 0 | N40: 740211 | O40: 110775 | P40: 97342 | Q40: 400 | R40: 0 | S40: 208517 | T40: 101866 | U40: 745555 | V40: 369 | W40: 0 | X40: 847790 | Y40: 0 | Z40: 0 | AA40: 0 | AB40: 0 | AC40: 0 | AD40: 0 | AE40: 0 | AF40: 0 | AG40: 0 | AH40: 0 | AI40: 0 | AJ40: 0 | AK40: 0 | AL40: 0 | AM40: 0 | AN40: 0 | AO40: 0 | AP40: 0 | AQ40: 0 | AR40: 0 | AS40: 0 | AT40: 0 | AU40: 0 | AV40: 0 | AW40: 0 | AX40: 0 | AY40: 0 | AZ40: 0 | BA40: 0 | BB40: 0 | BC40: 0 | BD40: 0 | BE40: 0 | BF40: 0 | BG40: 0 | BH40: 0 | BI40: 0 | BJ40: 0 | BK40: 0 | BL40: 0 | BM40: 0 | BN40: 0 | BO40: 0 | BP40: 0 | BQ40: 0 | BR40: 308615 | BS40: 1487045 | BT40: 858 | BU40: 0 | BV40: 1796518 | BX40: 25.01 | BY40: 7183897 | BZ40: -5387379
A41: 35 | B41: Science and Innovation | E41: 429446 | F41: 6729703 | G41: 6145 | H41: 546 | I41: 7165840 | J41: 28642 | K41: 907089 | L41: 149 | M41: 0 | N41: 935880 | O41: 26527 | P41: 49000 | Q41: 0 | R41: 0 | S41: 75527 | T41: 34234 | U41: 19668 | V41: 567 | W41: 0 | X41: 54469 | Y41: 0 | Z41: 0 | AA41: 0 | AB41: 0 | AC41: 0 | AD41: 0 | AE41: 0 | AF41: 0 | AG41: 0 | AH41: 0 | AI41: 0 | AJ41: 0 | AK41: 0 | AL41: 0 | AM41: 0 | AN41: 0 | AO41: 0 | AP41: 0 | AQ41: 0 | AR41: 0 | AS41: 0 | AT41: 0 | AU41: 0 | AV41: 0 | AW41: 0 | AX41: 0 | AY41: 0 | AZ41: 0 | BA41: 0 | BB41: 0 | BC41: 0 | BD41: 0 | BE41: 0 | BF41: 0 | BG41: 0 | BH41: 0 | BI41: 0 | BJ41: 0 | BK41: 0 | BL41: 0 | BM41: 0 | BN41: 0 | BO41: 0 | BP41: 0 | BQ41: 0 | BR41: 89403 | BS41: 975757 | BT41: 716 | BU41: 0 | BV41: 1065876 | BX41: 14.87 | BY41: 7165840 | BZ41: -6099964
A42: 36 | B42: Small Business Development | E42: 183778 | F42: 2061618 | G42: 3903 | H42: 0 | I42: 2249299 | J42: 13296 | K42: 94236 | L42: 331 | M42: 0 | N42: 107863 | O42: 15549 | P42: 502419 | Q42: 184 | R42: 0 | S42: 518152 | T42: 12426 | U42: 89876 | V42: 429 | W42: 0 | X42: 102731 | Y42: 0 | Z42: 0 | AA42: 0 | AB42: 0 | AC42: 0 | AD42: 0 | AE42: 0 | AF42: 0 | AG42: 0 | AH42: 0 | AI42: 0 | AJ42: 0 | AK42: 0 | AL42: 0 | AM42: 0 | AN42: 0 | AO42: 0 | AP42: 0 | AQ42: 0 | AR42: 0 | AS42: 0 | AT42: 0 | AU42: 0 | AV42: 0 | AW42: 0 | AX42: 0 | AY42: 0 | AZ42: 0 | BA42: 0 | BB42: 0 | BC42: 0 | BD42: 0 | BE42: 0 | BF42: 0 | BG42: 0 | BH42: 0 | BI42: 0 | BJ42: 0 | BK42: 0 | BL42: 0 | BM42: 0 | BN42: 0 | BO42: 0 | BP42: 0 | BQ42: 0 | BR42: 41271 | BS42: 686531 | BT42: 944 | BU42: 0 | BV42: 728746 | BX42: 32.4 | BY42: 2249299 | BZ42: -1520553
A43: 37 | B43: Sports, Arts and Culture | E43: 795490 | F43: 4303571 | G43: 94340 | H43: 14 | I43: 5193415 | J43: 34632 | K43: 668650 | L43: 0 | M43: 0 | N43: 703282 | O43: 54736 | P43: 160450 | Q43: 0 | R43: 7 | S43: 215193 | T43: 93941 | U43: 51604 | V43: 491 | W43: 0 | X43: 146036 | Y43: 0 | Z43: 0 | AA43: 0 | AB43: 0 | AC43: 0 | AD43: 0 | AE43: 0 | AF43: 0 | AG43: 0 | AH43: 0 | AI43: 0 | AJ43: 0 | AK43: 0 | AL43: 0 | AM43: 0 | AN43: 0 | AO43: 0 | AP43: 0 | AQ43: 0 | AR43: 0 | AS43: 0 | AT43: 0 | AU43: 0 | AV43: 0 | AW43: 0 | AX43: 0 | AY43: 0 | AZ43: 0 | BA43: 0 | BB43: 0 | BC43: 0 | BD43: 0 | BE43: 0 | BF43: 0 | BG43: 0 | BH43: 0 | BI43: 0 | BJ43: 0 | BK43: 0 | BL43: 0 | BM43: 0 | BN43: 0 | BO43: 0 | BP43: 0 | BQ43: 0 | BR43: 183309 | BS43: 880704 | BT43: 491 | BU43: 7 | BV43: 1064511 | BX43: 20.5 | BY43: 5193415 | BZ43: -4128904
A44: 38 | B44: Tourism | E44: 636989 | F44: 498627 | G44: 256612 | H44: 22 | I44: 1392250 | J44: 46005 | K44: 11 | L44: 1072 | M44: 0 | N44: 47088 | O44: 59713 | P44: 143631 | Q44: 436 | R44: 0 | S44: 203780 | T44: 44346 | U44: 33191 | V44: 1249 | W44: 0 | X44: 78786 | Y44: 0 | Z44: 0 | AA44: 0 | AB44: 0 | AC44: 0 | AD44: 0 | AE44: 0 | AF44: 0 | AG44: 0 | AH44: 0 | AI44: 0 | AJ44: 0 | AK44: 0 | AL44: 0 | AM44: 0 | AN44: 0 | AO44: 0 | AP44: 0 | AQ44: 0 | AR44: 0 | AS44: 0 | AT44: 0 | AU44: 0 | AV44: 0 | AW44: 0 | AX44: 0 | AY44: 0 | AZ44: 0 | BA44: 0 | BB44: 0 | BC44: 0 | BD44: 0 | BE44: 0 | BF44: 0 | BG44: 0 | BH44: 0 | BI44: 0 | BJ44: 0 | BK44: 0 | BL44: 0 | BM44: 0 | BN44: 0 | BO44: 0 | BP44: 0 | BQ44: 0 | BR44: 150064 | BS44: 176833 | BT44: 2757 | BU44: 0 | BV44: 329654 | BX44: 23.68 | BY44: 1392250 | BZ44: -1062596
A45: 39 | B45: Trade, Industry and Competition | E45: 1568916 | F45: 7427225 | G45: 42694 | H45: 929 | I45: 9039764 | J45: 127284 | K45: 1011184 | L45: 0 | M45: 0 | N45: 1138468 | O45: 86935 | P45: 734162 | Q45: 0 | R45: 0 | S45: 821097 | T45: 114405 | U45: 571137 | V45: 5701 | W45: 0 | X45: 691243 | Y45: 0 | Z45: 0 | AA45: 0 | AB45: 0 | AC45: 0 | AD45: 0 | AE45: 0 | AF45: 0 | AG45: 0 | AH45: 0 | AI45: 0 | AJ45: 0 | AK45: 0 | AL45: 0 | AM45: 0 | AN45: 0 | AO45: 0 | AP45: 0 | AQ45: 0 | AR45: 0 | AS45: 0 | AT45: 0 | AU45: 0 | AV45: 0 | AW45: 0 | AX45: 0 | AY45: 0 | AZ45: 0 | BA45: 0 | BB45: 0 | BC45: 0 | BD45: 0 | BE45: 0 | BF45: 0 | BG45: 0 | BH45: 0 | BI45: 0 | BJ45: 0 | BK45: 0 | BL45: 0 | BM45: 0 | BN45: 0 | BO45: 0 | BP45: 0 | BQ45: 0 | BR45: 328624 | BS45: 2316483 | BT45: 5701 | BU45: 0 | BV45: 2650808 | BX45: 29.32 | BY45: 9039764 | BZ45: -6388956
A46: 40 | B46: Transport | E46: 1078149 | F46: 53659110 | G46: 11043 | H46: 2325383 | I46: 57073685 | J46: 51967 | K46: 7903395 | L46: 0 | M46: 0 | N46: 7955362 | O46: 84343 | P46: 3302592 | Q46: 40 | R46: 0 | S46: 3386975 | T46: 63315 | U46: 1490693 | V46: 34 | W46: 0 | X46: 1554042 | Y46: 0 | Z46: 0 | AA46: 0 | AB46: 0 | AC46: 0 | AD46: 0 | AE46: 0 | AF46: 0 | AG46: 0 | AH46: 0 | AI46: 0 | AJ46: 0 | AK46: 0 | AL46: 0 | AM46: 0 | AN46: 0 | AO46: 0 | AP46: 0 | AQ46: 0 | AR46: 0 | AS46: 0 | AT46: 0 | AU46: 0 | AV46: 0 | AW46: 0 | AX46: 0 | AY46: 0 | AZ46: 0 | BA46: 0 | BB46: 0 | BC46: 0 | BD46: 0 | BE46: 0 | BF46: 0 | BG46: 0 | BH46: 0 | BI46: 0 | BJ46: 0 | BK46: 0 | BL46: 0 | BM46: 0 | BN46: 0 | BO46: 0 | BP46: 0 | BQ46: 0 | BR46: 199625 | BS46: 12696680 | BT46: 74 | BU46: 0 | BV46: 12896379 | BX46: 22.6 | BY46: 57073685 | BZ46: -44177306
A47: 41 | B47: Water and Sanitation | E47: 3525607 | F47: 8850643 | G47: 2055091 | H47: 0 | I47: 14431341 | J47: 146563 | K47: 9809 | L47: 81382 | M47: 0 | N47: 237754 | O47: 256175 | P47: 770443 | Q47: 31191 | R47: 0 | S47: 1057809 | T47: 218438 | U47: 232244 | V47: 22379 | W47: 0 | X47: 473061 | Y47: 0 | Z47: 0 | AA47: 0 | AB47: 0 | AC47: 0 | AD47: 0 | AE47: 0 | AF47: 0 | AG47: 0 | AH47: 0 | AI47: 0 | AJ47: 0 | AK47: 0 | AL47: 0 | AM47: 0 | AN47: 0 | AO47: 0 | AP47: 0 | AQ47: 0 | AR47: 0 | AS47: 0 | AT47: 0 | AU47: 0 | AV47: 0 | AW47: 0 | AX47: 0 | AY47: 0 | AZ47: 0 | BA47: 0 | BB47: 0 | BC47: 0 | BD47: 0 | BE47: 0 | BF47: 0 | BG47: 0 | BH47: 0 | BI47: 0 | BJ47: 0 | BK47: 0 | BL47: 0 | BM47: 0 | BN47: 0 | BO47: 0 | BP47: 0 | BQ47: 0 | BR47: 621176 | BS47: 1012496 | BT47: 134952 | BU47: 0 | BV47: 1768624 | BX47: 12.26 | BY47: 14431341 | BZ47: -12662717
A48: Total appropriation by vote | E48: 239306303 | F48: 667037243 | G48: 11433977 | H48: 85646568 | I48: 1003424091 | J48: 17622572 | K48: 45213323 | L48: 324568 | M48: 4835 | N48: 63165298 | O48: 19267389 | P48: 50862165 | Q48: 861947 | R48: 1003876 | S48: 71995377 | T48: 18476452 | U48: 42244408 | V48: 15761 | W48: 475861 | X48: 61212482 | Y48: 0 | Z48: 0 | AA48: 0 | AB48: 0 | AC48: 0 | AD48: 0 | AE48: 0 | AF48: 0 | AG48: 0 | AH48: 0 | AI48: 0 | AJ48: 0 | AK48: 0 | AL48: 0 | AM48: 0 | AN48: 0 | AO48: 0 | AP48: 0 | AQ48: 0 | AR48: 0 | AS48: 0 | AT48: 0 | AU48: 0 | AV48: 0 | AW48: 0 | AX48: 0 | AY48: 0 | AZ48: 0 | BA48: 0 | BB48: 0 | BC48: 0 | BD48: 0 | BE48: 0 | BF48: 0 | BG48: 0 | BH48: 0 | BI48: 0 | BJ48: 0 | BK48: 0 | BL48: 0 | BM48: 0 | BN48: 0 | BO48: 0 | BP48: 0 | BQ48: 0 | BR48: 55366413 | BS48: 138319896 | BT48: 1202276 | BU48: 1484572 | BV48: 196373157 | BX48: 19.57
A49: Plus:
A50: Direct charges against the NRF
A51: President and Deputy President salaries (The Presidency) | E51: 5700 | F51: 0 | G51: 0 | H51: 0 | I51: 5700 | J51: 475 | K51: 0 | L51: 0 | M51: 0 | N51: 475 | O51: 475 | P51: 0 | Q51: 0 | R51: 0 | S51: 475 | T51: 475 | U51: 0 | V51: 0 | W51: 0 | X51: 475 | Y51: 0 | Z51: 0 | AA51: 0 | AB51: 0 | AC51: 0 | AD51: 0 | AE51: 0 | AF51: 0 | AG51: 0 | AH51: 0 | AI51: 0 | AJ51: 0 | AK51: 0 | AL51: 0 | AM51: 0 | AN51: 0 | AO51: 0 | AP51: 0 | AQ51: 0 | AR51: 0 | AS51: 0 | AT51: 0 | AU51: 0 | AV51: 0 | AW51: 0 | AX51: 0 | AY51: 0 | AZ51: 0 | BA51: 0 | BB51: 0 | BC51: 0 | BD51: 0 | BE51: 0 | BF51: 0 | BG51: 0 | BH51: 0 | BI51: 0 | BJ51: 0 | BK51: 0 | BL51: 0 | BM51: 0 | BN51: 0 | BO51: 0 | BP51: 0 | BQ51: 0 | BR51: 1425 | BS51: 0 | BT51: 0 | BU51: 0 | BV51: 1425 | BX51: 25 | BY51: 5700 | BZ51: -4275
A52: Members' remuneration (Parliament) | D52: 1) | E52: 476474 | F52: 0 | G52: 0 | H52: 0 | I52: 476474 | J52: 42263 | K52: 0 | L52: 0 | M52: 0 | N52: 42263 | O52: 42263 | P52: 0 | Q52: 0 | R52: 0 | S52: 42263 | T52: 42263 | U52: 0 | V52: 0 | W52: 0 | X52: 42263 | Y52: 0 | Z52: 0 | AA52: 0 | AB52: 0 | AC52: 0 | AD52: 0 | AE52: 0 | AF52: 0 | AG52: 0 | AH52: 0 | AI52: 0 | AJ52: 0 | AK52: 0 | AL52: 0 | AM52: 0 | AN52: 0 | AO52: 0 | AP52: 0 | AQ52: 0 | AR52: 0 | AS52: 0 | AT52: 0 | AU52: 0 | AV52: 0 | AW52: 0 | AX52: 0 | AY52: 0 | AZ52: 0 | BA52: 0 | BB52: 0 | BC52: 0 | BD52: 0 | BE52: 0 | BF52: 0 | BG52: 0 | BH52: 0 | BI52: 0 | BJ52: 0 | BK52: 0 | BL52: 0 | BM52: 0 | BN52: 0 | BO52: 0 | BP52: 0 | BQ52: 0 | BR52: 126789 | BS52: 0 | BT52: 0 | BU52: 0 | BV52: 126789 | BX52: 26.61 | BY52: 0 | BZ52: 126789
A53: Debt-service costs (National Treasury) | E53: 232595658 | F53: 0 | G53: 0 | H53: 0 | I53: 232595658 | J53: 4156463 | K53: 0 | L53: 0 | M53: 0 | N53: 4156463 | O53: 1746959 | P53: 0 | Q53: 0 | R53: 0 | S53: 1746960 | T53: 23287136 | U53: 0 | V53: 0 | W53: 0 | X53: 23287136 | Y53: 0 | Z53: 0 | AA53: 0 | AB53: 0 | AC53: 0 | AD53: 0 | AE53: 0 | AF53: 0 | AG53: 0 | AH53: 0 | AI53: 0 | AJ53: 0 | AK53: 0 | AL53: 0 | AM53: 0 | AN53: 0 | AO53: 0 | AP53: 0 | AQ53: 0 | AR53: 0 | AS53: 0 | AT53: 0 | AU53: 0 | AV53: 0 | AW53: 0 | AX53: 0 | AY53: 0 | AZ53: 0 | BA53: 0 | BB53: 0 | BC53: 0 | BD53: 0 | BE53: 0 | BF53: 0 | BG53: 0 | BH53: 0 | BI53: 0 | BJ53: 0 | BK53: 0 | BL53: 0 | BM53: 0 | BN53: 0 | BO53: 0 | BP53: 0 | BQ53: 0 | BR53: 29190559 | BS53: 0 | BT53: 0 | BU53: 0 | BV53: 29190559 | BX53: 12.55
A54: Interest | E54: 232155391 | F54: 0 | G54: 0 | H54: 0 | I54: 232155391 | J54: 4134677 | K54: 0 | L54: 0 | M54: 0 | N54: 4134677 | O54: 1746664 | P54: 0 | Q54: 0 | R54: 0 | S54: 1746664 | T54: 23286764 | U54: 0 | V54: 0 | W54: 0 | X54: 23286764 | Y54: 0 | Z54: 0 | AA54: 0 | AB54: 0 | AC54: 0 | AD54: 0 | AE54: 0 | AF54: 0 | AG54: 0 | AH54: 0 | AI54: 0 | AJ54: 0 | AK54: 0 | AL54: 0 | AM54: 0 | AN54: 0 | AO54: 0 | AP54: 0 | AQ54: 0 | AR54: 0 | AS54: 0 | AT54: 0 | AU54: 0 | AV54: 0 | AW54: 0 | AX54: 0 | AY54: 0 | AZ54: 0 | BA54: 0 | BB54: 0 | BC54: 0 | BD54: 0 | BE54: 0 | BF54: 0 | BG54: 0 | BH54: 0 | BI54: 0 | BJ54: 0 | BK54: 0 | BL54: 0 | BM54: 0 | BN54: 0 | BO54: 0 | BP54: 0 | BQ54: 0 | BR54: 29168105 | BS54: 0 | BT54: 0 | BU54: 0 | BV54: 29168105 | BX54: 12.56
A55: Other cost | E55: 440267 | F55: 0 | G55: 0 | H55: 0 | I55: 440267 | J55: 21786 | K55: 0 | L55: 0 | M55: 0 | N55: 21786 | O55: 296 | P55: 0 | Q55: 0 | R55: 0 | S55: 296 | T55: 372 | U55: 0 | V55: 0 | W55: 0 | X55: 372 | Y55: 0 | Z55: 0 | AA55: 0 | AB55: 0 | AC55: 0 | AD55: 0 | AE55: 0 | AF55: 0 | AG55: 0 | AH55: 0 | AI55: 0 | AJ55: 0 | AK55: 0 | AL55: 0 | AM55: 0 | AN55: 0 | AO55: 0 | AP55: 0 | AQ55: 0 | AR55: 0 | AS55: 0 | AT55: 0 | AU55: 0 | AV55: 0 | AW55: 0 | AX55: 0 | AY55: 0 | AZ55: 0 | BA55: 0 | BB55: 0 | BC55: 0 | BD55: 0 | BE55: 0 | BF55: 0 | BG55: 0 | BH55: 0 | BI55: 0 | BJ55: 0 | BK55: 0 | BL55: 0 | BM55: 0 | BN55: 0 | BO55: 0 | BP55: 0 | BQ55: 0 | BR55: 22454 | BS55: 0 | BT55: 0 | BU55: 0 | BV55: 22454
A56: Provincial equitable share (National Treasury) | E56: 0 | F56: 520717021 | G56: 0 | H56: 0 | I56: 520717021 | J56: 0 | K56: 44872627 | L56: 0 | M56: 0 | N56: 44872627 | O56: 0 | P56: 44872627 | Q56: 0 | R56: 0 | S56: 44872627 | T56: 0 | U56: 44872627 | V56: 0 | W56: 0 | X56: 44872627 | Y56: 0 | Z56: 0 | AA56: 0 | AB56: 0 | AC56: 0 | AD56: 0 | AE56: 0 | AF56: 0 | AG56: 0 | AH56: 0 | AI56: 0 | AJ56: 0 | AK56: 0 | AL56: 0 | AM56: 0 | AN56: 0 | AO56: 0 | AP56: 0 | AQ56: 0 | AR56: 0 | AS56: 0 | AT56: 0 | AU56: 0 | AV56: 0 | AW56: 0 | AX56: 0 | AY56: 0 | AZ56: 0 | BA56: 0 | BB56: 0 | BC56: 0 | BD56: 0 | BE56: 0 | BF56: 0 | BG56: 0 | BH56: 0 | BI56: 0 | BJ56: 0 | BK56: 0 | BL56: 0 | BM56: 0 | BN56: 0 | BO56: 0 | BP56: 0 | BQ56: 0 | BR56: 0 | BS56: 134617881 | BT56: 0 | BU56: 0 | BV56: 134617881 | BX56: 25.85 | BY56: 534743899 | BZ56: -400126018
A57: General fuel levy sharing with metropolitan municipalities (National Treasury) | E57: 0 | F57: 14026878 | G57: 0 | H57: 0 | I57: 14026878 | J57: 0 | K57: 0 | L57: 0 | M57: 0 | N57: 0 | O57: 0 | P57: 0 | Q57: 0 | R57: 0 | S57: 0 | T57: 0 | U57: 0 | V57: 0 | W57: 0 | X57: 0 | Y57: 0 | Z57: 0 | AA57: 0 | AB57: 0 | AC57: 0 | AD57: 0 | AE57: 0 | AF57: 0 | AG57: 0 | AH57: 0 | AI57: 0 | AJ57: 0 | AK57: 0 | AL57: 0 | AM57: 0 | AN57: 0 | AO57: 0 | AP57: 0 | AQ57: 0 | AR57: 0 | AS57: 0 | AT57: 0 | AU57: 0 | AV57: 0 | AW57: 0 | AX57: 0 | AY57: 0 | AZ57: 0 | BA57: 0 | BB57: 0 | BC57: 0 | BD57: 0 | BE57: 0 | BF57: 0 | BG57: 0 | BH57: 0 | BI57: 0 | BJ57: 0 | BK57: 0 | BL57: 0 | BM57: 0 | BN57: 0 | BO57: 0 | BP57: 0 | BQ57: 0 | BR57: 0 | BS57: 0 | BT57: 0 | BU57: 0 | BV57: 0 | BX57: 0
A58: NRF payments (National Treasury) | D58: 3) | E58: 0 | F58: 0 | G58: 0 | H58: 588343 | I58: 588343 | J58: 0 | K58: 0 | L58: 0 | M58: 18 | N58: 18 | O58: 0 | P58: 0 | Q58: 0 | R58: 111334 | S58: 111334 | T58: 0 | U58: 0 | V58: 0 | W58: 2 | X58: 2 | Y58: 0 | Z58: 0 | AA58: 0 | AB58: 0 | AC58: 0 | AD58: 0 | AE58: 0 | AF58: 0 | AG58: 0 | AH58: 0 | AI58: 0 | AJ58: 0 | AK58: 0 | AL58: 0 | AM58: 0 | AN58: 0 | AO58: 0 | AP58: 0 | AQ58: 0 | AR58: 0 | AS58: 0 | AT58: 0 | AU58: 0 | AV58: 0 | AW58: 0 | AX58: 0 | AY58: 0 | AZ58: 0 | BA58: 0 | BB58: 0 | BC58: 0 | BD58: 0 | BE58: 0 | BF58: 0 | BG58: 0 | BH58: 0 | BI58: 0 | BJ58: 0 | BK58: 0 | BL58: 0 | BM58: 0 | BN58: 0 | BO58: 0 | BP58: 0 | BQ58: 0 | BR58: 0 | BS58: 0 | BT58: 0 | BU58: 111354 | BV58: 111354 | BX58: 18.93
A59: Auditor-General of South Africa (National Treasury) | E59: 0 | F59: 70000 | G59: 0 | H59: 0 | I59: 70000 | J59: 0 | K59: 0 | L59: 0 | M59: 0 | N59: 0 | O59: 0 | P59: 0 | Q59: 0 | R59: 0 | S59: 0 | T59: 0 | U59: 40000 | V59: 0 | W59: 0 | X59: 40000 | Y59: 0 | Z59: 0 | AA59: 0 | AB59: 0 | AC59: 0 | AD59: 0 | AE59: 0 | AF59: 0 | AG59: 0 | AH59: 0 | AI59: 0 | AJ59: 0 | AK59: 0 | AL59: 0 | AM59: 0 | AN59: 0 | AO59: 0 | AP59: 0 | AQ59: 0 | AR59: 0 | AS59: 0 | AT59: 0 | AU59: 0 | AV59: 0 | AW59: 0 | AX59: 0 | AY59: 0 | AZ59: 0 | BA59: 0 | BB59: 0 | BC59: 0 | BD59: 0 | BE59: 0 | BF59: 0 | BG59: 0 | BH59: 0 | BI59: 0 | BJ59: 0 | BK59: 0 | BL59: 0 | BM59: 0 | BN59: 0 | BO59: 0 | BP59: 0 | BQ59: 0 | BR59: 0 | BS59: 40000 | BT59: 0 | BU59: 0 | BV59: 40000 | BX59: 57.14
A60: Other payments | T60: 0 | U60: 0 | Y60: 0 | Z60: 0 | AD60: 0 | AE60: 0 | AI60: 0 | AJ60: 0 | AN60: 0 | AO60: 0 | AS60: 0 | AT60: 0 | AX60: 0 | AY60: 0 | BC60: 0 | BD60: 0 | BH60: 0 | BI60: 0 | BM60: 0 | BN60: 0
A61: Payments in terms of section 70 of the PFMA | D61: 4) | E61: 0 | F61: 0 | G61: 0 | H61: 484665 | I61: 484665 | J61: 0 | K61: 0 | L61: 0 | M61: 0 | N61: 0 | O61: 0 | P61: 0 | Q61: 0 | R61: 0 | S61: 0 | T61: 0 | U61: 0 | V61: 0 | W61: 0 | X61: 0 | Y61: 0 | Z61: 0 | AA61: 0 | AB61: 0 | AC61: 0 | AD61: 0 | AE61: 0 | AF61: 0 | AG61: 0 | AH61: 0 | AI61: 0 | AJ61: 0 | AK61: 0 | AL61: 0 | AM61: 0 | AN61: 0 | AO61: 0 | AP61: 0 | AQ61: 0 | AR61: 0 | AS61: 0 | AT61: 0 | AU61: 0 | AV61: 0 | AW61: 0 | AX61: 0 | AY61: 0 | AZ61: 0 | BA61: 0 | BB61: 0 | BC61: 0 | BD61: 0 | BE61: 0 | BF61: 0 | BG61: 0 | BH61: 0 | BI61: 0 | BJ61: 0 | BK61: 0 | BL61: 0 | BM61: 0 | BN61: 0 | BO61: 0 | BP61: 0 | BQ61: 0 | BR61: 0 | BS61: 0 | BT61: 0 | BU61: 0 | BV61: 0
B62: South African Express Airways | E62: 0 | F62: 0 | G62: 0 | H62: 143395 | I62: 143395 | J62: 0 | K62: 0 | L62: 0 | M62: 0 | N62: 0 | O62: 0 | P62: 0 | Q62: 0 | R62: 0 | S62: 0 | T62: 0 | U62: 0 | V62: 0 | W62: 0 | X62: 0 | Y62: 0 | Z62: 0 | AD62: 0 | AE62: 0 | AI62: 0 | AJ62: 0 | AM62: 0 | AN62: 0 | AO62: 0 | AR62: 0 | AS62: 0 | AT62: 0 | AW62: 0 | AX62: 0 | AY62: 0 | BB62: 0 | BC62: 0 | BD62: 0 | BG62: 0 | BH62: 0 | BI62: 0 | BL62: 0 | BM62: 0 | BN62: 0 | BQ62: 0 | BR62: 0 | BS62: 0 | BT62: 0 | BU62: 0 | BV62: 0 | BY62: 410298 | BZ62: -410298
B63: South African Airways | E63: 0 | F63: 0 | G63: 0 | H63: 266904 | I63: 266904 | J63: 0 | K63: 0 | O63: 0 | P63: 0 | T63: 0 | U63: 0 | V63: 0 | W63: 0 | X63: 0 | Y63: 0 | Z63: 0 | AD63: 0 | AE63: 0 | AI63: 0 | AJ63: 0 | AM63: 0 | AN63: 0 | AO63: 0 | AR63: 0 | AS63: 0 | AT63: 0 | AW63: 0 | AX63: 0 | AY63: 0 | BB63: 0 | BC63: 0 | BD63: 0 | BH63: 0 | BI63: 0 | BL63: 0 | BM63: 0 | BN63: 0 | BR63: 0 | BS63: 0 | BT63: 0 | BU63: 0 | BV63: 0
B64: Land and Agricultural Development Bank of SA | E64: 0 | F64: 0 | G64: 0 | H64: 74366 | I64: 74366 | J64: 0 | K64: 0 | L64: 0 | M64: 0 | N64: 0 | O64: 0 | P64: 0 | Q64: 0 | R64: 0 | S64: 0 | T64: 0 | U64: 0 | V64: 0 | W64: 0 | X64: 0 | Y64: 0 | Z64: 0 | AA64: 0 | AB64: 0 | AC64: 0 | AD64: 0 | AE64: 0 | AF64: 0 | AG64: 0 | AH64: 0 | AI64: 0 | AJ64: 0 | AK64: 0 | AL64: 0 | AM64: 0 | AN64: 0 | AO64: 0 | AP64: 0 | AQ64: 0 | AR64: 0 | AS64: 0 | AT64: 0 | AU64: 0 | AV64: 0 | AW64: 0 | AX64: 0 | AY64: 0 | AZ64: 0 | BA64: 0 | BB64: 0 | BC64: 0 | BD64: 0 | BE64: 0 | BF64: 0 | BG64: 0 | BH64: 0 | BI64: 0 | BJ64: 0 | BK64: 0 | BL64: 0 | BM64: 0 | BN64: 0 | BO64: 0 | BP64: 0 | BQ64: 0 | BR64: 0 | BS64: 0 | BT64: 0 | BU64: 0 | BV64: 0
A65: Skills levy and sector education and training authorities (Higher Education and Training) | E65: 0 | F65: 12412974 | G65: 0 | H65: 0 | I65: 12412974 | J65: 0 | K65: 1745798 | L65: 0 | M65: 0 | N65: 1745798 | O65: 0 | P65: 1447692 | Q65: 0 | R65: 0 | S65: 1447692 | T65: 0 | U65: 1118322 | V65: 0 | W65: 0 | X65: 1118322 | Y65: 0 | Z65: 0 | AA65: 0 | AB65: 0 | AC65: 0 | AD65: 0 | AE65: 0 | AF65: 0 | AG65: 0 | AH65: 0 | AI65: 0 | AJ65: 0 | AK65: 0 | AL65: 0 | AM65: 0 | AN65: 0 | AO65: 0 | AP65: 0 | AQ65: 0 | AR65: 0 | AS65: 0 | AT65: 0 | AU65: 0 | AV65: 0 | AW65: 0 | AX65: 0 | AY65: 0 | AZ65: 0 | BA65: 0 | BB65: 0 | BC65: 0 | BD65: 0 | BE65: 0 | BF65: 0 | BG65: 0 | BH65: 0 | BI65: 0 | BJ65: 0 | BK65: 0 | BL65: 0 | BM65: 0 | BN65: 0 | BO65: 0 | BP65: 0 | BQ65: 0 | BR65: 0 | BS65: 4311812 | BT65: 0 | BU65: 0 | BV65: 4311812 | BX65: 34.74 | BY65: 12412974 | BZ65: -8101162
A66: Magistrates' salaries (Justice and Constitutional Development) | E66: 2104800 | F66: 42270 | G66: 0 | H66: 0 | I66: 2147070 | J66: 183244 | K66: 2943 | L66: 0 | M66: 0 | N66: 186187 | O66: 176962 | P66: 2357 | Q66: 0 | R66: 0 | S66: 179319 | T66: 170758 | U66: 3390 | V66: 0 | W66: 0 | X66: 174148 | Y66: 0 | Z66: 0 | AA66: 0 | AB66: 0 | AC66: 0 | AD66: 0 | AE66: 0 | AF66: 0 | AG66: 0 | AH66: 0 | AI66: 0 | AJ66: 0 | AK66: 0 | AL66: 0 | AM66: 0 | AN66: 0 | AO66: 0 | AP66: 0 | AQ66: 0 | AR66: 0 | AS66: 0 | AT66: 0 | AU66: 0 | AV66: 0 | AW66: 0 | AX66: 0 | AY66: 0 | AZ66: 0 | BA66: 0 | BB66: 0 | BC66: 0 | BD66: 0 | BE66: 0 | BF66: 0 | BG66: 0 | BH66: 0 | BI66: 0 | BJ66: 0 | BK66: 0 | BL66: 0 | BM66: 0 | BN66: 0 | BO66: 0 | BP66: 0 | BQ66: 0 | BR66: 530964 | BS66: 8690 | BT66: 0 | BU66: 0 | BV66: 539654 | BX66: 25.13 | BY66: 2147070 | BZ66: -1607416
A67: Judges' salaries (Office of the Chief Justice) | E67: 973316 | F67: 70370 | G67: 0 | H67: 228 | I67: 1043914 | J67: 76516 | K67: 6553 | L67: 0 | M67: 0 | N67: 83069 | O67: 79279 | P67: 201 | Q67: 0 | R67: 0 | S67: 79480 | T67: 87330 | U67: 15499 | V67: 0 | W67: 0 | X67: 102829 | Y67: 0 | Z67: 0 | AA67: 0 | AB67: 0 | AC67: 0 | AD67: 0 | AE67: 0 | AF67: 0 | AG67: 0 | AH67: 0 | AI67: 0 | AJ67: 0 | AK67: 0 | AL67: 0 | AM67: 0 | AN67: 0 | AO67: 0 | AP67: 0 | AQ67: 0 | AR67: 0 | AS67: 0 | AT67: 0 | AU67: 0 | AV67: 0 | AW67: 0 | AX67: 0 | AY67: 0 | AZ67: 0 | BA67: 0 | BB67: 0 | BC67: 0 | BD67: 0 | BE67: 0 | BF67: 0 | BG67: 0 | BH67: 0 | BI67: 0 | BJ67: 0 | BK67: 0 | BL67: 0 | BM67: 0 | BN67: 0 | BO67: 0 | BP67: 0 | BQ67: 0 | BR67: 243125 | BS67: 22253 | BT67: 0 | BU67: 0 | BV67: 265378 | BX67: 25.42 | BY67: 1043914 | BZ67: -778536
A68: International Oil Pollution Compensation Fund (Transport) | E68: 0 | F68: 0 | G68: 0 | H68: 0 | I68: 0 | J68: 0 | K68: 0 | L68: 0 | M68: 0 | N68: 0 | O68: 0 | P68: 0 | Q68: 0 | R68: 0 | S68: 0 | T68: 0 | U68: 0 | V68: 0 | W68: 0 | X68: 0 | Y68: 0 | Z68: 0 | AA68: 0 | AB68: 0 | AC68: 0 | AD68: 0 | AE68: 0 | AF68: 0 | AG68: 0 | AH68: 0 | AI68: 0 | AJ68: 0 | AK68: 0 | AL68: 0 | AM68: 0 | AN68: 0 | AO68: 0 | AP68: 0 | AQ68: 0 | AR68: 0 | AS68: 0 | AT68: 0 | AU68: 0 | AV68: 0 | AW68: 0 | AX68: 0 | AY68: 0 | AZ68: 0 | BA68: 0 | BB68: 0 | BC68: 0 | BD68: 0 | BE68: 0 | BF68: 0 | BG68: 0 | BH68: 0 | BI68: 0 | BJ68: 0 | BK68: 0 | BL68: 0 | BM68: 0 | BN68: 0 | BO68: 0 | BP68: 0 | BQ68: 0 | BR68: 0 | BS68: 0 | BT68: 0 | BU68: 0 | BV68: 0
A69: Total direct charges against the NRF | E69: 236155948 | F69: 547339513 | G69: 0 | H69: 1073236 | I69: 784568697 | J69: 4458961 | K69: 46627921 | L69: 0 | M69: 18 | N69: 51086900 | O69: 2045939 | P69: 46322877 | Q69: 0 | R69: 111334 | S69: 48480150 | T69: 23587962 | U69: 46049838 | V69: 0 | W69: 2 | X69: 69637802 | Y69: 0 | Z69: 0 | AA69: 0 | AB69: 0 | AC69: 0 | AD69: 0 | AE69: 0 | AF69: 0 | AG69: 0 | AH69: 0 | BR69: 30092862 | BS69: 139000636 | BT69: 0 | BU69: 111354 | BV69: 169204852 | BX69: 21.57
A70: Total | E70: 475462251 | F70: 1214376756 | G70: 11433977 | H70: 86719804 | I70: 1787992788 | J70: 22081533 | K70: 91841244 | L70: 324568 | M70: 4853 | N70: 114252198 | O70: 21313328 | P70: 97185042 | Q70: 861947 | R70: 1115210 | S70: 120475527 | T70: 42064414 | U70: 88294246 | V70: 15761 | W70: 475863 | X70: 130850284 | Y70: 0 | Z70: 0 | AA70: 0 | AB70: 0 | AC70: 0 | AD70: 0 | AE70: 0 | AF70: 0 | AG70: 0 | AH70: 0 | BR70: 85459275 | BS70: 277320532 | BT70: 1202276 | BU70: 1595926 | BV70: 365578009 | BX70: 20.45
A72: National government projected underspending | E72: 0 | F72: 0 | G72: 0 | H72: 0 | I72: 0 | J72: 0 | K72: 0 | L72: 0 | M72: 0 | N72: 0 | O72: 0 | P72: 0 | Q72: 0 | R72: 0 | S72: 0 | T72: 0 | U72: 0 | V72: 0 | W72: 0 | X72: 0 | Y72: 0 | Z72: 0 | AA72: 0 | AB72: 0 | AC72: 0 | AD72: 0 | AE72: 0 | AF72: 0 | AG72: 0 | AH72: 0 | AI72: 0 | AJ72: 0 | AK72: 0 | AL72: 0 | AM72: 0 | AN72: 0 | AO72: 0 | AP72: 0 | AQ72: 0 | AR72: 0 | AS72: 0 | AT72: 0 | AU72: 0 | AV72: 0 | AW72: 0 | AX72: 0 | AY72: 0 | AZ72: 0 | BA72: 0 | BB72: 0 | BC72: 0 | BD72: 0 | BE72: 0 | BF72: 0 | BG72: 0 | BH72: 0 | BI72: 0 | BJ72: 0 | BK72: 0 | BL72: 0 | BM72: 0 | BN72: 0 | BO72: 0 | BP72: 0 | BQ72: 0 | BR72: 0 | BS72: 0 | BT72: 0 | BU72: 0 | BV72: 0
A73: Main budget expenditure | E73: 475462251 | F73: 1214376756 | G73: 11433977 | H73: 86719804 | I73: 1787992788 | J73: 22081533 | K73: 91841244 | L73: 324568 | M73: 4853 | N73: 114252198 | O73: 21313328 | P73: 97185042 | Q73: 861947 | R73: 1115210 | S73: 120475527 | T73: 42064414 | U73: 88294246 | V73: 15761 | W73: 475863 | X73: 130850284 | Y73: 0 | Z73: 0 | AA73: 0 | AB73: 0 | AC73: 0 | AD73: 0 | AE73: 0 | AF73: 0 | AG73: 0 | AH73: 0 | BR73: 85459275 | BS73: 277320532 | BT73: 1202276 | BU73: 1595926 | BV73: 365578009 | BX73: 20.45
A74: 1) Reflects monthly requested funds.
A75: 2) In terms of Disaster Management Act as declared by the President, social grant payments for April 2020 were paid in March 2020.
A76: 3) NRF payments (previously classified as extra ordinary payments), for more details see Table 5.
A77: 4) The Minister of Finance approved these payments in terms of Section 70 of the PFMA. For SA Express Airways the payment was made by the Department of Public Enterprise and for Land Bank by the National Treasury.
A78: 5) The payment has been allocated to the Department of Public Enterprise as per the the Second Adjustment Appropriation Act..
A79: *) Any negative amounts reflected against the votes indicate the reallocation of spending to the correct economic classification.

Sheet Table 3 summary
C7: Table 3 Summary table of borrowing
H8: 2021/22 | BZ8: 2020/21
E9: Table | H9: Budget | M9: April | R9: May | W9: June | AB9: July | AG9: August | AL9: September | AQ9: October | AV9: November | BA9: December | BF9: January | BK9: February | BP9: March | BU9: Year to date | BZ9: Preliminary | CE9: April | CJ9: May | CO9: June | CT9: July | CY9: August | DD9: September | DI9: October | DN9: November | DS9: December | DX9: January | EC9: February | EH9: March | EM9: Year to date
C10: R thousand | H10: estimate | BZ10: outcome
C13: Domestic short-term loans (net) | H13: 9000000 | M13: 9415800 | R13: -6660753 | W13: 5151867 | AB13: 0 | AG13: 0 | AL13: 0 | AQ13: 0 | AV13: 0 | BA13: 0 | BF13: 0 | BK13: 0 | BP13: 0 | BU13: 7906914 | BZ13: 95325424 | CE13: 37582688 | CJ13: 16125619 | CO13: 11567828 | CT13: 26289577 | CY13: -5974831 | DD13: 1315362 | DI13: 31098565 | DN13: 295423 | DS13: -33015782 | DX13: 15701292 | EC13: -13560314 | EH13: 7899997 | EM13: 65276135 | ET13: -30049289
C14: Treasury bills | H14: 9000000 | M14: 2663300 | R14: 83680 | W14: 5155820 | AB14: 0 | AG14: 0 | AL14: 0 | AQ14: 0 | AV14: 0 | BA14: 0 | BF14: 0 | BK14: 0 | BP14: 0 | BU14: 7902800 | BZ14: 122610260 | CE14: 3561000 | CJ14: 10247350 | CO14: 11808200 | CT14: 16584620 | CY14: 12547400 | DD14: 17988450 | DI14: 12270800 | DN14: 9515730 | DS14: 517060 | DX14: 8378430 | EC14: 9552390 | EH14: 9638830 | EM14: 25616550 | ET14: -96993710
C15: Shorter than 91 days | H15: 0 | M15: 0 | R15: 0 | W15: 0 | AB15: 0 | AG15: 0 | AL15: 0 | AQ15: 0 | AV15: 0 | BA15: 0 | BF15: 0 | BK15: 0 | BP15: 0 | BU15: 0 | BZ15: 0 | CE15: 0 | CJ15: 0 | CO15: 0 | CT15: 0 | CY15: 0 | DD15: 0 | DI15: 0 | DN15: 0 | DS15: 0 | DX15: 0 | EC15: 0 | EH15: 0 | EM15: 0 | ET15: 0
C16: 91 days | H16: 726600 | M16: -656100 | R16: -2009690 | W16: -85680 | AB16: 0 | AG16: 0 | AL16: 0 | AQ16: 0 | AV16: 0 | BA16: 0 | BF16: 0 | BK16: 0 | BP16: 0 | BU16: -2751470 | BZ16: 4733350 | CE16: 1151700 | CJ16: 3396850 | CO16: 3277100 | CT16: 1390400 | CY16: -727100 | DD16: -1077800 | DI16: 187300 | DN16: -426670 | DS16: -407000 | DX16: -496600 | EC16: -27510 | EH16: -1507320 | EM16: 7825650 | ET16: 3092300
C17: 182 days | H17: 7321400 | M17: 90400 | R17: -535630 | W17: 7519560 | AB17: 0 | AG17: 0 | AL17: 0 | AQ17: 0 | AV17: 0 | BA17: 0 | BF17: 0 | BK17: 0 | BP17: 0 | BU17: 7074330 | BZ17: 13612500 | CE17: -102350 | CJ17: 4585900 | CO17: 5164300 | CT17: 4295800 | CY17: 4060000 | DD17: 4689950 | DI17: 1089600 | DN17: -648800 | DS17: -7467800 | DX17: 0 | EC17: - | EH17: -2054100 | EM17: 9647850 | ET17: -3964650
C18: 273 days | H18: -4692700 | M18: -200000 | R18: -580000 | W18: -1200000 | AB18: 0 | AG18: 0 | AL18: 0 | AQ18: 0 | AV18: 0 | BA18: 0 | BF18: 0 | BK18: 0 | BP18: 0 | BU18: -1980000 | BZ18: 44853490 | CE18: 830100 | CJ18: 1373600 | CO18: 1756500 | CT18: 4166600 | CY18: 4360000 | DD18: 7501300 | DI18: 6284700 | DN18: 5731200 | DS18: 3549100 | DX18: 3400000 | EC18: 2348590 | EH18: 3551800 | EM18: 3960200 | ET18: -40893290
C19: 364 days | H19: 5644700 | M19: 3429000 | R19: 3209000 | W19: -1078060 | AB19: 0 | AG19: 0 | AL19: 0 | AQ19: 0 | AV19: 0 | BA19: 0 | BF19: 0 | BK19: 0 | BP19: 0 | BU19: 5559940 | BZ19: 59410920 | CE19: 1681550 | CJ19: 891000 | CO19: 1610300 | CT19: 6731820 | CY19: 4854500 | DD19: 6875000 | DI19: 4709200 | DN19: 4860000 | DS19: 4842760 | DX19: 5475030 | EC19: 7231310 | EH19: 9648450 | EM19: 4182850 | ET19: -55228070
ET20: 0
C21: Corporation for Public Deposits | H21: 0 | M21: 6752500 | R21: -6744433 | W21: -3953 | AB21: 0 | AG21: 0 | AL21: 0 | AQ21: 0 | AV21: 0 | BA21: 0 | BF21: 0 | BK21: 0 | BP21: 0 | BU21: 4114 | BZ21: -27284836 | CE21: 34021688 | CJ21: 5878269 | CO21: -240372 | CT21: 9704957 | CY21: -18522231 | DD21: -16673088 | DI21: 18827765 | DN21: -9220307 | DS21: -33532842 | DX21: 7322862 | EC21: -23112704 | EH21: -1738833 | EM21: 39659585 | ET21: 66944421
ET22: 0
C23: Domestic long-term loans (net) | H23: 319185000 | M23: 26656371 | R23: 26132793 | W23: 23736909 | AB23: 0 | AG23: 0 | AL23: 0 | AQ23: 0 | AV23: 0 | BA23: 0 | BF23: 0 | BK23: 0 | BP23: 0 | BU23: 76526073 | BZ23: 470195263 | CE23: 32850713 | CJ23: 40638037 | CO23: 43402900 | CT23: 60600922 | CY23: 37229982 | DD23: 50427153 | DI23: 50571945 | DN23: 39211461 | DS23: 45507261 | DX23: 34540578 | EC23: 41167482 | EH23: -7569549 | EM23: 116891650 | ET23: -353303613
C24: Loans issued for financing (net) | H24: 319185000 | M24: 26533639 | R24: 26055503 | W24: 23681234 | AB24: 0 | AG24: 0 | AL24: 0 | AQ24: 0 | AV24: 0 | BA24: 0 | BF24: 0 | BK24: 0 | BP24: 0 | BU24: 76270376 | BZ24: 470153549 | CE24: 32850713 | CJ24: 40638037 | CO24: 43402900 | CT24: 60600922 | CY24: 37229982 | DD24: 50427153 | DI24: 50571945 | DN24: 39125584 | DS24: 45797599 | DX24: 34673258 | EC24: 42405005 | EH24: -7569549 | EM24: 116891650 | ET24: -353261899
C25: Loans issued (gross) | E25: 4.1 | H25: 406873000 | M25: 32347333 | R25: 30897412 | W25: 27576195 | AB25: 0 | AG25: 0 | AL25: 0 | AQ25: 0 | AV25: 0 | BA25: 0 | BF25: 0 | BK25: 0 | BP25: 0 | BU25: 90820940 | BZ25: 604767855 | CE25: 38350619 | CJ25: 45031288 | CO25: 49600848 | CT25: 69933031 | CY25: 44319358 | DD25: 61486843 | DI25: 59931421 | DN25: 46634910 | DS25: 52191398 | DX25: 39060638 | EC25: 49399464 | EH25: 48828037 | EM25: 132982755 | ET25: -471785100
C26: Discount | E26: 4.1 | H26: -26873000 | M26: -5645039 | R26: -4477496 | W26: -3697051 | AB26: 0 | AG26: 0 | AL26: 0 | AQ26: 0 | AV26: 0 | BA26: 0 | BF26: 0 | BK26: 0 | BP26: 0 | BU26: -13819586 | BZ26: -81391715 | CE26: -4299769 | CJ26: -4058204 | CO26: -6085389 | CT26: -8992564 | CY26: -6877121 | DD26: -10836667 | DI26: -9026146 | DN26: -7195171 | DS26: -6333842 | DX26: -3989426 | EC26: -6713436 | EH26: -6983980 | EM26: -14443362 | ET26: 66948353
C27: Scheduled redemptions | E27: 4.2 | H27: -60815000 | M27: -168655 | R27: -364413 | W27: -197910 | AB27: 0 | AG27: 0 | AL27: 0 | AQ27: 0 | AV27: 0 | BA27: 0 | BF27: 0 | BK27: 0 | BP27: 0 | BU27: -730978 | BZ27: -53222591 | CE27: -1200137 | CJ27: -335047 | CO27: -112559 | CT27: -339545 | CY27: -212255 | DD27: -223023 | DI27: -333330 | DN27: -314155 | DS27: -59957 | DX27: -397954 | EC27: -281023 | EH27: -49413606 | EM27: -1647743 | ET27: 51574848
C28: Buy-backs (excluding book profit) | E28: 4.2 | H28: 0 | M28: 0 | R28: 0 | W28: 0 | AB28: 0 | AG28: 0 | AL28: 0 | AQ28: 0 | AV28: 0 | BA28: 0 | BF28: 0 | BK28: 0 | BP28: 0 | BU28: 0 | BZ28: 0 | CE28: 0 | CJ28: 0 | CO28: 0 | CT28: 0 | CY28: 0 | DD28: 0 | DI28: 0 | DN28: 0 | DS28: 0 | DX28: 0 | EC28: 0 | EH28: 0 | EM28: 0 | ET28: 0
ET29: 0
C30: Loans issued for switches (net) | H30: 0 | M30: 122732 | R30: 77290 | W30: 55675 | AB30: 0 | AG30: 0 | AL30: 0 | AQ30: 0 | AV30: 0 | BA30: 0 | BF30: 0 | BK30: 0 | BP30: 0 | BU30: 255697 | BZ30: 41714 | CE30: 0 | CJ30: 0 | CO30: 0 | CT30: 0 | CY30: 0 | DD30: 0 | DI30: 0 | DN30: 0 | DS30: 0 | DX30: 0 | EC30: 41714 | EH30: 0 | EM30: 0 | ET30: -41714
C31: Loans issued (gross) | E31: 4.1 | H31: 0 | M31: 11663028 | R31: 3767776 | W31: 7710681 | AB31: 0 | AG31: 0 | AL31: 0 | AQ31: 0 | AV31: 0 | BA31: 0 | BF31: 0 | BK31: 0 | BP31: 0 | BU31: 23141485 | BZ31: 7577210 | CE31: 0 | CJ31: 0 | CO31: 0 | CT31: 0 | CY31: 0 | DD31: 0 | DI31: 0 | DN31: 0 | DS31: 0 | DX31: 0 | EC31: 7577210 | EH31: 0 | EM31: 0 | ET31: -7577210
C32: Discount | E32: 4.1 | H32: 0 | M32: -1360296 | R32: -515486 | W32: -670006 | AB32: 0 | AG32: 0 | AL32: 0 | AQ32: 0 | AV32: 0 | BA32: 0 | BF32: 0 | BK32: 0 | BP32: 0 | BU32: -2545788 | BZ32: -730496 | CE32: 0 | CJ32: 0 | CO32: 0 | CT32: 0 | CY32: 0 | DD32: 0 | DI32: 0 | DN32: 0 | DS32: 0 | DX32: 0 | EC32: -730496 | EH32: 0 | EM32: 0 | ET32: 730496
C33: Loans switched (excluding book profit) | E33: 4.2 | H33: 0 | M33: -10180000 | R33: -3175000 | W33: -6985000 | AB33: 0 | AG33: 0 | AL33: 0 | AQ33: 0 | AV33: 0 | BA33: 0 | BF33: 0 | BK33: 0 | BP33: 0 | BU33: -20340000 | BZ33: -6805000 | CE33: 0 | CJ33: 0 | CO33: 0 | CT33: 0 | CY33: 0 | DD33: 0 | DI33: 0 | DN33: 0 | DS33: 0 | DX33: 0 | EC33: -6805000 | EH33: 0 | EM33: 0 | ET33: 6805000
ET34: 0
C35: Loans issued for repo's (net) | H35: 0 | M35: 0 | R35: 0 | W35: 0 | AB35: 0 | AG35: 0 | AL35: 0 | AQ35: 0 | AV35: 0 | BA35: 0 | BF35: 0 | BK35: 0 | BP35: 0 | BU35: 0 | BZ35: 0 | CE35: 0 | CJ35: 0 | CO35: 0 | CT35: 0 | CY35: 0 | DD35: 0 | DI35: 0 | DN35: 85877 | DS35: -290338 | DX35: -132680 | EC35: -1279237 | EH35: 0 | EM35: 0 | ET35: 0
C36: Repo out | E36: 4.1 | H36: 0 | M36: 195061 | R36: 0 | W36: 956108 | AB36: 0 | AG36: 0 | AL36: 0 | AQ36: 0 | AV36: 0 | BA36: 0 | BF36: 0 | BK36: 0 | BP36: 0 | BU36: 1151169 | BZ36: 4891996 | CE36: 487336 | CJ36: 29682 | CO36: 28489 | CT36: 0 | CY36: 41191 | DD36: 18552 | DI36: 0 | DN36: 85877 | DS36: 0 | DX36: 0 | EC36: 0 | EH36: 2584491 | EM36: 545507 | ET36: -4346489
C37: Repo in | E37: 4.2 | H37: 0 | M37: -195061 | R37: 0 | W37: -956108 | AB37: 0 | AG37: 0 | AL37: 0 | AQ37: 0 | AV37: 0 | BA37: 0 | BF37: 0 | BK37: 0 | BP37: 0 | BU37: -1151169 | BZ37: -4891996 | CE37: -487336 | CJ37: -29682 | CO37: -28489 | CT37: 0 | CY37: -41191 | DD37: -18552 | DI37: 0 | DN37: 0 | DS37: -290338 | DX37: -132680 | EC37: -1279237 | EH37: -2584491 | EM37: -545507 | ET37: 4346489
ET38: 0
C39: Loans issued for extraordinary purposes (net) | D39: 1) | H39: 0 | M39: 0 | R39: 0 | W39: 0 | AB39: 0 | AG39: 0 | AL39: 0 | AQ39: 0 | AV39: 0 | BA39: 0 | BF39: 0 | BK39: 0 | BP39: 0 | BU39: 0 | BZ39: 0 | CE39: 0 | CJ39: 0 | CO39: 0 | CT39: 0 | CY39: 0 | DD39: 0 | DI39: 0 | DN39: 0 | DS39: 0 | DX39: 0 | EC39: 0 | EH39: 0 | EM39: 0 | ET39: 0
C40: Loans issued (gross) | E40: 4.1 | H40: 0 | M40: 0 | R40: 0 | W40: 0 | AB40: 0 | AG40: 0 | AL40: 0 | AQ40: 0 | AV40: 0 | BA40: 0 | BF40: 0 | BK40: 0 | BP40: 0 | BU40: 0 | BZ40: 0 | CE40: 0 | CJ40: 0 | CO40: 0 | CT40: 0 | CY40: 0 | DD40: 0 | DI40: 0 | DN40: 0 | DS40: 0 | DX40: 0 | EC40: 0 | EH40: 0 | EM40: 0 | ET40: 0
ET41: 0
ET42: 0
ET43: 0
C44: Foreign long-term loans (net) | E44: 4.3 | H44: 41795000 | M44: 0 | R44: -6054 | W44: 14088400 | AB44: 0 | AG44: 0 | AL44: 0 | AQ44: 0 | AV44: 0 | BA44: 0 | BF44: 0 | BK44: 0 | BP44: 0 | BU44: 14082346 | BZ44: 77503430 | CE44: -777665 | CJ44: -4931986 | CO44: -8699700 | CT44: 86911584 | CY44: 0 | DD44: 0 | DI44: 5008164 | DN44: -6967 | DS44: 0 | DX44: 0 | EC44: 0 | EH44: 0 | EM44: -14409351 | ET44: -91912781
C45: Loans issued for financing (net) | H45: 41795000 | M45: 0 | R45: -6054 | W45: 14088400 | AB45: 0 | AG45: 0 | AL45: 0 | AQ45: 0 | AV45: 0 | BA45: 0 | BF45: 0 | BK45: 0 | BP45: 0 | BU45: 14082346 | BZ45: 77503430 | CE45: -777665 | CJ45: -4931986 | CO45: -8699700 | CT45: 86911584 | CY45: 0 | DD45: 0 | DI45: 5008164 | DN45: -6967 | DS45: 0 | DX45: 0 | EC45: 0 | EH45: 0 | EM45: -14409351 | ET45: -91912781
C46: Loans issued (gross) | H46: 46260000 | M46: 0 | R46: 0 | W46: 14088400 | AB46: 0 | AG46: 0 | AL46: 0 | AQ46: 0 | AV46: 0 | BA46: 0 | BF46: 0 | BK46: 0 | BP46: 0 | BU46: 14088400 | BZ46: 91919748 | CE46: 0 | CJ46: 0 | CO46: 0 | CT46: 86911584 | CY46: 0 | DD46: 0 | DI46: 5008164 | DN46: 0 | DS46: 0 | DX46: 0 | EC46: 0 | EH46: 0 | EM46: 0 | ET46: -91919748
C47: Discount | H47: 0 | M47: 0 | R47: 0 | W47: 0 | AB47: 0 | AG47: 0 | AL47: 0 | AQ47: 0 | AV47: 0 | BA47: 0 | BF47: 0 | BK47: 0 | BP47: 0 | BU47: 0 | BZ47: 0 | CE47: 0 | CJ47: 0 | CO47: 0 | CT47: 0 | CY47: 0 | DD47: 0 | DI47: 0 | DN47: 0 | DS47: 0 | DX47: 0 | EC47: 0 | EH47: 0 | EM47: 0 | ET47: 0
C48: Scheduled redemptions | ET48: 0
C49: Rand value at date of issue | H49: -1996000 | M49: 0 | R49: -1940 | W49: 0 | AB49: 0 | AG49: 0 | AL49: 0 | AQ49: 0 | AV49: 0 | BA49: 0 | BF49: 0 | BK49: 0 | BP49: 0 | BU49: -1940 | BZ49: -7960585 | CE49: -391647 | CJ49: -1962723 | CO49: -5604275 | CT49: 0 | CY49: 0 | DD49: 0 | DI49: 0 | DN49: -1940 | DS49: 0 | DX49: 0 | EC49: 0 | EH49: 0 | EM49: -7958645 | ET49: 1940
C50: Revaluation | H50: -2469000 | M50: 0 | R50: -4114 | W50: 0 | AB50: 0 | AG50: 0 | AL50: 0 | AQ50: 0 | AV50: 0 | BA50: 0 | BF50: 0 | BK50: 0 | BP50: 0 | BU50: -4114 | BZ50: -6455733 | CE50: -386018 | CJ50: -2969263 | CO50: -3095425 | CT50: 0 | CY50: 0 | DD50: 0 | DI50: 0 | DN50: -5027 | DS50: 0 | DX50: 0 | EC50: 0 | EH50: 0 | EM50: -6450706 | ET50: 5027
ET51: 0
C52: Loans issued for switches (net) | H52: 0 | M52: 0 | R52: 0 | W52: 0 | AB52: 0 | AG52: 0 | AL52: 0 | AQ52: 0 | AV52: 0 | BA52: 0 | BF52: 0 | BK52: 0 | BP52: 0 | BU52: 0 | BZ52: 0 | CE52: 0 | CJ52: 0 | CO52: 0 | CT52: 0 | CY52: 0 | DD52: 0 | DI52: 0 | DN52: 0 | DS52: 0 | DX52: 0 | EC52: 0 | EH52: 0 | EM52: 0 | ET52: 0
C53: Loans issued (gross) | H53: 0 | M53: 0 | R53: 0 | W53: 0 | AB53: 0 | AG53: 0 | AL53: 0 | AQ53: 0 | AV53: 0 | BA53: 0 | BF53: 0 | BK53: 0 | BP53: 0 | BU53: 0 | BZ53: 0 | CE53: 0 | CJ53: 0 | CO53: 0 | CT53: 0 | CY53: 0 | DD53: 0 | DI53: 0 | DN53: 0 | DS53: 0 | DX53: 0 | EC53: 0 | EH53: 0 | EM53: 0 | ET53: 0
C54: Discount | H54: 0 | M54: 0 | R54: 0 | W54: 0 | AB54: 0 | AG54: 0 | AL54: 0 | AQ54: 0 | AV54: 0 | BA54: 0 | BF54: 0 | BK54: 0 | BP54: 0 | BU54: 0 | BZ54: 0 | CE54: 0 | CJ54: 0 | CO54: 0 | CT54: 0 | CY54: 0 | DD54: 0 | DI54: 0 | DN54: 0 | DS54: 0 | DX54: 0 | EC54: 0 | EH54: 0 | EM54: 0 | ET54: 0
C55: Loans switched (excluding book profit) | ET55: 0
C56: Rand value at date of issue | H56: 0 | M56: 0 | R56: 0 | W56: 0 | AB56: 0 | AG56: 0 | AL56: 0 | AQ56: 0 | AV56: 0 | BA56: 0 | BF56: 0 | BK56: 0 | BP56: 0 | BU56: 0 | BZ56: 0 | CE56: 0 | CJ56: 0 | CO56: 0 | CT56: 0 | CY56: 0 | DD56: 0 | DI56: 0 | DN56: 0 | DS56: 0 | DX56: 0 | EC56: 0 | EH56: 0 | EM56: 0 | ET56: 0
C57: Revaluation | H57: 0 | M57: 0 | R57: 0 | W57: 0 | AB57: 0 | AG57: 0 | AL57: 0 | AQ57: 0 | AV57: 0 | BA57: 0 | BF57: 0 | BK57: 0 | BP57: 0 | BU57: 0 | BZ57: 0 | CE57: 0 | CJ57: 0 | CO57: 0 | CT57: 0 | CY57: 0 | DD57: 0 | DI57: 0 | DN57: 0 | DS57: 0 | DX57: 0 | EC57: 0 | EH57: 0 | EM57: 0 | ET57: 0
ET58: 0
C59: Loans issued for buy-backs (net) | H59: 0 | M59: 0 | R59: 0 | W59: 0 | AB59: 0 | AG59: 0 | AL59: 0 | AQ59: 0 | AV59: 0 | BA59: 0 | BF59: 0 | BK59: 0 | BP59: 0 | BU59: 0 | BZ59: 0 | CE59: 0 | CJ59: 0 | CO59: 0 | CT59: 0 | CY59: 0 | DD59: 0 | DI59: 0 | DN59: 0 | DS59: 0 | DX59: 0 | EC59: 0 | EH59: 0 | EM59: 0 | ET59: 0
C60: Loans issued (gross) | H60: 0 | M60: 0 | R60: 0 | W60: 0 | AB60: 0 | AG60: 0 | AL60: 0 | AQ60: 0 | AV60: 0 | BA60: 0 | BF60: 0 | BK60: 0 | BP60: 0 | BU60: 0 | BZ60: 0 | CE60: 0 | CJ60: 0 | CO60: 0 | CT60: 0 | CY60: 0 | DD60: 0 | DI60: 0 | DN60: 0 | DS60: 0 | DX60: 0 | EC60: 0 | EH60: 0 | EM60: 0 | ET60: 0
C61: Discount | H61: 0 | M61: 0 | R61: 0 | W61: 0 | AB61: 0 | AG61: 0 | AL61: 0 | AQ61: 0 | AV61: 0 | BA61: 0 | BF61: 0 | BK61: 0 | BP61: 0 | BU61: 0 | BZ61: 0 | CE61: 0 | CJ61: 0 | CO61: 0 | CT61: 0 | CY61: 0 | DD61: 0 | DI61: 0 | DN61: 0 | DS61: 0 | DX61: 0 | EC61: 0 | EH61: 0 | EM61: 0 | ET61: 0
C62: Buy-backs (excluding book profit) | ET62: 0
C63: Rand value at date of issue | H63: 0 | M63: 0 | R63: 0 | W63: 0 | AB63: 0 | AG63: 0 | AL63: 0 | AQ63: 0 | AV63: 0 | BA63: 0 | BF63: 0 | BK63: 0 | BP63: 0 | BU63: 0 | BZ63: 0 | CE63: 0 | CJ63: 0 | CO63: 0 | CT63: 0 | CY63: 0 | DD63: 0 | DI63: 0 | DN63: 0 | DS63: 0 | DX63: 0 | EC63: 0 | EH63: 0 | EM63: 0 | ET63: 0
C64: Revaluation | H64: 0 | M64: 0 | R64: 0 | W64: 0 | AB64: 0 | AG64: 0 | AL64: 0 | AQ64: 0 | AV64: 0 | BA64: 0 | BF64: 0 | BK64: 0 | BP64: 0 | BU64: 0 | BZ64: 0 | CE64: 0 | CJ64: 0 | CO64: 0 | CT64: 0 | CY64: 0 | DD64: 0 | DI64: 0 | DN64: 0 | DS64: 0 | DX64: 0 | EC64: 0 | EH64: 0 | EM64: 0 | ET64: 0
ET65: 0
ET66: 0
C67: Change in cash and other balances | E67: 4.4 | H67: 112600025 | M67: 44290935 | R67: -14022272 | W67: -106124989 | AB67: 412863680 | AG67: 0 | AL67: 0 | AQ67: 0 | AV67: 0 | BA67: 0 | BF67: 0 | BK67: 0 | BP67: 0 | BU67: -75856325 | BZ67: -91166408 | CE67: -18499279 | CJ67: 537410 | CO67: -23974845 | CT67: -39272435 | CY67: 32418642 | DD67: -8875713 | DI67: -36949546 | DN67: -18096632 | DS67: -17747259 | DX67: 25860729 | EC67: -16055785 | EH67: 29488306 | EM67: -41936714 | ET67: 49229694
C68: Change in cash balances | H68: 107876000 | M68: 46082220 | R68: -13324945 | W68: -108017275 | AB68: 412863680 | AG68: 0 | AL68: 0 | AQ68: 0 | AV68: 0 | BA68: 0 | BF68: 0 | BK68: 0 | BP68: 0 | BU68: -75260000 | BZ68: -101942012 | CE68: -18484170 | CJ68: 3349854 | CO68: -22973000 | CT68: -53649787 | CY68: 41961434 | DD68: -13252498 | DI68: -40961985 | DN68: -19510192 | DS68: -18762903 | DX68: -420333 | EC68: -11986294 | EH68: 52747862 | EM68: -38107316 | ET68: 63834696
C69: Outstanding transfers from the Exchequer to PMG Accounts | ET69: 0
C70: Outstanding transfers from the Exchequer to PMG Accounts | H70: 0 | M70: -8786316 | R70: 10103585 | W70: -1521846 | AB70: 0 | AG70: 0 | AL70: 0 | AQ70: 0 | AV70: 0 | BA70: 0 | BF70: 0 | BK70: 0 | BP70: 0 | BU70: -204577 | BZ70: 14640346 | CE70: 34143659 | CJ70: -4349966 | CO70: 2527515 | CT70: -24856159 | CY70: 26866570 | DD70: -5977613 | DI70: 15416167 | DN70: -315227 | DS70: -6539100 | DX70: 59957836 | EC70: -1550683 | EH70: -80682653 | EM70: 32321208 | ET70: 17680862
C71: Cash flow adjustment | H71: 0 | M71: 0 | R71: 0 | W71: 0 | AB71: 0 | AG71: 0 | AL71: 0 | AQ71: 0 | AV71: 0 | BA71: 0 | BF71: 0 | BK71: 0 | BP71: 0 | BU71: 0 | BZ71: 0 | CE71: 0 | CJ71: 0 | CO71: 0 | CT71: 0 | CY71: 0 | DD71: 0 | DI71: 0 | DN71: 0 | DS71: 0 | DX71: 0 | EC71: 0 | EH71: 0 | EM71: 0 | ET71: 0
C72: Surrenders | H72: 4724025 | M72: 1088487 | R72: 1683039 | W72: 239249 | AB72: 0 | AG72: 0 | AL72: 0 | AQ72: 0 | AV72: 0 | BA72: 0 | BF72: 0 | BK72: 0 | BP72: 0 | BU72: 3010775 | BZ72: 14150157 | CE72: 0 | CJ72: 871744 | CO72: 0 | CT72: 126224 | CY72: 0 | DD72: 3836 | DI72: 1831061 | DN72: 2236273 | DS72: 1620990 | DX72: 89678 | EC72: 1022787 | EH72: 6347564 | EM72: 871744 | ET72: -13278413
C73: Late requests | H73: 0 | M73: 0 | R73: 0 | W73: -34139 | AB73: 0 | AG73: 0 | AL73: 0 | AQ73: 0 | AV73: 0 | BA73: 0 | BF73: 0 | BK73: 0 | BP73: 0 | BU73: -34139 | BZ73: -22695 | CE73: 0 | CJ73: 0 | CO73: 0 | CT73: -22185 | CY73: 0 | DD73: 0 | DI73: 0 | DN73: 0 | DS73: 0 | DX73: 0 | EC73: 0 | EH73: -510 | EM73: 0 | ET73: 22695
C74: Reconciliation between actual revenue and actual expenditure against NRF flows | ET74: 0
C75: Reconciliation between actual revenue and actual expenditure against NRF flows | H75: 0 | M75: 5906544 | R75: -12483951 | W75: 3209022 | AB75: 0 | AG75: 0 | AL75: 0 | AQ75: 0 | AV75: 0 | BA75: 0 | BF75: 0 | BK75: 0 | BP75: 0 | BU75: -3368384 | BZ75: -17992204 | CE75: -34158768 | CJ75: 665778 | CO75: -3529360 | CT75: 39129472 | CY75: -36409362 | DD75: 10350562 | DI75: -13234789 | DN75: -507486 | DS75: 5933754 | DX75: -33766452 | EC75: -3541595 | EH75: 51076043 | EM75: -37022350 | ET75: -19030146
ET76: 0
C77: Total borrowing | H77: 482580025 | M77: 80363106 | R77: 5443714 | W77: -63147813 | AB77: 412863680 | AG77: 0 | AL77: 0 | AQ77: 0 | AV77: 0 | BA77: 0 | BF77: 0 | BK77: 0 | BP77: 0 | BU77: 22659008 | BZ77: 551857709 | CE77: 51156457 | CJ77: 52369080 | CO77: 22296183 | CT77: 134529648 | CY77: 63673793 | DD77: 42866802 | DI77: 49729128 | DN77: 21403285 | DS77: -5255780 | DX77: 76102599 | EC77: 11551383 | EH77: 29818754 | EM77: 125821720 | ET77: -426035989
ET78: 0
BW81: -173061382
BW82: -173061382
M83: -28166888 | N83: 0 | O83: 0 | P83: 0 | Q83: 0 | R83: -22786372 | S83: 0 | T83: 0 | U83: 0 | V83: 0 | W83: -6415961 | X83: 0 | Y83: 0 | Z83: 0 | AA83: 0 | AB83: -26289577 | AC83: 0 | AD83: 0 | AE83: 0 | AF83: 0 | AG83: 5974831 | AH83: 0 | AI83: 0 | AJ83: 0 | AK83: 0 | AL83: -1315362 | AM83: 0 | AN83: 0 | AO83: 0 | AP83: 0 | AQ83: -31098565 | AR83: 0 | AS83: 0 | AT83: 0 | AU83: 0 | AV83: -295423 | AW83: 0 | AX83: 0 | AY83: 0 | AZ83: 0 | BA83: 33015782 | BB83: 0 | BC83: 0 | BD83: 0 | BE83: 0 | BF83: -15701292 | BG83: 0 | BH83: 0 | BI83: 0 | BJ83: 0 | BK83: 13560314 | BL83: 0 | BM83: 0 | BN83: 0 | BO83: 0 | BP83: -7899997 | BQ83: 0 | BR83: 0 | BS83: 0 | BT83: 0 | BU83: -57369221 | BW83: -59251622 | BZ83: 337007354
M84: -897700 | N84: 0 | O84: 0 | P84: 0 | Q84: 0 | R84: -10163670 | S84: 0 | T84: 0 | U84: 0 | V84: 0 | W84: -6652380 | X84: 0 | Y84: 0 | Z84: 0 | AA84: 0 | AB84: -16584620 | AC84: 0 | AD84: 0 | AE84: 0 | AF84: 0 | AG84: -12547400 | AH84: 0 | AI84: 0 | AJ84: 0 | AK84: 0 | AL84: -17988450 | AM84: 0 | AN84: 0 | AO84: 0 | AP84: 0 | AQ84: -12270800 | AR84: 0 | AS84: 0 | AT84: 0 | AU84: 0 | AV84: -9515730 | AW84: 0 | AX84: 0 | AY84: 0 | AZ84: 0 | BA84: -517060 | BB84: 0 | BC84: 0 | BD84: 0 | BE84: 0 | BF84: -8378430 | BG84: 0 | BH84: 0 | BI84: 0 | BJ84: 0 | BK84: -9552390 | BL84: 0 | BM84: 0 | BN84: 0 | BO84: 0 | BP84: -9638830 | BQ84: 0 | BR84: 0 | BS84: 0 | BT84: 0 | BU84: -17713750 | BW84: -113809760
M85: 0 | N85: 0 | O85: 0 | P85: 0 | Q85: 0 | R85: 0 | S85: 0 | T85: 0 | U85: 0 | V85: 0 | W85: 0 | X85: 0 | Y85: 0 | Z85: 0 | AA85: 0 | AB85: 0 | AC85: 0 | AD85: 0 | AE85: 0 | AF85: 0 | AG85: 0 | AH85: 0 | AI85: 0 | AJ85: 0 | AK85: 0 | AL85: 0 | AM85: 0 | AN85: 0 | AO85: 0 | AP85: 0 | AQ85: 0 | AR85: 0 | AS85: 0 | AT85: 0 | AU85: 0 | AV85: 0 | AW85: 0 | AX85: 0 | AY85: 0 | AZ85: 0 | BA85: 0 | BB85: 0 | BC85: 0 | BD85: 0 | BE85: 0 | BF85: 0 | BG85: 0 | BH85: 0 | BI85: 0 | BJ85: 0 | BK85: 0 | BL85: 0 | BM85: 0 | BN85: 0 | BO85: 0 | BP85: 0 | BQ85: 0 | BR85: 0 | BS85: 0 | BT85: 0 | BU85: 0 | BW85: 0
M86: -1807800 | N86: 0 | O86: 0 | P86: 0 | Q86: 0 | R86: -5406540 | S86: 0 | T86: 0 | U86: 0 | V86: 0 | W86: -3362780 | X86: 0 | Y86: 0 | Z86: 0 | AA86: 0 | AB86: -1390400 | AC86: 0 | AD86: 0 | AE86: 0 | AF86: 0 | AG86: 727100 | AH86: 0 | AI86: 0 | AJ86: 0 | AK86: 0 | AL86: 1077800 | AM86: 0 | AN86: 0 | AO86: 0 | AP86: 0 | AQ86: -187300 | AR86: 0 | AS86: 0 | AT86: 0 | AU86: 0 | AV86: 426670 | AW86: 0 | AX86: 0 | AY86: 0 | AZ86: 0 | BA86: 407000 | BB86: 0 | BC86: 0 | BD86: 0 | BE86: 0 | BF86: 496600 | BG86: 0 | BH86: 0 | BI86: 0 | BJ86: 0 | BK86: 27510 | BL86: 0 | BM86: 0 | BN86: 0 | BO86: 0 | BP86: 1507320 | BQ86: 0 | BR86: 0 | BS86: 0 | BT86: 0 | BU86: -10577120
M87: 192750 | N87: 0 | O87: 0 | P87: 0 | Q87: 0 | R87: -5121530 | S87: 0 | T87: 0 | U87: 0 | V87: 0 | W87: 2355260 | X87: 0 | Y87: 0 | Z87: 0 | AA87: 0 | AB87: -4295800 | AC87: 0 | AD87: 0 | AE87: 0 | AF87: 0 | AG87: -4060000 | AH87: 0 | AI87: 0 | AJ87: 0 | AK87: 0 | AL87: -4689950 | AM87: 0 | AN87: 0 | AO87: 0 | AP87: 0 | AQ87: -1089600 | AR87: 0 | AS87: 0 | AT87: 0 | AU87: 0 | AV87: 648800 | AW87: 0 | AX87: 0 | AY87: 0 | AZ87: 0 | BA87: 7467800 | BB87: 0 | BC87: 0 | BD87: 0 | BE87: 0 | BF87: 0 | BG87: 0 | BH87: 0 | BI87: 0 | BJ87: 0 | BL87: 0 | BM87: 0 | BN87: 0 | BO87: 0 | BP87: 2054100 | BQ87: 0 | BR87: 0 | BS87: 0 | BT87: 0 | BU87: -2573520
M88: -1030100 | N88: 0 | O88: 0 | P88: 0 | Q88: 0 | R88: -1953600 | S88: 0 | T88: 0 | U88: 0 | V88: 0 | W88: -2956500 | X88: 0 | Y88: 0 | Z88: 0 | AA88: 0 | AB88: -4166600 | AC88: 0 | AD88: 0 | AE88: 0 | AF88: 0 | AG88: -4360000 | AH88: 0 | AI88: 0 | AJ88: 0 | AK88: 0 | AL88: -7501300 | AM88: 0 | AN88: 0 | AO88: 0 | AP88: 0 | AQ88: -6284700 | AR88: 0 | AS88: 0 | AT88: 0 | AU88: 0 | AV88: -5731200 | AW88: 0 | AX88: 0 | AY88: 0 | AZ88: 0 | BA88: -3549100 | BB88: 0 | BC88: 0 | BD88: 0 | BE88: 0 | BF88: -3400000 | BG88: 0 | BH88: 0 | BI88: 0 | BJ88: 0 | BK88: -2348590 | BL88: 0 | BM88: 0 | BN88: 0 | BO88: 0 | BP88: -3551800 | BQ88: 0 | BR88: 0 | BS88: 0 | BT88: 0 | BU88: -5940200
M89: 1747450 | N89: 0 | O89: 0 | P89: 0 | Q89: 0 | R89: 2318000 | S89: 0 | T89: 0 | U89: 0 | V89: 0 | W89: -2688360 | X89: 0 | Y89: 0 | Z89: 0 | AA89: 0 | AB89: -6731820 | AC89: 0 | AD89: 0 | AE89: 0 | AF89: 0 | AG89: -4854500 | AH89: 0 | AI89: 0 | AJ89: 0 | AK89: 0 | AL89: -6875000 | AM89: 0 | AN89: 0 | AO89: 0 | AP89: 0 | AQ89: -4709200 | AR89: 0 | AS89: 0 | AT89: 0 | AU89: 0 | AV89: -4860000 | AW89: 0 | AX89: 0 | AY89: 0 | AZ89: 0 | BA89: -4842760 | BB89: 0 | BC89: 0 | BD89: 0 | BE89: 0 | BF89: -5475030 | BG89: 0 | BH89: 0 | BI89: 0 | BJ89: 0 | BK89: -7231310 | BL89: 0 | BM89: 0 | BN89: 0 | BO89: 0 | BP89: -9648450 | BQ89: 0 | BR89: 0 | BS89: 0 | BT89: 0 | BU89: 1377090
M90: 0 | N90: 0 | O90: 0 | P90: 0 | Q90: 0 | R90: 0 | S90: 0 | T90: 0 | U90: 0 | V90: 0 | W90: 0 | X90: 0 | Y90: 0 | Z90: 0 | AA90: 0 | AB90: 0 | AC90: 0 | AD90: 0 | AE90: 0 | AF90: 0 | AG90: 0 | AH90: 0 | AI90: 0 | AJ90: 0 | AK90: 0 | AL90: 0 | AM90: 0 | AN90: 0 | AO90: 0 | AP90: 0 | AQ90: 0 | AR90: 0 | AS90: 0 | AT90: 0 | AU90: 0 | AV90: 0 | AW90: 0 | AX90: 0 | AY90: 0 | AZ90: 0 | BA90: 0 | BB90: 0 | BC90: 0 | BD90: 0 | BE90: 0 | BF90: 0 | BG90: 0 | BH90: 0 | BI90: 0 | BJ90: 0 | BK90: 0 | BL90: 0 | BM90: 0 | BN90: 0 | BO90: 0 | BP90: 0 | BQ90: 0 | BR90: 0 | BS90: 0 | BT90: 0 | BU90: 0
M91: -27269188 | N91: 0 | O91: 0 | P91: 0 | Q91: 0 | R91: -12622702 | S91: 0 | T91: 0 | U91: 0 | V91: 0 | W91: 236419 | X91: 0 | Y91: 0 | Z91: 0 | AA91: 0 | AB91: -9704957 | AC91: 0 | AD91: 0 | AE91: 0 | AF91: 0 | AG91: 18522231 | AH91: 0 | AI91: 0 | AJ91: 0 | AK91: 0 | AL91: 16673088 | AM91: 0 | AN91: 0 | AO91: 0 | AP91: 0 | AQ91: -18827765 | AR91: 0 | AS91: 0 | AT91: 0 | AU91: 0 | AV91: 9220307 | AW91: 0 | AX91: 0 | AY91: 0 | AZ91: 0 | BA91: 33532842 | BB91: 0 | BC91: 0 | BD91: 0 | BE91: 0 | BF91: -7322862 | BG91: 0 | BH91: 0 | BI91: 0 | BJ91: 0 | BK91: 23112704 | BL91: 0 | BM91: 0 | BN91: 0 | BO91: 0 | BP91: 1738833 | BQ91: 0 | BR91: 0 | BS91: 0 | BT91: 0 | BU91: -39655471
M92: 0 | N92: 0 | O92: 0 | P92: 0 | Q92: 0 | R92: 0 | S92: 0 | T92: 0 | U92: 0 | V92: 0 | W92: 0 | X92: 0 | Y92: 0 | Z92: 0 | AA92: 0 | AB92: 0 | AC92: 0 | AD92: 0 | AE92: 0 | AF92: 0 | AG92: 0 | AH92: 0 | AI92: 0 | AJ92: 0 | AK92: 0 | AL92: 0 | AM92: 0 | AN92: 0 | AO92: 0 | AP92: 0 | AQ92: 0 | AR92: 0 | AS92: 0 | AT92: 0 | AU92: 0 | AV92: 0 | AW92: 0 | AX92: 0 | AY92: 0 | AZ92: 0 | BA92: 0 | BB92: 0 | BC92: 0 | BD92: 0 | BE92: 0 | BF92: 0 | BG92: 0 | BH92: 0 | BI92: 0 | BJ92: 0 | BK92: 0 | BL92: 0 | BM92: 0 | BN92: 0 | BO92: 0 | BP92: 0 | BQ92: 0 | BR92: 0 | BS92: 0 | BT92: 0 | BU92: 0
M93: -6194342 | N93: 0 | O93: 0 | P93: 0 | Q93: 0 | R93: -14505244 | S93: 0 | T93: 0 | U93: 0 | V93: 0 | W93: -19665991 | X93: 0 | Y93: 0 | Z93: 0 | AA93: 0 | AB93: -60600922 | AC93: 0 | AD93: 0 | AE93: 0 | AF93: 0 | AG93: -37229982 | AH93: 0 | AI93: 0 | AJ93: 0 | AK93: 0 | AL93: -50427153 | AM93: 0 | AN93: 0 | AO93: 0 | AP93: 0 | AQ93: -50571945 | AR93: 0 | AS93: 0 | AT93: 0 | AU93: 0 | AV93: -39211461 | AW93: 0 | AX93: 0 | AY93: 0 | AZ93: 0 | BA93: -45507261 | BB93: 0 | BC93: 0 | BD93: 0 | BE93: 0 | BF93: -34540578 | BG93: 0 | BH93: 0 | BI93: 0 | BJ93: 0 | BK93: -41167482 | BL93: 0 | BM93: 0 | BN93: 0 | BO93: 0 | BP93: 7569549 | BQ93: 0 | BR93: 0 | BS93: 0 | BT93: 0 | BU93: -40365577
M94: -6317074 | N94: 0 | O94: 0 | P94: 0 | Q94: 0 | R94: -14582534 | S94: 0 | T94: 0 | U94: 0 | V94: 0 | W94: -19721666 | X94: 0 | Y94: 0 | Z94: 0 | AA94: 0 | AB94: -60600922 | AC94: 0 | AD94: 0 | AE94: 0 | AF94: 0 | AG94: -37229982 | AH94: 0 | AI94: 0 | AJ94: 0 | AK94: 0 | AL94: -50427153 | AM94: 0 | AN94: 0 | AO94: 0 | AP94: 0 | AQ94: -50571945 | AR94: 0 | AS94: 0 | AT94: 0 | AU94: 0 | AV94: -39125584 | AW94: 0 | AX94: 0 | AY94: 0 | AZ94: 0 | BA94: -45797599 | BB94: 0 | BC94: 0 | BD94: 0 | BE94: 0 | BF94: -34673258 | BG94: 0 | BH94: 0 | BI94: 0 | BJ94: 0 | BK94: -42405005 | BL94: 0 | BM94: 0 | BN94: 0 | BO94: 0 | BP94: 7569549 | BQ94: 0 | BR94: 0 | BS94: 0 | BT94: 0 | BU94: -40621274
M95: -6003286 | N95: 0 | O95: 0 | P95: 0 | Q95: 0 | R95: -14133876 | S95: 0 | T95: 0 | U95: 0 | V95: 0 | W95: -22024653 | X95: 0 | Y95: 0 | Z95: 0 | AA95: 0 | AB95: -69933031 | AC95: 0 | AD95: 0 | AE95: 0 | AF95: 0 | AG95: -44319358 | AH95: 0 | AI95: 0 | AJ95: 0 | AK95: 0 | AL95: -61486843 | AM95: 0 | AN95: 0 | AO95: 0 | AP95: 0 | AQ95: -59931421 | AR95: 0 | AS95: 0 | AT95: 0 | AU95: 0 | AV95: -46634910 | AW95: 0 | AX95: 0 | AY95: 0 | AZ95: 0 | BA95: -52191398 | BB95: 0 | BC95: 0 | BD95: 0 | BE95: 0 | BF95: -39060638 | BG95: 0 | BH95: 0 | BI95: 0 | BJ95: 0 | BK95: -49399464 | BL95: 0 | BM95: 0 | BN95: 0 | BO95: 0 | BP95: -48828037 | BQ95: 0 | BR95: 0 | BS95: 0 | BT95: 0 | BU95: -42161815
M96: -1345270 | N96: 0 | O96: 0 | P96: 0 | Q96: 0 | R96: -419292 | S96: 0 | T96: 0 | U96: 0 | V96: 0 | W96: 2388338 | X96: 0 | Y96: 0 | Z96: 0 | AA96: 0 | AB96: 8992564 | AC96: 0 | AD96: 0 | AE96: 0 | AF96: 0 | AG96: 6877121 | AH96: 0 | AI96: 0 | AJ96: 0 | AK96: 0 | AL96: 10836667 | AM96: 0 | AN96: 0 | AO96: 0 | AP96: 0 | AQ96: 9026146 | AR96: 0 | AS96: 0 | AT96: 0 | AU96: 0 | AV96: 7195171 | AW96: 0 | AX96: 0 | AY96: 0 | AZ96: 0 | BA96: 6333842 | BB96: 0 | BC96: 0 | BD96: 0 | BE96: 0 | BF96: 3989426 | BG96: 0 | BH96: 0 | BI96: 0 | BJ96: 0 | BK96: 6713436 | BL96: 0 | BM96: 0 | BN96: 0 | BO96: 0 | BP96: 6983980 | BQ96: 0 | BR96: 0 | BS96: 0 | BT96: 0 | BU96: 623776 | BW96: 0
BW97: 0
M98: 1031482 | N98: 0 | O98: 0 | P98: 0 | Q98: 0 | R98: -29366 | S98: 0 | T98: 0 | U98: 0 | V98: 0 | W98: -85351 | X98: 0 | Y98: 0 | Z98: 0 | AA98: 0 | AB98: 339545 | AC98: 0 | AD98: 0 | AE98: 0 | AF98: 0 | AG98: 212255 | AH98: 0 | AI98: 0 | AJ98: 0 | AK98: 0 | AL98: 223023 | AM98: 0 | AN98: 0 | AO98: 0 | AP98: 0 | AQ98: 333330 | AR98: 0 | AS98: 0 | AT98: 0 | AU98: 0 | AV98: 314155 | AW98: 0 | AX98: 0 | AY98: 0 | AZ98: 0 | BA98: 59957 | BB98: 0 | BC98: 0 | BD98: 0 | BE98: 0 | BF98: 397954 | BG98: 0 | BH98: 0 | BI98: 0 | BJ98: 0 | BK98: 281023 | BL98: 0 | BM98: 0 | BN98: 0 | BO98: 0 | BP98: 49413606 | BQ98: 0 | BR98: 0 | BS98: 0 | BT98: 0 | BU98: 916765
M99: 0 | N99: 0 | O99: 0 | P99: 0 | Q99: 0 | R99: 0 | S99: 0 | T99: 0 | U99: 0 | V99: 0 | W99: 0 | X99: 0 | Y99: 0 | Z99: 0 | AA99: 0 | AB99: 0 | AC99: 0 | AD99: 0 | AE99: 0 | AF99: 0 | AG99: 0 | AH99: 0 | AI99: 0 | AJ99: 0 | AK99: 0 | AL99: 0 | AM99: 0 | AN99: 0 | AO99: 0 | AP99: 0 | AQ99: 0 | AR99: 0 | AS99: 0 | AT99: 0 | AU99: 0 | AV99: 0 | AW99: 0 | AX99: 0 | AY99: 0 | AZ99: 0 | BA99: 0 | BB99: 0 | BC99: 0 | BD99: 0 | BE99: 0 | BF99: 0 | BG99: 0 | BH99: 0 | BI99: 0 | BJ99: 0 | BK99: 0 | BL99: 0 | BM99: 0 | BN99: 0 | BO99: 0 | BP99: 0 | BQ99: 0 | BR99: 0 | BS99: 0 | BT99: 0 | BU99: 0 | BW99: 0
M100: 0 | N100: 0 | O100: 0 | P100: 0 | Q100: 0 | R100: 0 | S100: 0 | T100: 0 | U100: 0 | V100: 0 | W100: 0 | X100: 0 | Y100: 0 | Z100: 0 | AA100: 0 | AB100: 0 | AC100: 0 | AD100: 0 | AE100: 0 | AF100: 0 | AG100: 0 | AH100: 0 | AI100: 0 | AJ100: 0 | AK100: 0 | AL100: 0 | AM100: 0 | AN100: 0 | AO100: 0 | AP100: 0 | AQ100: 0 | AR100: 0 | AS100: 0 | AT100: 0 | AU100: 0 | AV100: 0 | AW100: 0 | AX100: 0 | AY100: 0 | AZ100: 0 | BA100: 0 | BB100: 0 | BC100: 0 | BD100: 0 | BE100: 0 | BF100: 0 | BG100: 0 | BH100: 0 | BI100: 0 | BJ100: 0 | BK100: 0 | BL100: 0 | BM100: 0 | BN100: 0 | BO100: 0 | BP100: 0 | BQ100: 0 | BR100: 0 | BS100: 0 | BT100: 0 | BU100: 0 | BW100: 0
M101: 122732 | N101: 0 | O101: 0 | P101: 0 | Q101: 0 | R101: 77290 | S101: 0 | T101: 0 | U101: 0 | V101: 0 | W101: 55675 | X101: 0 | Y101: 0 | Z101: 0 | AA101: 0 | AB101: 0 | AC101: 0 | AD101: 0 | AE101: 0 | AF101: 0 | AG101: 0 | AH101: 0 | AI101: 0 | AJ101: 0 | AK101: 0 | AL101: 0 | AM101: 0 | AN101: 0 | AO101: 0 | AP101: 0 | AQ101: 0 | AR101: 0 | AS101: 0 | AT101: 0 | AU101: 0 | AV101: 0 | AW101: 0 | AX101: 0 | AY101: 0 | AZ101: 0 | BA101: 0 | BB101: 0 | BC101: 0 | BD101: 0 | BE101: 0 | BF101: 0 | BG101: 0 | BH101: 0 | BI101: 0 | BJ101: 0 | BK101: -41714 | BL101: 0 | BM101: 0 | BN101: 0 | BO101: 0 | BP101: 0 | BQ101: 0 | BR101: 0 | BS101: 0 | BT101: 0 | BU101: 255697 | BW101: 0
M102: 11663028 | N102: 0 | O102: 0 | P102: 0 | Q102: 0 | R102: 3767776 | S102: 0 | T102: 0 | U102: 0 | V102: 0 | W102: 7710681 | X102: 0 | Y102: 0 | Z102: 0 | AA102: 0 | AB102: 0 | AC102: 0 | AD102: 0 | AE102: 0 | AF102: 0 | AG102: 0 | AH102: 0 | AI102: 0 | AJ102: 0 | AK102: 0 | AL102: 0 | AM102: 0 | AN102: 0 | AO102: 0 | AP102: 0 | AQ102: 0 | AR102: 0 | AS102: 0 | AT102: 0 | AU102: 0 | AV102: 0 | AW102: 0 | AX102: 0 | AY102: 0 | AZ102: 0 | BA102: 0 | BB102: 0 | BC102: 0 | BD102: 0 | BE102: 0 | BF102: 0 | BG102: 0 | BH102: 0 | BI102: 0 | BJ102: 0 | BK102: -7577210 | BL102: 0 | BM102: 0 | BN102: 0 | BO102: 0 | BP102: 0 | BQ102: 0 | BR102: 0 | BS102: 0 | BT102: 0 | BU102: 23141485 | BW102: 0
M103: -1360296 | N103: 0 | O103: 0 | P103: 0 | Q103: 0 | R103: -515486 | S103: 0 | T103: 0 | U103: 0 | V103: 0 | W103: -670006 | X103: 0 | Y103: 0 | Z103: 0 | AA103: 0 | AB103: 0 | AC103: 0 | AD103: 0 | AE103: 0 | AF103: 0 | AG103: 0 | AH103: 0 | AI103: 0 | AJ103: 0 | AK103: 0 | AL103: 0 | AM103: 0 | AN103: 0 | AO103: 0 | AP103: 0 | AQ103: 0 | AR103: 0 | AS103: 0 | AT103: 0 | AU103: 0 | AV103: 0 | AW103: 0 | AX103: 0 | AY103: 0 | AZ103: 0 | BA103: 0 | BB103: 0 | BC103: 0 | BD103: 0 | BE103: 0 | BF103: 0 | BG103: 0 | BH103: 0 | BI103: 0 | BJ103: 0 | BK103: 730496 | BL103: 0 | BM103: 0 | BN103: 0 | BO103: 0 | BP103: 0 | BQ103: 0 | BR103: 0 | BS103: 0 | BT103: 0 | BU103: -2545788
M104: -10180000 | N104: 0 | O104: 0 | P104: 0 | Q104: 0 | R104: -3175000 | S104: 0 | T104: 0 | U104: 0 | V104: 0 | W104: -6985000 | X104: 0 | Y104: 0 | Z104: 0 | AA104: 0 | AB104: 0 | AC104: 0 | AD104: 0 | AE104: 0 | AF104: 0 | AG104: 0 | AH104: 0 | AI104: 0 | AJ104: 0 | AK104: 0 | AL104: 0 | AM104: 0 | AN104: 0 | AO104: 0 | AP104: 0 | AQ104: 0 | AR104: 0 | AS104: 0 | AT104: 0 | AU104: 0 | AV104: 0 | AW104: 0 | AX104: 0 | AY104: 0 | AZ104: 0 | BA104: 0 | BB104: 0 | BC104: 0 | BD104: 0 | BE104: 0 | BF104: 0 | BG104: 0 | BH104: 0 | BI104: 0 | BJ104: 0 | BK104: 6805000 | BL104: 0 | BM104: 0 | BN104: 0 | BO104: 0 | BP104: 0 | BQ104: 0 | BR104: 0 | BS104: 0 | BT104: 0 | BU104: -20340000 | BW104: 0
M105: 0 | N105: 0 | O105: 0 | P105: 0 | Q105: 0 | R105: 0 | S105: 0 | T105: 0 | U105: 0 | V105: 0 | W105: 0 | X105: 0 | Y105: 0 | Z105: 0 | AA105: 0 | AB105: 0 | AC105: 0 | AD105: 0 | AE105: 0 | AF105: 0 | AG105: 0 | AH105: 0 | AI105: 0 | AJ105: 0 | AK105: 0 | AL105: 0 | AM105: 0 | AN105: 0 | AO105: 0 | AP105: 0 | AQ105: 0 | AR105: 0 | AS105: 0 | AT105: 0 | AU105: 0 | AV105: 0 | AW105: 0 | AX105: 0 | AY105: 0 | AZ105: 0 | BA105: 0 | BB105: 0 | BC105: 0 | BD105: 0 | BE105: 0 | BF105: 0 | BG105: 0 | BH105: 0 | BI105: 0 | BJ105: 0 | BK105: 0 | BL105: 0 | BM105: 0 | BN105: 0 | BO105: 0 | BP105: 0 | BQ105: 0 | BR105: 0 | BS105: 0 | BT105: 0 | BU105: 0 | BW105: 0
M106: 0 | N106: 0 | O106: 0 | P106: 0 | Q106: 0 | R106: 0 | S106: 0 | T106: 0 | U106: 0 | V106: 0 | W106: 0 | X106: 0 | Y106: 0 | Z106: 0 | AA106: 0 | AB106: 0 | AC106: 0 | AD106: 0 | AE106: 0 | AF106: 0 | AG106: 0 | AH106: 0 | AI106: 0 | AJ106: 0 | AK106: 0 | AL106: 0 | AM106: 0 | AN106: 0 | AO106: 0 | AP106: 0 | AQ106: 0 | AR106: 0 | AS106: 0 | AT106: 0 | AU106: 0 | AV106: -85877 | AW106: 0 | AX106: 0 | AY106: 0 | AZ106: 0 | BA106: 290338 | BB106: 0 | BC106: 0 | BD106: 0 | BE106: 0 | BF106: 132680 | BG106: 0 | BH106: 0 | BI106: 0 | BJ106: 0 | BK106: 1279237 | BL106: 0 | BM106: 0 | BN106: 0 | BO106: 0 | BP106: 0 | BQ106: 0 | BR106: 0 | BS106: 0 | BT106: 0 | BU106: 0 | BW106: 0
M107: -292275 | N107: 0 | O107: 0 | P107: 0 | Q107: 0 | R107: -29682 | S107: 0 | T107: 0 | U107: 0 | V107: 0 | W107: 927619 | X107: 0 | Y107: 0 | Z107: 0 | AA107: 0 | AB107: 0 | AC107: 0 | AD107: 0 | AE107: 0 | AF107: 0 | AG107: -41191 | AH107: 0 | AI107: 0 | AJ107: 0 | AK107: 0 | AL107: -18552 | AM107: 0 | AN107: 0 | AO107: 0 | AP107: 0 | AQ107: 0 | AR107: 0 | AS107: 0 | AT107: 0 | AU107: 0 | AV107: -85877 | AW107: 0 | AX107: 0 | AY107: 0 | AZ107: 0 | BA107: 0 | BB107: 0 | BC107: 0 | BD107: 0 | BE107: 0 | BF107: 0 | BG107: 0 | BH107: 0 | BI107: 0 | BJ107: 0 | BK107: 0 | BL107: 0 | BM107: 0 | BN107: 0 | BO107: 0 | BP107: -2584491 | BQ107: 0 | BR107: 0 | BS107: 0 | BT107: 0 | BU107: 605662
M108: 292275 | N108: 0 | O108: 0 | P108: 0 | Q108: 0 | R108: 29682 | S108: 0 | T108: 0 | U108: 0 | V108: 0 | W108: -927619 | X108: 0 | Y108: 0 | Z108: 0 | AA108: 0 | AB108: 0 | AC108: 0 | AD108: 0 | AE108: 0 | AF108: 0 | AG108: 41191 | AH108: 0 | AI108: 0 | AJ108: 0 | AK108: 0 | AL108: 18552 | AM108: 0 | AN108: 0 | AO108: 0 | AP108: 0 | AQ108: 0 | AR108: 0 | AS108: 0 | AT108: 0 | AU108: 0 | AV108: 0 | AW108: 0 | AX108: 0 | AY108: 0 | AZ108: 0 | BA108: 290338 | BB108: 0 | BC108: 0 | BD108: 0 | BE108: 0 | BF108: 132680 | BG108: 0 | BH108: 0 | BI108: 0 | BJ108: 0 | BK108: 1279237 | BL108: 0 | BM108: 0 | BN108: 0 | BO108: 0 | BP108: 2584491 | BQ108: 0 | BR108: 0 | BS108: 0 | BT108: 0 | BU108: -605662 | BW108: 0
M109: 0 | N109: 0 | O109: 0 | P109: 0 | Q109: 0 | R109: 0 | S109: 0 | T109: 0 | U109: 0 | V109: 0 | W109: 0 | X109: 0 | Y109: 0 | Z109: 0 | AA109: 0 | AB109: 0 | AC109: 0 | AD109: 0 | AE109: 0 | AF109: 0 | AG109: 0 | AH109: 0 | AI109: 0 | AJ109: 0 | AK109: 0 | AL109: 0 | AM109: 0 | AN109: 0 | AO109: 0 | AP109: 0 | AQ109: 0 | AR109: 0 | AS109: 0 | AT109: 0 | AU109: 0 | AV109: 0 | AW109: 0 | AX109: 0 | AY109: 0 | AZ109: 0 | BA109: 0 | BB109: 0 | BC109: 0 | BD109: 0 | BE109: 0 | BF109: 0 | BG109: 0 | BH109: 0 | BI109: 0 | BJ109: 0 | BK109: 0 | BL109: 0 | BM109: 0 | BN109: 0 | BO109: 0 | BP109: 0 | BQ109: 0 | BR109: 0 | BS109: 0 | BT109: 0 | BU109: 0 | BW109: 0
M110: 0 | N110: 0 | O110: 0 | P110: 0 | Q110: 0 | R110: 0 | S110: 0 | T110: 0 | U110: 0 | V110: 0 | W110: 0 | X110: 0 | Y110: 0 | Z110: 0 | AA110: 0 | AB110: 0 | AC110: 0 | AD110: 0 | AE110: 0 | AF110: 0 | AG110: 0 | AH110: 0 | AI110: 0 | AJ110: 0 | AK110: 0 | AL110: 0 | AM110: 0 | AN110: 0 | AO110: 0 | AP110: 0 | AQ110: 0 | AR110: 0 | AS110: 0 | AT110: 0 | AU110: 0 | AV110: 0 | AW110: 0 | AX110: 0 | AY110: 0 | AZ110: 0 | BA110: 0 | BB110: 0 | BC110: 0 | BD110: 0 | BE110: 0 | BF110: 0 | BG110: 0 | BH110: 0 | BI110: 0 | BJ110: 0 | BK110: 0 | BL110: 0 | BM110: 0 | BN110: 0 | BO110: 0 | BP110: 0 | BQ110: 0 | BR110: 0 | BS110: 0 | BT110: 0 | BU110: 0
M111: 0 | N111: 0 | O111: 0 | P111: 0 | Q111: 0 | R111: 0 | S111: 0 | T111: 0 | U111: 0 | V111: 0 | W111: 0 | X111: 0 | Y111: 0 | Z111: 0 | AA111: 0 | AB111: 0 | AC111: 0 | AD111: 0 | AE111: 0 | AF111: 0 | AG111: 0 | AH111: 0 | AI111: 0 | AJ111: 0 | AK111: 0 | AL111: 0 | AM111: 0 | AN111: 0 | AO111: 0 | AP111: 0 | AQ111: 0 | AR111: 0 | AS111: 0 | AT111: 0 | AU111: 0 | AV111: 0 | AW111: 0 | AX111: 0 | AY111: 0 | AZ111: 0 | BA111: 0 | BB111: 0 | BC111: 0 | BD111: 0 | BE111: 0 | BF111: 0 | BG111: 0 | BH111: 0 | BI111: 0 | BJ111: 0 | BK111: 0 | BL111: 0 | BM111: 0 | BN111: 0 | BO111: 0 | BP111: 0 | BQ111: 0 | BR111: 0 | BS111: 0 | BT111: 0 | BU111: 0
M112: 0 | N112: 0 | O112: 0 | P112: 0 | Q112: 0 | R112: 0 | S112: 0 | T112: 0 | U112: 0 | V112: 0 | W112: 0 | X112: 0 | Y112: 0 | Z112: 0 | AA112: 0 | AB112: 0 | AC112: 0 | AD112: 0 | AE112: 0 | AF112: 0 | AG112: 0 | AH112: 0 | AI112: 0 | AJ112: 0 | AK112: 0 | AL112: 0 | AM112: 0 | AN112: 0 | AO112: 0 | AP112: 0 | AQ112: 0 | AR112: 0 | AS112: 0 | AT112: 0 | AU112: 0 | AV112: 0 | AW112: 0 | AX112: 0 | AY112: 0 | AZ112: 0 | BA112: 0 | BB112: 0 | BC112: 0 | BD112: 0 | BE112: 0 | BF112: 0 | BG112: 0 | BH112: 0 | BI112: 0 | BJ112: 0 | BK112: 0 | BL112: 0 | BM112: 0 | BN112: 0 | BO112: 0 | BP112: 0 | BQ112: 0 | BR112: 0 | BS112: 0 | BT112: 0 | BU112: 0
BW113: 0
BW114: 0
BW115: 0
BW116: 0
BW119: 0
BW120: 0
BW122: 0
BW123: 0
BW124: 0
BW126: 0
BW127: 0
BW129: 0
BW130: 0
BW131: 0
BW133: 0
BW134: 0
BW137: 1
BW138: 0
BW140: 0
BW141: 0
BW142: 0
BW143: 0
BW145: 1
BW147: -173061381

Sheet Table 3.1
M1: 14109076861
E6: 0
D7: Table 3.1 Issuance of domestic long-term loans | E7: 0
E8: 0 | G8: 2021/22 | BY8: 2020/21
E9: 0 | G9: Budget | L9: April | Q9: May | V9: June | AA9: July | AF9: August | AK9: September | AP9: October | AU9: November | AZ9: December | BE9: January | BJ9: February | BO9: March | BT9: Year to date | BY9: Preliminary | CD9: April | CI9: May | CN9: June | CS9: July | CX9: August | DC9: September | DH9: October | DM9: November | DR9: December | DW9: January | EB9: February | EG9: March | EL9: Year to date
D10: R thousand | E10: 0 | G10: estimate | BY10: outcome
D12: Domestic long-term loans (gross) | G12: 403373000 | L12: 44205422 | Q12: 34665188 | V12: 36242984 | AA12: 0 | AF12: 0 | AK12: 0 | AP12: 0 | AU12: 0 | AZ12: 0 | BE12: 0 | BJ12: 0 | BO12: 0 | BT12: 115113594 | BY12: 617237060 | CD12: 38837955 | CI12: 45060969 | CN12: 49629337 | CS12: 69933031 | CX12: 44360549 | DC12: 61505395 | DH12: 59931421 | DM12: 46720787 | DR12: 52191398 | DW12: 39060638 | EB12: 56976674 | EG12: 51412528 | EL12: 133528261
D13: Loans issued for financing | G13: 403373000 | L13: 32347333 | Q13: 30897412 | V13: 27576195 | AA13: 0 | AF13: 0 | AK13: 0 | AP13: 0 | AU13: 0 | AZ13: 0 | BE13: 0 | BJ13: 0 | BO13: 0 | BT13: 90820940 | BY13: 604767854 | CD13: 38350619 | CI13: 45031287 | CN13: 49600848 | CS13: 69933031 | CX13: 44319358 | DC13: 61486843 | DH13: 59931421 | DM13: 46634910 | DR13: 52191398 | DW13: 39060638 | EB13: 49399464 | EG13: 48828037 | EL13: 132982754
D14: Loans issued for switches | G14: 0 | L14: 11663028 | Q14: 3767776 | V14: 7710681 | AA14: 0 | AF14: 0 | AK14: 0 | AP14: 0 | AU14: 0 | AZ14: 0 | BE14: 0 | BJ14: 0 | BO14: 0 | BT14: 23141485 | BY14: 7577210 | CD14: 0 | CI14: 0 | CN14: 0 | CS14: 0 | CX14: 0 | DC14: 0 | DH14: 0 | DM14: 0 | DR14: 0 | DW14: 0 | EB14: 7577210 | EG14: 0 | EL14: 0
D15: Loans issued for repo's (Repo out) | G15: 0 | L15: 195061 | Q15: 0 | V15: 956108 | AA15: 0 | AF15: 0 | AK15: 0 | AP15: 0 | AU15: 0 | AZ15: 0 | BE15: 0 | BJ15: 0 | BO15: 0 | BT15: 1151169 | BY15: 4891996 | CD15: 487336 | CI15: 29682 | CN15: 28489 | CS15: 0 | CX15: 41191 | DC15: 18552 | DH15: 0 | DM15: 85877 | DR15: 0 | DW15: 0 | EB15: 0 | EG15: 2584491 | EL15: 545507
D16: Loans issued for extraordinary purposes | G16: 0 | L16: 0 | Q16: 0 | V16: 0 | AA16: 0 | AF16: 0 | AK16: 0 | AP16: 0 | AU16: 0 | AZ16: 0 | BE16: 0 | BJ16: 0 | BO16: 0 | BT16: 0 | BY16: 0 | CD16: 0 | CI16: 0 | CN16: 0 | CS16: 0 | CX16: 0 | DC16: 0 | DH16: 0 | DM16: 0 | DR16: 0 | DW16: 0 | EB16: 0 | EG16: 0 | EL16: 0
D18: Loans issued for financing (gross) | G18: 403373000 | L18: 32347333 | Q18: 30897412 | V18: 27576195 | AA18: 0 | AF18: 0 | AK18: 0 | AP18: 0 | AU18: 0 | AZ18: 0 | BE18: 0 | BJ18: 0 | BO18: 0 | BT18: 90820940 | BY18: 604767854 | CD18: 38350619 | CI18: 45031287 | CN18: 49600848 | CS18: 69933031 | CX18: 44319358 | DC18: 61486843 | DH18: 59931421 | DM18: 46634910 | DR18: 52191398 | DW18: 39060638 | EB18: 49399464 | EG18: 48828037 | EL18: 132982754
D19: Cash value | G19: 376500000 | L19: 25697745 | Q19: 24482156 | V19: 21524984 | AA19: 0 | AF19: 0 | AK19: 0 | AP19: 0 | AU19: 0 | AZ19: 0 | BE19: 0 | BJ19: 0 | BO19: 0 | BT19: 71704885 | BY19: 503650332 | CD19: 32408976 | CI19: 40737984 | CN19: 41826856 | CS19: 59773525 | CX19: 35573638 | DC19: 47078533 | DH19: 49799971 | DM19: 37061635 | DR19: 44964861 | DW19: 34563245 | EB19: 39851499 | EG19: 40009609 | EL19: 114973816
D20: Discount | G20: 26873000 | L20: 5645039 | Q20: 4477496 | V20: 3697051 | AA20: 0 | AF20: 0 | AK20: 0 | AP20: 0 | AU20: 0 | AZ20: 0 | BE20: 0 | BJ20: 0 | BO20: 0 | BT20: 13819586 | BY20: 81391715 | CD20: 4299769 | CI20: 4058204 | CN20: 6085389 | CS20: 8992564 | CX20: 6877121 | DC20: 10836667 | DH20: 9026146 | DM20: 7195171 | DR20: 6333842 | DW20: 3989426 | EB20: 6713436 | EG20: 6983980 | EL20: 14443362
D21: Premium | G21: 0 | L21: -493 | Q21: -193807 | V21: -200 | AA21: 0 | AF21: 0 | AK21: 0 | AP21: 0 | AU21: 0 | AZ21: 0 | BE21: 0 | BJ21: 0 | BO21: 0 | BT21: -194500 | BY21: -14327910 | CD21: -376261 | CI21: -1466989 | CN21: -764417 | CS21: -2780721 | CX21: -1213553 | DC21: -716835 | DH21: -2010551 | DM21: -777625 | DR21: -2213621 | DW21: -1216723 | EB21: -33827 | EG21: -756787 | EL21: -2607667
D22: Revaluation | G22: 0 | L22: 1005042 | Q22: 2131567 | V22: 2354360 | AA22: 0 | AF22: 0 | AK22: 0 | AP22: 0 | AU22: 0 | AZ22: 0 | BE22: 0 | BJ22: 0 | BO22: 0 | BT22: 5490969 | BY22: 34053717 | CD22: 2018135 | CI22: 1702088 | CN22: 2453020 | CS22: 3947663 | CX22: 3082152 | DC22: 4288478 | DH22: 3115855 | DM22: 3155729 | DR22: 3106316 | DW22: 1724690 | EB22: 2868356 | EG22: 2591235 | EL22: 6173243
D24: Retail Bonds | G24: 3500000 | L24: 475483 | Q24: 400868 | V24: 392835 | AA24: 0 | AF24: 0 | AK24: 0 | AP24: 0 | AU24: 0 | AZ24: 0 | BE24: 0 | BJ24: 0 | BO24: 0 | BT24: 1269186 | BY24: 8516112 | CD24: 2634484 | CI24: 1723199 | CN24: 575828 | CS24: 349368 | CX24: 358206 | DC24: 536365 | DH24: 368566 | DM24: 392181 | DR24: 341082 | DW24: 337948 | EB24: 281083 | EG24: 617802 | EL24: 4933511
D25: Cash value | G25: 3500000 | L25: 475483 | Q25: 400868 | V25: 392835 | AA25: 0 | AF25: 0 | AK25: 0 | AP25: 0 | AU25: 0 | AZ25: 0 | BE25: 0 | BJ25: 0 | BO25: 0 | BT25: 1269186 | BY25: 8516112 | CD25: 2634484 | CI25: 1723199 | CN25: 575828 | CS25: 349368 | CX25: 358206 | DC25: 536365 | DH25: 368566 | DM25: 392181 | DR25: 341082 | DW25: 337948 | EB25: 281083 | EG25: 617802 | EL25: 4933511
D27: I2025 (2.00% 2025/01/31) | G27: 0 | L27: 484328 | Q27: 850726 | V27: 390117 | AA27: 0 | AF27: 0 | AK27: 0 | AP27: 0 | AU27: 0 | AZ27: 0 | BE27: 0 | BJ27: 0 | BO27: 0 | BT27: 1725171 | BY27: 23076045 | CD27: 1042197 | CI27: 1058402 | CN27: 2103455 | CS27: 2696004 | CX27: 3471351 | DC27: 2609265 | DH27: 1241741 | DM27: 1223103 | DR27: 2240063 | DW27: 3007073 | EB27: 2383391 | EG27: 0 | EL27: 4204054
D28: Cash value | G28: 0 | L28: 314427 | Q28: 556283 | V28: 254616 | AA28: 0 | AF28: 0 | AK28: 0 | AP28: 0 | AU28: 0 | AZ28: 0 | BE28: 0 | BJ28: 0 | BO28: 0 | BT28: 1125326 | BY28: 14429784 | CD28: 617957 | CI28: 633515 | CN28: 1259969 | CS28: 1607966 | CX28: 2132744 | DC28: 1680531 | DH28: 783297 | DM28: 776828 | DR28: 1447991 | DW28: 1939049 | EB28: 1549937 | EG28: 0 | EL28: 2511441
D29: Discount | G29: 0 | L29: 5573 | Q29: 3717 | V29: 584 | AA29: 0 | AF29: 0 | AK29: 0 | AP29: 0 | AU29: 0 | AZ29: 0 | BE29: 0 | BJ29: 0 | BO29: 0 | BT29: 9874 | BY29: 1060216 | CD29: 92043 | CI29: 81485 | CN29: 155031 | CS29: 207034 | CX29: 217256 | DC29: 89469 | DH29: 51703 | DM29: 38172 | DR29: 42009 | DW29: 55951 | EB29: 30063 | EG29: 0 | EL29: 328559
D30: Premium | G30: 0 | L30: 0 | Q30: 0 | V30: -200 | AA30: 0 | AF30: 0 | AK30: 0 | AP30: 0 | AU30: 0 | AZ30: 0 | BE30: 0 | BJ30: 0 | BO30: 0 | BT30: -200 | BY30: 0 | CD30: 0 | CI30: 0 | CN30: 0 | CS30: 0 | CX30: 0 | DC30: 0 | DH30: 0 | DM30: 0 | DR30: 0 | DW30: 0 | EB30: 0 | EG30: 0 | EL30: 0
D31: Revaluation | G31: 0 | L31: 164328 | Q31: 290726 | V31: 135117 | AA31: 0 | AF31: 0 | AK31: 0 | AP31: 0 | AU31: 0 | AZ31: 0 | BE31: 0 | BJ31: 0 | BO31: 0 | BT31: 590171 | BY31: 7586045 | CD31: 332197 | CI31: 343402 | CN31: 688455 | CS31: 881004 | CX31: 1121351 | DC31: 839265 | DH31: 406741 | DM31: 408103 | DR31: 750063 | DW31: 1012073 | EB31: 803391 | EG31: 0 | EL31: 1364054
D33: I2038 (2.25% 2038/01/31) | G33: 0 | L33: 1036984 | Q33: 1271737 | V33: 3612872 | AA33: 0 | AF33: 0 | AK33: 0 | AP33: 0 | AU33: 0 | AZ33: 0 | BE33: 0 | BJ33: 0 | BO33: 0 | BT33: 5921593 | BY33: 25063693 | CD33: 785463 | CI33: 1376442 | CN33: 2570775 | CS33: 3551900 | CX33: 893093 | DC33: 4673396 | DH33: 2503075 | DM33: 2153351 | DR33: 2186436 | DW33: 482233 | EB33: 1093644 | EG33: 2793885 | EL33: 4732680
D34: Cash value | G34: 0 | L34: 444104 | Q34: 546046 | V34: 1587309 | AA34: 0 | AF34: 0 | AK34: 0 | AP34: 0 | AU34: 0 | AZ34: 0 | BE34: 0 | BJ34: 0 | BO34: 0 | BT34: 2577459 | BY34: 9727262 | CD34: 286564 | CI34: 537489 | CN34: 1013252 | CS34: 1312168 | CX34: 339593 | DC34: 1834075 | DH34: 930988 | DM34: 804377 | DR34: 841626 | DW34: 194217 | EB34: 456707 | EG34: 1176206 | EL34: 1837305
D35: Discount | G35: 0 | L35: 240896 | Q35: 288954 | V35: 772691 | AA35: 0 | AF35: 0 | AK35: 0 | AP35: 0 | AU35: 0 | AZ35: 0 | BE35: 0 | BJ35: 0 | BO35: 0 | BT35: 1302541 | BY35: 7092738 | CD35: 248436 | CI35: 392511 | CN35: 716748 | CS35: 1077832 | CX35: 265407 | DC35: 1330925 | DH35: 749012 | DM35: 630623 | DR35: 613374 | DW35: 125783 | EB35: 268293 | EG35: 673794 | EL35: 1357695
D36: Premium | G36: 0 | L36: 0 | Q36: 0 | V36: 0 | AA36: 0 | AF36: 0 | AK36: 0 | AP36: 0 | AU36: 0 | AZ36: 0 | BE36: 0 | BJ36: 0 | BO36: 0 | BT36: 0 | BY36: 0 | CD36: 0 | CI36: 0 | CN36: 0 | CS36: 0 | CX36: 0 | DC36: 0 | DH36: 0 | DM36: 0 | DR36: 0 | DW36: 0 | EB36: 0 | EG36: 0 | EL36: 0
D37: Revaluation | G37: 0 | L37: 351984 | Q37: 436737 | V37: 1252872 | AA37: 0 | AF37: 0 | AK37: 0 | AP37: 0 | AU37: 0 | AZ37: 0 | BE37: 0 | BJ37: 0 | BO37: 0 | BT37: 2041593 | BY37: 8243693 | CD37: 250463 | CI37: 446442 | CN37: 840775 | CS37: 1161900 | CX37: 288093 | DC37: 1508396 | DH37: 823075 | DM37: 718351 | DR37: 731436 | DW37: 162233 | EB37: 368644 | EG37: 943885 | EL37: 1537680
D39: I2046 (2.50% 2046/03/31) | G39: 0 | L39: 813046 | Q39: 515696 | V39: 1552379 | AA39: 0 | AF39: 0 | AK39: 0 | AP39: 0 | AU39: 0 | AZ39: 0 | BE39: 0 | BJ39: 0 | BO39: 0 | BT39: 2881121 | BY39: 23921526 | CD39: 318599 | CI39: 528391 | CN39: 861012 | CS39: 3064348 | CX39: 3292135 | DC39: 3720536 | DH39: 3706561 | DM39: 2192871 | DR39: 1770793 | DW39: 610750 | EB39: 1208494 | EG39: 2647036 | EL39: 1708002
D40: Cash value | G40: 0 | L40: 351415 | Q40: 220917 | V40: 706760 | AA40: 0 | AF40: 0 | AK40: 0 | AP40: 0 | AU40: 0 | AZ40: 0 | BE40: 0 | BJ40: 0 | BO40: 0 | BT40: 1279092 | BY40: 9349601 | CD40: 131175 | CI40: 239046 | CN40: 343471 | CS40: 1127677 | CX40: 1237008 | DC40: 1480321 | DH40: 1378787 | DM40: 807262 | DR40: 709302 | DW40: 246293 | EB40: 508933 | EG40: 1140326 | EL40: 713692
D41: Discount | G41: 0 | L41: 218585 | Q41: 139083 | V41: 368240 | AA41: 0 | AF41: 0 | AK41: 0 | AP41: 0 | AU41: 0 | AZ41: 0 | BE41: 0 | BJ41: 0 | BO41: 0 | BT41: 725908 | BY41: 7685399 | CD41: 98825 | CI41: 140954 | CN41: 271529 | CS41: 1062323 | CX41: 1127992 | DC41: 1194679 | DH41: 1261213 | DM41: 742738 | DR41: 540698 | DW41: 183707 | EB41: 341067 | EG41: 719674 | EL41: 511308
D42: Premium | G42: 0 | L42: 0 | Q42: 0 | V42: 0 | AA42: 0 | AF42: 0 | AK42: 0 | AP42: 0 | AU42: 0 | AZ42: 0 | BE42: 0 | BJ42: 0 | BO42: 0 | BT42: 0 | BY42: 0 | CD42: 0 | CI42: 0 | CN42: 0 | CS42: 0 | CX42: 0 | DC42: 0 | DH42: 0 | DM42: 0 | DR42: 0 | DW42: 0 | EB42: 0 | EG42: 0 | EL42: 0
D43: Revaluation | G43: 0 | L43: 243046 | Q43: 155696 | V43: 477379 | AA43: 0 | AF43: 0 | AK43: 0 | AP43: 0 | AU43: 0 | AZ43: 0 | BE43: 0 | BJ43: 0 | BO43: 0 | BT43: 876121 | BY43: 6886526 | CD43: 88599 | CI43: 148391 | CN43: 246012 | CS43: 874348 | CX43: 927135 | DC43: 1045536 | DH43: 1066561 | DM43: 642871 | DR43: 520793 | DW43: 180750 | EB43: 358494 | EG43: 787036 | EL43: 483002
D45: I2033 (1.875% 2033/02/28) | G45: 0 | L45: 19384 | Q45: 538528 | V45: 1123720 | AA45: 0 | AF45: 0 | AK45: 0 | AP45: 0 | AU45: 0 | AZ45: 0 | BE45: 0 | BJ45: 0 | BO45: 0 | BT45: 1681632 | BY45: 11695253 | CD45: 758012 | CI45: 592400 | CN45: 817596 | CS45: 0 | CX45: 1611709 | DC45: 0 | DH45: 1218728 | DM45: 2181019 | DR45: 2952785 | DW45: 0 | EB45: 681563 | EG45: 881441 | EL45: 2168008
D46: Cash value | G46: 0 | L46: 11258 | Q46: 305199 | V46: 655615 | AA46: 0 | AF46: 0 | AK46: 0 | AP46: 0 | AU46: 0 | AZ46: 0 | BE46: 0 | BJ46: 0 | BO46: 0 | BT46: 972072 | BY46: 6248773 | CD46: 415676 | CI46: 319111 | CN46: 443005 | CS46: 0 | CX46: 855044 | DC46: 0 | DH46: 632543 | DM46: 1130194 | DR46: 1564534 | DW46: 0 | EB46: 385621 | EG46: 503045 | EL46: 1177792
D47: Discount | G47: 0 | L47: 3742 | Q47: 109801 | V47: 204385 | AA47: 0 | AF47: 0 | AK47: 0 | AP47: 0 | AU47: 0 | AZ47: 0 | BE47: 0 | BJ47: 0 | BO47: 0 | BT47: 317928 | BY47: 2931227 | CD47: 189324 | CI47: 150889 | CN47: 201995 | CS47: 0 | CX47: 424956 | DC47: 0 | DH47: 322457 | DM47: 574806 | DR47: 740466 | DW47: 0 | EB47: 144379 | EG47: 181955 | EL47: 542208
D48: Premium | G48: 0 | L48: 0 | Q48: 0 | V48: 0 | AA48: 0 | AF48: 0 | AK48: 0 | AP48: 0 | AU48: 0 | AZ48: 0 | BE48: 0 | BJ48: 0 | BO48: 0 | BT48: 0 | BY48: 0 | CD48: 0 | CI48: 0 | CN48: 0 | CS48: 0 | CX48: 0 | DC48: 0 | DH48: 0 | DM48: 0 | DR48: 0 | DW48: 0 | EB48: 0 | EG48: 0 | EL48: 0
D49: Revaluation | G49: 0 | L49: 4384 | Q49: 123528 | V49: 263720 | AA49: 0 | AF49: 0 | AK49: 0 | AP49: 0 | AU49: 0 | AZ49: 0 | BE49: 0 | BJ49: 0 | BO49: 0 | BT49: 391632 | BY49: 2515253 | CD49: 153012 | CI49: 122400 | CN49: 172596 | CS49: 0 | CX49: 331709 | DC49: 0 | DH49: 263728 | DM49: 476019 | DR49: 647785 | DW49: 0 | EB49: 151563 | EG49: 196441 | EL49: 448008
D51: I2050 (2.50% 2049-50-51/12/31) | G51: 0 | L51: 643065 | Q51: 2787717 | V51: 221586 | AA51: 0 | AF51: 0 | AK51: 0 | AP51: 0 | AU51: 0 | AZ51: 0 | BE51: 0 | BJ51: 0 | BO51: 0 | BT51: 3652368 | BY51: 18910625 | CD51: 982689 | CI51: 1986453 | CN51: 1403161 | CS51: 2745650 | CX51: 797349 | DC51: 2383632 | DH51: 969298 | DM51: 2188195 | DR51: 999149 | DW51: 557392 | EB51: 2366127 | EG51: 1531530 | EL51: 4372303
D52: Cash value | G52: 0 | L52: 249269 | Q52: 1025168 | V52: 88502 | AA52: 0 | AF52: 0 | AK52: 0 | AP52: 0 | AU52: 0 | AZ52: 0 | BE52: 0 | BJ52: 0 | BO52: 0 | BT52: 1362939 | BY52: 6233701 | CD52: 355794 | CI52: 688853 | CN52: 459915 | CS52: 823289 | CX52: 243709 | DC52: 776112 | DH52: 296360 | DM52: 646786 | DR52: 346529 | DW52: 189075 | EB52: 849287 | EG52: 557992 | EL52: 1504562
D53: Discount | G53: 0 | L53: 175731 | Q53: 809832 | V53: 56498 | AA53: 0 | AF53: 0 | AK53: 0 | AP53: 0 | AU53: 0 | AZ53: 0 | BE53: 0 | BJ53: 0 | BO53: 0 | BT53: 1042061 | BY53: 6461299 | CD53: 314206 | CI53: 656147 | CN53: 485085 | CS53: 1026711 | CX53: 296291 | DC53: 838888 | DH53: 353640 | DM53: 813214 | DR53: 318471 | DW53: 180925 | EB53: 720713 | EG53: 457008 | EL53: 1455438
D54: Premium | G54: 0 | L54: 0 | Q54: 0 | V54: 0 | AA54: 0 | AF54: 0 | AK54: 0 | AP54: 0 | AU54: 0 | AZ54: 0 | BE54: 0 | BJ54: 0 | BO54: 0 | BT54: 0 | BY54: 0 | CD54: 0 | CI54: 0 | CN54: 0 | CS54: 0 | CX54: 0 | DC54: 0 | DH54: 0 | DM54: 0 | DR54: 0 | DW54: 0 | EB54: 0 | EG54: 0 | EL54: 0
D55: Revaluation | G55: 0 | L55: 218065 | Q55: 952717 | V55: 76586 | AA55: 0 | AF55: 0 | AK55: 0 | AP55: 0 | AU55: 0 | AZ55: 0 | BE55: 0 | BJ55: 0 | BO55: 0 | BT55: 1247368 | BY55: 6215625 | CD55: 312689 | CI55: 641453 | CN55: 458161 | CS55: 895650 | CX55: 257349 | DC55: 768632 | DH55: 319298 | DM55: 728195 | DR55: 334149 | DW55: 187392 | EB55: 796127 | EG55: 516530 | EL55: 1412303
D57: R2035 (8.875% 2035/02/28) | G57: 0 | L57: 2395000 | Q57: 6087000 | V57: 3854000 | AA57: 0 | AF57: 0 | AK57: 0 | AP57: 0 | AU57: 0 | AZ57: 0 | BE57: 0 | BJ57: 0 | BO57: 0 | BT57: 12336000 | BY57: 48015493 | CD57: 1510000 | CI57: 7508000 | CN57: 8200000 | CS57: 3508000 | CX57: 0 | DC57: 6391000 | DH57: 0 | DM57: 6646000 | DR57: 2151000 | DW57: 4397000 | EB57: 2203493 | EG57: 5501000 | EL57: 17218000
D58: Cash value | G58: 0 | L58: 2039213 | Q58: 5364335 | V58: 3465721 | AA58: 0 | AF58: 0 | AK58: 0 | AP58: 0 | AU58: 0 | AZ58: 0 | BE58: 0 | BJ58: 0 | BO58: 0 | BT58: 10869269 | BY58: 41580233 | CD58: 1256140 | CI58: 6590757 | CN58: 7165028 | CS58: 3016518 | CX58: 0 | DC58: 5407222 | DH58: 0 | DM58: 5657780 | DR58: 1888220 | DW58: 3856972 | EB58: 2002579 | EG58: 4739017 | EL58: 15011925
D59: Discount | G59: 0 | L59: 355787 | Q59: 722665 | V59: 388279 | AA59: 0 | AF59: 0 | AK59: 0 | AP59: 0 | AU59: 0 | AZ59: 0 | BE59: 0 | BJ59: 0 | BO59: 0 | BT59: 1466731 | BY59: 6435260 | CD59: 253860 | CI59: 917243 | CN59: 1034972 | CS59: 491482 | CX59: 0 | DC59: 983778 | DH59: 0 | DM59: 988220 | DR59: 262780 | DW59: 540028 | EB59: 200914 | EG59: 761983 | EL59: 2206075
D60: Premium | G60: 0 | L60: 0 | Q60: 0 | V60: 0 | AA60: 0 | AF60: 0 | AK60: 0 | AP60: 0 | AU60: 0 | AZ60: 0 | BE60: 0 | BJ60: 0 | BO60: 0 | BT60: 0 | BY60: 0 | CD60: 0 | CI60: 0 | CN60: 0 | CS60: 0 | CX60: 0 | DC60: 0 | DH60: 0 | DM60: 0 | DR60: 0 | DW60: 0 | EB60: 0 | EG60: 0 | EL60: 0
D62: R186 (10.50% 2025-26-27/12/21) | G62: 0 | L62: 3621 | Q62: 1300994 | V62: 0 | AA62: 0 | AF62: 0 | AK62: 0 | AP62: 0 | AU62: 0 | AZ62: 0 | BE62: 0 | BJ62: 0 | BO62: 0 | BT62: 1304615 | BY62: 95293197 | CD62: 6933000 | CI62: 9652000 | CN62: 5365000 | CS62: 19611000 | CX62: 7976000 | DC62: 4403000 | DH62: 12162000 | DM62: 4448000 | DR62: 12828000 | DW62: 6604000 | EB62: 185197 | EG62: 5126000 | EL62: 21950000
D63: Cash value | G63: 0 | L63: 4114 | Q63: 1494801 | V63: 0 | AA63: 0 | AF63: 0 | AK63: 0 | AP63: 0 | AU63: 0 | AZ63: 0 | BE63: 0 | BJ63: 0 | BO63: 0 | BT63: 1498915 | BY63: 109169313 | CD63: 7222208 | CI63: 10754248 | CN63: 6129417 | CS63: 22391721 | CX63: 9189553 | DC63: 5119835 | DH63: 14172551 | DM63: 5225625 | DR63: 15041621 | DW63: 7820723 | EB63: 219024 | EG63: 5882787 | EL63: 24105873
D64: Discount | G64: 0 | L64: 0 | Q64: 0 | V64: 0 | AA64: 0 | AF64: 0 | AK64: 0 | AP64: 0 | AU64: 0 | AZ64: 0 | BE64: 0 | BJ64: 0 | BO64: 0 | BT64: 0 | BY64: 0 | CD64: 0 | CI64: 0 | CN64: 0 | CS64: 0 | CX64: 0 | DC64: 0 | DH64: 0 | DM64: 0 | DR64: 0 | DW64: 0 | EB64: 0 | EG64: 0 | EL64: 0
D65: Premium | G65: 0 | L65: -493 | Q65: -193807 | V65: 0 | AA65: 0 | AF65: 0 | AK65: 0 | AP65: 0 | AU65: 0 | AZ65: 0 | BE65: 0 | BJ65: 0 | BO65: 0 | BT65: -194300 | BY65: -13876116 | CD65: -289208 | CI65: -1102248 | CN65: -764417 | CS65: -2780721 | CX65: -1213553 | DC65: -716835 | DH65: -2010551 | DM65: -777625 | DR65: -2213621 | DW65: -1216723 | EB65: -33827 | EG65: -756787 | EL65: -2155873
D67: R189 (6.25% 2013/03/31) | G67: 0 | L67: 0 | Q67: 0 | V67: 0 | AA67: 0 | AF67: 0 | AK67: 0 | AP67: 0 | AU67: 0 | AZ67: 0 | BE67: 0 | BJ67: 0 | BO67: 0 | BT67: 0 | BY67: 0 | CD67: 0 | CI67: 0 | CN67: 0 | CS67: 0 | CX67: 0 | DC67: 0 | DH67: 0 | DM67: 0 | DR67: 0 | DW67: 0 | EB67: 0 | EG67: 0 | EL67: 0
D68: Cash value | G68: 0 | L68: 0 | Q68: 0 | V68: 0 | AA68: 0 | AF68: 0 | AK68: 0 | AP68: 0 | AU68: 0 | AZ68: 0 | BE68: 0 | BJ68: 0 | BO68: 0 | BT68: 0 | BY68: 0 | CD68: 0 | CI68: 0 | CN68: 0 | CS68: 0 | CX68: 0 | DC68: 0 | DH68: 0 | DM68: 0 | DR68: 0 | DW68: 0 | EB68: 0 | EG68: 0 | EL68: 0
D69: Discount | G69: 0 | L69: 0 | Q69: 0 | V69: 0 | AA69: 0 | AF69: 0 | AK69: 0 | AP69: 0 | AU69: 0 | AZ69: 0 | BE69: 0 | BJ69: 0 | BO69: 0 | BT69: 0 | BY69: 0 | CD69: 0 | CI69: 0 | CN69: 0 | CS69: 0 | CX69: 0 | DC69: 0 | DH69: 0 | DM69: 0 | DR69: 0 | DW69: 0 | EB69: 0 | EG69: 0 | EL69: 0
D70: Premium | G70: 0 | L70: 0 | Q70: 0 | V70: 0 | AA70: 0 | AF70: 0 | AK70: 0 | AP70: 0 | AU70: 0 | AZ70: 0 | BE70: 0 | BJ70: 0 | BO70: 0 | BT70: 0 | BY70: 0 | CD70: 0 | CI70: 0 | CN70: 0 | CS70: 0 | CX70: 0 | DC70: 0 | DH70: 0 | DM70: 0 | DR70: 0 | DW70: 0 | EB70: 0 | EG70: 0 | EL70: 0
D71: Revaluation | G71: 0 | L71: 0 | Q71: 0 | V71: 0 | AA71: 0 | AF71: 0 | AK71: 0 | AP71: 0 | AU71: 0 | AZ71: 0 | BE71: 0 | BJ71: 0 | BO71: 0 | BT71: 0 | BY71: 0 | CD71: 0 | CI71: 0 | CN71: 0 | CS71: 0 | CX71: 0 | DC71: 0 | DH71: 0 | DM71: 0 | DR71: 0 | DW71: 0 | EB71: 0 | EG71: 0 | EL71: 0
D73: I2029 (1.875% 2029/03/31) | G73: 0 | L73: 133235 | Q73: 967163 | V73: 813686 | AA73: 0 | AF73: 0 | AK73: 0 | AP73: 0 | AU73: 0 | AZ73: 0 | BE73: 0 | BJ73: 0 | BO73: 0 | BT73: 1914084 | BY73: 10485400 | CD73: 0 | CI73: 0 | CN73: 297021 | CS73: 854761 | CX73: 1016515 | DC73: 816649 | DH73: 1476452 | DM73: 1092190 | DR73: 727090 | DW73: 1067242 | EB73: 2280137 | EG73: 857343 | EL73: 297021
D74: Cash value | G74: 0 | L74: 98055 | Q74: 709473 | V74: 604004 | AA74: 0 | AF74: 0 | AK74: 0 | AP74: 0 | AU74: 0 | AZ74: 0 | BE74: 0 | BJ74: 0 | BO74: 0 | BT74: 1411532 | BY74: 7203216 | CD74: 0 | CI74: 0 | CN74: 200570 | CS74: 563740 | CX74: 676635 | DC74: 558066 | DH74: 996730 | DM74: 733144 | DR74: 492981 | DW74: 739076 | EB74: 1632008 | EG74: 610266 | EL74: 200570
D75: Discount | G75: 0 | L75: 11945 | Q75: 85527 | V75: 60996 | AA75: 0 | AF75: 0 | AK75: 0 | AP75: 0 | AU75: 0 | AZ75: 0 | BE75: 0 | BJ75: 0 | BO75: 0 | BT75: 158468 | BY75: 1556784 | CD75: 0 | CI75: 0 | CN75: 49430 | CS75: 156260 | CX75: 183365 | DC75: 131934 | DH75: 243270 | DM75: 176856 | DR75: 112019 | DW75: 145924 | EB75: 257992 | EG75: 99734 | EL75: 49430
D76: Premium | G76: 0 | L76: 0 | Q76: 0 | V76: 0 | AA76: 0 | AF76: 0 | AK76: 0 | AP76: 0 | AU76: 0 | AZ76: 0 | BE76: 0 | BJ76: 0 | BO76: 0 | BT76: 0 | BY76: 0 | CD76: 0 | CI76: 0 | CN76: 0 | CS76: 0 | CX76: 0 | DC76: 0 | DH76: 0 | DM76: 0 | DR76: 0 | DW76: 0 | EB76: 0 | EG76: 0 | EL76: 0
D77: Revaluation | G77: 0 | L77: 23235 | Q77: 172163 | V77: 148686 | AA77: 0 | AF77: 0 | AK77: 0 | AP77: 0 | AU77: 0 | AZ77: 0 | BE77: 0 | BJ77: 0 | BO77: 0 | BT77: 344084 | BY77: 1725400 | CD77: 0 | CI77: 0 | CN77: 47021 | CS77: 134761 | CX77: 156515 | DC77: 126649 | DH77: 236452 | DM77: 182190 | DR77: 122090 | DW77: 182242 | EB77: 390137 | EG77: 147343 | EL77: 47021
D79: R209 (6.25% 2036/03/31) | G79: 0 | L79: 0 | Q79: 0 | V79: 0 | AA79: 0 | AF79: 0 | AK79: 0 | AP79: 0 | AU79: 0 | AZ79: 0 | BE79: 0 | BJ79: 0 | BO79: 0 | BT79: 0 | BY79: 0 | CD79: 0 | CI79: 0 | CN79: 0 | CS79: 0 | CX79: 0 | DC79: 0 | DH79: 0 | DM79: 0 | DR79: 0 | DW79: 0 | EB79: 0 | EG79: 0 | EL79: 0
D80: Cash value | G80: 0 | L80: 0 | Q80: 0 | V80: 0 | AA80: 0 | AF80: 0 | AK80: 0 | AP80: 0 | AU80: 0 | AZ80: 0 | BE80: 0 | BJ80: 0 | BO80: 0 | BT80: 0 | BY80: 0 | CD80: 0 | CI80: 0 | CN80: 0 | CS80: 0 | CX80: 0 | DC80: 0 | DH80: 0 | DM80: 0 | DR80: 0 | DW80: 0 | EB80: 0 | EG80: 0 | EL80: 0
D81: Discount | G81: 0 | L81: 0 | Q81: 0 | V81: 0 | AA81: 0 | AF81: 0 | AK81: 0 | AP81: 0 | AU81: 0 | AZ81: 0 | BE81: 0 | BJ81: 0 | BO81: 0 | BT81: 0 | BY81: 0 | CD81: 0 | CI81: 0 | CN81: 0 | CS81: 0 | CX81: 0 | DC81: 0 | DH81: 0 | DM81: 0 | DR81: 0 | DW81: 0 | EB81: 0 | EG81: 0 | EL81: 0
D82: Premium | G82: 0 | L82: 0 | Q82: 0 | V82: 0 | AA82: 0 | AF82: 0 | AK82: 0 | AP82: 0 | AU82: 0 | AZ82: 0 | BE82: 0 | BJ82: 0 | BO82: 0 | BT82: 0 | BY82: 0 | CD82: 0 | CI82: 0 | CN82: 0 | CS82: 0 | CX82: 0 | DC82: 0 | DH82: 0 | DM82: 0 | DR82: 0 | DW82: 0 | EB82: 0 | EG82: 0 | EL82: 0
D84: R197 (5.50% 2023/12/07) | G84: 0 | L84: 0 | Q84: 0 | V84: 0 | AA84: 0 | AF84: 0 | AK84: 0 | AP84: 0 | AU84: 0 | AZ84: 0 | BE84: 0 | BJ84: 0 | BO84: 0 | BT84: 0 | BY84: 0 | CD84: 0 | CI84: 0 | CN84: 0 | CS84: 0 | CX84: 0 | DC84: 0 | DH84: 0 | DM84: 0 | DR84: 0 | DW84: 0 | EB84: 0 | EG84: 0 | EL84: 0
D85: Cash value | G85: 0 | L85: 0 | Q85: 0 | V85: 0 | AA85: 0 | AF85: 0 | AK85: 0 | AP85: 0 | AU85: 0 | AZ85: 0 | BE85: 0 | BJ85: 0 | BO85: 0 | BT85: 0 | BY85: 0 | CD85: 0 | CI85: 0 | CN85: 0 | CS85: 0 | CX85: 0 | DC85: 0 | DH85: 0 | DM85: 0 | DR85: 0 | DW85: 0 | EB85: 0 | EG85: 0 | EL85: 0
D86: Discount | G86: 0 | L86: 0 | Q86: 0 | V86: 0 | AA86: 0 | AF86: 0 | AK86: 0 | AP86: 0 | AU86: 0 | AZ86: 0 | BE86: 0 | BJ86: 0 | BO86: 0 | BT86: 0 | BY86: 0 | CD86: 0 | CI86: 0 | CN86: 0 | CS86: 0 | CX86: 0 | DC86: 0 | DH86: 0 | DM86: 0 | DR86: 0 | DW86: 0 | EB86: 0 | EG86: 0 | EL86: 0
D87: Premium | G87: 0 | L87: 0 | Q87: 0 | V87: 0 | AA87: 0 | AF87: 0 | AK87: 0 | AP87: 0 | AU87: 0 | AZ87: 0 | BE87: 0 | BJ87: 0 | BO87: 0 | BT87: 0 | BY87: 0 | CD87: 0 | CI87: 0 | CN87: 0 | CS87: 0 | CX87: 0 | DC87: 0 | DH87: 0 | DM87: 0 | DR87: 0 | DW87: 0 | EB87: 0 | EG87: 0 | EL87: 0
D88: Revaluation | G88: 0 | L88: 0 | Q88: 0 | V88: 0 | AA88: 0 | AF88: 0 | AK88: 0 | AP88: 0 | AU88: 0 | AZ88: 0 | BE88: 0 | BJ88: 0 | BO88: 0 | BT88: 0 | BY88: 0 | CD88: 0 | CI88: 0 | CN88: 0 | CS88: 0 | CX88: 0 | DC88: 0 | DH88: 0 | DM88: 0 | DR88: 0 | DW88: 0 | EB88: 0 | EG88: 0 | EL88: 0
D90: R203 (8.25% 2017/09/15) | G90: 0 | L90: 0 | Q90: 0 | V90: 0 | AA90: 0 | AF90: 0 | AK90: 0 | AP90: 0 | AU90: 0 | AZ90: 0 | BE90: 0 | BJ90: 0 | BO90: 0 | BT90: 0 | BY90: 0 | CD90: 0 | CI90: 0 | CN90: 0 | CS90: 0 | CX90: 0 | DC90: 0 | DH90: 0 | DM90: 0 | DR90: 0 | DW90: 0 | EB90: 0 | EG90: 0 | EL90: 0
D91: Cash value | G91: 0 | L91: 0 | Q91: 0 | V91: 0 | AA91: 0 | AF91: 0 | AK91: 0 | AP91: 0 | AU91: 0 | AZ91: 0 | BE91: 0 | BJ91: 0 | BO91: 0 | BT91: 0 | BY91: 0 | CD91: 0 | CI91: 0 | CN91: 0 | CS91: 0 | CX91: 0 | DC91: 0 | DH91: 0 | DM91: 0 | DR91: 0 | DW91: 0 | EB91: 0 | EG91: 0 | EL91: 0
D92: Discount | G92: 0 | L92: 0 | Q92: 0 | V92: 0 | AA92: 0 | AF92: 0 | AK92: 0 | AP92: 0 | AU92: 0 | AZ92: 0 | BE92: 0 | BJ92: 0 | BO92: 0 | BT92: 0 | BY92: 0 | CD92: 0 | CI92: 0 | CN92: 0 | CS92: 0 | CX92: 0 | DC92: 0 | DH92: 0 | DM92: 0 | DR92: 0 | DW92: 0 | EB92: 0 | EG92: 0 | EL92: 0
D93: Premium | G93: 0 | L93: 0 | Q93: 0 | V93: 0 | AA93: 0 | AF93: 0 | AK93: 0 | AP93: 0 | AU93: 0 | AZ93: 0 | BE93: 0 | BJ93: 0 | BO93: 0 | BT93: 0 | BY93: 0 | CD93: 0 | CI93: 0 | CN93: 0 | CS93: 0 | CX93: 0 | DC93: 0 | DH93: 0 | DM93: 0 | DR93: 0 | DW93: 0 | EB93: 0 | EG93: 0 | EL93: 0
D95: R204 (8.00% 2018/12/21) | G95: 0 | L95: 0 | Q95: 0 | V95: 0 | AA95: 0 | AF95: 0 | AK95: 0 | AP95: 0 | AU95: 0 | AZ95: 0 | BE95: 0 | BJ95: 0 | BO95: 0 | BT95: 0 | BY95: 0 | CD95: 0 | CI95: 0 | CN95: 0 | CS95: 0 | CX95: 0 | DC95: 0 | DH95: 0 | DM95: 0 | DR95: 0 | DW95: 0 | EB95: 0 | EG95: 0 | EL95: 0
D96: Cash value | G96: 0 | L96: 0 | Q96: 0 | V96: 0 | AA96: 0 | AF96: 0 | AK96: 0 | AP96: 0 | AU96: 0 | AZ96: 0 | BE96: 0 | BJ96: 0 | BO96: 0 | BT96: 0 | BY96: 0 | CD96: 0 | CI96: 0 | CN96: 0 | CS96: 0 | CX96: 0 | DC96: 0 | DH96: 0 | DM96: 0 | DR96: 0 | DW96: 0 | EB96: 0 | EG96: 0 | EL96: 0
D97: Discount | G97: 0 | L97: 0 | Q97: 0 | V97: 0 | AA97: 0 | AF97: 0 | AK97: 0 | AP97: 0 | AU97: 0 | AZ97: 0 | BE97: 0 | BJ97: 0 | BO97: 0 | BT97: 0 | BY97: 0 | CD97: 0 | CI97: 0 | CN97: 0 | CS97: 0 | CX97: 0 | DC97: 0 | DH97: 0 | DM97: 0 | DR97: 0 | DW97: 0 | EB97: 0 | EG97: 0 | EL97: 0
D98: Premium | G98: 0 | L98: 0 | Q98: 0 | V98: 0 | AA98: 0 | AF98: 0 | AK98: 0 | AP98: 0 | AU98: 0 | AZ98: 0 | BE98: 0 | BJ98: 0 | BO98: 0 | BT98: 0 | BY98: 0 | CD98: 0 | CI98: 0 | CN98: 0 | CS98: 0 | CX98: 0 | DC98: 0 | DH98: 0 | DM98: 0 | DR98: 0 | DW98: 0 | EB98: 0 | EG98: 0 | EL98: 0
D100: R205 (6.88% 2012/03/31) | G100: 0 | L100: 0 | Q100: 0 | V100: 0 | AA100: 0 | AF100: 0 | AK100: 0 | AP100: 0 | AU100: 0 | AZ100: 0 | BE100: 0 | BJ100: 0 | BO100: 0 | BT100: 0 | BY100: 0 | CD100: 0 | CI100: 0 | CN100: 0 | CS100: 0 | CX100: 0 | DC100: 0 | DH100: 0 | DM100: 0 | DR100: 0 | DW100: 0 | EB100: 0 | EG100: 0 | EL100: 0
D101: Cash value | G101: 0 | L101: 0 | Q101: 0 | V101: 0 | AA101: 0 | AF101: 0 | AK101: 0 | AP101: 0 | AU101: 0 | AZ101: 0 | BE101: 0 | BJ101: 0 | BO101: 0 | BT101: 0 | BY101: 0 | CD101: 0 | CI101: 0 | CN101: 0 | CS101: 0 | CX101: 0 | DC101: 0 | DH101: 0 | DM101: 0 | DR101: 0 | DW101: 0 | EB101: 0 | EG101: 0 | EL101: 0
D102: Discount | G102: 0 | L102: 0 | Q102: 0 | V102: 0 | AA102: 0 | AF102: 0 | AK102: 0 | AP102: 0 | AU102: 0 | AZ102: 0 | BE102: 0 | BJ102: 0 | BO102: 0 | BT102: 0 | BY102: 0 | CD102: 0 | CI102: 0 | CN102: 0 | CS102: 0 | CX102: 0 | DC102: 0 | DH102: 0 | DM102: 0 | DR102: 0 | DW102: 0 | EB102: 0 | EG102: 0 | EL102: 0
D103: Premium | G103: 0 | L103: 0 | Q103: 0 | V103: 0 | AA103: 0 | AF103: 0 | AK103: 0 | AP103: 0 | AU103: 0 | AZ103: 0 | BE103: 0 | BJ103: 0 | BO103: 0 | BT103: 0 | BY103: 0 | CD103: 0 | CI103: 0 | CN103: 0 | CS103: 0 | CX103: 0 | DC103: 0 | DH103: 0 | DM103: 0 | DR103: 0 | DW103: 0 | EB103: 0 | EG103: 0 | EL103: 0
D105: R206 (7.50% 2014/01/15) | G105: 0 | L105: 0 | Q105: 0 | V105: 0 | AA105: 0 | AF105: 0 | AK105: 0 | AP105: 0 | AU105: 0 | AZ105: 0 | BE105: 0 | BJ105: 0 | BO105: 0 | BT105: 0 | BY105: 0 | CD105: 0 | CI105: 0 | CN105: 0 | CS105: 0 | CX105: 0 | DC105: 0 | DH105: 0 | DM105: 0 | DR105: 0 | DW105: 0 | EB105: 0 | EG105: 0 | EL105: 0
D106: Cash value | G106: 0 | L106: 0 | Q106: 0 | V106: 0 | AA106: 0 | AF106: 0 | AK106: 0 | AP106: 0 | AU106: 0 | AZ106: 0 | BE106: 0 | BJ106: 0 | BO106: 0 | BT106: 0 | BY106: 0 | CD106: 0 | CI106: 0 | CN106: 0 | CS106: 0 | CX106: 0 | DC106: 0 | DH106: 0 | DM106: 0 | DR106: 0 | DW106: 0 | EB106: 0 | EG106: 0 | EL106: 0
D107: Discount | G107: 0 | L107: 0 | Q107: 0 | V107: 0 | AA107: 0 | AF107: 0 | AK107: 0 | AP107: 0 | AU107: 0 | AZ107: 0 | BE107: 0 | BJ107: 0 | BO107: 0 | BT107: 0 | BY107: 0 | CD107: 0 | CI107: 0 | CN107: 0 | CS107: 0 | CX107: 0 | DC107: 0 | DH107: 0 | DM107: 0 | DR107: 0 | DW107: 0 | EB107: 0 | EG107: 0 | EL107: 0
D108: Premium | G108: 0 | L108: 0 | Q108: 0 | V108: 0 | AA108: 0 | AF108: 0 | AK108: 0 | AP108: 0 | AU108: 0 | AZ108: 0 | BE108: 0 | BJ108: 0 | BO108: 0 | BT108: 0 | BY108: 0 | CD108: 0 | CI108: 0 | CN108: 0 | CS108: 0 | CX108: 0 | DC108: 0 | DH108: 0 | DM108: 0 | DR108: 0 | DW108: 0 | EB108: 0 | EG108: 0 | EL108: 0
D110: R207 (7.25% 2020/01/15) | G110: 0 | L110: 0 | Q110: 0 | V110: 0 | AA110: 0 | AF110: 0 | AK110: 0 | AP110: 0 | AU110: 0 | AZ110: 0 | BE110: 0 | BJ110: 0 | BO110: 0 | BT110: 0 | BY110: 0 | CD110: 0 | CI110: 0 | CN110: 0 | CS110: 0 | CX110: 0 | DC110: 0 | DH110: 0 | DM110: 0 | DR110: 0 | DW110: 0 | EB110: 0 | EG110: 0 | EL110: 0
D111: Cash value | G111: 0 | L111: 0 | Q111: 0 | V111: 0 | AA111: 0 | AF111: 0 | AK111: 0 | AP111: 0 | AU111: 0 | AZ111: 0 | BE111: 0 | BJ111: 0 | BO111: 0 | BT111: 0 | BY111: 0 | CD111: 0 | CI111: 0 | CN111: 0 | CS111: 0 | CX111: 0 | DC111: 0 | DH111: 0 | DM111: 0 | DR111: 0 | DW111: 0 | EB111: 0 | EG111: 0 | EL111: 0
D112: Discount | G112: 0 | L112: 0 | Q112: 0 | V112: 0 | AA112: 0 | AF112: 0 | AK112: 0 | AP112: 0 | AU112: 0 | AZ112: 0 | BE112: 0 | BJ112: 0 | BO112: 0 | BT112: 0 | BY112: 0 | CD112: 0 | CI112: 0 | CN112: 0 | CS112: 0 | CX112: 0 | DC112: 0 | DH112: 0 | DM112: 0 | DR112: 0 | DW112: 0 | EB112: 0 | EG112: 0 | EL112: 0
D113: Premium | G113: 0 | L113: 0 | Q113: 0 | V113: 0 | AA113: 0 | AF113: 0 | AK113: 0 | AP113: 0 | AU113: 0 | AZ113: 0 | BE113: 0 | BJ113: 0 | BO113: 0 | BT113: 0 | BY113: 0 | CD113: 0 | CI113: 0 | CN113: 0 | CS113: 0 | CX113: 0 | DC113: 0 | DH113: 0 | DM113: 0 | DR113: 0 | DW113: 0 | EB113: 0 | EG113: 0 | EL113: 0
D115: R208 (6.75% 2021/03/31) | G115: 0 | L115: 0 | Q115: 0 | V115: 0 | AA115: 0 | AF115: 0 | AK115: 0 | AP115: 0 | AU115: 0 | AZ115: 0 | BE115: 0 | BJ115: 0 | BO115: 0 | BT115: 0 | BY115: 0 | CD115: 0 | CI115: 0 | CN115: 0 | CS115: 0 | CX115: 0 | DC115: 0 | DH115: 0 | DM115: 0 | DR115: 0 | DW115: 0 | EB115: 0 | EG115: 0 | EL115: 0
D116: Cash value | G116: 0 | L116: 0 | Q116: 0 | V116: 0 | AA116: 0 | AF116: 0 | AK116: 0 | AP116: 0 | AU116: 0 | AZ116: 0 | BE116: 0 | BJ116: 0 | BO116: 0 | BT116: 0 | BY116: 0 | CD116: 0 | CI116: 0 | CN116: 0 | CS116: 0 | CX116: 0 | DC116: 0 | DH116: 0 | DM116: 0 | DR116: 0 | DW116: 0 | EB116: 0 | EG116: 0 | EL116: 0
D117: Discount | G117: 0 | L117: 0 | Q117: 0 | V117: 0 | AA117: 0 | AF117: 0 | AK117: 0 | AP117: 0 | AU117: 0 | AZ117: 0 | BE117: 0 | BJ117: 0 | BO117: 0 | BT117: 0 | BY117: 0 | CD117: 0 | CI117: 0 | CN117: 0 | CS117: 0 | CX117: 0 | DC117: 0 | DH117: 0 | DM117: 0 | DR117: 0 | DW117: 0 | EB117: 0 | EG117: 0 | EL117: 0
D118: Premium | G118: 0 | L118: 0 | Q118: 0 | V118: 0 | AA118: 0 | AF118: 0 | AK118: 0 | AP118: 0 | AU118: 0 | AZ118: 0 | BE118: 0 | BJ118: 0 | BO118: 0 | BT118: 0 | BY118: 0 | CD118: 0 | CI118: 0 | CN118: 0 | CS118: 0 | CX118: 0 | DC118: 0 | DH118: 0 | DM118: 0 | DR118: 0 | DW118: 0 | EB118: 0 | EG118: 0 | EL118: 0
D120: R2040 (9.00% 2040/09/11) | G120: 0 | L120: 3833 | Q120: 1600000 | V120: 1948000 | AA120: 0 | AF120: 0 | AK120: 0 | AP120: 0 | AU120: 0 | AZ120: 0 | BE120: 0 | BJ120: 0 | BO120: 0 | BT120: 3551833 | BY120: 29215000 | CD120: 0 | CI120: 0 | CN120: 0 | CS120: 0 | CX120: 0 | DC120: 6601000 | DH120: 8322000 | DM120: 4398000 | DR120: 0 | DW120: 0 | EB120: 6597000 | EG120: 3297000 | EL120: 0
D121: Cash value | G121: 0 | L121: 3131 | Q121: 1329496 | V121: 1691653 | AA121: 0 | AF121: 0 | AK121: 0 | AP121: 0 | AU121: 0 | AZ121: 0 | BE121: 0 | BJ121: 0 | BO121: 0 | BT121: 3024280 | BY121: 24043560 | CD121: 0 | CI121: 0 | CN121: 0 | CS121: 0 | CX121: 0 | DC121: 5408252 | DH121: 6622985 | DM121: 3519918 | DR121: 0 | DW121: 0 | EB121: 5754112 | EG121: 2738293 | EL121: 0
D122: Discount | G122: 0 | L122: 702 | Q122: 270504 | V122: 256347 | AA122: 0 | AF122: 0 | AK122: 0 | AP122: 0 | AU122: 0 | AZ122: 0 | BE122: 0 | BJ122: 0 | BO122: 0 | BT122: 527553 | BY122: 5171440 | CD122: 0 | CI122: 0 | CN122: 0 | CS122: 0 | CX122: 0 | DC122: 1192748 | DH122: 1699015 | DM122: 878082 | DR122: 0 | DW122: 0 | EB122: 842888 | EG122: 558707 | EL122: 0
D123: Premium | G123: 0 | L123: 0 | Q123: 0 | V123: 0 | AA123: 0 | AF123: 0 | AK123: 0 | AP123: 0 | AU123: 0 | AZ123: 0 | BE123: 0 | BJ123: 0 | BO123: 0 | BT123: 0 | BY123: 0 | CD123: 0 | CI123: 0 | CN123: 0 | CS123: 0 | CX123: 0 | DC123: 0 | DH123: 0 | DM123: 0 | DR123: 0 | DW123: 0 | EB123: 0 | EG123: 0 | EL123: 0
D125: R210 (2.60% 2028/03/31) 1) | G125: 0 | L125: 0 | Q125: 0 | V125: 0 | AA125: 0 | AF125: 0 | AK125: 0 | AP125: 0 | AU125: 0 | AZ125: 0 | BE125: 0 | BJ125: 0 | BO125: 0 | BT125: 0 | BY125: 0 | CD125: 0 | CI125: 0 | CN125: 0 | CS125: 0 | CX125: 0 | DC125: 0 | DH125: 0 | DM125: 0 | DR125: 0 | DW125: 0 | EB125: 0 | EG125: 0 | EL125: 0
D126: Cash value | G126: 0 | L126: 0 | Q126: 0 | V126: 0 | AA126: 0 | AF126: 0 | AK126: 0 | AP126: 0 | AU126: 0 | AZ126: 0 | BE126: 0 | BJ126: 0 | BO126: 0 | BT126: 0 | BY126: 0 | CD126: 0 | CI126: 0 | CN126: 0 | CS126: 0 | CX126: 0 | DC126: 0 | DH126: 0 | DM126: 0 | DR126: 0 | DW126: 0 | EB126: 0 | EG126: 0 | EL126: 0
D127: Discount | G127: 0 | L127: 0 | Q127: 0 | V127: 0 | AA127: 0 | AF127: 0 | AK127: 0 | AP127: 0 | AU127: 0 | AZ127: 0 | BE127: 0 | BJ127: 0 | BO127: 0 | BT127: 0 | BY127: 0 | CD127: 0 | CI127: 0 | CN127: 0 | CS127: 0 | CX127: 0 | DC127: 0 | DH127: 0 | DM127: 0 | DR127: 0 | DW127: 0 | EB127: 0 | EG127: 0 | EL127: 0
D128: Premium | G128: 0 | L128: 0 | Q128: 0 | V128: 0 | AA128: 0 | AF128: 0 | AK128: 0 | AP128: 0 | AU128: 0 | AZ128: 0 | BE128: 0 | BJ128: 0 | BO128: 0 | BT128: 0 | BY128: 0 | CD128: 0 | CI128: 0 | CN128: 0 | CS128: 0 | CX128: 0 | DC128: 0 | DH128: 0 | DM128: 0 | DR128: 0 | DW128: 0 | EB128: 0 | EG128: 0 | EL128: 0
D129: Revaluation | G129: 0 | L129: 0 | Q129: 0 | V129: 0 | AA129: 0 | AF129: 0 | AK129: 0 | AP129: 0 | AU129: 0 | AZ129: 0 | BE129: 0 | BJ129: 0 | BO129: 0 | BT129: 0 | BY129: 0 | CD129: 0 | CI129: 0 | CN129: 0 | CS129: 0 | CX129: 0 | DC129: 0 | DH129: 0 | DM129: 0 | DR129: 0 | DW129: 0 | EB129: 0 | EG129: 0 | EL129: 0
D131: R202 (3.45% 2033/12/07) | G131: 0 | L131: 0 | Q131: 0 | V131: 0 | AA131: 0 | AF131: 0 | AK131: 0 | AP131: 0 | AU131: 0 | AZ131: 0 | BE131: 0 | BJ131: 0 | BO131: 0 | BT131: 0 | BY131: 0 | CD131: 0 | CI131: 0 | CN131: 0 | CS131: 0 | CX131: 0 | DC131: 0 | DH131: 0 | DM131: 0 | DR131: 0 | DW131: 0 | EB131: 0 | EG131: 0 | EL131: 0
D132: Cash value | G132: 0 | L132: 0 | Q132: 0 | V132: 0 | AA132: 0 | AF132: 0 | AK132: 0 | AP132: 0 | AU132: 0 | AZ132: 0 | BE132: 0 | BJ132: 0 | BO132: 0 | BT132: 0 | BY132: 0 | CD132: 0 | CI132: 0 | CN132: 0 | CS132: 0 | CX132: 0 | DC132: 0 | DH132: 0 | DM132: 0 | DR132: 0 | DW132: 0 | EB132: 0 | EG132: 0 | EL132: 0
D133: Discount | G133: 0 | L133: 0 | Q133: 0 | V133: 0 | AA133: 0 | AF133: 0 | AK133: 0 | AP133: 0 | AU133: 0 | AZ133: 0 | BE133: 0 | BJ133: 0 | BO133: 0 | BT133: 0 | BY133: 0 | CD133: 0 | CI133: 0 | CN133: 0 | CS133: 0 | CX133: 0 | DC133: 0 | DH133: 0 | DM133: 0 | DR133: 0 | DW133: 0 | EB133: 0 | EG133: 0 | EL133: 0
D134: Premium | G134: 0 | L134: 0 | Q134: 0 | V134: 0 | AA134: 0 | AF134: 0 | AK134: 0 | AP134: 0 | AU134: 0 | AZ134: 0 | BE134: 0 | BJ134: 0 | BO134: 0 | BT134: 0 | BY134: 0 | CD134: 0 | CI134: 0 | CN134: 0 | CS134: 0 | CX134: 0 | DC134: 0 | DH134: 0 | DM134: 0 | DR134: 0 | DW134: 0 | EB134: 0 | EG134: 0 | EL134: 0
D135: Revaluation | G135: 0 | L135: 0 | Q135: 0 | V135: 0 | AA135: 0 | AF135: 0 | AK135: 0 | AP135: 0 | AU135: 0 | AZ135: 0 | BE135: 0 | BJ135: 0 | BO135: 0 | BT135: 0 | BY135: 0 | CD135: 0 | CI135: 0 | CN135: 0 | CS135: 0 | CX135: 0 | DC135: 0 | DH135: 0 | DM135: 0 | DR135: 0 | DW135: 0 | EB135: 0 | EG135: 0 | EL135: 0
D137: R212 (2.75% 2022/01/31) | G137: 0 | L137: 0 | Q137: 0 | V137: 0 | AA137: 0 | AF137: 0 | AK137: 0 | AP137: 0 | AU137: 0 | AZ137: 0 | BE137: 0 | BJ137: 0 | BO137: 0 | BT137: 0 | BY137: 2291175 | CD137: 2291175 | CI137: 0 | CN137: 0 | CS137: 0 | CX137: 0 | DC137: 0 | DH137: 0 | DM137: 0 | DR137: 0 | DW137: 0 | EB137: 0 | EG137: 0 | EL137: 2291175
D138: Cash value | G138: 0 | L138: 0 | Q138: 0 | V138: 0 | AA138: 0 | AF138: 0 | AK138: 0 | AP138: 0 | AU138: 0 | AZ138: 0 | BE138: 0 | BJ138: 0 | BO138: 0 | BT138: 0 | BY138: 1396181 | CD138: 1396181 | CI138: 0 | CN138: 0 | CS138: 0 | CX138: 0 | DC138: 0 | DH138: 0 | DM138: 0 | DR138: 0 | DW138: 0 | EB138: 0 | EG138: 0 | EL138: 1396181
D139: Discount | G139: 0 | L139: 0 | Q139: 0 | V139: 0 | AA139: 0 | AF139: 0 | AK139: 0 | AP139: 0 | AU139: 0 | AZ139: 0 | BE139: 0 | BJ139: 0 | BO139: 0 | BT139: 0 | BY139: 18467 | CD139: 18467 | CI139: 0 | CN139: 0 | CS139: 0 | CX139: 0 | DC139: 0 | DH139: 0 | DM139: 0 | DR139: 0 | DW139: 0 | EB139: 0 | EG139: 0 | EL139: 18467
D140: Premium | G140: 0 | L140: 0 | Q140: 0 | V140: 0 | AA140: 0 | AF140: 0 | AK140: 0 | AP140: 0 | AU140: 0 | AZ140: 0 | BE140: 0 | BJ140: 0 | BO140: 0 | BT140: 0 | BY140: -4648 | CD140: -4648 | CI140: 0 | CN140: 0 | CS140: 0 | CX140: 0 | DC140: 0 | DH140: 0 | DM140: 0 | DR140: 0 | DW140: 0 | EB140: 0 | EG140: 0 | EL140: -4648
D141: Revaluation | G141: 0 | L141: 0 | Q141: 0 | V141: 0 | AA141: 0 | AF141: 0 | AK141: 0 | AP141: 0 | AU141: 0 | AZ141: 0 | BE141: 0 | BJ141: 0 | BO141: 0 | BT141: 0 | BY141: 881175 | CD141: 881175 | CI141: 0 | CN141: 0 | CS141: 0 | CX141: 0 | DC141: 0 | DH141: 0 | DM141: 0 | DR141: 0 | DW141: 0 | EB141: 0 | EG141: 0 | EL141: 881175
D143: R213 (7.00% 2031/02/28) | G143: 0 | L143: 4806000 | Q143: 3591000 | V143: 4123000 | AA143: 0 | AF143: 0 | AK143: 0 | AP143: 0 | AU143: 0 | AZ143: 0 | BE143: 0 | BJ143: 0 | BO143: 0 | BT143: 12520000 | BY143: 10434483 | CD143: 0 | CI143: 0 | CN143: 0 | CS143: 0 | CX143: 0 | DC143: 0 | DH143: 0 | DM143: 0 | DR143: 3976000 | DW143: 0 | EB143: 2483 | EG143: 6456000 | EL143: 0
D144: Cash value | G144: 0 | L144: 4002361 | Q144: 3023241 | V144: 3569896 | AA144: 0 | AF144: 0 | AK144: 0 | AP144: 0 | AU144: 0 | AZ144: 0 | BE144: 0 | BJ144: 0 | BO144: 0 | BT144: 10595498 | BY144: 8647925 | CD144: 0 | CI144: 0 | CN144: 0 | CS144: 0 | CX144: 0 | DC144: 0 | DH144: 0 | DM144: 0 | DR144: 3334255 | DW144: 0 | EB144: 2118 | EG144: 5311552 | EL144: 0
D145: Discount | G145: 0 | L145: 803639 | Q145: 567759 | V145: 553104 | AA145: 0 | AF145: 0 | AK145: 0 | AP145: 0 | AU145: 0 | AZ145: 0 | BE145: 0 | BJ145: 0 | BO145: 0 | BT145: 1924502 | BY145: 1786558 | CD145: 0 | CI145: 0 | CN145: 0 | CS145: 0 | CX145: 0 | DC145: 0 | DH145: 0 | DM145: 0 | DR145: 641745 | DW145: 0 | EB145: 365 | EG145: 1144448 | EL145: 0
D146: Premium | G146: 0 | L146: 0 | Q146: 0 | V146: 0 | AA146: 0 | AF146: 0 | AK146: 0 | AP146: 0 | AU146: 0 | AZ146: 0 | BE146: 0 | BJ146: 0 | BO146: 0 | BT146: 0 | BY146: 0 | CD146: 0 | CI146: 0 | CN146: 0 | CS146: 0 | CX146: 0 | DC146: 0 | DH146: 0 | DM146: 0 | DR146: 0 | DW146: 0 | EB146: 0 | EG146: 0 | EL146: 0
D148: R214 (6.50% 2041/02/28) | G148: 0 | L148: 0 | Q148: 0 | V148: 0 | AA148: 0 | AF148: 0 | AK148: 0 | AP148: 0 | AU148: 0 | AZ148: 0 | BE148: 0 | BJ148: 0 | BO148: 0 | BT148: 0 | BY148: 0 | CD148: 0 | CI148: 0 | CN148: 0 | CS148: 0 | CX148: 0 | DC148: 0 | DH148: 0 | DM148: 0 | DR148: 0 | DW148: 0 | EB148: 0 | EG148: 0 | EL148: 0
D149: Cash value | G149: 0 | L149: 0 | Q149: 0 | V149: 0 | AA149: 0 | AF149: 0 | AK149: 0 | AP149: 0 | AU149: 0 | AZ149: 0 | BE149: 0 | BJ149: 0 | BO149: 0 | BT149: 0 | BY149: 0 | CD149: 0 | CI149: 0 | CN149: 0 | CS149: 0 | CX149: 0 | DC149: 0 | DH149: 0 | DM149: 0 | DR149: 0 | DW149: 0 | EB149: 0 | EG149: 0 | EL149: 0
D150: Discount | G150: 0 | L150: 0 | Q150: 0 | V150: 0 | AA150: 0 | AF150: 0 | AK150: 0 | AP150: 0 | AU150: 0 | AZ150: 0 | BE150: 0 | BJ150: 0 | BO150: 0 | BT150: 0 | BY150: 0 | CD150: 0 | CI150: 0 | CN150: 0 | CS150: 0 | CX150: 0 | DC150: 0 | DH150: 0 | DM150: 0 | DR150: 0 | DW150: 0 | EB150: 0 | EG150: 0 | EL150: 0
D151: Premium | G151: 0 | L151: 0 | Q151: 0 | V151: 0 | AA151: 0 | AF151: 0 | AK151: 0 | AP151: 0 | AU151: 0 | AZ151: 0 | BE151: 0 | BJ151: 0 | BO151: 0 | BT151: 0 | BY151: 0 | CD151: 0 | CI151: 0 | CN151: 0 | CS151: 0 | CX151: 0 | DC151: 0 | DH151: 0 | DM151: 0 | DR151: 0 | DW151: 0 | EB151: 0 | EG151: 0 | EL151: 0
D153: R2023 (7.75% 2023/02/28) | G153: 0 | L153: 0 | Q153: 0 | V153: 0 | AA153: 0 | AF153: 0 | AK153: 0 | AP153: 0 | AU153: 0 | AZ153: 0 | BE153: 0 | BJ153: 0 | BO153: 0 | BT153: 0 | BY153: 11300000 | CD153: 5260000 | CI153: 6040000 | CN153: 0 | CS153: 0 | CX153: 0 | DC153: 0 | DH153: 0 | DM153: 0 | DR153: 0 | DW153: 0 | EB153: 0 | EG153: 0 | EL153: 11300000
D154: Cash value | G154: 0 | L154: 0 | Q154: 0 | V154: 0 | AA154: 0 | AF154: 0 | AK154: 0 | AP154: 0 | AU154: 0 | AZ154: 0 | BE154: 0 | BJ154: 0 | BO154: 0 | BT154: 0 | BY154: 11747146 | CD154: 5342405 | CI154: 6404741 | CN154: 0 | CS154: 0 | CX154: 0 | DC154: 0 | DH154: 0 | DM154: 0 | DR154: 0 | DW154: 0 | EB154: 0 | EG154: 0 | EL154: 11747146
D155: Discount | G155: 0 | L155: 0 | Q155: 0 | V155: 0 | AA155: 0 | AF155: 0 | AK155: 0 | AP155: 0 | AU155: 0 | AZ155: 0 | BE155: 0 | BJ155: 0 | BO155: 0 | BT155: 0 | BY155: 0 | CD155: 0 | CI155: 0 | CN155: 0 | CS155: 0 | CX155: 0 | DC155: 0 | DH155: 0 | DM155: 0 | DR155: 0 | DW155: 0 | EB155: 0 | EG155: 0 | EL155: 0
D156: Premium | G156: 0 | L156: 0 | Q156: 0 | V156: 0 | AA156: 0 | AF156: 0 | AK156: 0 | AP156: 0 | AU156: 0 | AZ156: 0 | BE156: 0 | BJ156: 0 | BO156: 0 | BT156: 0 | BY156: -447146 | CD156: -82405 | CI156: -364741 | CN156: 0 | CS156: 0 | CX156: 0 | DC156: 0 | DH156: 0 | DM156: 0 | DR156: 0 | DW156: 0 | EB156: 0 | EG156: 0 | EL156: -447146
D158: R2030 (7.75% 2030/01/31) | G158: 0 | L158: 2409015 | Q158: 2900000 | V158: 0 | AA158: 0 | AF158: 0 | AK158: 0 | AP158: 0 | AU158: 0 | AZ158: 0 | BE158: 0 | BJ158: 0 | BO158: 0 | BT158: 5309015 | BY158: 94684527 | CD158: 6792000 | CI158: 11547000 | CN158: 15028000 | CS158: 14865000 | CX158: 2200000 | DC158: 3111000 | DH158: 11827000 | DM158: 8851000 | DR158: 6551000 | DW158: 6603000 | EB158: 2201527 | EG158: 5108000 | EL158: 33367000
D159: Cash value | G159: 0 | L159: 2197679 | Q159: 2718196 | V159: 0 | AA159: 0 | AF159: 0 | AK159: 0 | AP159: 0 | AU159: 0 | AZ159: 0 | BE159: 0 | BJ159: 0 | BO159: 0 | BT159: 4915875 | BY159: 86760301 | CD159: 5597569 | CI159: 10295684 | CN159: 14034567 | CS159: 13557809 | CX159: 2027839 | DC159: 2876931 | DH159: 10801975 | DM159: 8272805 | DR159: 6230884 | DW159: 6282416 | EB159: 2092967 | EG159: 4688855 | EL159: 29927820
D160: Discount | G160: 0 | L160: 211336 | Q160: 181804 | V160: 0 | AA160: 0 | AF160: 0 | AK160: 0 | AP160: 0 | AU160: 0 | AZ160: 0 | BE160: 0 | BJ160: 0 | BO160: 0 | BT160: 393140 | BY160: 7924226 | CD160: 1194431 | CI160: 1251316 | CN160: 993433 | CS160: 1307191 | CX160: 172161 | DC160: 234069 | DH160: 1025025 | DM160: 578195 | DR160: 320116 | DW160: 320584 | EB160: 108560 | EG160: 419145 | EL160: 3439180
D161: Premium | G161: 0 | L161: 0 | Q161: 0 | V161: 0 | AA161: 0 | AF161: 0 | AK161: 0 | AP161: 0 | AU161: 0 | AZ161: 0 | BE161: 0 | BJ161: 0 | BO161: 0 | BT161: 0 | BY161: 0 | CD161: 0 | CI161: 0 | CN161: 0 | CS161: 0 | CX161: 0 | DC161: 0 | DH161: 0 | DM161: 0 | DR161: 0 | DW161: 0 | EB161: 0 | EG161: 0 | EL161: 0
EL162: 0
D163: R2032 (8.25% 2032/03/31) | G163: 0 | L163: 2400000 | Q163: 1305964 | V163: 5190000 | AA163: 0 | AF163: 0 | AK163: 0 | AP163: 0 | AU163: 0 | AZ163: 0 | BE163: 0 | BJ163: 0 | BO163: 0 | BT163: 8895964 | BY163: 68054581 | CD163: 6024000 | CI163: 3019000 | CN163: 2872000 | CS163: 6600000 | CX163: 9277000 | DC163: 8807000 | DH163: 4111000 | DM163: 4400000 | DR163: 2329000 | DW163: 4398000 | EB163: 8804581 | EG163: 7413000 | EL163: 11915000
D164: Cash value | G164: 0 | L164: 2078053 | Q164: 1185906 | V164: 4740667 | AA164: 0 | AF164: 0 | AK164: 0 | AP164: 0 | AU164: 0 | AZ164: 0 | BE164: 0 | BJ164: 0 | BO164: 0 | BT164: 8004626 | BY164: 59488167 | CD164: 4839588 | CI164: 2551341 | CN164: 2494948 | CS164: 5728848 | CX164: 8051754 | DC164: 7699051 | DH164: 3554378 | DM164: 3925487 | DR164: 2072062 | DW164: 3952220 | EB164: 8060985 | EG164: 6557505 | EL164: 9885877
D165: Discount | G165: 0 | L165: 321947 | Q165: 120058 | V165: 449333 | AA165: 0 | AF165: 0 | AK165: 0 | AP165: 0 | AU165: 0 | AZ165: 0 | BE165: 0 | BJ165: 0 | BO165: 0 | BT165: 891338 | BY165: 8566414 | CD165: 1184412 | CI165: 467659 | CN165: 377052 | CS165: 871152 | CX165: 1225246 | DC165: 1107949 | DH165: 556622 | DM165: 474513 | DR165: 256938 | DW165: 445780 | EB165: 743596 | EG165: 855495 | EL165: 2029123
D166: Premium | G166: 0 | L166: 0 | Q166: 0 | V166: 0 | AA166: 0 | AF166: 0 | AK166: 0 | AP166: 0 | AU166: 0 | AZ166: 0 | BE166: 0 | BJ166: 0 | BO166: 0 | BT166: 0 | BY166: 0 | CD166: 0 | CI166: 0 | CN166: 0 | CS166: 0 | CX166: 0 | DC166: 0 | DH166: 0 | DM166: 0 | DR166: 0 | DW166: 0 | EB166: 0 | EG166: 0 | EL166: 0
D168: R2037 (8.50% 2037/01/31) | G168: 0 | L168: 7133339 | Q168: 1659710 | V168: 2600000 | AA168: 0 | AF168: 0 | AK168: 0 | AP168: 0 | AU168: 0 | AZ168: 0 | BE168: 0 | BJ168: 0 | BO168: 0 | BT168: 11393049 | BY168: 47380287 | CD168: 3019000 | CI168: 0 | CN168: 4198000 | CS168: 4397000 | CX168: 3698000 | DC168: 4400000 | DH168: 4176000 | DM168: 0 | DR168: 4344000 | DW168: 4400000 | EB168: 10347287 | EG168: 4401000 | EL168: 7217000
D169: Cash value | G169: 0 | L169: 5815675 | Q169: 1391388 | V169: 2268443 | AA169: 0 | AF169: 0 | AK169: 0 | AP169: 0 | AU169: 0 | AZ169: 0 | BE169: 0 | BJ169: 0 | BO169: 0 | BT169: 9475506 | BY169: 38642601 | CD169: 2313235 | CI169: 0 | CN169: 3526100 | CS169: 3457868 | CX169: 2934781 | DC169: 3520323 | DH169: 3268136 | DM169: 0 | DR169: 3515861 | DW169: 3631244 | EB169: 8784363 | EG169: 3690690 | EL169: 5839335
D170: Discount | G170: 0 | L170: 1317664 | Q170: 268322 | V170: 331557 | AA170: 0 | AF170: 0 | AK170: 0 | AP170: 0 | AU170: 0 | AZ170: 0 | BE170: 0 | BJ170: 0 | BO170: 0 | BT170: 1917543 | BY170: 8737686 | CD170: 705765 | CI170: 0 | CN170: 671900 | CS170: 939132 | CX170: 763219 | DC170: 879677 | DH170: 907864 | DM170: 0 | DR170: 828139 | DW170: 768756 | EB170: 1562924 | EG170: 710310 | EL170: 1377665
D171: Premium | G171: 0 | L171: 0 | Q171: 0 | V171: 0 | AA171: 0 | AF171: 0 | AK171: 0 | AP171: 0 | AU171: 0 | AZ171: 0 | BE171: 0 | BJ171: 0 | BO171: 0 | BT171: 0 | BY171: 0 | CD171: 0 | CI171: 0 | CN171: 0 | CS171: 0 | CX171: 0 | DC171: 0 | DH171: 0 | DM171: 0 | DR171: 0 | DW171: 0 | EB171: 0 | EG171: 0 | EL171: 0
D173: R2044 (8.75% 2043-44-45/01/31) | G173: 0 | L173: 4796000 | Q173: 1940000 | V173: 0 | AA173: 0 | AF173: 0 | AK173: 0 | AP173: 0 | AU173: 0 | AZ173: 0 | BE173: 0 | BJ173: 0 | BO173: 0 | BT173: 6736000 | BY173: 21996000 | CD173: 0 | CI173: 0 | CN173: 0 | CS173: 0 | CX173: 2200000 | DC173: 4397000 | DH173: 2250000 | DM173: 4177000 | DR173: 0 | DW173: 0 | EB173: 6775000 | EG173: 2197000 | EL173: 0
D174: Cash value | G174: 0 | L174: 3800097 | Q174: 1595790 | V174: 0 | AA174: 0 | AF174: 0 | AK174: 0 | AP174: 0 | AU174: 0 | AZ174: 0 | BE174: 0 | BJ174: 0 | BO174: 0 | BT174: 5395887 | BY174: 17649566 | CD174: 0 | CI174: 0 | CN174: 0 | CS174: 0 | CX174: 1708970 | DC174: 3470539 | DH174: 1721824 | DM174: 3312961 | DR174: 0 | DW174: 0 | EB174: 5639999 | EG174: 1795273 | EL174: 0
D175: Discount | G175: 0 | L175: 995903 | Q175: 344210 | V175: 0 | AA175: 0 | AF175: 0 | AK175: 0 | AP175: 0 | AU175: 0 | AZ175: 0 | BE175: 0 | BJ175: 0 | BO175: 0 | BT175: 1340113 | BY175: 4346434 | CD175: 0 | CI175: 0 | CN175: 0 | CS175: 0 | CX175: 491030 | DC175: 926461 | DH175: 528176 | DM175: 864039 | DR175: 0 | DW175: 0 | EB175: 1135001 | EG175: 401727 | EL175: 0
D176: Premium | G176: 0 | L176: 0 | Q176: 0 | V176: 0 | AA176: 0 | AF176: 0 | AK176: 0 | AP176: 0 | AU176: 0 | AZ176: 0 | BE176: 0 | BJ176: 0 | BO176: 0 | BT176: 0 | BY176: 0 | CD176: 0 | CI176: 0 | CN176: 0 | CS176: 0 | CX176: 0 | DC176: 0 | DH176: 0 | DM176: 0 | DR176: 0 | DW176: 0 | EB176: 0 | EG176: 0 | EL176: 0
D178: R2048 (8.75% 2047-48-49/02/28) | G178: 0 | L178: 4795000 | Q178: 3180309 | V178: 1754000 | AA178: 0 | AF178: 0 | AK178: 0 | AP178: 0 | AU178: 0 | AZ178: 0 | BE178: 0 | BJ178: 0 | BO178: 0 | BT178: 9729309 | BY178: 54434457 | CD178: 0 | CI178: 0 | CN178: 5309000 | CS178: 7690000 | CX178: 7528000 | DC178: 8637000 | DH178: 5599000 | DM178: 2292000 | DR178: 8795000 | DW178: 6596000 | EB178: 1988457 | EG178: 0 | EL178: 5309000
D179: Cash value | G179: 0 | L179: 3813411 | Q179: 2615049 | V179: 1498963 | AA179: 0 | AF179: 0 | AK179: 0 | AP179: 0 | AU179: 0 | AZ179: 0 | BE179: 0 | BJ179: 0 | BO179: 0 | BT179: 7927423 | BY179: 42816890 | CD179: 0 | CI179: 0 | CN179: 4180786 | CS179: 5836553 | CX179: 5817802 | DC179: 6710910 | DH179: 4270851 | DM179: 1856287 | DR179: 7137913 | DW179: 5374012 | EB179: 1631776 | EG179: 0 | EL179: 4180786
D180: Discount | G180: 0 | L180: 981589 | Q180: 565260 | V180: 255037 | AA180: 0 | AF180: 0 | AK180: 0 | AP180: 0 | AU180: 0 | AZ180: 0 | BE180: 0 | BJ180: 0 | BO180: 0 | BT180: 1801886 | BY180: 11617567 | CD180: 0 | CI180: 0 | CN180: 1128214 | CS180: 1853447 | CX180: 1710198 | DC180: 1926090 | DH180: 1328149 | DM180: 435713 | DR180: 1657087 | DW180: 1221988 | EB180: 356681 | EG180: 0 | EL180: 1128214
D181: Premium | G181: 0 | L181: 0 | Q181: 0 | V181: 0 | AA181: 0 | AF181: 0 | AK181: 0 | AP181: 0 | AU181: 0 | AZ181: 0 | BE181: 0 | BJ181: 0 | BO181: 0 | BT181: 0 | BY181: 0 | CD181: 0 | CI181: 0 | CN181: 0 | CS181: 0 | CX181: 0 | DC181: 0 | DH181: 0 | DM181: 0 | DR181: 0 | DW181: 0 | EB181: 0 | EG181: 0 | EL181: 0
D187: Table 3.1 Issuance of domestic long-term loans (continued)
G188: 2021/22 | BY188: 2020/21
G189: Budget | L189: April | Q189: May | V189: June | AA189: July | AF189: August | AK189: September | AP189: October | AU189: November | AZ189: December | BE189: January | BJ189: February | BO189: March | BT189: Year to date | BY189: Preliminary | CD189: April | CI189: May | CN189: June | CS189: July | CX189: August | DC189: September | DH189: October | DM189: November | DR189: December | DW189: January | EB189: February | EG189: March | EL189: Year to date
D190: R thousand | G190: estimate | BY190: outcome
D192: Amortised interest on Zero Coupon Bonds (cash value) | G192: 0 | L192: 0 | Q192: 0 | V192: 0 | AA192: 0 | AF192: 0 | AK192: 0 | AP192: 0 | AU192: 0 | AZ192: 0 | BE192: 0 | BJ192: 0 | BO192: 0 | BT192: 0 | BY192: 0 | CD192: 0 | CI192: 0 | CN192: 0 | CS192: 0 | CX192: 0 | DC192: 0 | DH192: 0 | DM192: 0 | DR192: 0 | DW192: 0 | EB192: 0 | EG192: 0 | EL192: 0
D193: Z006 (13.91% 2013/08/31) | G193: 0 | L193: 0 | Q193: 0 | V193: 0 | AA193: 0 | AF193: 0 | AK193: 0 | AP193: 0 | AU193: 0 | AZ193: 0 | BE193: 0 | BJ193: 0 | BO193: 0 | BT193: 0 | BY193: 0 | CD193: 0 | CI193: 0 | CN193: 0 | CS193: 0 | CX193: 0 | DC193: 0 | DH193: 0 | DM193: 0 | DR193: 0 | DW193: 0 | EB193: 0 | EG193: 0 | EL193: 0
D194: Z009 (12.15% 2013/11/30) | G194: 0 | L194: 0 | Q194: 0 | V194: 0 | AA194: 0 | AF194: 0 | AK194: 0 | AP194: 0 | AU194: 0 | AZ194: 0 | BE194: 0 | BJ194: 0 | BO194: 0 | BT194: 0 | BY194: 0 | CD194: 0 | CI194: 0 | CN194: 0 | CS194: 0 | CX194: 0 | DC194: 0 | DH194: 0 | DM194: 0 | DR194: 0 | DW194: 0 | EB194: 0 | EG194: 0 | EL194: 0
D195: Z014 (12.60% 2015/06/30) | G195: 0 | L195: 0 | Q195: 0 | V195: 0 | AA195: 0 | AF195: 0 | AK195: 0 | AP195: 0 | AU195: 0 | AZ195: 0 | BE195: 0 | BJ195: 0 | BO195: 0 | BT195: 0 | BY195: 0 | CD195: 0 | CI195: 0 | CN195: 0 | CS195: 0 | CX195: 0 | DC195: 0 | DH195: 0 | DM195: 0 | DR195: 0 | DW195: 0 | EB195: 0 | EG195: 0 | EL195: 0
D196: Z018 (13.35% 2014/03/31) | G196: 0 | L196: 0 | Q196: 0 | V196: 0 | AA196: 0 | AF196: 0 | AK196: 0 | AP196: 0 | AU196: 0 | AZ196: 0 | BE196: 0 | BJ196: 0 | BO196: 0 | BT196: 0 | BY196: 0 | CD196: 0 | CI196: 0 | CN196: 0 | CS196: 0 | CX196: 0 | DC196: 0 | DH196: 0 | DM196: 0 | DR196: 0 | DW196: 0 | EB196: 0 | EG196: 0 | EL196: 0
D197: Z019 (13.30% 2014/06/30) | G197: 0 | L197: 0 | Q197: 0 | V197: 0 | AA197: 0 | AF197: 0 | AK197: 0 | AP197: 0 | AU197: 0 | AZ197: 0 | BE197: 0 | BJ197: 0 | BO197: 0 | BT197: 0 | BY197: 0 | CD197: 0 | CI197: 0 | CN197: 0 | CS197: 0 | CX197: 0 | DC197: 0 | DH197: 0 | DM197: 0 | DR197: 0 | DW197: 0 | EB197: 0 | EG197: 0 | EL197: 0
D198: Z020 (13.20% 2015/10/19) | G198: 0 | L198: 0 | Q198: 0 | V198: 0 | AA198: 0 | AF198: 0 | AK198: 0 | AP198: 0 | AU198: 0 | AZ198: 0 | BE198: 0 | BJ198: 0 | BO198: 0 | BT198: 0 | BY198: 0 | CD198: 0 | CI198: 0 | CN198: 0 | CS198: 0 | CX198: 0 | DC198: 0 | DH198: 0 | DM198: 0 | DR198: 0 | DW198: 0 | EB198: 0 | EG198: 0 | EL198: 0
D199: Z021 (12.60% 2009/04/30) | G199: 0 | L199: 0 | Q199: 0 | V199: 0 | AA199: 0 | AF199: 0 | AK199: 0 | AP199: 0 | AU199: 0 | AZ199: 0 | BE199: 0 | BJ199: 0 | BO199: 0 | BT199: 0 | BY199: 0 | CD199: 0 | CI199: 0 | CN199: 0 | CS199: 0 | CX199: 0 | DC199: 0 | DH199: 0 | DM199: 0 | DR199: 0 | DW199: 0 | EB199: 0 | EG199: 0 | EL199: 0
D200: Z025 (13.00% 2014/11/30) | G200: 0 | L200: 0 | Q200: 0 | V200: 0 | AA200: 0 | AF200: 0 | AK200: 0 | AP200: 0 | AU200: 0 | AZ200: 0 | BE200: 0 | BJ200: 0 | BO200: 0 | BT200: 0 | BY200: 0 | CD200: 0 | CI200: 0 | CN200: 0 | CS200: 0 | CX200: 0 | DC200: 0 | DH200: 0 | DM200: 0 | DR200: 0 | DW200: 0 | EB200: 0 | EG200: 0 | EL200: 0
D201: Z071 (15.64% 2015/07/01) | G201: 0 | L201: 0 | Q201: 0 | V201: 0 | AA201: 0 | AF201: 0 | AK201: 0 | AP201: 0 | AU201: 0 | AZ201: 0 | BE201: 0 | BJ201: 0 | BO201: 0 | BT201: 0 | BY201: 0 | CD201: 0 | CI201: 0 | CN201: 0 | CS201: 0 | CX201: 0 | DC201: 0 | DH201: 0 | DM201: 0 | DR201: 0 | DW201: 0 | EB201: 0 | EG201: 0 | EL201: 0
D202: Z083 (15.25% 2019/09/30) | G202: 0 | L202: 0 | Q202: 0 | V202: 0 | AA202: 0 | AF202: 0 | AK202: 0 | AP202: 0 | AU202: 0 | AZ202: 0 | BE202: 0 | BJ202: 0 | BO202: 0 | BT202: 0 | BY202: 0 | CD202: 0 | CI202: 0 | CN202: 0 | CS202: 0 | CX202: 0 | DC202: 0 | DH202: 0 | DM202: 0 | DR202: 0 | DW202: 0 | EB202: 0 | EG202: 0 | EL202: 0
D203: Z089 (15.25% 2019/09/30) | G203: 0 | L203: 0 | Q203: 0 | V203: 0 | AA203: 0 | AF203: 0 | AK203: 0 | AP203: 0 | AU203: 0 | AZ203: 0 | BE203: 0 | BJ203: 0 | BO203: 0 | BT203: 0 | BY203: 0 | CD203: 0 | CI203: 0 | CN203: 0 | CS203: 0 | CX203: 0 | DC203: 0 | DH203: 0 | DM203: 0 | DR203: 0 | DW203: 0 | EB203: 0 | EG203: 0 | EL203: 0
D204: Z109 (15.25% 2016/09/15) | G204: 0 | L204: 0 | Q204: 0 | V204: 0 | AA204: 0 | AF204: 0 | AK204: 0 | AP204: 0 | AU204: 0 | AZ204: 0 | BE204: 0 | BJ204: 0 | BO204: 0 | BT204: 0 | BY204: 0 | CD204: 0 | CI204: 0 | CN204: 0 | CS204: 0 | CX204: 0 | DC204: 0 | DH204: 0 | DM204: 0 | DR204: 0 | DW204: 0 | EB204: 0 | EG204: 0 | EL204: 0
D206: Capitalised interest on Retail Bonds (cash value) | G206: 0 | L206: 0 | Q206: 0 | V206: 0 | AA206: 0 | AF206: 0 | AK206: 0 | AP206: 0 | AU206: 0 | AZ206: 0 | BE206: 0 | BJ206: 0 | BO206: 0 | BT206: 0 | BY206: 0 | CD206: 0 | CI206: 0 | CN206: 0 | CS206: 0 | CX206: 0 | DC206: 0 | DH206: 0 | DM206: 0 | DR206: 0 | DW206: 0 | EB206: 0 | EG206: 0 | EL206: 0
D207: Corporate Retail Bond | G207: 0 | L207: 0 | Q207: 0 | V207: 0 | AA207: 0 | AF207: 0 | AK207: 0 | AP207: 0 | AU207: 0 | AZ207: 0 | BE207: 0 | BJ207: 0 | BO207: 0 | BT207: 0 | BY207: 0 | CD207: 0 | CI207: 0 | CN207: 0 | CS207: 0 | CX207: 0 | DC207: 0 | DH207: 0 | DM207: 0 | DR207: 0 | DW207: 0 | EB207: 0 | EG207: 0 | EL207: 0
D208: RB01 | G208: 0 | L208: 0 | Q208: 0 | V208: 0 | AA208: 0 | AF208: 0 | AK208: 0 | AP208: 0 | AU208: 0 | AZ208: 0 | BE208: 0 | BJ208: 0 | BO208: 0 | BT208: 0 | BY208: 0 | CD208: 0 | CI208: 0 | CN208: 0 | CS208: 0 | CX208: 0 | DC208: 0 | DH208: 0 | DM208: 0 | DR208: 0 | DW208: 0 | EB208: 0 | EG208: 0 | EL208: 0
D209: RB02 | G209: 0 | L209: 0 | Q209: 0 | V209: 0 | AA209: 0 | AF209: 0 | AK209: 0 | AP209: 0 | AU209: 0 | AZ209: 0 | BE209: 0 | BJ209: 0 | BO209: 0 | BT209: 0 | BY209: 0 | CD209: 0 | CI209: 0 | CN209: 0 | CS209: 0 | CX209: 0 | DC209: 0 | DH209: 0 | DM209: 0 | DR209: 0 | DW209: 0 | EB209: 0 | EG209: 0 | EL209: 0
D210: RB03 | G210: 0 | L210: 0 | Q210: 0 | V210: 0 | AA210: 0 | AF210: 0 | AK210: 0 | AP210: 0 | AU210: 0 | AZ210: 0 | BE210: 0 | BJ210: 0 | BO210: 0 | BT210: 0 | BY210: 0 | CD210: 0 | CI210: 0 | CN210: 0 | CS210: 0 | CX210: 0 | DC210: 0 | DH210: 0 | DM210: 0 | DR210: 0 | DW210: 0 | EB210: 0 | EG210: 0 | EL210: 0
D211: RB04 | G211: 0 | BJ211: 0 | BO211: 0 | BT211: 0 | BY211: 0 | EB211: 0 | EG211: 0 | EL211: 0
D212: RB05 | G212: 0 | BJ212: 0 | BO212: 0 | BT212: 0 | BY212: 0 | EB212: 0 | EG212: 0 | EL212: 0
D213: RB06 | G213: 0 | L213: 0 | Q213: 0 | V213: 0 | AA213: 0 | AF213: 0 | AK213: 0 | AP213: 0 | AU213: 0 | AZ213: 0 | BE213: 0 | BJ213: 0 | BO213: 0 | BT213: 0 | CD213: 0 | CI213: 0 | CN213: 0 | CS213: 0 | CX213: 0 | DC213: 0 | DH213: 0 | DM213: 0 | DR213: 0 | DW213: 0 | EB213: 0 | EG213: 0 | EL213: 0
D215: Loans issued for switches | G215: 0 | L215: 11663028 | Q215: 3767776 | V215: 7710681 | AA215: 0 | AF215: 0 | AK215: 0 | AP215: 0 | AU215: 0 | AZ215: 0 | BE215: 0 | BJ215: 0 | BO215: 0 | BT215: 23141485 | BY215: 7577210 | CD215: 0 | CI215: 0 | CN215: 0 | CS215: 0 | CX215: 0 | DC215: 0 | DH215: 0 | DM215: 0 | DR215: 0 | DW215: 0 | EB215: 7577210 | EG215: 0 | EL215: 0
D216: Cash value | G216: 0 | L216: 10593648 | Q216: 3320698 | V216: 7253839 | AA216: 0 | AF216: 0 | AK216: 0 | AP216: 0 | AU216: 0 | AZ216: 0 | BE216: 0 | BJ216: 0 | BO216: 0 | BT216: 21168185 | BY216: 7244040 | CD216: 0 | CI216: 0 | CN216: 0 | CS216: 0 | CX216: 0 | DC216: 0 | DH216: 0 | DM216: 0 | DR216: 0 | DW216: 0 | EB216: 7244040 | EG216: 0 | EL216: 0
D217: Discount | G217: 0 | L217: 1360296 | Q217: 515486 | V217: 670006 | AA217: 0 | AF217: 0 | AK217: 0 | AP217: 0 | AU217: 0 | AZ217: 0 | BE217: 0 | BJ217: 0 | BO217: 0 | BT217: 2545788 | BY217: 730496 | CD217: 0 | CI217: 0 | CN217: 0 | CS217: 0 | CX217: 0 | DC217: 0 | DH217: 0 | DM217: 0 | DR217: 0 | DW217: 0 | EB217: 730496 | EG217: 0 | EL217: 0
D218: Premium | G218: 0 | L218: -290916 | Q218: -68408 | V218: -213164 | AA218: 0 | AF218: 0 | AK218: 0 | AP218: 0 | AU218: 0 | AZ218: 0 | BE218: 0 | BJ218: 0 | BO218: 0 | BT218: -572488 | BY218: -397326 | CD218: 0 | CI218: 0 | CN218: 0 | CS218: 0 | CX218: 0 | DC218: 0 | DH218: 0 | DM218: 0 | DR218: 0 | DW218: 0 | EB218: -397326 | EG218: 0 | EL218: 0
D219: Revaluation | G219: 0 | L219: 0 | Q219: 0 | V219: 0 | AA219: 0 | AF219: 0 | AK219: 0 | AP219: 0 | AU219: 0 | AZ219: 0 | BE219: 0 | BJ219: 0 | BO219: 0 | BT219: 0 | BY219: 0 | CD219: 0 | CI219: 0 | CN219: 0 | CS219: 0 | CX219: 0 | DC219: 0 | DH219: 0 | DM219: 0 | DR219: 0 | DW219: 0 | EB219: 0 | EG219: 0 | EL219: 0
D221: R2044 (8.75% 2043-44-45/07/18) | G221: 0 | L221: 0 | Q221: 0 | V221: 0 | AA221: 0 | AF221: 0 | AK221: 0 | AP221: 0 | AU221: 0 | AZ221: 0 | BE221: 0 | BJ221: 0 | BO221: 0 | BT221: 0 | BY221: 0 | CD221: 0 | CI221: 0 | CN221: 0 | CS221: 0 | CX221: 0 | DC221: 0 | DH221: 0 | DM221: 0 | DR221: 0 | DW221: 0 | EB221: 0 | EG221: 0 | EL221: 0
D222: Cash value | G222: 0 | L222: 0 | Q222: 0 | V222: 0 | AA222: 0 | AF222: 0 | AK222: 0 | AP222: 0 | AU222: 0 | AZ222: 0 | BE222: 0 | BJ222: 0 | BO222: 0 | BT222: 0 | BY222: 0 | CD222: 0 | CI222: 0 | CN222: 0 | CS222: 0 | CX222: 0 | DC222: 0 | DH222: 0 | DM222: 0 | DR222: 0 | DW222: 0 | EB222: 0 | EG222: 0 | EL222: 0
D223: Discount | G223: 0 | L223: 0 | Q223: 0 | V223: 0 | AA223: 0 | AF223: 0 | AK223: 0 | AP223: 0 | AU223: 0 | AZ223: 0 | BE223: 0 | BJ223: 0 | BO223: 0 | BT223: 0 | BY223: 0 | CD223: 0 | CI223: 0 | CN223: 0 | CS223: 0 | CX223: 0 | DC223: 0 | DH223: 0 | DM223: 0 | DR223: 0 | DW223: 0 | EB223: 0 | EG223: 0 | EL223: 0
D224: Premium | G224: 0 | L224: 0 | Q224: 0 | V224: 0 | AA224: 0 | AF224: 0 | AK224: 0 | AP224: 0 | AU224: 0 | AZ224: 0 | BE224: 0 | BJ224: 0 | BO224: 0 | BT224: 0 | BY224: 0 | CD224: 0 | CI224: 0 | CN224: 0 | CS224: 0 | CX224: 0 | DC224: 0 | DH224: 0 | DM224: 0 | DR224: 0 | DW224: 0 | EB224: 0 | EG224: 0 | EL224: 0
D226: R186 (10.50% 2025-26-27/12/21) | G226: 0 | L226: 2013939 | Q226: 468022 | V226: 1476097 | AA226: 0 | AF226: 0 | AK226: 0 | AP226: 0 | AU226: 0 | AZ226: 0 | BE226: 0 | BJ226: 0 | BO226: 0 | BT226: 3958058 | BY226: 2181572 | CD226: 0 | CI226: 0 | CN226: 0 | CS226: 0 | CX226: 0 | DC226: 0 | DH226: 0 | DM226: 0 | DR226: 0 | DW226: 0 | EB226: 2181572 | EG226: 0 | EL226: 0
D227: Cash value | G227: 0 | L227: 2304855 | Q227: 536430 | V227: 1689261 | AA227: 0 | AF227: 0 | AK227: 0 | AP227: 0 | AU227: 0 | AZ227: 0 | BE227: 0 | BJ227: 0 | BO227: 0 | BT227: 4530546 | BY227: 2578898 | CD227: 0 | CI227: 0 | CN227: 0 | CS227: 0 | CX227: 0 | DC227: 0 | DH227: 0 | DM227: 0 | DR227: 0 | DW227: 0 | EB227: 2578898 | EG227: 0 | EL227: 0
D228: Discount | G228: 0 | L228: 0 | Q228: 0 | V228: 0 | AA228: 0 | AF228: 0 | AK228: 0 | AP228: 0 | AU228: 0 | AZ228: 0 | BE228: 0 | BJ228: 0 | BO228: 0 | BT228: 0 | BY228: 0 | CD228: 0 | CI228: 0 | CN228: 0 | CS228: 0 | CX228: 0 | DC228: 0 | DH228: 0 | DM228: 0 | DR228: 0 | DW228: 0 | EB228: 0 | EG228: 0 | EL228: 0
D229: Premium | G229: 0 | L229: -290916 | Q229: -68408 | V229: -213164 | AA229: 0 | AF229: 0 | AK229: 0 | AP229: 0 | AU229: 0 | AZ229: 0 | BE229: 0 | BJ229: 0 | BO229: 0 | BT229: -572488 | BY229: -397326 | CD229: 0 | CI229: 0 | CN229: 0 | CS229: 0 | CX229: 0 | DC229: 0 | DH229: 0 | DM229: 0 | DR229: 0 | DW229: 0 | EB229: -397326 | EG229: 0 | EL229: 0
D231: R2040 (9.00% 2040/09/11) | G231: 0 | L231: 347167 | Q231: 0 | V231: 0 | AA231: 0 | AF231: 0 | AK231: 0 | AP231: 0 | AU231: 0 | AZ231: 0 | BE231: 0 | BJ231: 0 | BO231: 0 | BT231: 347167 | BY231: 0 | CD231: 0 | CI231: 0 | CN231: 0 | CS231: 0 | CX231: 0 | DC231: 0 | DH231: 0 | DM231: 0 | DR231: 0 | DW231: 0 | EB231: 0 | EG231: 0 | EL231: 0
D232: Cash value | G232: 0 | L232: 283557 | Q232: 0 | V232: 0 | AA232: 0 | AF232: 0 | AK232: 0 | AP232: 0 | AU232: 0 | AZ232: 0 | BE232: 0 | BJ232: 0 | BO232: 0 | BT232: 283557 | BY232: 0 | CD232: 0 | CI232: 0 | CN232: 0 | CS232: 0 | CX232: 0 | DC232: 0 | DH232: 0 | DM232: 0 | DR232: 0 | DW232: 0 | EB232: 0 | EG232: 0 | EL232: 0
D233: Discount | G233: 0 | L233: 63610 | Q233: 0 | V233: 0 | AA233: 0 | AF233: 0 | AK233: 0 | AP233: 0 | AU233: 0 | AZ233: 0 | BE233: 0 | BJ233: 0 | BO233: 0 | BT233: 63610 | BY233: 0 | CD233: 0 | CI233: 0 | CN233: 0 | CS233: 0 | CX233: 0 | DC233: 0 | DH233: 0 | DM233: 0 | DR233: 0 | DW233: 0 | EB233: 0 | EG233: 0 | EL233: 0
D234: Premium | G234: 0 | L234: 0 | Q234: 0 | V234: 0 | AA234: 0 | AF234: 0 | AK234: 0 | AP234: 0 | AU234: 0 | AZ234: 0 | BE234: 0 | BJ234: 0 | BO234: 0 | BT234: 0 | BY234: 0 | CD234: 0 | CI234: 0 | CN234: 0 | CS234: 0 | CX234: 0 | DC234: 0 | DH234: 0 | DM234: 0 | DR234: 0 | DW234: 0 | EB234: 0 | EG234: 0 | EL234: 0
D235: Revaluation | G235: 0 | L235: 0 | Q235: 0 | V235: 0 | AA235: 0 | AF235: 0 | AK235: 0 | AP235: 0 | AU235: 0 | AZ235: 0 | BE235: 0 | BJ235: 0 | BO235: 0 | BT235: 0 | BY235: 0 | CD235: 0 | CI235: 0 | CN235: 0 | CS235: 0 | CX235: 0 | DC235: 0 | DH235: 0 | DM235: 0 | DR235: 0 | DW235: 0 | EB235: 0 | EG235: 0 | EL235: 0
D237: R2037 (8.50% 2037/01/31) | G237: 0 | L237: 1626641 | Q237: 501290 | V237: 0 | AA237: 0 | AF237: 0 | AK237: 0 | AP237: 0 | AU237: 0 | AZ237: 0 | BE237: 0 | BJ237: 0 | BO237: 0 | BT237: 2127931 | BY237: 886572 | CD237: 0 | CI237: 0 | CN237: 0 | CS237: 0 | CX237: 0 | DC237: 0 | DH237: 0 | DM237: 0 | DR237: 0 | DW237: 0 | EB237: 886572 | EG237: 0 | EL237: 0
D238: Cash value | G238: 0 | L238: 1307176 | Q238: 415567 | V238: 0 | AA238: 0 | AF238: 0 | AK238: 0 | AP238: 0 | AU238: 0 | AZ238: 0 | BE238: 0 | BJ238: 0 | BO238: 0 | BT238: 1722743 | BY238: 747615 | CD238: 0 | CI238: 0 | CN238: 0 | CS238: 0 | CX238: 0 | DC238: 0 | DH238: 0 | DM238: 0 | DR238: 0 | DW238: 0 | EB238: 747615 | EG238: 0 | EL238: 0
D239: Discount | G239: 0 | L239: 319465 | Q239: 85723 | V239: 0 | AA239: 0 | AF239: 0 | AK239: 0 | AP239: 0 | AU239: 0 | AZ239: 0 | BE239: 0 | BJ239: 0 | BO239: 0 | BT239: 405188 | BY239: 138957 | CD239: 0 | CI239: 0 | CN239: 0 | CS239: 0 | CX239: 0 | DC239: 0 | DH239: 0 | DM239: 0 | DR239: 0 | DW239: 0 | EB239: 138957 | EG239: 0 | EL239: 0
D240: Premium | G240: 0 | L240: 0 | Q240: 0 | V240: 0 | AA240: 0 | AF240: 0 | AK240: 0 | AP240: 0 | AU240: 0 | AZ240: 0 | BE240: 0 | BJ240: 0 | BO240: 0 | BT240: 0 | BY240: 0 | CD240: 0 | CI240: 0 | CN240: 0 | CS240: 0 | CX240: 0 | DC240: 0 | DH240: 0 | DM240: 0 | DR240: 0 | DW240: 0 | EB240: 0 | EG240: 0 | EL240: 0
D242: R2035 (8.875% 2035/02/28) | G242: 0 | L242: 0 | Q242: 0 | V242: 0 | AA242: 0 | AF242: 0 | AK242: 0 | AP242: 0 | AU242: 0 | AZ242: 0 | BE242: 0 | BJ242: 0 | BO242: 0 | BT242: 0 | BY242: 832096 | CD242: 0 | CI242: 0 | CN242: 0 | CS242: 0 | CX242: 0 | DC242: 0 | DH242: 0 | DM242: 0 | DR242: 0 | DW242: 0 | EB242: 832096 | EG242: 0 | EL242: 0
D243: Cash value | G243: 0 | L243: 0 | Q243: 0 | V243: 0 | AA243: 0 | AF243: 0 | AK243: 0 | AP243: 0 | AU243: 0 | AZ243: 0 | BE243: 0 | BJ243: 0 | BO243: 0 | BT243: 0 | BY243: 735076 | CD243: 0 | CI243: 0 | CN243: 0 | CS243: 0 | CX243: 0 | DC243: 0 | DH243: 0 | DM243: 0 | DR243: 0 | DW243: 0 | EB243: 735076 | EG243: 0 | EL243: 0
D244: Discount | G244: 0 | L244: 0 | Q244: 0 | V244: 0 | AA244: 0 | AF244: 0 | AK244: 0 | AP244: 0 | AU244: 0 | AZ244: 0 | BE244: 0 | BJ244: 0 | BO244: 0 | BT244: 0 | BY244: 97020 | CD244: 0 | CI244: 0 | CN244: 0 | CS244: 0 | CX244: 0 | DC244: 0 | DH244: 0 | DM244: 0 | DR244: 0 | DW244: 0 | EB244: 97020 | EG244: 0 | EL244: 0
D245: Premium | G245: 0 | L245: 0 | Q245: 0 | V245: 0 | AA245: 0 | AF245: 0 | AK245: 0 | AP245: 0 | AU245: 0 | AZ245: 0 | BE245: 0 | BJ245: 0 | BO245: 0 | BT245: 0 | BY245: 0 | CD245: 0 | CI245: 0 | CN245: 0 | CS245: 0 | CX245: 0 | DC245: 0 | DH245: 0 | DM245: 0 | DR245: 0 | DW245: 0 | EB245: 0 | EG245: 0 | EL245: 0
D247: R213 (7.00% 2031/02/28) | G247: 0 | L247: 1762525 | Q247: 0 | V247: 0 | AA247: 0 | AF247: 0 | AK247: 0 | AP247: 0 | AU247: 0 | AZ247: 0 | BE247: 0 | BJ247: 0 | BO247: 0 | BT247: 1762525 | BY247: 690763 | CD247: 0 | CI247: 0 | CN247: 0 | CS247: 0 | CX247: 0 | DC247: 0 | DH247: 0 | DM247: 0 | DR247: 0 | DW247: 0 | EB247: 690763 | EG247: 0 | EL247: 0
D248: Cash value | G248: 0 | L248: 1480356 | Q248: 0 | V248: 0 | AA248: 0 | AF248: 0 | AK248: 0 | AP248: 0 | AU248: 0 | AZ248: 0 | BE248: 0 | BJ248: 0 | BO248: 0 | BT248: 1480356 | BY248: 592018 | CD248: 0 | CI248: 0 | CN248: 0 | CS248: 0 | CX248: 0 | DC248: 0 | DH248: 0 | DM248: 0 | DR248: 0 | DW248: 0 | EB248: 592018 | EG248: 0 | EL248: 0
D249: Discount | G249: 0 | L249: 282169 | Q249: 0 | V249: 0 | AA249: 0 | AF249: 0 | AK249: 0 | AP249: 0 | AU249: 0 | AZ249: 0 | BE249: 0 | BJ249: 0 | BO249: 0 | BT249: 282169 | BY249: 98745 | CD249: 0 | CI249: 0 | CN249: 0 | CS249: 0 | CX249: 0 | DC249: 0 | DH249: 0 | DM249: 0 | DR249: 0 | DW249: 0 | EB249: 98745 | EG249: 0 | EL249: 0
... 68 more rows

Sheet Table 3.2
M1: =1770000000+11234076861+1105000000 -> 14109076861
D7: Table 3.2 Redemption of domestic long-term loans
G8: =[16]summary!H8 -> 2021/22 | BY8: =[16]summary!BZ8 -> 2020/21
G9: =[16]domlongtermissues!G9 -> Budget | L9: April | Q9: May | V9: June | AA9: July | AF9: August | AK9: September | AP9: October | AU9: November | AZ9: December | BE9: January | BJ9: February | BO9: March | BT9: Year to date | BY9: =[16]domlongtermissues!BY9 -> Preliminary | CD9: April | CI9: May | CN9: June | CS9: July | CX9: August | DC9: September | DH9: October | DM9: November | DR9: December | DW9: January | EB9: February | EG9: March | EL9: Year to date
D10: R thousand | G10: estimate | BY10: outcome
D12: Redemption of domestic long-term loans | G12: =SUM(G13:G16) -> 60815000 | L12: =SUM(L13:L16) -> 10543716 | Q12: =SUM(Q13:Q16) -> 3539413 | V12: =SUM(V13:V16) -> 8139018 | AA12: =SUM(AA13:AA16) -> 0 | AF12: =SUM(AF13:AF16) -> 0 | AK12: =SUM(AK13:AK16) -> 0 | AP12: =SUM(AP13:AP16) -> 0 | AU12: =SUM(AU13:AU16) -> 0 | AZ12: =SUM(AZ13:AZ16) -> 0 | BE12: =SUM(BE13:BE16) -> 0 | BJ12: =SUM(BJ13:BJ16) -> 0 | BO12: =SUM(BO13:BO16) -> 0 | BT12: =SUM(BT13:BT16) -> 22222147 | BY12: =SUM(BY13:BY16) -> 64919587 | CD12: =SUM(CD13:CD16) -> 1687473 | CI12: =SUM(CI13:CI16) -> 364729 | CN12: =SUM(CN13:CN16) -> 141048 | CS12: =SUM(CS13:CS16) -> 339545 | CX12: =SUM(CX13:CX16) -> 253446 | DC12: =SUM(DC13:DC16) -> 241575 | DH12: =SUM(DH13:DH16) -> 333330 | DM12: =SUM(DM13:DM16) -> 314155 | DR12: =SUM(DR13:DR16) -> 350295 | DW12: =SUM(DW13:DW16) -> 530634 | EB12: =SUM(EB13:EB16) -> 8365260 | EG12: =SUM(EG13:EG16) -> 51998097 | EL12: =SUM(EL13:EL16) -> 2193250
D13: Scheduled | G13: =G18 -> 60815000 | L13: =L18 -> 168655 | Q13: =Q18 -> 364413 | V13: =V18 -> 197910 | AA13: =AA18 -> 0 | AF13: =AF18 -> 0 | AK13: =AK18 -> 0 | AP13: =AP18 -> 0 | AU13: =AU18 -> 0 | AZ13: =AZ18 -> 0 | BE13: =BE18 -> 0 | BJ13: =BJ18 -> 0 | BO13: =BO18 -> 0 | BT13: =BT18 -> 730978 | BY13: =BY18 -> 53222591 | CD13: =CD18 -> 1200137 | CI13: =CI18 -> 335047 | CN13: =CN18 -> 112559 | CS13: =CS18 -> 339545 | CX13: =CX18 -> 212255 | DC13: =DC18 -> 223023 | DH13: =DH18 -> 333330 | DM13: =DM18 -> 314155 | DR13: =DR18 -> 59957 | DW13: =DW18 -> 397954 | EB13: =EB18 -> 281023 | EG13: =EG18 -> 49413606 | EL13: =EL18 -> 1647743
D14: Due to switches | G14: =G30 -> 0 | L14: =L30 -> 10180000 | Q14: =Q30 -> 3175000 | V14: =V30 -> 6985000 | AA14: =AA30 -> 0 | AF14: =AF30 -> 0 | AK14: =AK30 -> 0 | AP14: =AP30 -> 0 | AU14: =AU30 -> 0 | AZ14: =AZ30 -> 0 | BE14: =BE30 -> 0 | BJ14: =BJ30 -> 0 | BO14: =BO30 -> 0 | BT14: =BT30 -> 20340000 | BY14: =BY30 -> 6805000 | CD14: =CD30 -> 0 | CI14: =CI30 -> 0 | CN14: =CN30 -> 0 | CS14: =CS30 -> 0 | CX14: =CX30 -> 0 | DC14: =DC30 -> 0 | DH14: =DH30 -> 0 | DM14: =DM30 -> 0 | DR14: =DR30 -> 0 | DW14: =DW30 -> 0 | EB14: =EB30 -> 6805000 | EG14: =EG30 -> 0 | EL14: =EL30 -> 0
D15: Due to repo's (Repo in) | G15: =G65 -> 0 | L15: =L65 -> 195061 | Q15: =Q65 -> 0 | V15: =V65 -> 956108 | AA15: =AA65 -> 0 | AF15: =AF65 -> 0 | AK15: =AK65 -> 0 | AP15: =AP65 -> 0 | AU15: =AU65 -> 0 | AZ15: =AZ65 -> 0 | BE15: =BE65 -> 0 | BJ15: =BJ65 -> 0 | BO15: =BO65 -> 0 | BT15: =BT65 -> 1151169 | BY15: =BY65 -> 4891996 | CD15: =CD65 -> 487336 | CI15: =CI65 -> 29682 | CN15: =CN65 -> 28489 | CS15: =CS65 -> 0 | CX15: =CX65 -> 41191 | DC15: =DC65 -> 18552 | DH15: =DH65 -> 0 | DM15: =DM65 -> 0 | DR15: =DR65 -> 290338 | DW15: =DW65 -> 132680 | EB15: =EB65 -> 1279237 | EG15: =EG65 -> 2584491 | EL15: =EL65 -> 545507
D16: Due to buy-backs | G16: =G122 -> 0 | L16: =L122 -> 0 | Q16: =Q122 -> 0 | V16: =V122 -> 0 | AA16: =AA122 -> 0 | AF16: =AF122 -> 0 | AK16: =AK122 -> 0 | AP16: =AP122 -> 0 | AU16: =AU122 -> 0 | AZ16: =AZ122 -> 0 | BE16: =BE122 -> 0 | BJ16: =BJ122 -> 0 | BO16: =BO122 -> 0 | BT16: =BT122 -> 0 | BY16: =BY122 -> 0 | CD16: =CD122 -> 0 | CI16: =CI122 -> 0 | CN16: =CN122 -> 0 | CS16: =CS122 -> 0 | CX16: =CX122 -> 0 | DC16: =DC122 -> 0 | DH16: =DH122 -> 0 | DM16: =DM122 -> 0 | DR16: =DR122 -> 0 | DW16: =DW122 -> 0 | EB16: =EB122 -> 0 | EG16: =EG122 -> 0 | EL16: =EL122 -> 0
